Workbook

Sheet Stage-Storage (Standard)
A3: Chamber Model
A4: Number of Chambers | E4: 25
A5: Number of Endcaps | E5: 10
A6: Stone Voids (porosity) | E6: 0.4
A7: Base of Stone Elevation | E7: 0 | F7: =IF('Backend Calcs Standard'!$A$12=1, "ft","m") -> ft
A8: Recommended Stone Below Chambers* | E8: 9 | F8: =IF('Backend Calcs Standard'!$A$12=1, "in.","mm") -> in. | G8: Include perimeter stone?
A9: Recommended Stone Above Chambers* | E9: 12 | F9: =IF('Backend Calcs Standard'!$A$12=1, "in.","mm") -> in.
B11: =IF('Backend Calcs Standard'!A11=1,"Area of System**", " ") -> Area of System** | D11: 1491 | E11: =IF('Backend Calcs Standard'!$A$11=1,IF('Backend Calcs Standard'!$A$12=1, "sq.ft","sq.m"),"") -> sq.ft
C12: =IF('Backend Calcs Standard'!A11=1,"**Area must be greater than: ", " ") -> **Area must be greater than: | E12: ='Backend Calcs Standard'!H15 -> 1451 sq.ft
B13: *The minimum stone below and above the chambers to be determinded by the design engineer.
A15: System Height (in) | B15: =IF('Backend Calcs Standard'!A12=1, "Incremental Single Chamber Storage (cu.ft)","Incremental Single Chamber Storage (cu.m)") -> Incremental Single Chamber Storage (cu.ft) | C15: =IF('Backend Calcs Standard'!A12=1,"Incremental Single End Cap Storage (cu.ft)","Incremental Single End Cap Storage (cu.m)") -> Incremental Single End Cap Storage (cu.ft) | D15: =IF('Backend Calcs Standard'!A12=1,"Incremental Total Chamber Storage (cu.ft)","Incremental Total Chamber Storage (cu.m)") -> Incremental Total Chamber Storage (cu.ft) | E15: =IF('Backend Calcs Standard'!A12=1,"Incremental Total End Cap Storage (cu.ft)","Incremental Total End Cap Storage (cu.m)") -> Incremental Total End Cap Storage (cu.ft) | F15: =IF('Backend Calcs Standard'!A12=1,"Incremental Stone Storage (cu.ft)","Incremental Stone Storage (cu.m)") -> Incremental Stone Storage (cu.ft) | G15: =IF('Backend Calcs Standard'!A12=1,"Incremental Chamber, End Cap, & Stone (cu.ft)","Incremental Chamber, End Cap, & Stone (cu.m)") -> Incremental Chamber, End Cap, & Stone (cu.ft) | H15: =IF('Backend Calcs Standard'!A12=1,"Cumulative Total Storage for System (cu.ft)","Cumulative Total Storage for System (cu.m)") -> Cumulative Total Storage for System (cu.ft) | I15: =IF('Backend Calcs Standard'!A12=1,"Cumulative System Storage (cu.ft)","Cumulative System Storage (cu.m)") -> Cumulative System Storage (cu.ft) | J15: =IF('Backend Calcs Standard'!A12=1,"Elevation (ft)","Elevation (m)") -> Elevation (ft)
A16: =IFERROR(IF(B16="","",'Backend Calcs Standard'!P17),"") -> 66 | B16: =IFERROR(IF(C16="","",(IF('Backend Calcs Standard'!$A$12=1,'Backend Calcs Standard'!S17,(('Backend Calcs Standard'!S17)*0.0283168)))),"") -> 0 | C16: =IFERROR(IF(D16="","",(IF('Backend Calcs Standard'!$A$12=1,'Backend Calcs Standard'!T17,(('Backend Calcs Standard'!T17)*0.0283168)))),"") -> 0 | D16: =IFERROR(IF(E16="","",(IF('Backend Calcs Standard'!$A$12=1,'Backend Calcs Standard'!U17,(('Backend Calcs Standard'!U17)*0.0283168)))),"") -> 0 | E16: =IFERROR(IF(F16="","",(IF('Backend Calcs Standard'!$A$12=1,'Backend Calcs Standard'!V17,(('Backend Calcs Standard'!V17)*0.0283168)))),"") -> 0 | F16: =IF(I16="","",(IF('Backend Calcs Standard'!$A$12=1,'Backend Calcs Standard'!W17,('Backend Calcs Standard'!W17*0.0283168)))) -> 49.7 | G16: =IFERROR(IF(F16="","",(F16+E16+D16)),"") -> 49.7 | H16: =IF('Backend Calcs Standard'!$A$12=1,'Backend Calcs Standard'!X17,('Backend Calcs Standard'!X17*0.0283168)) -> 49.7 | I16: =IFERROR(IF(H16="","",(IF('Backend Calcs Standard'!$A$12=1,'Backend Calcs Standard'!Y17,('Backend Calcs Standard'!Y17*0.0283168)))),"") -> 5075.767847 | J16: =IF(A16="","",IF('Backend Calcs Standard'!$A$12=1,'Backend Calcs Standard'!Z17,'Backend Calcs Standard'!O17)) -> 5.5 | L16: =IF(G16="","",G16*12) -> 596.4
A17: =IFERROR(IF(B17="","",'Backend Calcs Standard'!P18),"") -> 65 | B17: =IFERROR(IF(C17="","",(IF('Backend Calcs Standard'!$A$12=1,'Backend Calcs Standard'!S18,(('Backend Calcs Standard'!S18)*0.0283168)))),"") -> 0 | C17: =IFERROR(IF(D17="","",(IF('Backend Calcs Standard'!$A$12=1,'Backend Calcs Standard'!T18,(('Backend Calcs Standard'!T18)*0.0283168)))),"") -> 0 | D17: =IFERROR(IF(E17="","",(IF('Backend Calcs Standard'!$A$12=1,'Backend Calcs Standard'!U18,(('Backend Calcs Standard'!U18)*0.0283168)))),"") -> 0 | E17: =IFERROR(IF(F17="","",(IF('Backend Calcs Standard'!$A$12=1,'Backend Calcs Standard'!V18,(('Backend Calcs Standard'!V18)*0.0283168)))),"") -> 0 | F17: =IF(I17="","",(IF('Backend Calcs Standard'!$A$12=1,'Backend Calcs Standard'!W18,('Backend Calcs Standard'!W18*0.0283168)))) -> 49.7 | G17: 49.7 | H17: =IF('Backend Calcs Standard'!$A$12=1,'Backend Calcs Standard'!X18,('Backend Calcs Standard'!X18*0.0283168)) -> 49.7 | I17: =IFERROR(IF(H17="","",(IF('Backend Calcs Standard'!$A$12=1,'Backend Calcs Standard'!Y18,('Backend Calcs Standard'!Y18*0.0283168)))),"") -> 5026.067847 | J17: =IF(A17="","",IF('Backend Calcs Standard'!$A$12=1,'Backend Calcs Standard'!Z18,'Backend Calcs Standard'!O18)) -> 5.416666667 | L17: =IF(G17="","",G17*12) -> 596.4
A18: =IFERROR(IF(B18="","",'Backend Calcs Standard'!P19),"") -> 64 | B18: =IFERROR(IF(C18="","",(IF('Backend Calcs Standard'!$A$12=1,'Backend Calcs Standard'!S19,(('Backend Calcs Standard'!S19)*0.0283168)))),"") -> 0 | C18: =IFERROR(IF(D18="","",(IF('Backend Calcs Standard'!$A$12=1,'Backend Calcs Standard'!T19,(('Backend Calcs Standard'!T19)*0.0283168)))),"") -> 0 | D18: =IFERROR(IF(E18="","",(IF('Backend Calcs Standard'!$A$12=1,'Backend Calcs Standard'!U19,(('Backend Calcs Standard'!U19)*0.0283168)))),"") -> 0 | E18: =IFERROR(IF(F18="","",(IF('Backend Calcs Standard'!$A$12=1,'Backend Calcs Standard'!V19,(('Backend Calcs Standard'!V19)*0.0283168)))),"") -> 0 | F18: =IF(I18="","",(IF('Backend Calcs Standard'!$A$12=1,'Backend Calcs Standard'!W19,('Backend Calcs Standard'!W19*0.0283168)))) -> 49.7 | G18: 49.7 | H18: =IF('Backend Calcs Standard'!$A$12=1,'Backend Calcs Standard'!X19,('Backend Calcs Standard'!X19*0.0283168)) -> 49.7 | I18: =IFERROR(IF(H18="","",(IF('Backend Calcs Standard'!$A$12=1,'Backend Calcs Standard'!Y19,('Backend Calcs Standard'!Y19*0.0283168)))),"") -> 4976.367847 | J18: =IF(A18="","",IF('Backend Calcs Standard'!$A$12=1,'Backend Calcs Standard'!Z19,'Backend Calcs Standard'!O19)) -> 5.333333333 | L18: 596.4
A19: =IFERROR(IF(B19="","",'Backend Calcs Standard'!P20),"") -> 63 | B19: =IFERROR(IF(C19="","",(IF('Backend Calcs Standard'!$A$12=1,'Backend Calcs Standard'!S20,(('Backend Calcs Standard'!S20)*0.0283168)))),"") -> 0 | C19: =IFERROR(IF(D19="","",(IF('Backend Calcs Standard'!$A$12=1,'Backend Calcs Standard'!T20,(('Backend Calcs Standard'!T20)*0.0283168)))),"") -> 0 | D19: =IFERROR(IF(E19="","",(IF('Backend Calcs Standard'!$A$12=1,'Backend Calcs Standard'!U20,(('Backend Calcs Standard'!U20)*0.0283168)))),"") -> 0 | E19: =IFERROR(IF(F19="","",(IF('Backend Calcs Standard'!$A$12=1,'Backend Calcs Standard'!V20,(('Backend Calcs Standard'!V20)*0.0283168)))),"") -> 0 | F19: =IF(I19="","",(IF('Backend Calcs Standard'!$A$12=1,'Backend Calcs Standard'!W20,('Backend Calcs Standard'!W20*0.0283168)))) -> 49.7 | G19: 49.7 | H19: =IF('Backend Calcs Standard'!$A$12=1,'Backend Calcs Standard'!X20,('Backend Calcs Standard'!X20*0.0283168)) -> 49.7 | I19: =IFERROR(IF(H19="","",(IF('Backend Calcs Standard'!$A$12=1,'Backend Calcs Standard'!Y20,('Backend Calcs Standard'!Y20*0.0283168)))),"") -> 4926.667847 | J19: =IF(A19="","",IF('Backend Calcs Standard'!$A$12=1,'Backend Calcs Standard'!Z20,'Backend Calcs Standard'!O20)) -> 5.25 | L19: 596.4
A20: =IFERROR(IF(B20="","",'Backend Calcs Standard'!P21),"") -> 62 | B20: =IFERROR(IF(C20="","",(IF('Backend Calcs Standard'!$A$12=1,'Backend Calcs Standard'!S21,(('Backend Calcs Standard'!S21)*0.0283168)))),"") -> 0 | C20: =IFERROR(IF(D20="","",(IF('Backend Calcs Standard'!$A$12=1,'Backend Calcs Standard'!T21,(('Backend Calcs Standard'!T21)*0.0283168)))),"") -> 0 | D20: =IFERROR(IF(E20="","",(IF('Backend Calcs Standard'!$A$12=1,'Backend Calcs Standard'!U21,(('Backend Calcs Standard'!U21)*0.0283168)))),"") -> 0 | E20: =IFERROR(IF(F20="","",(IF('Backend Calcs Standard'!$A$12=1,'Backend Calcs Standard'!V21,(('Backend Calcs Standard'!V21)*0.0283168)))),"") -> 0 | F20: =IF(I20="","",(IF('Backend Calcs Standard'!$A$12=1,'Backend Calcs Standard'!W21,('Backend Calcs Standard'!W21*0.0283168)))) -> 49.7 | G20: 49.7 | H20: =IF('Backend Calcs Standard'!$A$12=1,'Backend Calcs Standard'!X21,('Backend Calcs Standard'!X21*0.0283168)) -> 49.7 | I20: =IFERROR(IF(H20="","",(IF('Backend Calcs Standard'!$A$12=1,'Backend Calcs Standard'!Y21,('Backend Calcs Standard'!Y21*0.0283168)))),"") -> 4876.967847 | J20: =IF(A20="","",IF('Backend Calcs Standard'!$A$12=1,'Backend Calcs Standard'!Z21,'Backend Calcs Standard'!O21)) -> 5.166666667 | L20: 596.4
A21: =IFERROR(IF(B21="","",'Backend Calcs Standard'!P22),"") -> 61 | B21: =IFERROR(IF(C21="","",(IF('Backend Calcs Standard'!$A$12=1,'Backend Calcs Standard'!S22,(('Backend Calcs Standard'!S22)*0.0283168)))),"") -> 0 | C21: =IFERROR(IF(D21="","",(IF('Backend Calcs Standard'!$A$12=1,'Backend Calcs Standard'!T22,(('Backend Calcs Standard'!T22)*0.0283168)))),"") -> 0 | D21: =IFERROR(IF(E21="","",(IF('Backend Calcs Standard'!$A$12=1,'Backend Calcs Standard'!U22,(('Backend Calcs Standard'!U22)*0.0283168)))),"") -> 0 | E21: =IFERROR(IF(F21="","",(IF('Backend Calcs Standard'!$A$12=1,'Backend Calcs Standard'!V22,(('Backend Calcs Standard'!V22)*0.0283168)))),"") -> 0 | F21: =IF(I21="","",(IF('Backend Calcs Standard'!$A$12=1,'Backend Calcs Standard'!W22,('Backend Calcs Standard'!W22*0.0283168)))) -> 49.7 | G21: 49.7 | H21: =IF('Backend Calcs Standard'!$A$12=1,'Backend Calcs Standard'!X22,('Backend Calcs Standard'!X22*0.0283168)) -> 49.7 | I21: =IFERROR(IF(H21="","",(IF('Backend Calcs Standard'!$A$12=1,'Backend Calcs Standard'!Y22,('Backend Calcs Standard'!Y22*0.0283168)))),"") -> 4827.267847 | J21: =IF(A21="","",IF('Backend Calcs Standard'!$A$12=1,'Backend Calcs Standard'!Z22,'Backend Calcs Standard'!O22)) -> 5.083333333 | L21: 596.4
A22: =IFERROR(IF(B22="","",'Backend Calcs Standard'!P23),"") -> 60 | B22: =IFERROR(IF(C22="","",(IF('Backend Calcs Standard'!$A$12=1,'Backend Calcs Standard'!S23,(('Backend Calcs Standard'!S23)*0.0283168)))),"") -> 0 | C22: =IFERROR(IF(D22="","",(IF('Backend Calcs Standard'!$A$12=1,'Backend Calcs Standard'!T23,(('Backend Calcs Standard'!T23)*0.0283168)))),"") -> 0 | D22: =IFERROR(IF(E22="","",(IF('Backend Calcs Standard'!$A$12=1,'Backend Calcs Standard'!U23,(('Backend Calcs Standard'!U23)*0.0283168)))),"") -> 0 | E22: =IFERROR(IF(F22="","",(IF('Backend Calcs Standard'!$A$12=1,'Backend Calcs Standard'!V23,(('Backend Calcs Standard'!V23)*0.0283168)))),"") -> 0 | F22: =IF(I22="","",(IF('Backend Calcs Standard'!$A$12=1,'Backend Calcs Standard'!W23,('Backend Calcs Standard'!W23*0.0283168)))) -> 49.7 | G22: 49.7 | H22: =IF('Backend Calcs Standard'!$A$12=1,'Backend Calcs Standard'!X23,('Backend Calcs Standard'!X23*0.0283168)) -> 49.7 | I22: =IFERROR(IF(H22="","",(IF('Backend Calcs Standard'!$A$12=1,'Backend Calcs Standard'!Y23,('Backend Calcs Standard'!Y23*0.0283168)))),"") -> 4777.567847 | J22: =IF(A22="","",IF('Backend Calcs Standard'!$A$12=1,'Backend Calcs Standard'!Z23,'Backend Calcs Standard'!O23)) -> 5 | L22: 596.4
A23: =IFERROR(IF(B23="","",'Backend Calcs Standard'!P24),"") -> 59 | B23: =IFERROR(IF(C23="","",(IF('Backend Calcs Standard'!$A$12=1,'Backend Calcs Standard'!S24,(('Backend Calcs Standard'!S24)*0.0283168)))),"") -> 0 | C23: =IFERROR(IF(D23="","",(IF('Backend Calcs Standard'!$A$12=1,'Backend Calcs Standard'!T24,(('Backend Calcs Standard'!T24)*0.0283168)))),"") -> 0 | D23: =IFERROR(IF(E23="","",(IF('Backend Calcs Standard'!$A$12=1,'Backend Calcs Standard'!U24,(('Backend Calcs Standard'!U24)*0.0283168)))),"") -> 0 | E23: =IFERROR(IF(F23="","",(IF('Backend Calcs Standard'!$A$12=1,'Backend Calcs Standard'!V24,(('Backend Calcs Standard'!V24)*0.0283168)))),"") -> 0 | F23: =IF(I23="","",(IF('Backend Calcs Standard'!$A$12=1,'Backend Calcs Standard'!W24,('Backend Calcs Standard'!W24*0.0283168)))) -> 49.7 | G23: 49.7 | H23: =IF('Backend Calcs Standard'!$A$12=1,'Backend Calcs Standard'!X24,('Backend Calcs Standard'!X24*0.0283168)) -> 49.7 | I23: =IFERROR(IF(H23="","",(IF('Backend Calcs Standard'!$A$12=1,'Backend Calcs Standard'!Y24,('Backend Calcs Standard'!Y24*0.0283168)))),"") -> 4727.867847 | J23: =IF(A23="","",IF('Backend Calcs Standard'!$A$12=1,'Backend Calcs Standard'!Z24,'Backend Calcs Standard'!O24)) -> 4.916666667 | L23: 596.4
A24: =IFERROR(IF(B24="","",'Backend Calcs Standard'!P25),"") -> 58 | B24: =IFERROR(IF(C24="","",(IF('Backend Calcs Standard'!$A$12=1,'Backend Calcs Standard'!S25,(('Backend Calcs Standard'!S25)*0.0283168)))),"") -> 0 | C24: =IFERROR(IF(D24="","",(IF('Backend Calcs Standard'!$A$12=1,'Backend Calcs Standard'!T25,(('Backend Calcs Standard'!T25)*0.0283168)))),"") -> 0 | D24: =IFERROR(IF(E24="","",(IF('Backend Calcs Standard'!$A$12=1,'Backend Calcs Standard'!U25,(('Backend Calcs Standard'!U25)*0.0283168)))),"") -> 0 | E24: =IFERROR(IF(F24="","",(IF('Backend Calcs Standard'!$A$12=1,'Backend Calcs Standard'!V25,(('Backend Calcs Standard'!V25)*0.0283168)))),"") -> 0 | F24: =IF(I24="","",(IF('Backend Calcs Standard'!$A$12=1,'Backend Calcs Standard'!W25,('Backend Calcs Standard'!W25*0.0283168)))) -> 49.7 | G24: 49.7 | H24: =IF('Backend Calcs Standard'!$A$12=1,'Backend Calcs Standard'!X25,('Backend Calcs Standard'!X25*0.0283168)) -> 49.7 | I24: =IFERROR(IF(H24="","",(IF('Backend Calcs Standard'!$A$12=1,'Backend Calcs Standard'!Y25,('Backend Calcs Standard'!Y25*0.0283168)))),"") -> 4678.167847 | J24: =IF(A24="","",IF('Backend Calcs Standard'!$A$12=1,'Backend Calcs Standard'!Z25,'Backend Calcs Standard'!O25)) -> 4.833333333 | L24: 596.4
A25: =IFERROR(IF(B25="","",'Backend Calcs Standard'!P26),"") -> 57 | B25: =IFERROR(IF(C25="","",(IF('Backend Calcs Standard'!$A$12=1,'Backend Calcs Standard'!S26,(('Backend Calcs Standard'!S26)*0.0283168)))),"") -> 0 | C25: =IFERROR(IF(D25="","",(IF('Backend Calcs Standard'!$A$12=1,'Backend Calcs Standard'!T26,(('Backend Calcs Standard'!T26)*0.0283168)))),"") -> 0 | D25: =IFERROR(IF(E25="","",(IF('Backend Calcs Standard'!$A$12=1,'Backend Calcs Standard'!U26,(('Backend Calcs Standard'!U26)*0.0283168)))),"") -> 0 | E25: =IFERROR(IF(F25="","",(IF('Backend Calcs Standard'!$A$12=1,'Backend Calcs Standard'!V26,(('Backend Calcs Standard'!V26)*0.0283168)))),"") -> 0 | F25: =IF(I25="","",(IF('Backend Calcs Standard'!$A$12=1,'Backend Calcs Standard'!W26,('Backend Calcs Standard'!W26*0.0283168)))) -> 49.7 | G25: 49.7 | H25: =IF('Backend Calcs Standard'!$A$12=1,'Backend Calcs Standard'!X26,('Backend Calcs Standard'!X26*0.0283168)) -> 49.7 | I25: =IFERROR(IF(H25="","",(IF('Backend Calcs Standard'!$A$12=1,'Backend Calcs Standard'!Y26,('Backend Calcs Standard'!Y26*0.0283168)))),"") -> 4628.467847 | J25: =IF(A25="","",IF('Backend Calcs Standard'!$A$12=1,'Backend Calcs Standard'!Z26,'Backend Calcs Standard'!O26)) -> 4.75 | L25: 596.4
A26: =IFERROR(IF(B26="","",'Backend Calcs Standard'!P27),"") -> 56 | B26: =IFERROR(IF(C26="","",(IF('Backend Calcs Standard'!$A$12=1,'Backend Calcs Standard'!S27,(('Backend Calcs Standard'!S27)*0.0283168)))),"") -> 0 | C26: =IFERROR(IF(D26="","",(IF('Backend Calcs Standard'!$A$12=1,'Backend Calcs Standard'!T27,(('Backend Calcs Standard'!T27)*0.0283168)))),"") -> 0 | D26: =IFERROR(IF(E26="","",(IF('Backend Calcs Standard'!$A$12=1,'Backend Calcs Standard'!U27,(('Backend Calcs Standard'!U27)*0.0283168)))),"") -> 0 | E26: =IFERROR(IF(F26="","",(IF('Backend Calcs Standard'!$A$12=1,'Backend Calcs Standard'!V27,(('Backend Calcs Standard'!V27)*0.0283168)))),"") -> 0 | F26: =IF(I26="","",(IF('Backend Calcs Standard'!$A$12=1,'Backend Calcs Standard'!W27,('Backend Calcs Standard'!W27*0.0283168)))) -> 49.7 | G26: 49.7 | H26: =IF('Backend Calcs Standard'!$A$12=1,'Backend Calcs Standard'!X27,('Backend Calcs Standard'!X27*0.0283168)) -> 49.7 | I26: =IFERROR(IF(H26="","",(IF('Backend Calcs Standard'!$A$12=1,'Backend Calcs Standard'!Y27,('Backend Calcs Standard'!Y27*0.0283168)))),"") -> 4578.767847 | J26: =IF(A26="","",IF('Backend Calcs Standard'!$A$12=1,'Backend Calcs Standard'!Z27,'Backend Calcs Standard'!O27)) -> 4.666666667 | L26: 596.4
A27: =IFERROR(IF(B27="","",'Backend Calcs Standard'!P28),"") -> 55 | B27: =IFERROR(IF(C27="","",(IF('Backend Calcs Standard'!$A$12=1,'Backend Calcs Standard'!S28,(('Backend Calcs Standard'!S28)*0.0283168)))),"") -> 0 | C27: =IFERROR(IF(D27="","",(IF('Backend Calcs Standard'!$A$12=1,'Backend Calcs Standard'!T28,(('Backend Calcs Standard'!T28)*0.0283168)))),"") -> 0 | D27: =IFERROR(IF(E27="","",(IF('Backend Calcs Standard'!$A$12=1,'Backend Calcs Standard'!U28,(('Backend Calcs Standard'!U28)*0.0283168)))),"") -> 0 | E27: =IFERROR(IF(F27="","",(IF('Backend Calcs Standard'!$A$12=1,'Backend Calcs Standard'!V28,(('Backend Calcs Standard'!V28)*0.0283168)))),"") -> 0 | F27: =IF(I27="","",(IF('Backend Calcs Standard'!$A$12=1,'Backend Calcs Standard'!W28,('Backend Calcs Standard'!W28*0.0283168)))) -> 49.7 | G27: 49.7 | H27: =IF('Backend Calcs Standard'!$A$12=1,'Backend Calcs Standard'!X28,('Backend Calcs Standard'!X28*0.0283168)) -> 49.7 | I27: =IFERROR(IF(H27="","",(IF('Backend Calcs Standard'!$A$12=1,'Backend Calcs Standard'!Y28,('Backend Calcs Standard'!Y28*0.0283168)))),"") -> 4529.067847 | J27: =IF(A27="","",IF('Backend Calcs Standard'!$A$12=1,'Backend Calcs Standard'!Z28,'Backend Calcs Standard'!O28)) -> 4.583333333 | L27: 596.4
A28: =IFERROR(IF(B28="","",'Backend Calcs Standard'!P29),"") -> 54 | B28: =IFERROR(IF(C28="","",(IF('Backend Calcs Standard'!$A$12=1,'Backend Calcs Standard'!S29,(('Backend Calcs Standard'!S29)*0.0283168)))),"") -> 0.1827314815 | C28: =IFERROR(IF(D28="","",(IF('Backend Calcs Standard'!$A$12=1,'Backend Calcs Standard'!T29,(('Backend Calcs Standard'!T29)*0.0283168)))),"") -> 0 | D28: =IFERROR(IF(E28="","",(IF('Backend Calcs Standard'!$A$12=1,'Backend Calcs Standard'!U29,(('Backend Calcs Standard'!U29)*0.0283168)))),"") -> 4.568287037 | E28: =IFERROR(IF(F28="","",(IF('Backend Calcs Standard'!$A$12=1,'Backend Calcs Standard'!V29,(('Backend Calcs Standard'!V29)*0.0283168)))),"") -> 0 | F28: =IF(I28="","",(IF('Backend Calcs Standard'!$A$12=1,'Backend Calcs Standard'!W29,('Backend Calcs Standard'!W29*0.0283168)))) -> 47.87268519 | G28: 52.44097222 | H28: =IF('Backend Calcs Standard'!$A$12=1,'Backend Calcs Standard'!X29,('Backend Calcs Standard'!X29*0.0283168)) -> 52.44097222 | I28: =IFERROR(IF(H28="","",(IF('Backend Calcs Standard'!$A$12=1,'Backend Calcs Standard'!Y29,('Backend Calcs Standard'!Y29*0.0283168)))),"") -> 4479.367847 | J28: =IF(A28="","",IF('Backend Calcs Standard'!$A$12=1,'Backend Calcs Standard'!Z29,'Backend Calcs Standard'!O29)) -> 4.5 | L28: 629.2916667
A29: =IFERROR(IF(B29="","",'Backend Calcs Standard'!P30),"") -> 53 | B29: =IFERROR(IF(C29="","",(IF('Backend Calcs Standard'!$A$12=1,'Backend Calcs Standard'!S30,(('Backend Calcs Standard'!S30)*0.0283168)))),"") -> 0.3138425926 | C29: =IFERROR(IF(D29="","",(IF('Backend Calcs Standard'!$A$12=1,'Backend Calcs Standard'!T30,(('Backend Calcs Standard'!T30)*0.0283168)))),"") -> 0.01 | D29: =IFERROR(IF(E29="","",(IF('Backend Calcs Standard'!$A$12=1,'Backend Calcs Standard'!U30,(('Backend Calcs Standard'!U30)*0.0283168)))),"") -> 7.846064815 | E29: =IFERROR(IF(F29="","",(IF('Backend Calcs Standard'!$A$12=1,'Backend Calcs Standard'!V30,(('Backend Calcs Standard'!V30)*0.0283168)))),"") -> 0.1 | F29: =IF(I29="","",(IF('Backend Calcs Standard'!$A$12=1,'Backend Calcs Standard'!W30,('Backend Calcs Standard'!W30*0.0283168)))) -> 46.52157407 | G29: 54.46763889 | H29: =IF('Backend Calcs Standard'!$A$12=1,'Backend Calcs Standard'!X30,('Backend Calcs Standard'!X30*0.0283168)) -> 54.46763889 | I29: =IFERROR(IF(H29="","",(IF('Backend Calcs Standard'!$A$12=1,'Backend Calcs Standard'!Y30,('Backend Calcs Standard'!Y30*0.0283168)))),"") -> 4426.926875 | J29: =IF(A29="","",IF('Backend Calcs Standard'!$A$12=1,'Backend Calcs Standard'!Z30,'Backend Calcs Standard'!O30)) -> 4.416666667 | L29: 653.6116667
A30: =IFERROR(IF(B30="","",'Backend Calcs Standard'!P31),"") -> 52 | B30: =IFERROR(IF(C30="","",(IF('Backend Calcs Standard'!$A$12=1,'Backend Calcs Standard'!S31,(('Backend Calcs Standard'!S31)*0.0283168)))),"") -> 0.4423553241 | C30: =IFERROR(IF(D30="","",(IF('Backend Calcs Standard'!$A$12=1,'Backend Calcs Standard'!T31,(('Backend Calcs Standard'!T31)*0.0283168)))),"") -> 0.03 | D30: =IFERROR(IF(E30="","",(IF('Backend Calcs Standard'!$A$12=1,'Backend Calcs Standard'!U31,(('Backend Calcs Standard'!U31)*0.0283168)))),"") -> 11.0588831 | E30: =IFERROR(IF(F30="","",(IF('Backend Calcs Standard'!$A$12=1,'Backend Calcs Standard'!V31,(('Backend Calcs Standard'!V31)*0.0283168)))),"") -> 0.3 | F30: =IF(I30="","",(IF('Backend Calcs Standard'!$A$12=1,'Backend Calcs Standard'!W31,('Backend Calcs Standard'!W31*0.0283168)))) -> 45.15644676 | G30: 56.51532986 | H30: =IF('Backend Calcs Standard'!$A$12=1,'Backend Calcs Standard'!X31,('Backend Calcs Standard'!X31*0.0283168)) -> 56.51532986 | I30: =IFERROR(IF(H30="","",(IF('Backend Calcs Standard'!$A$12=1,'Backend Calcs Standard'!Y31,('Backend Calcs Standard'!Y31*0.0283168)))),"") -> 4372.459236 | J30: =IF(A30="","",IF('Backend Calcs Standard'!$A$12=1,'Backend Calcs Standard'!Z31,'Backend Calcs Standard'!O31)) -> 4.333333333 | L30: 678.1839583
A31: =IFERROR(IF(B31="","",'Backend Calcs Standard'!P32),"") -> 51 | B31: =IFERROR(IF(C31="","",(IF('Backend Calcs Standard'!$A$12=1,'Backend Calcs Standard'!S32,(('Backend Calcs Standard'!S32)*0.0283168)))),"") -> 0.6263136574 | C31: =IFERROR(IF(D31="","",(IF('Backend Calcs Standard'!$A$12=1,'Backend Calcs Standard'!T32,(('Backend Calcs Standard'!T32)*0.0283168)))),"") -> 0.05 | D31: =IFERROR(IF(E31="","",(IF('Backend Calcs Standard'!$A$12=1,'Backend Calcs Standard'!U32,(('Backend Calcs Standard'!U32)*0.0283168)))),"") -> 15.65784144 | E31: =IFERROR(IF(F31="","",(IF('Backend Calcs Standard'!$A$12=1,'Backend Calcs Standard'!V32,(('Backend Calcs Standard'!V32)*0.0283168)))),"") -> 0.5 | F31: =IF(I31="","",(IF('Backend Calcs Standard'!$A$12=1,'Backend Calcs Standard'!W32,('Backend Calcs Standard'!W32*0.0283168)))) -> 43.23686343 | G31: 59.39470486 | H31: =IF('Backend Calcs Standard'!$A$12=1,'Backend Calcs Standard'!X32,('Backend Calcs Standard'!X32*0.0283168)) -> 59.39470486 | I31: =IFERROR(IF(H31="","",(IF('Backend Calcs Standard'!$A$12=1,'Backend Calcs Standard'!Y32,('Backend Calcs Standard'!Y32*0.0283168)))),"") -> 4315.943906 | J31: =IF(A31="","",IF('Backend Calcs Standard'!$A$12=1,'Backend Calcs Standard'!Z32,'Backend Calcs Standard'!O32)) -> 4.25 | L31: 712.7364583
A32: =IFERROR(IF(B32="","",'Backend Calcs Standard'!P33),"") -> 50 | B32: =IFERROR(IF(C32="","",(IF('Backend Calcs Standard'!$A$12=1,'Backend Calcs Standard'!S33,(('Backend Calcs Standard'!S33)*0.0283168)))),"") -> 1.02400463 | C32: =IFERROR(IF(D32="","",(IF('Backend Calcs Standard'!$A$12=1,'Backend Calcs Standard'!T33,(('Backend Calcs Standard'!T33)*0.0283168)))),"") -> 0.07 | D32: =IFERROR(IF(E32="","",(IF('Backend Calcs Standard'!$A$12=1,'Backend Calcs Standard'!U33,(('Backend Calcs Standard'!U33)*0.0283168)))),"") -> 25.60011574 | E32: =IFERROR(IF(F32="","",(IF('Backend Calcs Standard'!$A$12=1,'Backend Calcs Standard'!V33,(('Backend Calcs Standard'!V33)*0.0283168)))),"") -> 0.7 | F32: =IF(I32="","",(IF('Backend Calcs Standard'!$A$12=1,'Backend Calcs Standard'!W33,('Backend Calcs Standard'!W33*0.0283168)))) -> 39.1799537 | G32: 65.48006944 | H32: =IF('Backend Calcs Standard'!$A$12=1,'Backend Calcs Standard'!X33,('Backend Calcs Standard'!X33*0.0283168)) -> 65.48006944 | I32: =IFERROR(IF(H32="","",(IF('Backend Calcs Standard'!$A$12=1,'Backend Calcs Standard'!Y33,('Backend Calcs Standard'!Y33*0.0283168)))),"") -> 4256.549201 | J32: =IF(A32="","",IF('Backend Calcs Standard'!$A$12=1,'Backend Calcs Standard'!Z33,'Backend Calcs Standard'!O33)) -> 4.166666667 | L32: 785.7608333
A33: =IFERROR(IF(B33="","",'Backend Calcs Standard'!P34),"") -> 49 | B33: =IFERROR(IF(C33="","",(IF('Backend Calcs Standard'!$A$12=1,'Backend Calcs Standard'!S34,(('Backend Calcs Standard'!S34)*0.0283168)))),"") -> 1.272048611 | C33: =IFERROR(IF(D33="","",(IF('Backend Calcs Standard'!$A$12=1,'Backend Calcs Standard'!T34,(('Backend Calcs Standard'!T34)*0.0283168)))),"") -> 0.08 | D33: =IFERROR(IF(E33="","",(IF('Backend Calcs Standard'!$A$12=1,'Backend Calcs Standard'!U34,(('Backend Calcs Standard'!U34)*0.0283168)))),"") -> 31.80121528 | E33: =IFERROR(IF(F33="","",(IF('Backend Calcs Standard'!$A$12=1,'Backend Calcs Standard'!V34,(('Backend Calcs Standard'!V34)*0.0283168)))),"") -> 0.8 | F33: =IF(I33="","",(IF('Backend Calcs Standard'!$A$12=1,'Backend Calcs Standard'!W34,('Backend Calcs Standard'!W34*0.0283168)))) -> 36.65951389 | G33: 69.26072917 | H33: =IF('Backend Calcs Standard'!$A$12=1,'Backend Calcs Standard'!X34,('Backend Calcs Standard'!X34*0.0283168)) -> 69.26072917 | I33: =IFERROR(IF(H33="","",(IF('Backend Calcs Standard'!$A$12=1,'Backend Calcs Standard'!Y34,('Backend Calcs Standard'!Y34*0.0283168)))),"") -> 4191.069132 | J33: =IF(A33="","",IF('Backend Calcs Standard'!$A$12=1,'Backend Calcs Standard'!Z34,'Backend Calcs Standard'!O34)) -> 4.083333333 | L33: 831.12875
A34: =IFERROR(IF(B34="","",'Backend Calcs Standard'!P35),"") -> 48 | B34: =IFERROR(IF(C34="","",(IF('Backend Calcs Standard'!$A$12=1,'Backend Calcs Standard'!S35,(('Backend Calcs Standard'!S35)*0.0283168)))),"") -> 1.461493056 | C34: =IFERROR(IF(D34="","",(IF('Backend Calcs Standard'!$A$12=1,'Backend Calcs Standard'!T35,(('Backend Calcs Standard'!T35)*0.0283168)))),"") -> 0.1 | D34: =IFERROR(IF(E34="","",(IF('Backend Calcs Standard'!$A$12=1,'Backend Calcs Standard'!U35,(('Backend Calcs Standard'!U35)*0.0283168)))),"") -> 36.53732639 | E34: =IFERROR(IF(F34="","",(IF('Backend Calcs Standard'!$A$12=1,'Backend Calcs Standard'!V35,(('Backend Calcs Standard'!V35)*0.0283168)))),"") -> 1 | F34: =IF(I34="","",(IF('Backend Calcs Standard'!$A$12=1,'Backend Calcs Standard'!W35,('Backend Calcs Standard'!W35*0.0283168)))) -> 34.68506944 | G34: 72.22239583 | H34: =IF('Backend Calcs Standard'!$A$12=1,'Backend Calcs Standard'!X35,('Backend Calcs Standard'!X35*0.0283168)) -> 72.22239583 | I34: =IFERROR(IF(H34="","",(IF('Backend Calcs Standard'!$A$12=1,'Backend Calcs Standard'!Y35,('Backend Calcs Standard'!Y35*0.0283168)))),"") -> 4121.808403 | J34: =IF(A34="","",IF('Backend Calcs Standard'!$A$12=1,'Backend Calcs Standard'!Z35,'Backend Calcs Standard'!O35)) -> 4 | L34: 866.66875
A35: =IFERROR(IF(B35="","",'Backend Calcs Standard'!P36),"") -> 47 | B35: =IFERROR(IF(C35="","",(IF('Backend Calcs Standard'!$A$12=1,'Backend Calcs Standard'!S36,(('Backend Calcs Standard'!S36)*0.0283168)))),"") -> 1.619704861 | C35: =IFERROR(IF(D35="","",(IF('Backend Calcs Standard'!$A$12=1,'Backend Calcs Standard'!T36,(('Backend Calcs Standard'!T36)*0.0283168)))),"") -> 0.12 | D35: =IFERROR(IF(E35="","",(IF('Backend Calcs Standard'!$A$12=1,'Backend Calcs Standard'!U36,(('Backend Calcs Standard'!U36)*0.0283168)))),"") -> 40.49262153 | E35: =IFERROR(IF(F35="","",(IF('Backend Calcs Standard'!$A$12=1,'Backend Calcs Standard'!V36,(('Backend Calcs Standard'!V36)*0.0283168)))),"") -> 1.2 | F35: =IF(I35="","",(IF('Backend Calcs Standard'!$A$12=1,'Backend Calcs Standard'!W36,('Backend Calcs Standard'!W36*0.0283168)))) -> 33.02295139 | G35: 74.71557292 | H35: =IF('Backend Calcs Standard'!$A$12=1,'Backend Calcs Standard'!X36,('Backend Calcs Standard'!X36*0.0283168)) -> 74.71557292 | I35: =IFERROR(IF(H35="","",(IF('Backend Calcs Standard'!$A$12=1,'Backend Calcs Standard'!Y36,('Backend Calcs Standard'!Y36*0.0283168)))),"") -> 4049.586007 | J35: =IF(A35="","",IF('Backend Calcs Standard'!$A$12=1,'Backend Calcs Standard'!Z36,'Backend Calcs Standard'!O36)) -> 3.916666667 | L35: 896.586875
A36: =IFERROR(IF(B36="","",'Backend Calcs Standard'!P37),"") -> 46 | B36: =IFERROR(IF(C36="","",(IF('Backend Calcs Standard'!$A$12=1,'Backend Calcs Standard'!S37,(('Backend Calcs Standard'!S37)*0.0283168)))),"") -> 1.756741898 | C36: =IFERROR(IF(D36="","",(IF('Backend Calcs Standard'!$A$12=1,'Backend Calcs Standard'!T37,(('Backend Calcs Standard'!T37)*0.0283168)))),"") -> 0.15 | D36: =IFERROR(IF(E36="","",(IF('Backend Calcs Standard'!$A$12=1,'Backend Calcs Standard'!U37,(('Backend Calcs Standard'!U37)*0.0283168)))),"") -> 43.91854745 | E36: =IFERROR(IF(F36="","",(IF('Backend Calcs Standard'!$A$12=1,'Backend Calcs Standard'!V37,(('Backend Calcs Standard'!V37)*0.0283168)))),"") -> 1.5 | F36: =IF(I36="","",(IF('Backend Calcs Standard'!$A$12=1,'Backend Calcs Standard'!W37,('Backend Calcs Standard'!W37*0.0283168)))) -> 31.53258102 | G36: 76.95112847 | H36: =IF('Backend Calcs Standard'!$A$12=1,'Backend Calcs Standard'!X37,('Backend Calcs Standard'!X37*0.0283168)) -> 76.95112847 | I36: =IFERROR(IF(H36="","",(IF('Backend Calcs Standard'!$A$12=1,'Backend Calcs Standard'!Y37,('Backend Calcs Standard'!Y37*0.0283168)))),"") -> 3974.870434 | J36: =IF(A36="","",IF('Backend Calcs Standard'!$A$12=1,'Backend Calcs Standard'!Z37,'Backend Calcs Standard'!O37)) -> 3.833333333 | L36: 923.4135417
A37: =IFERROR(IF(B37="","",'Backend Calcs Standard'!P38),"") -> 45 | B37: =IFERROR(IF(C37="","",(IF('Backend Calcs Standard'!$A$12=1,'Backend Calcs Standard'!S38,(('Backend Calcs Standard'!S38)*0.0283168)))),"") -> 1.877858796 | C37: =IFERROR(IF(D37="","",(IF('Backend Calcs Standard'!$A$12=1,'Backend Calcs Standard'!T38,(('Backend Calcs Standard'!T38)*0.0283168)))),"") -> 0.16 | D37: =IFERROR(IF(E37="","",(IF('Backend Calcs Standard'!$A$12=1,'Backend Calcs Standard'!U38,(('Backend Calcs Standard'!U38)*0.0283168)))),"") -> 46.94646991 | E37: =IFERROR(IF(F37="","",(IF('Backend Calcs Standard'!$A$12=1,'Backend Calcs Standard'!V38,(('Backend Calcs Standard'!V38)*0.0283168)))),"") -> 1.6 | F37: =IF(I37="","",(IF('Backend Calcs Standard'!$A$12=1,'Backend Calcs Standard'!W38,('Backend Calcs Standard'!W38*0.0283168)))) -> 30.28141204 | G37: 78.82788194 | H37: =IF('Backend Calcs Standard'!$A$12=1,'Backend Calcs Standard'!X38,('Backend Calcs Standard'!X38*0.0283168)) -> 78.82788194 | I37: =IFERROR(IF(H37="","",(IF('Backend Calcs Standard'!$A$12=1,'Backend Calcs Standard'!Y38,('Backend Calcs Standard'!Y38*0.0283168)))),"") -> 3897.919306 | J37: =IF(A37="","",IF('Backend Calcs Standard'!$A$12=1,'Backend Calcs Standard'!Z38,'Backend Calcs Standard'!O38)) -> 3.75 | L37: 945.9345833
A38: =IFERROR(IF(B38="","",'Backend Calcs Standard'!P39),"") -> 44 | B38: =IFERROR(IF(C38="","",(IF('Backend Calcs Standard'!$A$12=1,'Backend Calcs Standard'!S39,(('Backend Calcs Standard'!S39)*0.0283168)))),"") -> 1.986244213 | C38: =IFERROR(IF(D38="","",(IF('Backend Calcs Standard'!$A$12=1,'Backend Calcs Standard'!T39,(('Backend Calcs Standard'!T39)*0.0283168)))),"") -> 0.17 | D38: =IFERROR(IF(E38="","",(IF('Backend Calcs Standard'!$A$12=1,'Backend Calcs Standard'!U39,(('Backend Calcs Standard'!U39)*0.0283168)))),"") -> 49.65610532 | E38: =IFERROR(IF(F38="","",(IF('Backend Calcs Standard'!$A$12=1,'Backend Calcs Standard'!V39,(('Backend Calcs Standard'!V39)*0.0283168)))),"") -> 1.7 | F38: =IF(I38="","",(IF('Backend Calcs Standard'!$A$12=1,'Backend Calcs Standard'!W39,('Backend Calcs Standard'!W39*0.0283168)))) -> 29.15755787 | G38: 80.51366319 | H38: =IF('Backend Calcs Standard'!$A$12=1,'Backend Calcs Standard'!X39,('Backend Calcs Standard'!X39*0.0283168)) -> 80.51366319 | I38: =IFERROR(IF(H38="","",(IF('Backend Calcs Standard'!$A$12=1,'Backend Calcs Standard'!Y39,('Backend Calcs Standard'!Y39*0.0283168)))),"") -> 3819.091424 | J38: =IF(A38="","",IF('Backend Calcs Standard'!$A$12=1,'Backend Calcs Standard'!Z39,'Backend Calcs Standard'!O39)) -> 3.666666667 | L38: 966.1639583
A39: =IFERROR(IF(B39="","",'Backend Calcs Standard'!P40),"") -> 43 | B39: =IFERROR(IF(C39="","",(IF('Backend Calcs Standard'!$A$12=1,'Backend Calcs Standard'!S40,(('Backend Calcs Standard'!S40)*0.0283168)))),"") -> 2.083975694 | C39: =IFERROR(IF(D39="","",(IF('Backend Calcs Standard'!$A$12=1,'Backend Calcs Standard'!T40,(('Backend Calcs Standard'!T40)*0.0283168)))),"") -> 0.19 | D39: =IFERROR(IF(E39="","",(IF('Backend Calcs Standard'!$A$12=1,'Backend Calcs Standard'!U40,(('Backend Calcs Standard'!U40)*0.0283168)))),"") -> 52.09939236 | E39: =IFERROR(IF(F39="","",(IF('Backend Calcs Standard'!$A$12=1,'Backend Calcs Standard'!V40,(('Backend Calcs Standard'!V40)*0.0283168)))),"") -> 1.9 | F39: =IF(I39="","",(IF('Backend Calcs Standard'!$A$12=1,'Backend Calcs Standard'!W40,('Backend Calcs Standard'!W40*0.0283168)))) -> 28.10024306 | G39: 82.09963542 | H39: =IF('Backend Calcs Standard'!$A$12=1,'Backend Calcs Standard'!X40,('Backend Calcs Standard'!X40*0.0283168)) -> 82.09963542 | I39: =IFERROR(IF(H39="","",(IF('Backend Calcs Standard'!$A$12=1,'Backend Calcs Standard'!Y40,('Backend Calcs Standard'!Y40*0.0283168)))),"") -> 3738.57776 | J39: =IF(A39="","",IF('Backend Calcs Standard'!$A$12=1,'Backend Calcs Standard'!Z40,'Backend Calcs Standard'!O40)) -> 3.583333333 | L39: 985.195625
A40: =IFERROR(IF(B40="","",'Backend Calcs Standard'!P41),"") -> 42 | B40: =IFERROR(IF(C40="","",(IF('Backend Calcs Standard'!$A$12=1,'Backend Calcs Standard'!S41,(('Backend Calcs Standard'!S41)*0.0283168)))),"") -> 2.173032407 | C40: =IFERROR(IF(D40="","",(IF('Backend Calcs Standard'!$A$12=1,'Backend Calcs Standard'!T41,(('Backend Calcs Standard'!T41)*0.0283168)))),"") -> 0.2 | D40: =IFERROR(IF(E40="","",(IF('Backend Calcs Standard'!$A$12=1,'Backend Calcs Standard'!U41,(('Backend Calcs Standard'!U41)*0.0283168)))),"") -> 54.32581019 | E40: =IFERROR(IF(F40="","",(IF('Backend Calcs Standard'!$A$12=1,'Backend Calcs Standard'!V41,(('Backend Calcs Standard'!V41)*0.0283168)))),"") -> 2 | F40: =IF(I40="","",(IF('Backend Calcs Standard'!$A$12=1,'Backend Calcs Standard'!W41,('Backend Calcs Standard'!W41*0.0283168)))) -> 27.16967593 | G40: 83.49548611 | H40: =IF('Backend Calcs Standard'!$A$12=1,'Backend Calcs Standard'!X41,('Backend Calcs Standard'!X41*0.0283168)) -> 83.49548611 | I40: =IFERROR(IF(H40="","",(IF('Backend Calcs Standard'!$A$12=1,'Backend Calcs Standard'!Y41,('Backend Calcs Standard'!Y41*0.0283168)))),"") -> 3656.478125 | J40: =IF(A40="","",IF('Backend Calcs Standard'!$A$12=1,'Backend Calcs Standard'!Z41,'Backend Calcs Standard'!O41)) -> 3.5 | L40: 1001.945833
A41: =IFERROR(IF(B41="","",'Backend Calcs Standard'!P42),"") -> 41 | B41: =IFERROR(IF(C41="","",(IF('Backend Calcs Standard'!$A$12=1,'Backend Calcs Standard'!S42,(('Backend Calcs Standard'!S42)*0.0283168)))),"") -> 2.255271991 | C41: =IFERROR(IF(D41="","",(IF('Backend Calcs Standard'!$A$12=1,'Backend Calcs Standard'!T42,(('Backend Calcs Standard'!T42)*0.0283168)))),"") -> 0.22 | D41: =IFERROR(IF(E41="","",(IF('Backend Calcs Standard'!$A$12=1,'Backend Calcs Standard'!U42,(('Backend Calcs Standard'!U42)*0.0283168)))),"") -> 56.38179977 | E41: =IFERROR(IF(F41="","",(IF('Backend Calcs Standard'!$A$12=1,'Backend Calcs Standard'!V42,(('Backend Calcs Standard'!V42)*0.0283168)))),"") -> 2.2 | F41: =IF(I41="","",(IF('Backend Calcs Standard'!$A$12=1,'Backend Calcs Standard'!W42,('Backend Calcs Standard'!W42*0.0283168)))) -> 26.26728009 | G41: 84.84907986 | H41: =IF('Backend Calcs Standard'!$A$12=1,'Backend Calcs Standard'!X42,('Backend Calcs Standard'!X42*0.0283168)) -> 84.84907986 | I41: =IFERROR(IF(H41="","",(IF('Backend Calcs Standard'!$A$12=1,'Backend Calcs Standard'!Y42,('Backend Calcs Standard'!Y42*0.0283168)))),"") -> 3572.982639 | J41: =IF(A41="","",IF('Backend Calcs Standard'!$A$12=1,'Backend Calcs Standard'!Z42,'Backend Calcs Standard'!O42)) -> 3.416666667 | L41: 1018.188958
A42: =IFERROR(IF(B42="","",'Backend Calcs Standard'!P43),"") -> 40 | B42: =IFERROR(IF(C42="","",(IF('Backend Calcs Standard'!$A$12=1,'Backend Calcs Standard'!S43,(('Backend Calcs Standard'!S43)*0.0283168)))),"") -> 2.332581019 | C42: =IFERROR(IF(D42="","",(IF('Backend Calcs Standard'!$A$12=1,'Backend Calcs Standard'!T43,(('Backend Calcs Standard'!T43)*0.0283168)))),"") -> 0.23 | D42: =IFERROR(IF(E42="","",(IF('Backend Calcs Standard'!$A$12=1,'Backend Calcs Standard'!U43,(('Backend Calcs Standard'!U43)*0.0283168)))),"") -> 58.31452546 | E42: =IFERROR(IF(F42="","",(IF('Backend Calcs Standard'!$A$12=1,'Backend Calcs Standard'!V43,(('Backend Calcs Standard'!V43)*0.0283168)))),"") -> 2.3 | F42: =IF(I42="","",(IF('Backend Calcs Standard'!$A$12=1,'Backend Calcs Standard'!W43,('Backend Calcs Standard'!W43*0.0283168)))) -> 25.45418981 | G42: 86.06871528 | H42: =IF('Backend Calcs Standard'!$A$12=1,'Backend Calcs Standard'!X43,('Backend Calcs Standard'!X43*0.0283168)) -> 86.06871528 | I42: =IFERROR(IF(H42="","",(IF('Backend Calcs Standard'!$A$12=1,'Backend Calcs Standard'!Y43,('Backend Calcs Standard'!Y43*0.0283168)))),"") -> 3488.133559 | J42: =IF(A42="","",IF('Backend Calcs Standard'!$A$12=1,'Backend Calcs Standard'!Z43,'Backend Calcs Standard'!O43)) -> 3.333333333 | L42: 1032.824583
A43: =IFERROR(IF(B43="","",'Backend Calcs Standard'!P44),"") -> 39 | B43: =IFERROR(IF(C43="","",(IF('Backend Calcs Standard'!$A$12=1,'Backend Calcs Standard'!S44,(('Backend Calcs Standard'!S44)*0.0283168)))),"") -> 2.405914352 | C43: =IFERROR(IF(D43="","",(IF('Backend Calcs Standard'!$A$12=1,'Backend Calcs Standard'!T44,(('Backend Calcs Standard'!T44)*0.0283168)))),"") -> 0.25 | D43: =IFERROR(IF(E43="","",(IF('Backend Calcs Standard'!$A$12=1,'Backend Calcs Standard'!U44,(('Backend Calcs Standard'!U44)*0.0283168)))),"") -> 60.1478588 | E43: =IFERROR(IF(F43="","",(IF('Backend Calcs Standard'!$A$12=1,'Backend Calcs Standard'!V44,(('Backend Calcs Standard'!V44)*0.0283168)))),"") -> 2.5 | F43: =IF(I43="","",(IF('Backend Calcs Standard'!$A$12=1,'Backend Calcs Standard'!W44,('Backend Calcs Standard'!W44*0.0283168)))) -> 24.64085648 | G43: 87.28871528 | H43: =IF('Backend Calcs Standard'!$A$12=1,'Backend Calcs Standard'!X44,('Backend Calcs Standard'!X44*0.0283168)) -> 87.28871528 | I43: =IFERROR(IF(H43="","",(IF('Backend Calcs Standard'!$A$12=1,'Backend Calcs Standard'!Y44,('Backend Calcs Standard'!Y44*0.0283168)))),"") -> 3402.064844 | J43: =IF(A43="","",IF('Backend Calcs Standard'!$A$12=1,'Backend Calcs Standard'!Z44,'Backend Calcs Standard'!O44)) -> 3.25 | L43: 1047.464583
A44: =IFERROR(IF(B44="","",'Backend Calcs Standard'!P45),"") -> 38 | B44: =IFERROR(IF(C44="","",(IF('Backend Calcs Standard'!$A$12=1,'Backend Calcs Standard'!S45,(('Backend Calcs Standard'!S45)*0.0283168)))),"") -> 2.475509259 | C44: =IFERROR(IF(D44="","",(IF('Backend Calcs Standard'!$A$12=1,'Backend Calcs Standard'!T45,(('Backend Calcs Standard'!T45)*0.0283168)))),"") -> 0.27 | D44: =IFERROR(IF(E44="","",(IF('Backend Calcs Standard'!$A$12=1,'Backend Calcs Standard'!U45,(('Backend Calcs Standard'!U45)*0.0283168)))),"") -> 61.88773148 | E44: =IFERROR(IF(F44="","",(IF('Backend Calcs Standard'!$A$12=1,'Backend Calcs Standard'!V45,(('Backend Calcs Standard'!V45)*0.0283168)))),"") -> 2.7 | F44: =IF(I44="","",(IF('Backend Calcs Standard'!$A$12=1,'Backend Calcs Standard'!W45,('Backend Calcs Standard'!W45*0.0283168)))) -> 23.86490741 | G44: 88.45263889 | H44: =IF('Backend Calcs Standard'!$A$12=1,'Backend Calcs Standard'!X45,('Backend Calcs Standard'!X45*0.0283168)) -> 88.45263889 | I44: =IFERROR(IF(H44="","",(IF('Backend Calcs Standard'!$A$12=1,'Backend Calcs Standard'!Y45,('Backend Calcs Standard'!Y45*0.0283168)))),"") -> 3314.776128 | J44: =IF(A44="","",IF('Backend Calcs Standard'!$A$12=1,'Backend Calcs Standard'!Z45,'Backend Calcs Standard'!O45)) -> 3.166666667 | L44: 1061.431667
A45: =IFERROR(IF(B45="","",'Backend Calcs Standard'!P46),"") -> 37 | B45: =IFERROR(IF(C45="","",(IF('Backend Calcs Standard'!$A$12=1,'Backend Calcs Standard'!S46,(('Backend Calcs Standard'!S46)*0.0283168)))),"") -> 2.541550926 | C45: =IFERROR(IF(D45="","",(IF('Backend Calcs Standard'!$A$12=1,'Backend Calcs Standard'!T46,(('Backend Calcs Standard'!T46)*0.0283168)))),"") -> 0.28 | D45: =IFERROR(IF(E45="","",(IF('Backend Calcs Standard'!$A$12=1,'Backend Calcs Standard'!U46,(('Backend Calcs Standard'!U46)*0.0283168)))),"") -> 63.53877315 | E45: =IFERROR(IF(F45="","",(IF('Backend Calcs Standard'!$A$12=1,'Backend Calcs Standard'!V46,(('Backend Calcs Standard'!V46)*0.0283168)))),"") -> 2.8 | F45: =IF(I45="","",(IF('Backend Calcs Standard'!$A$12=1,'Backend Calcs Standard'!W46,('Backend Calcs Standard'!W46*0.0283168)))) -> 23.16449074 | G45: 89.50326389 | H45: =IF('Backend Calcs Standard'!$A$12=1,'Backend Calcs Standard'!X46,('Backend Calcs Standard'!X46*0.0283168)) -> 89.50326389 | I45: =IFERROR(IF(H45="","",(IF('Backend Calcs Standard'!$A$12=1,'Backend Calcs Standard'!Y46,('Backend Calcs Standard'!Y46*0.0283168)))),"") -> 3226.32349 | J45: =IF(A45="","",IF('Backend Calcs Standard'!$A$12=1,'Backend Calcs Standard'!Z46,'Backend Calcs Standard'!O46)) -> 3.083333333 | L45: 1074.039167
A46: =IFERROR(IF(B46="","",'Backend Calcs Standard'!P47),"") -> 36 | B46: =IFERROR(IF(C46="","",(IF('Backend Calcs Standard'!$A$12=1,'Backend Calcs Standard'!S47,(('Backend Calcs Standard'!S47)*0.0283168)))),"") -> 2.604224537 | C46: =IFERROR(IF(D46="","",(IF('Backend Calcs Standard'!$A$12=1,'Backend Calcs Standard'!T47,(('Backend Calcs Standard'!T47)*0.0283168)))),"") -> 0.3 | D46: =IFERROR(IF(E46="","",(IF('Backend Calcs Standard'!$A$12=1,'Backend Calcs Standard'!U47,(('Backend Calcs Standard'!U47)*0.0283168)))),"") -> 65.10561343 | E46: =IFERROR(IF(F46="","",(IF('Backend Calcs Standard'!$A$12=1,'Backend Calcs Standard'!V47,(('Backend Calcs Standard'!V47)*0.0283168)))),"") -> 3 | F46: =IF(I46="","",(IF('Backend Calcs Standard'!$A$12=1,'Backend Calcs Standard'!W47,('Backend Calcs Standard'!W47*0.0283168)))) -> 22.45775463 | G46: 90.56336806 | H46: =IF('Backend Calcs Standard'!$A$12=1,'Backend Calcs Standard'!X47,('Backend Calcs Standard'!X47*0.0283168)) -> 90.56336806 | I46: =IFERROR(IF(H46="","",(IF('Backend Calcs Standard'!$A$12=1,'Backend Calcs Standard'!Y47,('Backend Calcs Standard'!Y47*0.0283168)))),"") -> 3136.820226 | J46: =IF(A46="","",IF('Backend Calcs Standard'!$A$12=1,'Backend Calcs Standard'!Z47,'Backend Calcs Standard'!O47)) -> 3 | L46: 1086.760417
A47: =IFERROR(IF(B47="","",'Backend Calcs Standard'!P48),"") -> 35 | B47: =IFERROR(IF(C47="","",(IF('Backend Calcs Standard'!$A$12=1,'Backend Calcs Standard'!S48,(('Backend Calcs Standard'!S48)*0.0283168)))),"") -> 2.663628472 | C47: =IFERROR(IF(D47="","",(IF('Backend Calcs Standard'!$A$12=1,'Backend Calcs Standard'!T48,(('Backend Calcs Standard'!T48)*0.0283168)))),"") -> 0.32 | D47: =IFERROR(IF(E47="","",(IF('Backend Calcs Standard'!$A$12=1,'Backend Calcs Standard'!U48,(('Backend Calcs Standard'!U48)*0.0283168)))),"") -> 66.59071181 | E47: =IFERROR(IF(F47="","",(IF('Backend Calcs Standard'!$A$12=1,'Backend Calcs Standard'!V48,(('Backend Calcs Standard'!V48)*0.0283168)))),"") -> 3.2 | F47: =IF(I47="","",(IF('Backend Calcs Standard'!$A$12=1,'Backend Calcs Standard'!W48,('Backend Calcs Standard'!W48*0.0283168)))) -> 21.78371528 | G47: 91.57442708 | H47: =IF('Backend Calcs Standard'!$A$12=1,'Backend Calcs Standard'!X48,('Backend Calcs Standard'!X48*0.0283168)) -> 91.57442708 | I47: =IFERROR(IF(H47="","",(IF('Backend Calcs Standard'!$A$12=1,'Backend Calcs Standard'!Y48,('Backend Calcs Standard'!Y48*0.0283168)))),"") -> 3046.256858 | J47: =IF(A47="","",IF('Backend Calcs Standard'!$A$12=1,'Backend Calcs Standard'!Z48,'Backend Calcs Standard'!O48)) -> 2.916666667 | L47: 1098.893125
A48: =IFERROR(IF(B48="","",'Backend Calcs Standard'!P49),"") -> 34 | B48: =IFERROR(IF(C48="","",(IF('Backend Calcs Standard'!$A$12=1,'Backend Calcs Standard'!S49,(('Backend Calcs Standard'!S49)*0.0283168)))),"") -> 2.719930556 | C48: =IFERROR(IF(D48="","",(IF('Backend Calcs Standard'!$A$12=1,'Backend Calcs Standard'!T49,(('Backend Calcs Standard'!T49)*0.0283168)))),"") -> 0.33 | D48: =IFERROR(IF(E48="","",(IF('Backend Calcs Standard'!$A$12=1,'Backend Calcs Standard'!U49,(('Backend Calcs Standard'!U49)*0.0283168)))),"") -> 67.99826389 | E48: =IFERROR(IF(F48="","",(IF('Backend Calcs Standard'!$A$12=1,'Backend Calcs Standard'!V49,(('Backend Calcs Standard'!V49)*0.0283168)))),"") -> 3.3 | F48: =IF(I48="","",(IF('Backend Calcs Standard'!$A$12=1,'Backend Calcs Standard'!W49,('Backend Calcs Standard'!W49*0.0283168)))) -> 21.18069444 | G48: 92.47895833 | H48: =IF('Backend Calcs Standard'!$A$12=1,'Backend Calcs Standard'!X49,('Backend Calcs Standard'!X49*0.0283168)) -> 92.47895833 | I48: =IFERROR(IF(H48="","",(IF('Backend Calcs Standard'!$A$12=1,'Backend Calcs Standard'!Y49,('Backend Calcs Standard'!Y49*0.0283168)))),"") -> 2954.682431 | J48: =IF(A48="","",IF('Backend Calcs Standard'!$A$12=1,'Backend Calcs Standard'!Z49,'Backend Calcs Standard'!O49)) -> 2.833333333 | L48: 1109.7475
A49: =IFERROR(IF(B49="","",'Backend Calcs Standard'!P50),"") -> 33 | B49: =IFERROR(IF(C49="","",(IF('Backend Calcs Standard'!$A$12=1,'Backend Calcs Standard'!S50,(('Backend Calcs Standard'!S50)*0.0283168)))),"") -> 2.773269676 | C49: =IFERROR(IF(D49="","",(IF('Backend Calcs Standard'!$A$12=1,'Backend Calcs Standard'!T50,(('Backend Calcs Standard'!T50)*0.0283168)))),"") -> 0.35 | D49: =IFERROR(IF(E49="","",(IF('Backend Calcs Standard'!$A$12=1,'Backend Calcs Standard'!U50,(('Backend Calcs Standard'!U50)*0.0283168)))),"") -> 69.3317419 | E49: =IFERROR(IF(F49="","",(IF('Backend Calcs Standard'!$A$12=1,'Backend Calcs Standard'!V50,(('Backend Calcs Standard'!V50)*0.0283168)))),"") -> 3.5 | F49: =IF(I49="","",(IF('Backend Calcs Standard'!$A$12=1,'Backend Calcs Standard'!W50,('Backend Calcs Standard'!W50*0.0283168)))) -> 20.56730324 | G49: 93.39904514 | H49: =IF('Backend Calcs Standard'!$A$12=1,'Backend Calcs Standard'!X50,('Backend Calcs Standard'!X50*0.0283168)) -> 93.39904514 | I49: =IFERROR(IF(H49="","",(IF('Backend Calcs Standard'!$A$12=1,'Backend Calcs Standard'!Y50,('Backend Calcs Standard'!Y50*0.0283168)))),"") -> 2862.203472 | J49: =IF(A49="","",IF('Backend Calcs Standard'!$A$12=1,'Backend Calcs Standard'!Z50,'Backend Calcs Standard'!O50)) -> 2.75 | L49: 1120.788542
A50: =IFERROR(IF(B50="","",'Backend Calcs Standard'!P51),"") -> 32 | B50: =IFERROR(IF(C50="","",(IF('Backend Calcs Standard'!$A$12=1,'Backend Calcs Standard'!S51,(('Backend Calcs Standard'!S51)*0.0283168)))),"") -> 2.823697917 | C50: =IFERROR(IF(D50="","",(IF('Backend Calcs Standard'!$A$12=1,'Backend Calcs Standard'!T51,(('Backend Calcs Standard'!T51)*0.0283168)))),"") -> 0.37 | D50: =IFERROR(IF(E50="","",(IF('Backend Calcs Standard'!$A$12=1,'Backend Calcs Standard'!U51,(('Backend Calcs Standard'!U51)*0.0283168)))),"") -> 70.59244792 | E50: =IFERROR(IF(F50="","",(IF('Backend Calcs Standard'!$A$12=1,'Backend Calcs Standard'!V51,(('Backend Calcs Standard'!V51)*0.0283168)))),"") -> 3.7 | F50: =IF(I50="","",(IF('Backend Calcs Standard'!$A$12=1,'Backend Calcs Standard'!W51,('Backend Calcs Standard'!W51*0.0283168)))) -> 19.98302083 | G50: 94.27546875 | H50: =IF('Backend Calcs Standard'!$A$12=1,'Backend Calcs Standard'!X51,('Backend Calcs Standard'!X51*0.0283168)) -> 94.27546875 | I50: =IFERROR(IF(H50="","",(IF('Backend Calcs Standard'!$A$12=1,'Backend Calcs Standard'!Y51,('Backend Calcs Standard'!Y51*0.0283168)))),"") -> 2768.804427 | J50: =IF(A50="","",IF('Backend Calcs Standard'!$A$12=1,'Backend Calcs Standard'!Z51,'Backend Calcs Standard'!O51)) -> 2.666666667 | L50: 1131.305625
A51: =IFERROR(IF(B51="","",'Backend Calcs Standard'!P52),"") -> 31 | B51: =IFERROR(IF(C51="","",(IF('Backend Calcs Standard'!$A$12=1,'Backend Calcs Standard'!S52,(('Backend Calcs Standard'!S52)*0.0283168)))),"") -> 2.871354167 | C51: =IFERROR(IF(D51="","",(IF('Backend Calcs Standard'!$A$12=1,'Backend Calcs Standard'!T52,(('Backend Calcs Standard'!T52)*0.0283168)))),"") -> 0.37 | D51: =IFERROR(IF(E51="","",(IF('Backend Calcs Standard'!$A$12=1,'Backend Calcs Standard'!U52,(('Backend Calcs Standard'!U52)*0.0283168)))),"") -> 71.78385417 | E51: =IFERROR(IF(F51="","",(IF('Backend Calcs Standard'!$A$12=1,'Backend Calcs Standard'!V52,(('Backend Calcs Standard'!V52)*0.0283168)))),"") -> 3.7 | F51: =IF(I51="","",(IF('Backend Calcs Standard'!$A$12=1,'Backend Calcs Standard'!W52,('Backend Calcs Standard'!W52*0.0283168)))) -> 19.50645833 | G51: 94.9903125 | H51: =IF('Backend Calcs Standard'!$A$12=1,'Backend Calcs Standard'!X52,('Backend Calcs Standard'!X52*0.0283168)) -> 94.9903125 | I51: =IFERROR(IF(H51="","",(IF('Backend Calcs Standard'!$A$12=1,'Backend Calcs Standard'!Y52,('Backend Calcs Standard'!Y52*0.0283168)))),"") -> 2674.528958 | J51: =IF(A51="","",IF('Backend Calcs Standard'!$A$12=1,'Backend Calcs Standard'!Z52,'Backend Calcs Standard'!O52)) -> 2.583333333 | L51: 1139.88375
A52: =IFERROR(IF(B52="","",'Backend Calcs Standard'!P53),"") -> 30 | B52: =IFERROR(IF(C52="","",(IF('Backend Calcs Standard'!$A$12=1,'Backend Calcs Standard'!S53,(('Backend Calcs Standard'!S53)*0.0283168)))),"") -> 2.91630787 | C52: =IFERROR(IF(D52="","",(IF('Backend Calcs Standard'!$A$12=1,'Backend Calcs Standard'!T53,(('Backend Calcs Standard'!T53)*0.0283168)))),"") -> 0.4 | D52: =IFERROR(IF(E52="","",(IF('Backend Calcs Standard'!$A$12=1,'Backend Calcs Standard'!U53,(('Backend Calcs Standard'!U53)*0.0283168)))),"") -> 72.90769676 | E52: =IFERROR(IF(F52="","",(IF('Backend Calcs Standard'!$A$12=1,'Backend Calcs Standard'!V53,(('Backend Calcs Standard'!V53)*0.0283168)))),"") -> 4 | F52: =IF(I52="","",(IF('Backend Calcs Standard'!$A$12=1,'Backend Calcs Standard'!W53,('Backend Calcs Standard'!W53*0.0283168)))) -> 18.9369213 | G52: 95.84461806 | H52: =IF('Backend Calcs Standard'!$A$12=1,'Backend Calcs Standard'!X53,('Backend Calcs Standard'!X53*0.0283168)) -> 95.84461806 | I52: =IFERROR(IF(H52="","",(IF('Backend Calcs Standard'!$A$12=1,'Backend Calcs Standard'!Y53,('Backend Calcs Standard'!Y53*0.0283168)))),"") -> 2579.538646 | J52: =IF(A52="","",IF('Backend Calcs Standard'!$A$12=1,'Backend Calcs Standard'!Z53,'Backend Calcs Standard'!O53)) -> 2.5 | L52: 1150.135417
A53: =IFERROR(IF(B53="","",'Backend Calcs Standard'!P54),"") -> 29 | B53: =IFERROR(IF(C53="","",(IF('Backend Calcs Standard'!$A$12=1,'Backend Calcs Standard'!S54,(('Backend Calcs Standard'!S54)*0.0283168)))),"") -> 2.964438657 | C53: =IFERROR(IF(D53="","",(IF('Backend Calcs Standard'!$A$12=1,'Backend Calcs Standard'!T54,(('Backend Calcs Standard'!T54)*0.0283168)))),"") -> 0.41 | D53: =IFERROR(IF(E53="","",(IF('Backend Calcs Standard'!$A$12=1,'Backend Calcs Standard'!U54,(('Backend Calcs Standard'!U54)*0.0283168)))),"") -> 74.11096644 | E53: =IFERROR(IF(F53="","",(IF('Backend Calcs Standard'!$A$12=1,'Backend Calcs Standard'!V54,(('Backend Calcs Standard'!V54)*0.0283168)))),"") -> 4.1 | F53: =IF(I53="","",(IF('Backend Calcs Standard'!$A$12=1,'Backend Calcs Standard'!W54,('Backend Calcs Standard'!W54*0.0283168)))) -> 18.41561343 | G53: 96.62657986 | H53: =IF('Backend Calcs Standard'!$A$12=1,'Backend Calcs Standard'!X54,('Backend Calcs Standard'!X54*0.0283168)) -> 96.62657986 | I53: =IFERROR(IF(H53="","",(IF('Backend Calcs Standard'!$A$12=1,'Backend Calcs Standard'!Y54,('Backend Calcs Standard'!Y54*0.0283168)))),"") -> 2483.694028 | J53: =IF(A53="","",IF('Backend Calcs Standard'!$A$12=1,'Backend Calcs Standard'!Z54,'Backend Calcs Standard'!O54)) -> 2.416666667 | L53: 1159.518958
A54: =IFERROR(IF(B54="","",'Backend Calcs Standard'!P55),"") -> 28 | B54: =IFERROR(IF(C54="","",(IF('Backend Calcs Standard'!$A$12=1,'Backend Calcs Standard'!S55,(('Backend Calcs Standard'!S55)*0.0283168)))),"") -> 2.998391204 | C54: =IFERROR(IF(D54="","",(IF('Backend Calcs Standard'!$A$12=1,'Backend Calcs Standard'!T55,(('Backend Calcs Standard'!T55)*0.0283168)))),"") -> 0.42 | D54: =IFERROR(IF(E54="","",(IF('Backend Calcs Standard'!$A$12=1,'Backend Calcs Standard'!U55,(('Backend Calcs Standard'!U55)*0.0283168)))),"") -> 74.95978009 | E54: =IFERROR(IF(F54="","",(IF('Backend Calcs Standard'!$A$12=1,'Backend Calcs Standard'!V55,(('Backend Calcs Standard'!V55)*0.0283168)))),"") -> 4.2 | F54: =IF(I54="","",(IF('Backend Calcs Standard'!$A$12=1,'Backend Calcs Standard'!W55,('Backend Calcs Standard'!W55*0.0283168)))) -> 18.03608796 | G54: 97.19586806 | H54: =IF('Backend Calcs Standard'!$A$12=1,'Backend Calcs Standard'!X55,('Backend Calcs Standard'!X55*0.0283168)) -> 97.19586806 | I54: =IFERROR(IF(H54="","",(IF('Backend Calcs Standard'!$A$12=1,'Backend Calcs Standard'!Y55,('Backend Calcs Standard'!Y55*0.0283168)))),"") -> 2387.067448 | J54: =IF(A54="","",IF('Backend Calcs Standard'!$A$12=1,'Backend Calcs Standard'!Z55,'Backend Calcs Standard'!O55)) -> 2.333333333 | L54: 1166.350417
A55: =IFERROR(IF(B55="","",'Backend Calcs Standard'!P56),"") -> 27 | B55: =IFERROR(IF(C55="","",(IF('Backend Calcs Standard'!$A$12=1,'Backend Calcs Standard'!S56,(('Backend Calcs Standard'!S56)*0.0283168)))),"") -> 3.035538194 | C55: =IFERROR(IF(D55="","",(IF('Backend Calcs Standard'!$A$12=1,'Backend Calcs Standard'!T56,(('Backend Calcs Standard'!T56)*0.0283168)))),"") -> 0.44 | D55: =IFERROR(IF(E55="","",(IF('Backend Calcs Standard'!$A$12=1,'Backend Calcs Standard'!U56,(('Backend Calcs Standard'!U56)*0.0283168)))),"") -> 75.88845486 | E55: =IFERROR(IF(F55="","",(IF('Backend Calcs Standard'!$A$12=1,'Backend Calcs Standard'!V56,(('Backend Calcs Standard'!V56)*0.0283168)))),"") -> 4.4 | F55: =IF(I55="","",(IF('Backend Calcs Standard'!$A$12=1,'Backend Calcs Standard'!W56,('Backend Calcs Standard'!W56*0.0283168)))) -> 17.58461806 | G55: 97.87307292 | H55: =IF('Backend Calcs Standard'!$A$12=1,'Backend Calcs Standard'!X56,('Backend Calcs Standard'!X56*0.0283168)) -> 97.87307292 | I55: =IFERROR(IF(H55="","",(IF('Backend Calcs Standard'!$A$12=1,'Backend Calcs Standard'!Y56,('Backend Calcs Standard'!Y56*0.0283168)))),"") -> 2289.87158 | J55: =IF(A55="","",IF('Backend Calcs Standard'!$A$12=1,'Backend Calcs Standard'!Z56,'Backend Calcs Standard'!O56)) -> 2.25 | L55: 1174.476875
A56: =IFERROR(IF(B56="","",'Backend Calcs Standard'!P57),"") -> 26 | B56: =IFERROR(IF(C56="","",(IF('Backend Calcs Standard'!$A$12=1,'Backend Calcs Standard'!S57,(('Backend Calcs Standard'!S57)*0.0283168)))),"") -> 3.070706019 | C56: =IFERROR(IF(D56="","",(IF('Backend Calcs Standard'!$A$12=1,'Backend Calcs Standard'!T57,(('Backend Calcs Standard'!T57)*0.0283168)))),"") -> 0.45 | D56: =IFERROR(IF(E56="","",(IF('Backend Calcs Standard'!$A$12=1,'Backend Calcs Standard'!U57,(('Backend Calcs Standard'!U57)*0.0283168)))),"") -> 76.76765046 | E56: =IFERROR(IF(F56="","",(IF('Backend Calcs Standard'!$A$12=1,'Backend Calcs Standard'!V57,(('Backend Calcs Standard'!V57)*0.0283168)))),"") -> 4.5 | F56: =IF(I56="","",(IF('Backend Calcs Standard'!$A$12=1,'Backend Calcs Standard'!W57,('Backend Calcs Standard'!W57*0.0283168)))) -> 17.19293981 | G56: 98.46059028 | H56: =IF('Backend Calcs Standard'!$A$12=1,'Backend Calcs Standard'!X57,('Backend Calcs Standard'!X57*0.0283168)) -> 98.46059028 | I56: =IFERROR(IF(H56="","",(IF('Backend Calcs Standard'!$A$12=1,'Backend Calcs Standard'!Y57,('Backend Calcs Standard'!Y57*0.0283168)))),"") -> 2191.998507 | J56: =IF(A56="","",IF('Backend Calcs Standard'!$A$12=1,'Backend Calcs Standard'!Z57,'Backend Calcs Standard'!O57)) -> 2.166666667 | L56: 1181.527083
A57: =IFERROR(IF(B57="","",'Backend Calcs Standard'!P58),"") -> 25 | B57: =IFERROR(IF(C57="","",(IF('Backend Calcs Standard'!$A$12=1,'Backend Calcs Standard'!S58,(('Backend Calcs Standard'!S58)*0.0283168)))),"") -> 3.105225694 | C57: =IFERROR(IF(D57="","",(IF('Backend Calcs Standard'!$A$12=1,'Backend Calcs Standard'!T58,(('Backend Calcs Standard'!T58)*0.0283168)))),"") -> 0.46 | D57: =IFERROR(IF(E57="","",(IF('Backend Calcs Standard'!$A$12=1,'Backend Calcs Standard'!U58,(('Backend Calcs Standard'!U58)*0.0283168)))),"") -> 77.63064236 | E57: =IFERROR(IF(F57="","",(IF('Backend Calcs Standard'!$A$12=1,'Backend Calcs Standard'!V58,(('Backend Calcs Standard'!V58)*0.0283168)))),"") -> 4.6 | F57: =IF(I57="","",(IF('Backend Calcs Standard'!$A$12=1,'Backend Calcs Standard'!W58,('Backend Calcs Standard'!W58*0.0283168)))) -> 16.80774306 | G57: 99.03838542 | H57: =IF('Backend Calcs Standard'!$A$12=1,'Backend Calcs Standard'!X58,('Backend Calcs Standard'!X58*0.0283168)) -> 99.03838542 | I57: =IFERROR(IF(H57="","",(IF('Backend Calcs Standard'!$A$12=1,'Backend Calcs Standard'!Y58,('Backend Calcs Standard'!Y58*0.0283168)))),"") -> 2093.537917 | J57: =IF(A57="","",IF('Backend Calcs Standard'!$A$12=1,'Backend Calcs Standard'!Z58,'Backend Calcs Standard'!O58)) -> 2.083333333 | L57: 1188.460625
A58: =IFERROR(IF(B58="","",'Backend Calcs Standard'!P59),"") -> 24 | B58: =IFERROR(IF(C58="","",(IF('Backend Calcs Standard'!$A$12=1,'Backend Calcs Standard'!S59,(('Backend Calcs Standard'!S59)*0.0283168)))),"") -> 3.138402778 | C58: =IFERROR(IF(D58="","",(IF('Backend Calcs Standard'!$A$12=1,'Backend Calcs Standard'!T59,(('Backend Calcs Standard'!T59)*0.0283168)))),"") -> 0.47 | D58: =IFERROR(IF(E58="","",(IF('Backend Calcs Standard'!$A$12=1,'Backend Calcs Standard'!U59,(('Backend Calcs Standard'!U59)*0.0283168)))),"") -> 78.46006944 | E58: =IFERROR(IF(F58="","",(IF('Backend Calcs Standard'!$A$12=1,'Backend Calcs Standard'!V59,(('Backend Calcs Standard'!V59)*0.0283168)))),"") -> 4.7 | F58: =IF(I58="","",(IF('Backend Calcs Standard'!$A$12=1,'Backend Calcs Standard'!W59,('Backend Calcs Standard'!W59*0.0283168)))) -> 16.43597222 | G58: 99.59604167 | H58: =IF('Backend Calcs Standard'!$A$12=1,'Backend Calcs Standard'!X59,('Backend Calcs Standard'!X59*0.0283168)) -> 99.59604167 | I58: =IFERROR(IF(H58="","",(IF('Backend Calcs Standard'!$A$12=1,'Backend Calcs Standard'!Y59,('Backend Calcs Standard'!Y59*0.0283168)))),"") -> 1994.499531 | J58: =IF(A58="","",IF('Backend Calcs Standard'!$A$12=1,'Backend Calcs Standard'!Z59,'Backend Calcs Standard'!O59)) -> 2 | L58: 1195.1525
A59: =IFERROR(IF(B59="","",'Backend Calcs Standard'!P60),"") -> 23 | B59: =IFERROR(IF(C59="","",(IF('Backend Calcs Standard'!$A$12=1,'Backend Calcs Standard'!S60,(('Backend Calcs Standard'!S60)*0.0283168)))),"") -> 3.170532407 | C59: =IFERROR(IF(D59="","",(IF('Backend Calcs Standard'!$A$12=1,'Backend Calcs Standard'!T60,(('Backend Calcs Standard'!T60)*0.0283168)))),"") -> 0.49 | D59: =IFERROR(IF(E59="","",(IF('Backend Calcs Standard'!$A$12=1,'Backend Calcs Standard'!U60,(('Backend Calcs Standard'!U60)*0.0283168)))),"") -> 79.26331019 | E59: =IFERROR(IF(F59="","",(IF('Backend Calcs Standard'!$A$12=1,'Backend Calcs Standard'!V60,(('Backend Calcs Standard'!V60)*0.0283168)))),"") -> 4.9 | F59: =IF(I59="","",(IF('Backend Calcs Standard'!$A$12=1,'Backend Calcs Standard'!W60,('Backend Calcs Standard'!W60*0.0283168)))) -> 16.03467593 | G59: 100.1979861 | H59: =IF('Backend Calcs Standard'!$A$12=1,'Backend Calcs Standard'!X60,('Backend Calcs Standard'!X60*0.0283168)) -> 100.1979861 | I59: =IFERROR(IF(H59="","",(IF('Backend Calcs Standard'!$A$12=1,'Backend Calcs Standard'!Y60,('Backend Calcs Standard'!Y60*0.0283168)))),"") -> 1894.90349 | J59: =IF(A59="","",IF('Backend Calcs Standard'!$A$12=1,'Backend Calcs Standard'!Z60,'Backend Calcs Standard'!O60)) -> 1.916666667 | L59: 1202.375833
A60: =IFERROR(IF(B60="","",'Backend Calcs Standard'!P61),"") -> 22 | B60: =IFERROR(IF(C60="","",(IF('Backend Calcs Standard'!$A$12=1,'Backend Calcs Standard'!S61,(('Backend Calcs Standard'!S61)*0.0283168)))),"") -> 3.201701389 | C60: =IFERROR(IF(D60="","",(IF('Backend Calcs Standard'!$A$12=1,'Backend Calcs Standard'!T61,(('Backend Calcs Standard'!T61)*0.0283168)))),"") -> 0.5 | D60: =IFERROR(IF(E60="","",(IF('Backend Calcs Standard'!$A$12=1,'Backend Calcs Standard'!U61,(('Backend Calcs Standard'!U61)*0.0283168)))),"") -> 80.04253472 | E60: =IFERROR(IF(F60="","",(IF('Backend Calcs Standard'!$A$12=1,'Backend Calcs Standard'!V61,(('Backend Calcs Standard'!V61)*0.0283168)))),"") -> 5 | F60: =IF(I60="","",(IF('Backend Calcs Standard'!$A$12=1,'Backend Calcs Standard'!W61,('Backend Calcs Standard'!W61*0.0283168)))) -> 15.68298611 | G60: 100.7255208 | H60: =IF('Backend Calcs Standard'!$A$12=1,'Backend Calcs Standard'!X61,('Backend Calcs Standard'!X61*0.0283168)) -> 100.7255208 | I60: =IFERROR(IF(H60="","",(IF('Backend Calcs Standard'!$A$12=1,'Backend Calcs Standard'!Y61,('Backend Calcs Standard'!Y61*0.0283168)))),"") -> 1794.705503 | J60: =IF(A60="","",IF('Backend Calcs Standard'!$A$12=1,'Backend Calcs Standard'!Z61,'Backend Calcs Standard'!O61)) -> 1.833333333 | L60: 1208.70625
A61: =IFERROR(IF(B61="","",'Backend Calcs Standard'!P62),"") -> 21 | B61: =IFERROR(IF(C61="","",(IF('Backend Calcs Standard'!$A$12=1,'Backend Calcs Standard'!S62,(('Backend Calcs Standard'!S62)*0.0283168)))),"") -> 3.232135417 | C61: =IFERROR(IF(D61="","",(IF('Backend Calcs Standard'!$A$12=1,'Backend Calcs Standard'!T62,(('Backend Calcs Standard'!T62)*0.0283168)))),"") -> 0.51 | D61: =IFERROR(IF(E61="","",(IF('Backend Calcs Standard'!$A$12=1,'Backend Calcs Standard'!U62,(('Backend Calcs Standard'!U62)*0.0283168)))),"") -> 80.80338542 | E61: =IFERROR(IF(F61="","",(IF('Backend Calcs Standard'!$A$12=1,'Backend Calcs Standard'!V62,(('Backend Calcs Standard'!V62)*0.0283168)))),"") -> 5.1 | F61: =IF(I61="","",(IF('Backend Calcs Standard'!$A$12=1,'Backend Calcs Standard'!W62,('Backend Calcs Standard'!W62*0.0283168)))) -> 15.33864583 | G61: 101.2420312 | H61: =IF('Backend Calcs Standard'!$A$12=1,'Backend Calcs Standard'!X62,('Backend Calcs Standard'!X62*0.0283168)) -> 101.2420312 | I61: =IFERROR(IF(H61="","",(IF('Backend Calcs Standard'!$A$12=1,'Backend Calcs Standard'!Y62,('Backend Calcs Standard'!Y62*0.0283168)))),"") -> 1693.979983 | J61: =IF(A61="","",IF('Backend Calcs Standard'!$A$12=1,'Backend Calcs Standard'!Z62,'Backend Calcs Standard'!O62)) -> 1.75 | L61: 1214.904375
A62: =IFERROR(IF(B62="","",'Backend Calcs Standard'!P63),"") -> 20 | B62: =IFERROR(IF(C62="","",(IF('Backend Calcs Standard'!$A$12=1,'Backend Calcs Standard'!S63,(('Backend Calcs Standard'!S63)*0.0283168)))),"") -> 3.261278935 | C62: =IFERROR(IF(D62="","",(IF('Backend Calcs Standard'!$A$12=1,'Backend Calcs Standard'!T63,(('Backend Calcs Standard'!T63)*0.0283168)))),"") -> 0.52 | D62: =IFERROR(IF(E62="","",(IF('Backend Calcs Standard'!$A$12=1,'Backend Calcs Standard'!U63,(('Backend Calcs Standard'!U63)*0.0283168)))),"") -> 81.53197338 | E62: =IFERROR(IF(F62="","",(IF('Backend Calcs Standard'!$A$12=1,'Backend Calcs Standard'!V63,(('Backend Calcs Standard'!V63)*0.0283168)))),"") -> 5.2 | F62: =IF(I62="","",(IF('Backend Calcs Standard'!$A$12=1,'Backend Calcs Standard'!W63,('Backend Calcs Standard'!W63*0.0283168)))) -> 15.00721065 | G62: 101.739184 | H62: =IF('Backend Calcs Standard'!$A$12=1,'Backend Calcs Standard'!X63,('Backend Calcs Standard'!X63*0.0283168)) -> 101.739184 | I62: =IFERROR(IF(H62="","",(IF('Backend Calcs Standard'!$A$12=1,'Backend Calcs Standard'!Y63,('Backend Calcs Standard'!Y63*0.0283168)))),"") -> 1592.737951 | J62: =IF(A62="","",IF('Backend Calcs Standard'!$A$12=1,'Backend Calcs Standard'!Z63,'Backend Calcs Standard'!O63)) -> 1.666666667 | L62: 1220.870208
A63: =IFERROR(IF(B63="","",'Backend Calcs Standard'!P64),"") -> 19 | B63: =IFERROR(IF(C63="","",(IF('Backend Calcs Standard'!$A$12=1,'Backend Calcs Standard'!S64,(('Backend Calcs Standard'!S64)*0.0283168)))),"") -> 3.291643519 | C63: =IFERROR(IF(D63="","",(IF('Backend Calcs Standard'!$A$12=1,'Backend Calcs Standard'!T64,(('Backend Calcs Standard'!T64)*0.0283168)))),"") -> 0.53 | D63: =IFERROR(IF(E63="","",(IF('Backend Calcs Standard'!$A$12=1,'Backend Calcs Standard'!U64,(('Backend Calcs Standard'!U64)*0.0283168)))),"") -> 82.29108796 | E63: =IFERROR(IF(F63="","",(IF('Backend Calcs Standard'!$A$12=1,'Backend Calcs Standard'!V64,(('Backend Calcs Standard'!V64)*0.0283168)))),"") -> 5.3 | F63: =IF(I63="","",(IF('Backend Calcs Standard'!$A$12=1,'Backend Calcs Standard'!W64,('Backend Calcs Standard'!W64*0.0283168)))) -> 14.66356481 | G63: 102.2546528 | H63: =IF('Backend Calcs Standard'!$A$12=1,'Backend Calcs Standard'!X64,('Backend Calcs Standard'!X64*0.0283168)) -> 102.2546528 | I63: =IFERROR(IF(H63="","",(IF('Backend Calcs Standard'!$A$12=1,'Backend Calcs Standard'!Y64,('Backend Calcs Standard'!Y64*0.0283168)))),"") -> 1490.998767 | J63: =IF(A63="","",IF('Backend Calcs Standard'!$A$12=1,'Backend Calcs Standard'!Z64,'Backend Calcs Standard'!O64)) -> 1.583333333 | L63: 1227.055833
A64: =IFERROR(IF(B64="","",'Backend Calcs Standard'!P65),"") -> 18 | B64: =IFERROR(IF(C64="","",(IF('Backend Calcs Standard'!$A$12=1,'Backend Calcs Standard'!S65,(('Backend Calcs Standard'!S65)*0.0283168)))),"") -> 3.320625 | C64: =IFERROR(IF(D64="","",(IF('Backend Calcs Standard'!$A$12=1,'Backend Calcs Standard'!T65,(('Backend Calcs Standard'!T65)*0.0283168)))),"") -> 0.54 | D64: =IFERROR(IF(E64="","",(IF('Backend Calcs Standard'!$A$12=1,'Backend Calcs Standard'!U65,(('Backend Calcs Standard'!U65)*0.0283168)))),"") -> 83.015625 | E64: =IFERROR(IF(F64="","",(IF('Backend Calcs Standard'!$A$12=1,'Backend Calcs Standard'!V65,(('Backend Calcs Standard'!V65)*0.0283168)))),"") -> 5.4 | F64: =IF(I64="","",(IF('Backend Calcs Standard'!$A$12=1,'Backend Calcs Standard'!W65,('Backend Calcs Standard'!W65*0.0283168)))) -> 14.33375 | G64: 102.749375 | H64: =IF('Backend Calcs Standard'!$A$12=1,'Backend Calcs Standard'!X65,('Backend Calcs Standard'!X65*0.0283168)) -> 102.749375 | I64: =IFERROR(IF(H64="","",(IF('Backend Calcs Standard'!$A$12=1,'Backend Calcs Standard'!Y65,('Backend Calcs Standard'!Y65*0.0283168)))),"") -> 1388.744115 | J64: =IF(A64="","",IF('Backend Calcs Standard'!$A$12=1,'Backend Calcs Standard'!Z65,'Backend Calcs Standard'!O65)) -> 1.5 | L64: 1232.9925
A65: =IFERROR(IF(B65="","",'Backend Calcs Standard'!P66),"") -> 17 | B65: =IFERROR(IF(C65="","",(IF('Backend Calcs Standard'!$A$12=1,'Backend Calcs Standard'!S66,(('Backend Calcs Standard'!S66)*0.0283168)))),"") -> 3.349236111 | C65: =IFERROR(IF(D65="","",(IF('Backend Calcs Standard'!$A$12=1,'Backend Calcs Standard'!T66,(('Backend Calcs Standard'!T66)*0.0283168)))),"") -> 0.55 | D65: =IFERROR(IF(E65="","",(IF('Backend Calcs Standard'!$A$12=1,'Backend Calcs Standard'!U66,(('Backend Calcs Standard'!U66)*0.0283168)))),"") -> 83.73090278 | E65: =IFERROR(IF(F65="","",(IF('Backend Calcs Standard'!$A$12=1,'Backend Calcs Standard'!V66,(('Backend Calcs Standard'!V66)*0.0283168)))),"") -> 5.5 | F65: =IF(I65="","",(IF('Backend Calcs Standard'!$A$12=1,'Backend Calcs Standard'!W66,('Backend Calcs Standard'!W66*0.0283168)))) -> 14.00763889 | G65: 103.2385417 | H65: =IF('Backend Calcs Standard'!$A$12=1,'Backend Calcs Standard'!X66,('Backend Calcs Standard'!X66*0.0283168)) -> 103.2385417 | I65: =IFERROR(IF(H65="","",(IF('Backend Calcs Standard'!$A$12=1,'Backend Calcs Standard'!Y66,('Backend Calcs Standard'!Y66*0.0283168)))),"") -> 1285.99474 | J65: =IF(A65="","",IF('Backend Calcs Standard'!$A$12=1,'Backend Calcs Standard'!Z66,'Backend Calcs Standard'!O66)) -> 1.416666667 | L65: 1238.8625
A66: =IFERROR(IF(B66="","",'Backend Calcs Standard'!P67),"") -> 16 | B66: =IFERROR(IF(C66="","",(IF('Backend Calcs Standard'!$A$12=1,'Backend Calcs Standard'!S67,(('Backend Calcs Standard'!S67)*0.0283168)))),"") -> 3.376689815 | C66: =IFERROR(IF(D66="","",(IF('Backend Calcs Standard'!$A$12=1,'Backend Calcs Standard'!T67,(('Backend Calcs Standard'!T67)*0.0283168)))),"") -> 0.56 | D66: =IFERROR(IF(E66="","",(IF('Backend Calcs Standard'!$A$12=1,'Backend Calcs Standard'!U67,(('Backend Calcs Standard'!U67)*0.0283168)))),"") -> 84.41724537 | E66: =IFERROR(IF(F66="","",(IF('Backend Calcs Standard'!$A$12=1,'Backend Calcs Standard'!V67,(('Backend Calcs Standard'!V67)*0.0283168)))),"") -> 5.6 | F66: =IF(I66="","",(IF('Backend Calcs Standard'!$A$12=1,'Backend Calcs Standard'!W67,('Backend Calcs Standard'!W67*0.0283168)))) -> 13.69310185 | G66: 103.7103472 | H66: =IF('Backend Calcs Standard'!$A$12=1,'Backend Calcs Standard'!X67,('Backend Calcs Standard'!X67*0.0283168)) -> 103.7103472 | I66: =IFERROR(IF(H66="","",(IF('Backend Calcs Standard'!$A$12=1,'Backend Calcs Standard'!Y67,('Backend Calcs Standard'!Y67*0.0283168)))),"") -> 1182.756198 | J66: =IF(A66="","",IF('Backend Calcs Standard'!$A$12=1,'Backend Calcs Standard'!Z67,'Backend Calcs Standard'!O67)) -> 1.333333333 | L66: 1244.524167
A67: =IFERROR(IF(B67="","",'Backend Calcs Standard'!P68),"") -> 15 | B67: =IFERROR(IF(C67="","",(IF('Backend Calcs Standard'!$A$12=1,'Backend Calcs Standard'!S68,(('Backend Calcs Standard'!S68)*0.0283168)))),"") -> 3.404699074 | C67: =IFERROR(IF(D67="","",(IF('Backend Calcs Standard'!$A$12=1,'Backend Calcs Standard'!T68,(('Backend Calcs Standard'!T68)*0.0283168)))),"") -> 0.56 | D67: =IFERROR(IF(E67="","",(IF('Backend Calcs Standard'!$A$12=1,'Backend Calcs Standard'!U68,(('Backend Calcs Standard'!U68)*0.0283168)))),"") -> 85.11747685 | E67: =IFERROR(IF(F67="","",(IF('Backend Calcs Standard'!$A$12=1,'Backend Calcs Standard'!V68,(('Backend Calcs Standard'!V68)*0.0283168)))),"") -> 5.6 | F67: =IF(I67="","",(IF('Backend Calcs Standard'!$A$12=1,'Backend Calcs Standard'!W68,('Backend Calcs Standard'!W68*0.0283168)))) -> 13.41300926 | G67: 104.1304861 | H67: =IF('Backend Calcs Standard'!$A$12=1,'Backend Calcs Standard'!X68,('Backend Calcs Standard'!X68*0.0283168)) -> 104.1304861 | I67: =IFERROR(IF(H67="","",(IF('Backend Calcs Standard'!$A$12=1,'Backend Calcs Standard'!Y68,('Backend Calcs Standard'!Y68*0.0283168)))),"") -> 1079.045851 | J67: =IF(A67="","",IF('Backend Calcs Standard'!$A$12=1,'Backend Calcs Standard'!Z68,'Backend Calcs Standard'!O68)) -> 1.25 | L67: 1249.565833
A68: =IFERROR(IF(B68="","",'Backend Calcs Standard'!P69),"") -> 14 | B68: =IFERROR(IF(C68="","",(IF('Backend Calcs Standard'!$A$12=1,'Backend Calcs Standard'!S69,(('Backend Calcs Standard'!S69)*0.0283168)))),"") -> 3.43291088 | C68: =IFERROR(IF(D68="","",(IF('Backend Calcs Standard'!$A$12=1,'Backend Calcs Standard'!T69,(('Backend Calcs Standard'!T69)*0.0283168)))),"") -> 0.57 | D68: =IFERROR(IF(E68="","",(IF('Backend Calcs Standard'!$A$12=1,'Backend Calcs Standard'!U69,(('Backend Calcs Standard'!U69)*0.0283168)))),"") -> 85.82277199 | E68: =IFERROR(IF(F68="","",(IF('Backend Calcs Standard'!$A$12=1,'Backend Calcs Standard'!V69,(('Backend Calcs Standard'!V69)*0.0283168)))),"") -> 5.7 | F68: =IF(I68="","",(IF('Backend Calcs Standard'!$A$12=1,'Backend Calcs Standard'!W69,('Backend Calcs Standard'!W69*0.0283168)))) -> 13.0908912 | G68: 104.6136632 | H68: =IF('Backend Calcs Standard'!$A$12=1,'Backend Calcs Standard'!X69,('Backend Calcs Standard'!X69*0.0283168)) -> 104.6136632 | I68: =IFERROR(IF(H68="","",(IF('Backend Calcs Standard'!$A$12=1,'Backend Calcs Standard'!Y69,('Backend Calcs Standard'!Y69*0.0283168)))),"") -> 974.9153646 | J68: =IF(A68="","",IF('Backend Calcs Standard'!$A$12=1,'Backend Calcs Standard'!Z69,'Backend Calcs Standard'!O69)) -> 1.166666667 | L68: 1255.363958
A69: =IFERROR(IF(B69="","",'Backend Calcs Standard'!P70),"") -> 13 | B69: =IFERROR(IF(C69="","",(IF('Backend Calcs Standard'!$A$12=1,'Backend Calcs Standard'!S70,(('Backend Calcs Standard'!S70)*0.0283168)))),"") -> 3.462042824 | C69: =IFERROR(IF(D69="","",(IF('Backend Calcs Standard'!$A$12=1,'Backend Calcs Standard'!T70,(('Backend Calcs Standard'!T70)*0.0283168)))),"") -> 0.58 | D69: =IFERROR(IF(E69="","",(IF('Backend Calcs Standard'!$A$12=1,'Backend Calcs Standard'!U70,(('Backend Calcs Standard'!U70)*0.0283168)))),"") -> 86.5510706 | E69: =IFERROR(IF(F69="","",(IF('Backend Calcs Standard'!$A$12=1,'Backend Calcs Standard'!V70,(('Backend Calcs Standard'!V70)*0.0283168)))),"") -> 5.8 | F69: =IF(I69="","",(IF('Backend Calcs Standard'!$A$12=1,'Backend Calcs Standard'!W70,('Backend Calcs Standard'!W70*0.0283168)))) -> 12.75957176 | G69: 105.1106424 | H69: =IF('Backend Calcs Standard'!$A$12=1,'Backend Calcs Standard'!X70,('Backend Calcs Standard'!X70*0.0283168)) -> 105.1106424 | I69: =IFERROR(IF(H69="","",(IF('Backend Calcs Standard'!$A$12=1,'Backend Calcs Standard'!Y70,('Backend Calcs Standard'!Y70*0.0283168)))),"") -> 870.3017014 | J69: =IF(A69="","",IF('Backend Calcs Standard'!$A$12=1,'Backend Calcs Standard'!Z70,'Backend Calcs Standard'!O70)) -> 1.083333333 | L69: 1261.327708
A70: =IFERROR(IF(B70="","",'Backend Calcs Standard'!P71),"") -> 12 | B70: =IFERROR(IF(C70="","",(IF('Backend Calcs Standard'!$A$12=1,'Backend Calcs Standard'!S71,(('Backend Calcs Standard'!S71)*0.0283168)))),"") -> 3.489953704 | C70: =IFERROR(IF(D70="","",(IF('Backend Calcs Standard'!$A$12=1,'Backend Calcs Standard'!T71,(('Backend Calcs Standard'!T71)*0.0283168)))),"") -> 0.58 | D70: =IFERROR(IF(E70="","",(IF('Backend Calcs Standard'!$A$12=1,'Backend Calcs Standard'!U71,(('Backend Calcs Standard'!U71)*0.0283168)))),"") -> 87.24884259 | E70: =IFERROR(IF(F70="","",(IF('Backend Calcs Standard'!$A$12=1,'Backend Calcs Standard'!V71,(('Backend Calcs Standard'!V71)*0.0283168)))),"") -> 5.8 | F70: =IF(I70="","",(IF('Backend Calcs Standard'!$A$12=1,'Backend Calcs Standard'!W71,('Backend Calcs Standard'!W71*0.0283168)))) -> 12.48046296 | G70: 105.5293056 | H70: =IF('Backend Calcs Standard'!$A$12=1,'Backend Calcs Standard'!X71,('Backend Calcs Standard'!X71*0.0283168)) -> 105.5293056 | I70: =IFERROR(IF(H70="","",(IF('Backend Calcs Standard'!$A$12=1,'Backend Calcs Standard'!Y71,('Backend Calcs Standard'!Y71*0.0283168)))),"") -> 765.191059 | J70: =IF(A70="","",IF('Backend Calcs Standard'!$A$12=1,'Backend Calcs Standard'!Z71,'Backend Calcs Standard'!O71)) -> 1 | L70: 1266.351667
A71: =IFERROR(IF(B71="","",'Backend Calcs Standard'!P72),"") -> 11 | B71: =IFERROR(IF(C71="","",(IF('Backend Calcs Standard'!$A$12=1,'Backend Calcs Standard'!S72,(('Backend Calcs Standard'!S72)*0.0283168)))),"") -> 3.517615741 | C71: =IFERROR(IF(D71="","",(IF('Backend Calcs Standard'!$A$12=1,'Backend Calcs Standard'!T72,(('Backend Calcs Standard'!T72)*0.0283168)))),"") -> 0.58 | D71: =IFERROR(IF(E71="","",(IF('Backend Calcs Standard'!$A$12=1,'Backend Calcs Standard'!U72,(('Backend Calcs Standard'!U72)*0.0283168)))),"") -> 87.94039352 | E71: =IFERROR(IF(F71="","",(IF('Backend Calcs Standard'!$A$12=1,'Backend Calcs Standard'!V72,(('Backend Calcs Standard'!V72)*0.0283168)))),"") -> 5.8 | F71: =IF(I71="","",(IF('Backend Calcs Standard'!$A$12=1,'Backend Calcs Standard'!W72,('Backend Calcs Standard'!W72*0.0283168)))) -> 12.20384259 | G71: 105.9442361 | H71: =IF('Backend Calcs Standard'!$A$12=1,'Backend Calcs Standard'!X72,('Backend Calcs Standard'!X72*0.0283168)) -> 105.9442361 | I71: =IFERROR(IF(H71="","",(IF('Backend Calcs Standard'!$A$12=1,'Backend Calcs Standard'!Y72,('Backend Calcs Standard'!Y72*0.0283168)))),"") -> 659.6617535 | J71: =IF(A71="","",IF('Backend Calcs Standard'!$A$12=1,'Backend Calcs Standard'!Z72,'Backend Calcs Standard'!O72)) -> 0.9166666667 | L71: 1271.330833
A72: =IFERROR(IF(B72="","",'Backend Calcs Standard'!P73),"") -> 10 | B72: =IFERROR(IF(C72="","",(IF('Backend Calcs Standard'!$A$12=1,'Backend Calcs Standard'!S73,(('Backend Calcs Standard'!S73)*0.0283168)))),"") -> 3.545167824 | C72: =IFERROR(IF(D72="","",(IF('Backend Calcs Standard'!$A$12=1,'Backend Calcs Standard'!T73,(('Backend Calcs Standard'!T73)*0.0283168)))),"") -> 0.59 | D72: =IFERROR(IF(E72="","",(IF('Backend Calcs Standard'!$A$12=1,'Backend Calcs Standard'!U73,(('Backend Calcs Standard'!U73)*0.0283168)))),"") -> 88.6291956 | E72: =IFERROR(IF(F72="","",(IF('Backend Calcs Standard'!$A$12=1,'Backend Calcs Standard'!V73,(('Backend Calcs Standard'!V73)*0.0283168)))),"") -> 5.9 | F72: =IF(I72="","",(IF('Backend Calcs Standard'!$A$12=1,'Backend Calcs Standard'!W73,('Backend Calcs Standard'!W73*0.0283168)))) -> 11.88832176 | G72: 106.4175174 | H72: =IF('Backend Calcs Standard'!$A$12=1,'Backend Calcs Standard'!X73,('Backend Calcs Standard'!X73*0.0283168)) -> 106.4175174 | I72: =IFERROR(IF(H72="","",(IF('Backend Calcs Standard'!$A$12=1,'Backend Calcs Standard'!Y73,('Backend Calcs Standard'!Y73*0.0283168)))),"") -> 553.7175174 | J72: =IF(A72="","",IF('Backend Calcs Standard'!$A$12=1,'Backend Calcs Standard'!Z73,'Backend Calcs Standard'!O73)) -> 0.8333333333 | L72: 1277.010208
A73: =IFERROR(IF(B73="","",'Backend Calcs Standard'!P74),"") -> 9 | B73: =IFERROR(IF(C73="","",(IF('Backend Calcs Standard'!$A$12=1,'Backend Calcs Standard'!S74,(('Backend Calcs Standard'!S74)*0.0283168)))),"") -> 0 | C73: =IFERROR(IF(D73="","",(IF('Backend Calcs Standard'!$A$12=1,'Backend Calcs Standard'!T74,(('Backend Calcs Standard'!T74)*0.0283168)))),"") -> 0 | D73: =IFERROR(IF(E73="","",(IF('Backend Calcs Standard'!$A$12=1,'Backend Calcs Standard'!U74,(('Backend Calcs Standard'!U74)*0.0283168)))),"") -> 0 | E73: =IFERROR(IF(F73="","",(IF('Backend Calcs Standard'!$A$12=1,'Backend Calcs Standard'!V74,(('Backend Calcs Standard'!V74)*0.0283168)))),"") -> 0 | F73: =IF(I73="","",(IF('Backend Calcs Standard'!$A$12=1,'Backend Calcs Standard'!W74,('Backend Calcs Standard'!W74*0.0283168)))) -> 49.7 | G73: 49.7 | H73: =IF('Backend Calcs Standard'!$A$12=1,'Backend Calcs Standard'!X74,('Backend Calcs Standard'!X74*0.0283168)) -> 49.7 | I73: =IFERROR(IF(H73="","",(IF('Backend Calcs Standard'!$A$12=1,'Backend Calcs Standard'!Y74,('Backend Calcs Standard'!Y74*0.0283168)))),"") -> 447.3 | J73: =IF(A73="","",IF('Backend Calcs Standard'!$A$12=1,'Backend Calcs Standard'!Z74,'Backend Calcs Standard'!O74)) -> 0.75 | L73: 596.4
A74: =IFERROR(IF(B74="","",'Backend Calcs Standard'!P75),"") -> 8 | B74: =IFERROR(IF(C74="","",(IF('Backend Calcs Standard'!$A$12=1,'Backend Calcs Standard'!S75,(('Backend Calcs Standard'!S75)*0.0283168)))),"") -> 0 | C74: =IFERROR(IF(D74="","",(IF('Backend Calcs Standard'!$A$12=1,'Backend Calcs Standard'!T75,(('Backend Calcs Standard'!T75)*0.0283168)))),"") -> 0 | D74: =IFERROR(IF(E74="","",(IF('Backend Calcs Standard'!$A$12=1,'Backend Calcs Standard'!U75,(('Backend Calcs Standard'!U75)*0.0283168)))),"") -> 0 | E74: =IFERROR(IF(F74="","",(IF('Backend Calcs Standard'!$A$12=1,'Backend Calcs Standard'!V75,(('Backend Calcs Standard'!V75)*0.0283168)))),"") -> 0 | F74: =IF(I74="","",(IF('Backend Calcs Standard'!$A$12=1,'Backend Calcs Standard'!W75,('Backend Calcs Standard'!W75*0.0283168)))) -> 49.7 | G74: 49.7 | H74: =IF('Backend Calcs Standard'!$A$12=1,'Backend Calcs Standard'!X75,('Backend Calcs Standard'!X75*0.0283168)) -> 49.7 | I74: =IFERROR(IF(H74="","",(IF('Backend Calcs Standard'!$A$12=1,'Backend Calcs Standard'!Y75,('Backend Calcs Standard'!Y75*0.0283168)))),"") -> 397.6 | J74: =IF(A74="","",IF('Backend Calcs Standard'!$A$12=1,'Backend Calcs Standard'!Z75,'Backend Calcs Standard'!O75)) -> 0.6666666667 | L74: 596.4
A75: =IFERROR(IF(B75="","",'Backend Calcs Standard'!P76),"") -> 7 | B75: =IFERROR(IF(C75="","",(IF('Backend Calcs Standard'!$A$12=1,'Backend Calcs Standard'!S76,(('Backend Calcs Standard'!S76)*0.0283168)))),"") -> 0 | C75: =IFERROR(IF(D75="","",(IF('Backend Calcs Standard'!$A$12=1,'Backend Calcs Standard'!T76,(('Backend Calcs Standard'!T76)*0.0283168)))),"") -> 0 | D75: =IFERROR(IF(E75="","",(IF('Backend Calcs Standard'!$A$12=1,'Backend Calcs Standard'!U76,(('Backend Calcs Standard'!U76)*0.0283168)))),"") -> 0 | E75: =IFERROR(IF(F75="","",(IF('Backend Calcs Standard'!$A$12=1,'Backend Calcs Standard'!V76,(('Backend Calcs Standard'!V76)*0.0283168)))),"") -> 0 | F75: =IF(I75="","",(IF('Backend Calcs Standard'!$A$12=1,'Backend Calcs Standard'!W76,('Backend Calcs Standard'!W76*0.0283168)))) -> 49.7 | G75: 49.7 | H75: =IF('Backend Calcs Standard'!$A$12=1,'Backend Calcs Standard'!X76,('Backend Calcs Standard'!X76*0.0283168)) -> 49.7 | I75: =IFERROR(IF(H75="","",(IF('Backend Calcs Standard'!$A$12=1,'Backend Calcs Standard'!Y76,('Backend Calcs Standard'!Y76*0.0283168)))),"") -> 347.9 | J75: =IF(A75="","",IF('Backend Calcs Standard'!$A$12=1,'Backend Calcs Standard'!Z76,'Backend Calcs Standard'!O76)) -> 0.5833333333 | L75: 596.4
A76: =IFERROR(IF(B76="","",'Backend Calcs Standard'!P77),"") -> 6 | B76: =IFERROR(IF(C76="","",(IF('Backend Calcs Standard'!$A$12=1,'Backend Calcs Standard'!S77,(('Backend Calcs Standard'!S77)*0.0283168)))),"") -> 0 | C76: =IFERROR(IF(D76="","",(IF('Backend Calcs Standard'!$A$12=1,'Backend Calcs Standard'!T77,(('Backend Calcs Standard'!T77)*0.0283168)))),"") -> 0 | D76: =IFERROR(IF(E76="","",(IF('Backend Calcs Standard'!$A$12=1,'Backend Calcs Standard'!U77,(('Backend Calcs Standard'!U77)*0.0283168)))),"") -> 0 | E76: =IFERROR(IF(F76="","",(IF('Backend Calcs Standard'!$A$12=1,'Backend Calcs Standard'!V77,(('Backend Calcs Standard'!V77)*0.0283168)))),"") -> 0 | F76: =IF(I76="","",(IF('Backend Calcs Standard'!$A$12=1,'Backend Calcs Standard'!W77,('Backend Calcs Standard'!W77*0.0283168)))) -> 49.7 | G76: 49.7 | H76: =IF('Backend Calcs Standard'!$A$12=1,'Backend Calcs Standard'!X77,('Backend Calcs Standard'!X77*0.0283168)) -> 49.7 | I76: =IFERROR(IF(H76="","",(IF('Backend Calcs Standard'!$A$12=1,'Backend Calcs Standard'!Y77,('Backend Calcs Standard'!Y77*0.0283168)))),"") -> 298.2 | J76: =IF(A76="","",IF('Backend Calcs Standard'!$A$12=1,'Backend Calcs Standard'!Z77,'Backend Calcs Standard'!O77)) -> 0.5 | L76: 596.4
A77: =IFERROR(IF(B77="","",'Backend Calcs Standard'!P78),"") -> 5 | B77: =IFERROR(IF(C77="","",(IF('Backend Calcs Standard'!$A$12=1,'Backend Calcs Standard'!S78,(('Backend Calcs Standard'!S78)*0.0283168)))),"") -> 0 | C77: =IFERROR(IF(D77="","",(IF('Backend Calcs Standard'!$A$12=1,'Backend Calcs Standard'!T78,(('Backend Calcs Standard'!T78)*0.0283168)))),"") -> 0 | D77: =IFERROR(IF(E77="","",(IF('Backend Calcs Standard'!$A$12=1,'Backend Calcs Standard'!U78,(('Backend Calcs Standard'!U78)*0.0283168)))),"") -> 0 | E77: =IFERROR(IF(F77="","",(IF('Backend Calcs Standard'!$A$12=1,'Backend Calcs Standard'!V78,(('Backend Calcs Standard'!V78)*0.0283168)))),"") -> 0 | F77: =IF(I77="","",(IF('Backend Calcs Standard'!$A$12=1,'Backend Calcs Standard'!W78,('Backend Calcs Standard'!W78*0.0283168)))) -> 49.7 | G77: 49.7 | H77: =IF('Backend Calcs Standard'!$A$12=1,'Backend Calcs Standard'!X78,('Backend Calcs Standard'!X78*0.0283168)) -> 49.7 | I77: =IFERROR(IF(H77="","",(IF('Backend Calcs Standard'!$A$12=1,'Backend Calcs Standard'!Y78,('Backend Calcs Standard'!Y78*0.0283168)))),"") -> 248.5 | J77: =IF(A77="","",IF('Backend Calcs Standard'!$A$12=1,'Backend Calcs Standard'!Z78,'Backend Calcs Standard'!O78)) -> 0.4166666667 | L77: 596.4
A78: =IFERROR(IF(B78="","",'Backend Calcs Standard'!P79),"") -> 4 | B78: =IFERROR(IF(C78="","",(IF('Backend Calcs Standard'!$A$12=1,'Backend Calcs Standard'!S79,(('Backend Calcs Standard'!S79)*0.0283168)))),"") -> 0 | C78: =IFERROR(IF(D78="","",(IF('Backend Calcs Standard'!$A$12=1,'Backend Calcs Standard'!T79,(('Backend Calcs Standard'!T79)*0.0283168)))),"") -> 0 | D78: =IFERROR(IF(E78="","",(IF('Backend Calcs Standard'!$A$12=1,'Backend Calcs Standard'!U79,(('Backend Calcs Standard'!U79)*0.0283168)))),"") -> 0 | E78: =IFERROR(IF(F78="","",(IF('Backend Calcs Standard'!$A$12=1,'Backend Calcs Standard'!V79,(('Backend Calcs Standard'!V79)*0.0283168)))),"") -> 0 | F78: =IF(I78="","",(IF('Backend Calcs Standard'!$A$12=1,'Backend Calcs Standard'!W79,('Backend Calcs Standard'!W79*0.0283168)))) -> 49.7 | G78: 49.7 | H78: =IF('Backend Calcs Standard'!$A$12=1,'Backend Calcs Standard'!X79,('Backend Calcs Standard'!X79*0.0283168)) -> 49.7 | I78: =IFERROR(IF(H78="","",(IF('Backend Calcs Standard'!$A$12=1,'Backend Calcs Standard'!Y79,('Backend Calcs Standard'!Y79*0.0283168)))),"") -> 198.8 | J78: =IF(A78="","",IF('Backend Calcs Standard'!$A$12=1,'Backend Calcs Standard'!Z79,'Backend Calcs Standard'!O79)) -> 0.3333333333 | L78: 596.4
A79: =IFERROR(IF(B79="","",'Backend Calcs Standard'!P80),"") -> 3 | B79: =IFERROR(IF(C79="","",(IF('Backend Calcs Standard'!$A$12=1,'Backend Calcs Standard'!S80,(('Backend Calcs Standard'!S80)*0.0283168)))),"") -> 0 | C79: =IFERROR(IF(D79="","",(IF('Backend Calcs Standard'!$A$12=1,'Backend Calcs Standard'!T80,(('Backend Calcs Standard'!T80)*0.0283168)))),"") -> 0 | D79: =IFERROR(IF(E79="","",(IF('Backend Calcs Standard'!$A$12=1,'Backend Calcs Standard'!U80,(('Backend Calcs Standard'!U80)*0.0283168)))),"") -> 0 | E79: =IFERROR(IF(F79="","",(IF('Backend Calcs Standard'!$A$12=1,'Backend Calcs Standard'!V80,(('Backend Calcs Standard'!V80)*0.0283168)))),"") -> 0 | F79: =IF(I79="","",(IF('Backend Calcs Standard'!$A$12=1,'Backend Calcs Standard'!W80,('Backend Calcs Standard'!W80*0.0283168)))) -> 49.7 | G79: 49.7 | H79: =IF('Backend Calcs Standard'!$A$12=1,'Backend Calcs Standard'!X80,('Backend Calcs Standard'!X80*0.0283168)) -> 49.7 | I79: =IFERROR(IF(H79="","",(IF('Backend Calcs Standard'!$A$12=1,'Backend Calcs Standard'!Y80,('Backend Calcs Standard'!Y80*0.0283168)))),"") -> 149.1 | J79: =IF(A79="","",IF('Backend Calcs Standard'!$A$12=1,'Backend Calcs Standard'!Z80,'Backend Calcs Standard'!O80)) -> 0.25 | L79: 596.4
A80: =IFERROR(IF(B80="","",'Backend Calcs Standard'!P81),"") -> 2 | B80: =IFERROR(IF(C80="","",(IF('Backend Calcs Standard'!$A$12=1,'Backend Calcs Standard'!S81,(('Backend Calcs Standard'!S81)*0.0283168)))),"") -> 0 | C80: =IFERROR(IF(D80="","",(IF('Backend Calcs Standard'!$A$12=1,'Backend Calcs Standard'!T81,(('Backend Calcs Standard'!T81)*0.0283168)))),"") -> 0 | D80: =IFERROR(IF(E80="","",(IF('Backend Calcs Standard'!$A$12=1,'Backend Calcs Standard'!U81,(('Backend Calcs Standard'!U81)*0.0283168)))),"") -> 0 | E80: =IFERROR(IF(F80="","",(IF('Backend Calcs Standard'!$A$12=1,'Backend Calcs Standard'!V81,(('Backend Calcs Standard'!V81)*0.0283168)))),"") -> 0 | F80: =IF(I80="","",(IF('Backend Calcs Standard'!$A$12=1,'Backend Calcs Standard'!W81,('Backend Calcs Standard'!W81*0.0283168)))) -> 49.7 | G80: =IFERROR(IF(F80="","",(F80+E80+D80)),"") -> 49.7 | H80: =IF('Backend Calcs Standard'!$A$12=1,'Backend Calcs Standard'!X81,('Backend Calcs Standard'!X81*0.0283168)) -> 49.7 | I80: =IFERROR(IF(H80="","",(IF('Backend Calcs Standard'!$A$12=1,'Backend Calcs Standard'!Y81,('Backend Calcs Standard'!Y81*0.0283168)))),"") -> 99.4 | J80: =IF(A80="","",IF('Backend Calcs Standard'!$A$12=1,'Backend Calcs Standard'!Z81,'Backend Calcs Standard'!O81)) -> 0.1666666667 | L80: 596.4
A81: =IFERROR(IF(B81="","",'Backend Calcs Standard'!P82),"") -> 1 | B81: =IFERROR(IF(C81="","",(IF('Backend Calcs Standard'!$A$12=1,'Backend Calcs Standard'!S82,(('Backend Calcs Standard'!S82)*0.0283168)))),"") -> 0 | C81: =IFERROR(IF(D81="","",(IF('Backend Calcs Standard'!$A$12=1,'Backend Calcs Standard'!T82,(('Backend Calcs Standard'!T82)*0.0283168)))),"") -> 0 | D81: =IFERROR(IF(E81="","",(IF('Backend Calcs Standard'!$A$12=1,'Backend Calcs Standard'!U82,(('Backend Calcs Standard'!U82)*0.0283168)))),"") -> 0 | E81: =IFERROR(IF(F81="","",(IF('Backend Calcs Standard'!$A$12=1,'Backend Calcs Standard'!V82,(('Backend Calcs Standard'!V82)*0.0283168)))),"") -> 0 | F81: =IF(I81="","",(IF('Backend Calcs Standard'!$A$12=1,'Backend Calcs Standard'!W82,('Backend Calcs Standard'!W82*0.0283168)))) -> 49.7 | G81: =IFERROR(IF(F81="","",(F81+E81+D81)),"") -> 49.7 | H81: =IF('Backend Calcs Standard'!$A$12=1,'Backend Calcs Standard'!X82,('Backend Calcs Standard'!X82*0.0283168)) -> 49.7 | I81: =IFERROR(IF(H81="","",(IF('Backend Calcs Standard'!$A$12=1,'Backend Calcs Standard'!Y82,('Backend Calcs Standard'!Y82*0.0283168)))),"") -> 49.7 | J81: =IF(A81="","",IF('Backend Calcs Standard'!$A$12=1,'Backend Calcs Standard'!Z82,'Backend Calcs Standard'!O82)) -> 0.08333333333 | L81: =IF(G81="","",G81*12) -> 596.4
A82: =IFERROR(IF(B82="","",'Backend Calcs Standard'!P83),"") -> 0 | B82: =IFERROR(IF(C82="","",(IF('Backend Calcs Standard'!$A$12=1,'Backend Calcs Standard'!S83,(('Backend Calcs Standard'!S83)*0.0283168)))),"") -> 0 | C82: =IFERROR(IF(D82="","",(IF('Backend Calcs Standard'!$A$12=1,'Backend Calcs Standard'!T83,(('Backend Calcs Standard'!T83)*0.0283168)))),"") -> 0 | D82: =IFERROR(IF(E82="","",(IF('Backend Calcs Standard'!$A$12=1,'Backend Calcs Standard'!U83,(('Backend Calcs Standard'!U83)*0.0283168)))),"") -> 0 | E82: =IFERROR(IF(F82="","",(IF('Backend Calcs Standard'!$A$12=1,'Backend Calcs Standard'!V83,(('Backend Calcs Standard'!V83)*0.0283168)))),"") -> 0 | F82: =IF(I82="","",(IF('Backend Calcs Standard'!$A$12=1,'Backend Calcs Standard'!W83,('Backend Calcs Standard'!W83*0.0283168)))) -> 0 | G82: =IFERROR(IF(F82="","",(F82+E82+D82)),"") -> 0 | H82: =IF('Backend Calcs Standard'!$A$12=1,'Backend Calcs Standard'!X83,('Backend Calcs Standard'!X83*0.0283168)) -> 0 | I82: =IFERROR(IF(H82="","",(IF('Backend Calcs Standard'!$A$12=1,'Backend Calcs Standard'!Y83,'Backend Calcs Standard'!Y83*0.0283168))),"") -> 0 | J82: =IF(A82="","",IF('Backend Calcs Standard'!$A$12=1,'Backend Calcs Standard'!Z83,'Backend Calcs Standard'!O83)) -> 0 | L82: 0
A83: =IFERROR(IF(B83="","",'Backend Calcs Standard'!P84),"") ->  | B83: =IFERROR(IF(C83="","",(IF('Backend Calcs Standard'!$A$12=1,'Backend Calcs Standard'!S84,(('Backend Calcs Standard'!S84)*0.0283168)))),"") ->  | C83: =IFERROR(IF(D83="","",(IF('Backend Calcs Standard'!$A$12=1,'Backend Calcs Standard'!T84,(('Backend Calcs Standard'!T84)*0.0283168)))),"") ->  | D83: =IFERROR(IF(E83="","",(IF('Backend Calcs Standard'!$A$12=1,'Backend Calcs Standard'!U84,(('Backend Calcs Standard'!U84)*0.0283168)))),"") ->  | E83: =IFERROR(IF(F83="","",(IF('Backend Calcs Standard'!$A$12=1,'Backend Calcs Standard'!V84,(('Backend Calcs Standard'!V84)*0.0283168)))),"") ->  | F83: =IF(I83="","",(IF('Backend Calcs Standard'!$A$12=1,'Backend Calcs Standard'!W84,('Backend Calcs Standard'!W84*0.0283168)))) ->  | G83: =IFERROR(IF(F83="","",(F83+E83+D83)),"") ->  | H83: =IF('Backend Calcs Standard'!$A$12=1,'Backend Calcs Standard'!X84,('Backend Calcs Standard'!X84*0.0283168)) ->  | I83: =IFERROR(IF(H83="","",(IF('Backend Calcs Standard'!$A$12=1,'Backend Calcs Standard'!Y84,'Backend Calcs Standard'!Y84*0.0283168))),"") ->  | J83: =IF(A83="","",IF('Backend Calcs Standard'!$A$12=1,'Backend Calcs Standard'!Z84,'Backend Calcs Standard'!O84)) -> 
A84: =IFERROR(IF(B84="","",'Backend Calcs Standard'!P85),"") ->  | B84: =IFERROR(IF(C84="","",(IF('Backend Calcs Standard'!$A$12=1,'Backend Calcs Standard'!S85,(('Backend Calcs Standard'!S85)*0.0283168)))),"") ->  | C84: =IFERROR(IF(D84="","",(IF('Backend Calcs Standard'!$A$12=1,'Backend Calcs Standard'!T85,(('Backend Calcs Standard'!T85)*0.0283168)))),"") ->  | D84: =IFERROR(IF(E84="","",(IF('Backend Calcs Standard'!$A$12=1,'Backend Calcs Standard'!U85,(('Backend Calcs Standard'!U85)*0.0283168)))),"") ->  | E84: =IFERROR(IF(F84="","",(IF('Backend Calcs Standard'!$A$12=1,'Backend Calcs Standard'!V85,(('Backend Calcs Standard'!V85)*0.0283168)))),"") ->  | F84: =IF(I84="","",(IF('Backend Calcs Standard'!$A$12=1,'Backend Calcs Standard'!W85,('Backend Calcs Standard'!W85*0.0283168)))) ->  | H84: =IF('Backend Calcs Standard'!$A$12=1,'Backend Calcs Standard'!X85,('Backend Calcs Standard'!X85*0.0283168)) ->  | I84: =IFERROR(IF(H84="","",(IF('Backend Calcs Standard'!$A$12=1,'Backend Calcs Standard'!Y85,'Backend Calcs Standard'!Y85*0.0283168))),"") ->  | J84: =IF(A84="","",IF('Backend Calcs Standard'!$A$12=1,'Backend Calcs Standard'!Z85,'Backend Calcs Standard'!O85)) -> 
A85: =IFERROR(IF(B85="","",'Backend Calcs Standard'!P86),"") ->  | B85: =IFERROR(IF(C85="","",(IF('Backend Calcs Standard'!$A$12=1,'Backend Calcs Standard'!S86,(('Backend Calcs Standard'!S86)*0.0283168)))),"") ->  | C85: =IFERROR(IF(D85="","",(IF('Backend Calcs Standard'!$A$12=1,'Backend Calcs Standard'!T86,(('Backend Calcs Standard'!T86)*0.0283168)))),"") ->  | D85: =IFERROR(IF(E85="","",(IF('Backend Calcs Standard'!$A$12=1,'Backend Calcs Standard'!U86,(('Backend Calcs Standard'!U86)*0.0283168)))),"") ->  | E85: =IFERROR(IF(F85="","",(IF('Backend Calcs Standard'!$A$12=1,'Backend Calcs Standard'!V86,(('Backend Calcs Standard'!V86)*0.0283168)))),"") ->  | F85: =IF(I85="","",(IF('Backend Calcs Standard'!$A$12=1,'Backend Calcs Standard'!W86,('Backend Calcs Standard'!W86*0.0283168)))) ->  | H85: =IF('Backend Calcs Standard'!$A$12=1,'Backend Calcs Standard'!X86,('Backend Calcs Standard'!X86*0.0283168)) ->  | I85: =IFERROR(IF(H85="","",(IF('Backend Calcs Standard'!$A$12=1,'Backend Calcs Standard'!Y86,'Backend Calcs Standard'!Y86*0.0283168))),"") ->  | J85: =IF(A85="","",IF('Backend Calcs Standard'!$A$12=1,'Backend Calcs Standard'!Z86,'Backend Calcs Standard'!O86)) -> 
A86: =IFERROR(IF(B86="","",'Backend Calcs Standard'!P87),"") ->  | B86: =IFERROR(IF(C86="","",(IF('Backend Calcs Standard'!$A$12=1,'Backend Calcs Standard'!S87,(('Backend Calcs Standard'!S87)*0.0283168)))),"") ->  | C86: =IFERROR(IF(D86="","",(IF('Backend Calcs Standard'!$A$12=1,'Backend Calcs Standard'!T87,(('Backend Calcs Standard'!T87)*0.0283168)))),"") ->  | D86: =IFERROR(IF(E86="","",(IF('Backend Calcs Standard'!$A$12=1,'Backend Calcs Standard'!U87,(('Backend Calcs Standard'!U87)*0.0283168)))),"") ->  | E86: =IFERROR(IF(F86="","",(IF('Backend Calcs Standard'!$A$12=1,'Backend Calcs Standard'!V87,(('Backend Calcs Standard'!V87)*0.0283168)))),"") ->  | F86: =IF(I86="","",(IF('Backend Calcs Standard'!$A$12=1,'Backend Calcs Standard'!W87,('Backend Calcs Standard'!W87*0.0283168)))) ->  | H86: =IF('Backend Calcs Standard'!$A$12=1,'Backend Calcs Standard'!X87,('Backend Calcs Standard'!X87*0.0283168)) ->  | I86: =IFERROR(IF(H86="","",(IF('Backend Calcs Standard'!$A$12=1,'Backend Calcs Standard'!Y87,'Backend Calcs Standard'!Y87*0.0283168))),"") ->  | J86: =IF(A86="","",IF('Backend Calcs Standard'!$A$12=1,'Backend Calcs Standard'!Z87,'Backend Calcs Standard'!O87)) -> 
A87: =IFERROR(IF(B87="","",'Backend Calcs Standard'!P88),"") ->  | B87: =IFERROR(IF(C87="","",(IF('Backend Calcs Standard'!$A$12=1,'Backend Calcs Standard'!S88,(('Backend Calcs Standard'!S88)*0.0283168)))),"") ->  | C87: =IFERROR(IF(D87="","",(IF('Backend Calcs Standard'!$A$12=1,'Backend Calcs Standard'!T88,(('Backend Calcs Standard'!T88)*0.0283168)))),"") ->  | D87: =IFERROR(IF(E87="","",(IF('Backend Calcs Standard'!$A$12=1,'Backend Calcs Standard'!U88,(('Backend Calcs Standard'!U88)*0.0283168)))),"") ->  | E87: =IFERROR(IF(F87="","",(IF('Backend Calcs Standard'!$A$12=1,'Backend Calcs Standard'!V88,(('Backend Calcs Standard'!V88)*0.0283168)))),"") ->  | F87: =IF(I87="","",(IF('Backend Calcs Standard'!$A$12=1,'Backend Calcs Standard'!W88,('Backend Calcs Standard'!W88*0.0283168)))) ->  | H87: =IF('Backend Calcs Standard'!$A$12=1,'Backend Calcs Standard'!X88,('Backend Calcs Standard'!X88*0.0283168)) ->  | I87: =IFERROR(IF(H87="","",(IF('Backend Calcs Standard'!$A$12=1,'Backend Calcs Standard'!Y88,'Backend Calcs Standard'!Y88*0.0283168))),"") ->  | J87: =IF(A87="","",IF('Backend Calcs Standard'!$A$12=1,'Backend Calcs Standard'!Z88,'Backend Calcs Standard'!O88)) -> 
A88: =IFERROR(IF(B88="","",'Backend Calcs Standard'!P89),"") ->  | B88: =IFERROR(IF(C88="","",(IF('Backend Calcs Standard'!$A$12=1,'Backend Calcs Standard'!S89,(('Backend Calcs Standard'!S89)*0.0283168)))),"") ->  | C88: =IFERROR(IF(D88="","",(IF('Backend Calcs Standard'!$A$12=1,'Backend Calcs Standard'!T89,(('Backend Calcs Standard'!T89)*0.0283168)))),"") ->  | D88: =IFERROR(IF(E88="","",(IF('Backend Calcs Standard'!$A$12=1,'Backend Calcs Standard'!U89,(('Backend Calcs Standard'!U89)*0.0283168)))),"") ->  | E88: =IFERROR(IF(F88="","",(IF('Backend Calcs Standard'!$A$12=1,'Backend Calcs Standard'!V89,(('Backend Calcs Standard'!V89)*0.0283168)))),"") ->  | F88: =IF(I88="","",(IF('Backend Calcs Standard'!$A$12=1,'Backend Calcs Standard'!W89,('Backend Calcs Standard'!W89*0.0283168)))) ->  | H88: =IF('Backend Calcs Standard'!$A$12=1,'Backend Calcs Standard'!X89,('Backend Calcs Standard'!X89*0.0283168)) ->  | I88: =IFERROR(IF(H88="","",(IF('Backend Calcs Standard'!$A$12=1,'Backend Calcs Standard'!Y89,'Backend Calcs Standard'!Y89*0.0283168))),"") ->  | J88: =IF(A88="","",IF('Backend Calcs Standard'!$A$12=1,'Backend Calcs Standard'!Z89,'Backend Calcs Standard'!O89)) -> 
A89: =IFERROR(IF(B89="","",'Backend Calcs Standard'!P90),"") ->  | B89: =IFERROR(IF(C89="","",(IF('Backend Calcs Standard'!$A$12=1,'Backend Calcs Standard'!S90,(('Backend Calcs Standard'!S90)*0.0283168)))),"") ->  | C89: =IFERROR(IF(D89="","",(IF('Backend Calcs Standard'!$A$12=1,'Backend Calcs Standard'!T90,(('Backend Calcs Standard'!T90)*0.0283168)))),"") ->  | D89: =IFERROR(IF(E89="","",(IF('Backend Calcs Standard'!$A$12=1,'Backend Calcs Standard'!U90,(('Backend Calcs Standard'!U90)*0.0283168)))),"") ->  | E89: =IFERROR(IF(F89="","",(IF('Backend Calcs Standard'!$A$12=1,'Backend Calcs Standard'!V90,(('Backend Calcs Standard'!V90)*0.0283168)))),"") ->  | F89: =IF(I89="","",(IF('Backend Calcs Standard'!$A$12=1,'Backend Calcs Standard'!W90,('Backend Calcs Standard'!W90*0.0283168)))) ->  | H89: =IF('Backend Calcs Standard'!$A$12=1,'Backend Calcs Standard'!X90,('Backend Calcs Standard'!X90*0.0283168)) ->  | I89: =IFERROR(IF(H89="","",(IF('Backend Calcs Standard'!$A$12=1,'Backend Calcs Standard'!Y90,'Backend Calcs Standard'!Y90*0.0283168))),"") ->  | J89: =IF(A89="","",IF('Backend Calcs Standard'!$A$12=1,'Backend Calcs Standard'!Z90,'Backend Calcs Standard'!O90)) -> 
A90: =IFERROR(IF(B90="","",'Backend Calcs Standard'!P91),"") ->  | B90: =IFERROR(IF(C90="","",(IF('Backend Calcs Standard'!$A$12=1,'Backend Calcs Standard'!S91,(('Backend Calcs Standard'!S91)*0.0283168)))),"") ->  | C90: =IFERROR(IF(D90="","",(IF('Backend Calcs Standard'!$A$12=1,'Backend Calcs Standard'!T91,(('Backend Calcs Standard'!T91)*0.0283168)))),"") ->  | D90: =IFERROR(IF(E90="","",(IF('Backend Calcs Standard'!$A$12=1,'Backend Calcs Standard'!U91,(('Backend Calcs Standard'!U91)*0.0283168)))),"") ->  | E90: =IFERROR(IF(F90="","",(IF('Backend Calcs Standard'!$A$12=1,'Backend Calcs Standard'!V91,(('Backend Calcs Standard'!V91)*0.0283168)))),"") ->  | F90: =IF(I90="","",(IF('Backend Calcs Standard'!$A$12=1,'Backend Calcs Standard'!W91,('Backend Calcs Standard'!W91*0.0283168)))) ->  | H90: =IF('Backend Calcs Standard'!$A$12=1,'Backend Calcs Standard'!X91,('Backend Calcs Standard'!X91*0.0283168)) ->  | I90: =IFERROR(IF(H90="","",(IF('Backend Calcs Standard'!$A$12=1,'Backend Calcs Standard'!Y91,'Backend Calcs Standard'!Y91*0.0283168))),"") ->  | J90: =IF(A90="","",IF('Backend Calcs Standard'!$A$12=1,'Backend Calcs Standard'!Z91,'Backend Calcs Standard'!O91)) -> 
A91: =IFERROR(IF(B91="","",'Backend Calcs Standard'!P92),"") ->  | B91: =IFERROR(IF(C91="","",(IF('Backend Calcs Standard'!$A$12=1,'Backend Calcs Standard'!S92,(('Backend Calcs Standard'!S92)*0.0283168)))),"") ->  | C91: =IFERROR(IF(D91="","",(IF('Backend Calcs Standard'!$A$12=1,'Backend Calcs Standard'!T92,(('Backend Calcs Standard'!T92)*0.0283168)))),"") ->  | D91: =IFERROR(IF(E91="","",(IF('Backend Calcs Standard'!$A$12=1,'Backend Calcs Standard'!U92,(('Backend Calcs Standard'!U92)*0.0283168)))),"") ->  | E91: =IFERROR(IF(F91="","",(IF('Backend Calcs Standard'!$A$12=1,'Backend Calcs Standard'!V92,(('Backend Calcs Standard'!V92)*0.0283168)))),"") ->  | F91: =IF(I91="","",(IF('Backend Calcs Standard'!$A$12=1,'Backend Calcs Standard'!W92,('Backend Calcs Standard'!W92*0.0283168)))) ->  | H91: =IF('Backend Calcs Standard'!$A$12=1,'Backend Calcs Standard'!X92,('Backend Calcs Standard'!X92*0.0283168)) ->  | I91: =IFERROR(IF(H91="","",(IF('Backend Calcs Standard'!$A$12=1,'Backend Calcs Standard'!Y92,'Backend Calcs Standard'!Y92*0.0283168))),"") ->  | J91: =IF(A91="","",IF('Backend Calcs Standard'!$A$12=1,'Backend Calcs Standard'!Z92,'Backend Calcs Standard'!O92)) -> 
A92: =IFERROR(IF(B92="","",'Backend Calcs Standard'!P93),"") ->  | B92: =IFERROR(IF(C92="","",(IF('Backend Calcs Standard'!$A$12=1,'Backend Calcs Standard'!S93,(('Backend Calcs Standard'!S93)*0.0283168)))),"") ->  | C92: =IFERROR(IF(D92="","",(IF('Backend Calcs Standard'!$A$12=1,'Backend Calcs Standard'!T93,(('Backend Calcs Standard'!T93)*0.0283168)))),"") ->  | D92: =IFERROR(IF(E92="","",(IF('Backend Calcs Standard'!$A$12=1,'Backend Calcs Standard'!U93,(('Backend Calcs Standard'!U93)*0.0283168)))),"") ->  | E92: =IFERROR(IF(F92="","",(IF('Backend Calcs Standard'!$A$12=1,'Backend Calcs Standard'!V93,(('Backend Calcs Standard'!V93)*0.0283168)))),"") ->  | F92: =IF(I92="","",(IF('Backend Calcs Standard'!$A$12=1,'Backend Calcs Standard'!W93,('Backend Calcs Standard'!W93*0.0283168)))) ->  | H92: =IF('Backend Calcs Standard'!$A$12=1,'Backend Calcs Standard'!X93,('Backend Calcs Standard'!X93*0.0283168)) ->  | I92: =IFERROR(IF(H92="","",(IF('Backend Calcs Standard'!$A$12=1,'Backend Calcs Standard'!Y93,'Backend Calcs Standard'!Y93*0.0283168))),"") ->  | J92: =IF(A92="","",IF('Backend Calcs Standard'!$A$12=1,'Backend Calcs Standard'!Z93,'Backend Calcs Standard'!O93)) -> 
A93: =IFERROR(IF(B93="","",'Backend Calcs Standard'!P94),"") ->  | B93: =IFERROR(IF(C93="","",(IF('Backend Calcs Standard'!$A$12=1,'Backend Calcs Standard'!S94,(('Backend Calcs Standard'!S94)*0.0283168)))),"") ->  | C93: =IFERROR(IF(D93="","",(IF('Backend Calcs Standard'!$A$12=1,'Backend Calcs Standard'!T94,(('Backend Calcs Standard'!T94)*0.0283168)))),"") ->  | D93: =IFERROR(IF(E93="","",(IF('Backend Calcs Standard'!$A$12=1,'Backend Calcs Standard'!U94,(('Backend Calcs Standard'!U94)*0.0283168)))),"") ->  | E93: =IFERROR(IF(F93="","",(IF('Backend Calcs Standard'!$A$12=1,'Backend Calcs Standard'!V94,(('Backend Calcs Standard'!V94)*0.0283168)))),"") ->  | F93: =IF(I93="","",(IF('Backend Calcs Standard'!$A$12=1,'Backend Calcs Standard'!W94,('Backend Calcs Standard'!W94*0.0283168)))) ->  | H93: =IF('Backend Calcs Standard'!$A$12=1,'Backend Calcs Standard'!X94,('Backend Calcs Standard'!X94*0.0283168)) ->  | I93: =IFERROR(IF(H93="","",(IF('Backend Calcs Standard'!$A$12=1,'Backend Calcs Standard'!Y94,'Backend Calcs Standard'!Y94*0.0283168))),"") ->  | J93: =IF(A93="","",IF('Backend Calcs Standard'!$A$12=1,'Backend Calcs Standard'!Z94,'Backend Calcs Standard'!O94)) -> 
A94: =IFERROR(IF(B94="","",'Backend Calcs Standard'!P95),"") ->  | B94: =IFERROR(IF(C94="","",(IF('Backend Calcs Standard'!$A$12=1,'Backend Calcs Standard'!S95,(('Backend Calcs Standard'!S95)*0.0283168)))),"") ->  | C94: =IFERROR(IF(D94="","",(IF('Backend Calcs Standard'!$A$12=1,'Backend Calcs Standard'!T95,(('Backend Calcs Standard'!T95)*0.0283168)))),"") ->  | D94: =IFERROR(IF(E94="","",(IF('Backend Calcs Standard'!$A$12=1,'Backend Calcs Standard'!U95,(('Backend Calcs Standard'!U95)*0.0283168)))),"") ->  | E94: =IFERROR(IF(F94="","",(IF('Backend Calcs Standard'!$A$12=1,'Backend Calcs Standard'!V95,(('Backend Calcs Standard'!V95)*0.0283168)))),"") ->  | F94: =IF(I94="","",(IF('Backend Calcs Standard'!$A$12=1,'Backend Calcs Standard'!W95,('Backend Calcs Standard'!W95*0.0283168)))) ->  | H94: =IF('Backend Calcs Standard'!$A$12=1,'Backend Calcs Standard'!X95,('Backend Calcs Standard'!X95*0.0283168)) ->  | I94: =IFERROR(IF(H94="","",(IF('Backend Calcs Standard'!$A$12=1,'Backend Calcs Standard'!Y95,'Backend Calcs Standard'!Y95*0.0283168))),"") ->  | J94: =IF(A94="","",IF('Backend Calcs Standard'!$A$12=1,'Backend Calcs Standard'!Z95,'Backend Calcs Standard'!O95)) -> 
A95: =IFERROR(IF(B95="","",'Backend Calcs Standard'!P96),"") ->  | B95: =IFERROR(IF(C95="","",(IF('Backend Calcs Standard'!$A$12=1,'Backend Calcs Standard'!S96,(('Backend Calcs Standard'!S96)*0.0283168)))),"") ->  | C95: =IFERROR(IF(D95="","",(IF('Backend Calcs Standard'!$A$12=1,'Backend Calcs Standard'!T96,(('Backend Calcs Standard'!T96)*0.0283168)))),"") ->  | D95: =IFERROR(IF(E95="","",(IF('Backend Calcs Standard'!$A$12=1,'Backend Calcs Standard'!U96,(('Backend Calcs Standard'!U96)*0.0283168)))),"") ->  | E95: =IFERROR(IF(F95="","",(IF('Backend Calcs Standard'!$A$12=1,'Backend Calcs Standard'!V96,(('Backend Calcs Standard'!V96)*0.0283168)))),"") ->  | F95: =IF(I95="","",(IF('Backend Calcs Standard'!$A$12=1,'Backend Calcs Standard'!W96,('Backend Calcs Standard'!W96*0.0283168)))) ->  | H95: =IF('Backend Calcs Standard'!$A$12=1,'Backend Calcs Standard'!X96,('Backend Calcs Standard'!X96*0.0283168)) ->  | I95: =IFERROR(IF(H95="","",(IF('Backend Calcs Standard'!$A$12=1,'Backend Calcs Standard'!Y96,'Backend Calcs Standard'!Y96*0.0283168))),"") ->  | J95: =IF(A95="","",IF('Backend Calcs Standard'!$A$12=1,'Backend Calcs Standard'!Z96,'Backend Calcs Standard'!O96)) -> 
A96: =IFERROR(IF(B96="","",'Backend Calcs Standard'!P97),"") ->  | B96: =IFERROR(IF(C96="","",(IF('Backend Calcs Standard'!$A$12=1,'Backend Calcs Standard'!S97,(('Backend Calcs Standard'!S97)*0.0283168)))),"") ->  | C96: =IFERROR(IF(D96="","",(IF('Backend Calcs Standard'!$A$12=1,'Backend Calcs Standard'!T97,(('Backend Calcs Standard'!T97)*0.0283168)))),"") ->  | D96: =IFERROR(IF(E96="","",(IF('Backend Calcs Standard'!$A$12=1,'Backend Calcs Standard'!U97,(('Backend Calcs Standard'!U97)*0.0283168)))),"") ->  | E96: =IFERROR(IF(F96="","",(IF('Backend Calcs Standard'!$A$12=1,'Backend Calcs Standard'!V97,(('Backend Calcs Standard'!V97)*0.0283168)))),"") ->  | F96: =IF(I96="","",(IF('Backend Calcs Standard'!$A$12=1,'Backend Calcs Standard'!W97,('Backend Calcs Standard'!W97*0.0283168)))) ->  | H96: =IF('Backend Calcs Standard'!$A$12=1,'Backend Calcs Standard'!X97,('Backend Calcs Standard'!X97*0.0283168)) ->  | I96: =IFERROR(IF(H96="","",(IF('Backend Calcs Standard'!$A$12=1,'Backend Calcs Standard'!Y97,'Backend Calcs Standard'!Y97*0.0283168))),"") ->  | J96: =IF(A96="","",IF('Backend Calcs Standard'!$A$12=1,'Backend Calcs Standard'!Z97,'Backend Calcs Standard'!O97)) -> 
A97: =IFERROR(IF(B97="","",'Backend Calcs Standard'!P98),"") ->  | B97: =IFERROR(IF(C97="","",(IF('Backend Calcs Standard'!$A$12=1,'Backend Calcs Standard'!S98,(('Backend Calcs Standard'!S98)*0.0283168)))),"") ->  | C97: =IFERROR(IF(D97="","",(IF('Backend Calcs Standard'!$A$12=1,'Backend Calcs Standard'!T98,(('Backend Calcs Standard'!T98)*0.0283168)))),"") ->  | D97: =IFERROR(IF(E97="","",(IF('Backend Calcs Standard'!$A$12=1,'Backend Calcs Standard'!U98,(('Backend Calcs Standard'!U98)*0.0283168)))),"") ->  | E97: =IFERROR(IF(F97="","",(IF('Backend Calcs Standard'!$A$12=1,'Backend Calcs Standard'!V98,(('Backend Calcs Standard'!V98)*0.0283168)))),"") ->  | F97: =IF(I97="","",(IF('Backend Calcs Standard'!$A$12=1,'Backend Calcs Standard'!W98,('Backend Calcs Standard'!W98*0.0283168)))) ->  | H97: =IF('Backend Calcs Standard'!$A$12=1,'Backend Calcs Standard'!X98,('Backend Calcs Standard'!X98*0.0283168)) ->  | I97: =IFERROR(IF(H97="","",(IF('Backend Calcs Standard'!$A$12=1,'Backend Calcs Standard'!Y98,'Backend Calcs Standard'!Y98*0.0283168))),"") ->  | J97: =IF(A97="","",IF('Backend Calcs Standard'!$A$12=1,'Backend Calcs Standard'!Z98,'Backend Calcs Standard'!O98)) -> 
A98: =IFERROR(IF(B98="","",'Backend Calcs Standard'!P99),"") ->  | B98: =IFERROR(IF(C98="","",(IF('Backend Calcs Standard'!$A$12=1,'Backend Calcs Standard'!S99,(('Backend Calcs Standard'!S99)*0.0283168)))),"") ->  | C98: =IFERROR(IF(D98="","",(IF('Backend Calcs Standard'!$A$12=1,'Backend Calcs Standard'!T99,(('Backend Calcs Standard'!T99)*0.0283168)))),"") ->  | D98: =IFERROR(IF(E98="","",(IF('Backend Calcs Standard'!$A$12=1,'Backend Calcs Standard'!U99,(('Backend Calcs Standard'!U99)*0.0283168)))),"") ->  | E98: =IFERROR(IF(F98="","",(IF('Backend Calcs Standard'!$A$12=1,'Backend Calcs Standard'!V99,(('Backend Calcs Standard'!V99)*0.0283168)))),"") ->  | F98: =IF(I98="","",(IF('Backend Calcs Standard'!$A$12=1,'Backend Calcs Standard'!W99,('Backend Calcs Standard'!W99*0.0283168)))) ->  | H98: =IF('Backend Calcs Standard'!$A$12=1,'Backend Calcs Standard'!X99,('Backend Calcs Standard'!X99*0.0283168)) ->  | I98: =IFERROR(IF(H98="","",(IF('Backend Calcs Standard'!$A$12=1,'Backend Calcs Standard'!Y99,'Backend Calcs Standard'!Y99*0.0283168))),"") ->  | J98: =IF(A98="","",IF('Backend Calcs Standard'!$A$12=1,'Backend Calcs Standard'!Z99,'Backend Calcs Standard'!O99)) -> 
A99: =IFERROR(IF(B99="","",'Backend Calcs Standard'!P100),"") ->  | B99: =IFERROR(IF(C99="","",(IF('Backend Calcs Standard'!$A$12=1,'Backend Calcs Standard'!S100,(('Backend Calcs Standard'!S100)*0.0283168)))),"") ->  | C99: =IFERROR(IF(D99="","",(IF('Backend Calcs Standard'!$A$12=1,'Backend Calcs Standard'!T100,(('Backend Calcs Standard'!T100)*0.0283168)))),"") ->  | D99: =IFERROR(IF(E99="","",(IF('Backend Calcs Standard'!$A$12=1,'Backend Calcs Standard'!U100,(('Backend Calcs Standard'!U100)*0.0283168)))),"") ->  | E99: =IFERROR(IF(F99="","",(IF('Backend Calcs Standard'!$A$12=1,'Backend Calcs Standard'!V100,(('Backend Calcs Standard'!V100)*0.0283168)))),"") ->  | F99: =IF(I99="","",(IF('Backend Calcs Standard'!$A$12=1,'Backend Calcs Standard'!W100,('Backend Calcs Standard'!W100*0.0283168)))) ->  | H99: =IF('Backend Calcs Standard'!$A$12=1,'Backend Calcs Standard'!X100,('Backend Calcs Standard'!X100*0.0283168)) ->  | I99: =IFERROR(IF(H99="","",(IF('Backend Calcs Standard'!$A$12=1,'Backend Calcs Standard'!Y100,'Backend Calcs Standard'!Y100*0.0283168))),"") ->  | J99: =IF(A99="","",IF('Backend Calcs Standard'!$A$12=1,'Backend Calcs Standard'!Z100,'Backend Calcs Standard'!O100)) -> 
A100: =IFERROR(IF(B100="","",'Backend Calcs Standard'!P101),"") ->  | B100: =IFERROR(IF(C100="","",(IF('Backend Calcs Standard'!$A$12=1,'Backend Calcs Standard'!S101,(('Backend Calcs Standard'!S101)*0.0283168)))),"") ->  | C100: =IFERROR(IF(D100="","",(IF('Backend Calcs Standard'!$A$12=1,'Backend Calcs Standard'!T101,(('Backend Calcs Standard'!T101)*0.0283168)))),"") ->  | D100: =IFERROR(IF(E100="","",(IF('Backend Calcs Standard'!$A$12=1,'Backend Calcs Standard'!U101,(('Backend Calcs Standard'!U101)*0.0283168)))),"") ->  | E100: =IFERROR(IF(F100="","",(IF('Backend Calcs Standard'!$A$12=1,'Backend Calcs Standard'!V101,(('Backend Calcs Standard'!V101)*0.0283168)))),"") ->  | F100: =IF(I100="","",(IF('Backend Calcs Standard'!$A$12=1,'Backend Calcs Standard'!W101,('Backend Calcs Standard'!W101*0.0283168)))) ->  | H100: =IF('Backend Calcs Standard'!$A$12=1,'Backend Calcs Standard'!X101,('Backend Calcs Standard'!X101*0.0283168)) ->  | I100: =IFERROR(IF(H100="","",(IF('Backend Calcs Standard'!$A$12=1,'Backend Calcs Standard'!Y101,'Backend Calcs Standard'!Y101*0.0283168))),"") ->  | J100: =IF(A100="","",IF('Backend Calcs Standard'!$A$12=1,'Backend Calcs Standard'!Z101,'Backend Calcs Standard'!O101)) -> 
A101: =IFERROR(IF(B101="","",'Backend Calcs Standard'!P102),"") ->  | B101: =IFERROR(IF(C101="","",(IF('Backend Calcs Standard'!$A$12=1,'Backend Calcs Standard'!S102,(('Backend Calcs Standard'!S102)*0.0283168)))),"") ->  | C101: =IFERROR(IF(D101="","",(IF('Backend Calcs Standard'!$A$12=1,'Backend Calcs Standard'!T102,(('Backend Calcs Standard'!T102)*0.0283168)))),"") ->  | D101: =IFERROR(IF(E101="","",(IF('Backend Calcs Standard'!$A$12=1,'Backend Calcs Standard'!U102,(('Backend Calcs Standard'!U102)*0.0283168)))),"") ->  | E101: =IFERROR(IF(F101="","",(IF('Backend Calcs Standard'!$A$12=1,'Backend Calcs Standard'!V102,(('Backend Calcs Standard'!V102)*0.0283168)))),"") ->  | F101: =IF(I101="","",(IF('Backend Calcs Standard'!$A$12=1,'Backend Calcs Standard'!W102,('Backend Calcs Standard'!W102*0.0283168)))) ->  | H101: =IF('Backend Calcs Standard'!$A$12=1,'Backend Calcs Standard'!X102,('Backend Calcs Standard'!X102*0.0283168)) ->  | I101: =IFERROR(IF(H101="","",(IF('Backend Calcs Standard'!$A$12=1,'Backend Calcs Standard'!Y102,'Backend Calcs Standard'!Y102*0.0283168))),"") ->  | J101: =IF(A101="","",IF('Backend Calcs Standard'!$A$12=1,'Backend Calcs Standard'!Z102,'Backend Calcs Standard'!O102)) -> 
A102: =IFERROR(IF(B102="","",'Backend Calcs Standard'!P103),"") ->  | B102: =IFERROR(IF(C102="","",(IF('Backend Calcs Standard'!$A$12=1,'Backend Calcs Standard'!S103,(('Backend Calcs Standard'!S103)*0.0283168)))),"") ->  | C102: =IFERROR(IF(D102="","",(IF('Backend Calcs Standard'!$A$12=1,'Backend Calcs Standard'!T103,(('Backend Calcs Standard'!T103)*0.0283168)))),"") ->  | D102: =IFERROR(IF(E102="","",(IF('Backend Calcs Standard'!$A$12=1,'Backend Calcs Standard'!U103,(('Backend Calcs Standard'!U103)*0.0283168)))),"") ->  | E102: =IFERROR(IF(F102="","",(IF('Backend Calcs Standard'!$A$12=1,'Backend Calcs Standard'!V103,(('Backend Calcs Standard'!V103)*0.0283168)))),"") ->  | F102: =IF(I102="","",(IF('Backend Calcs Standard'!$A$12=1,'Backend Calcs Standard'!W103,('Backend Calcs Standard'!W103*0.0283168)))) ->  | H102: =IF('Backend Calcs Standard'!$A$12=1,'Backend Calcs Standard'!X103,('Backend Calcs Standard'!X103*0.0283168)) ->  | I102: =IFERROR(IF(H102="","",(IF('Backend Calcs Standard'!$A$12=1,'Backend Calcs Standard'!Y103,'Backend Calcs Standard'!Y103*0.0283168))),"") ->  | J102: =IF(A102="","",IF('Backend Calcs Standard'!$A$12=1,'Backend Calcs Standard'!Z103,'Backend Calcs Standard'!O103)) -> 
A103: =IFERROR(IF(B103="","",'Backend Calcs Standard'!P104),"") ->  | B103: =IFERROR(IF(C103="","",(IF('Backend Calcs Standard'!$A$12=1,'Backend Calcs Standard'!S104,(('Backend Calcs Standard'!S104)*0.0283168)))),"") ->  | C103: =IFERROR(IF(D103="","",(IF('Backend Calcs Standard'!$A$12=1,'Backend Calcs Standard'!T104,(('Backend Calcs Standard'!T104)*0.0283168)))),"") ->  | D103: =IFERROR(IF(E103="","",(IF('Backend Calcs Standard'!$A$12=1,'Backend Calcs Standard'!U104,(('Backend Calcs Standard'!U104)*0.0283168)))),"") ->  | E103: =IFERROR(IF(F103="","",(IF('Backend Calcs Standard'!$A$12=1,'Backend Calcs Standard'!V104,(('Backend Calcs Standard'!V104)*0.0283168)))),"") ->  | F103: =IF(I103="","",(IF('Backend Calcs Standard'!$A$12=1,'Backend Calcs Standard'!W104,('Backend Calcs Standard'!W104*0.0283168)))) ->  | H103: =IF('Backend Calcs Standard'!$A$12=1,'Backend Calcs Standard'!X104,('Backend Calcs Standard'!X104*0.0283168)) ->  | I103: =IFERROR(IF(H103="","",(IF('Backend Calcs Standard'!$A$12=1,'Backend Calcs Standard'!Y104,'Backend Calcs Standard'!Y104*0.0283168))),"") ->  | J103: =IF(A103="","",IF('Backend Calcs Standard'!$A$12=1,'Backend Calcs Standard'!Z104,'Backend Calcs Standard'!O104)) -> 
A104: =IFERROR(IF(B104="","",'Backend Calcs Standard'!P105),"") ->  | B104: =IFERROR(IF(C104="","",(IF('Backend Calcs Standard'!$A$12=1,'Backend Calcs Standard'!S105,(('Backend Calcs Standard'!S105)*0.0283168)))),"") ->  | C104: =IFERROR(IF(D104="","",(IF('Backend Calcs Standard'!$A$12=1,'Backend Calcs Standard'!T105,(('Backend Calcs Standard'!T105)*0.0283168)))),"") ->  | D104: =IFERROR(IF(E104="","",(IF('Backend Calcs Standard'!$A$12=1,'Backend Calcs Standard'!U105,(('Backend Calcs Standard'!U105)*0.0283168)))),"") ->  | E104: =IFERROR(IF(F104="","",(IF('Backend Calcs Standard'!$A$12=1,'Backend Calcs Standard'!V105,(('Backend Calcs Standard'!V105)*0.0283168)))),"") ->  | F104: =IF(I104="","",(IF('Backend Calcs Standard'!$A$12=1,'Backend Calcs Standard'!W105,('Backend Calcs Standard'!W105*0.0283168)))) ->  | H104: =IF('Backend Calcs Standard'!$A$12=1,'Backend Calcs Standard'!X105,('Backend Calcs Standard'!X105*0.0283168)) ->  | I104: =IFERROR(IF(H104="","",(IF('Backend Calcs Standard'!$A$12=1,'Backend Calcs Standard'!Y105,'Backend Calcs Standard'!Y105*0.0283168))),"") ->  | J104: =IF(A104="","",IF('Backend Calcs Standard'!$A$12=1,'Backend Calcs Standard'!Z105,'Backend Calcs Standard'!O105)) -> 
A105: =IFERROR(IF(B105="","",'Backend Calcs Standard'!P106),"") ->  | B105: =IFERROR(IF(C105="","",(IF('Backend Calcs Standard'!$A$12=1,'Backend Calcs Standard'!S106,(('Backend Calcs Standard'!S106)*0.0283168)))),"") ->  | C105: =IFERROR(IF(D105="","",(IF('Backend Calcs Standard'!$A$12=1,'Backend Calcs Standard'!T106,(('Backend Calcs Standard'!T106)*0.0283168)))),"") ->  | D105: =IFERROR(IF(E105="","",(IF('Backend Calcs Standard'!$A$12=1,'Backend Calcs Standard'!U106,(('Backend Calcs Standard'!U106)*0.0283168)))),"") ->  | E105: =IFERROR(IF(F105="","",(IF('Backend Calcs Standard'!$A$12=1,'Backend Calcs Standard'!V106,(('Backend Calcs Standard'!V106)*0.0283168)))),"") ->  | F105: =IF(I105="","",(IF('Backend Calcs Standard'!$A$12=1,'Backend Calcs Standard'!W106,('Backend Calcs Standard'!W106*0.0283168)))) ->  | H105: =IF('Backend Calcs Standard'!$A$12=1,'Backend Calcs Standard'!X106,('Backend Calcs Standard'!X106*0.0283168)) ->  | I105: =IFERROR(IF(H105="","",(IF('Backend Calcs Standard'!$A$12=1,'Backend Calcs Standard'!Y106,'Backend Calcs Standard'!Y106*0.0283168))),"") ->  | J105: =IF(A105="","",IF('Backend Calcs Standard'!$A$12=1,'Backend Calcs Standard'!Z106,'Backend Calcs Standard'!O106)) -> 
A106: =IFERROR(IF(B106="","",'Backend Calcs Standard'!P107),"") ->  | B106: =IFERROR(IF(C106="","",(IF('Backend Calcs Standard'!$A$12=1,'Backend Calcs Standard'!S107,(('Backend Calcs Standard'!S107)*0.0283168)))),"") ->  | C106: =IFERROR(IF(D106="","",(IF('Backend Calcs Standard'!$A$12=1,'Backend Calcs Standard'!T107,(('Backend Calcs Standard'!T107)*0.0283168)))),"") ->  | D106: =IFERROR(IF(E106="","",(IF('Backend Calcs Standard'!$A$12=1,'Backend Calcs Standard'!U107,(('Backend Calcs Standard'!U107)*0.0283168)))),"") ->  | E106: =IFERROR(IF(F106="","",(IF('Backend Calcs Standard'!$A$12=1,'Backend Calcs Standard'!V107,(('Backend Calcs Standard'!V107)*0.0283168)))),"") ->  | F106: =IF(I106="","",(IF('Backend Calcs Standard'!$A$12=1,'Backend Calcs Standard'!W107,('Backend Calcs Standard'!W107*0.0283168)))) ->  | H106: =IF('Backend Calcs Standard'!$A$12=1,'Backend Calcs Standard'!X107,('Backend Calcs Standard'!X107*0.0283168)) ->  | I106: =IFERROR(IF(H106="","",(IF('Backend Calcs Standard'!$A$12=1,'Backend Calcs Standard'!Y107,'Backend Calcs Standard'!Y107*0.0283168))),"") ->  | J106: =IF(A106="","",IF('Backend Calcs Standard'!$A$12=1,'Backend Calcs Standard'!Z107,'Backend Calcs Standard'!O107)) -> 
A107: =IFERROR(IF(B107="","",'Backend Calcs Standard'!P108),"") ->  | B107: =IFERROR(IF(C107="","",(IF('Backend Calcs Standard'!$A$12=1,'Backend Calcs Standard'!S108,(('Backend Calcs Standard'!S108)*0.0283168)))),"") ->  | C107: =IFERROR(IF(D107="","",(IF('Backend Calcs Standard'!$A$12=1,'Backend Calcs Standard'!T108,(('Backend Calcs Standard'!T108)*0.0283168)))),"") ->  | D107: =IFERROR(IF(E107="","",(IF('Backend Calcs Standard'!$A$12=1,'Backend Calcs Standard'!U108,(('Backend Calcs Standard'!U108)*0.0283168)))),"") ->  | E107: =IFERROR(IF(F107="","",(IF('Backend Calcs Standard'!$A$12=1,'Backend Calcs Standard'!V108,(('Backend Calcs Standard'!V108)*0.0283168)))),"") ->  | F107: =IF(I107="","",(IF('Backend Calcs Standard'!$A$12=1,'Backend Calcs Standard'!W108,('Backend Calcs Standard'!W108*0.0283168)))) ->  | H107: =IF('Backend Calcs Standard'!$A$12=1,'Backend Calcs Standard'!X108,('Backend Calcs Standard'!X108*0.0283168)) ->  | I107: =IFERROR(IF(H107="","",(IF('Backend Calcs Standard'!$A$12=1,'Backend Calcs Standard'!Y108,'Backend Calcs Standard'!Y108*0.0283168))),"") ->  | J107: =IF(A107="","",IF('Backend Calcs Standard'!$A$12=1,'Backend Calcs Standard'!Z108,'Backend Calcs Standard'!O108)) -> 
A108: =IFERROR(IF(B108="","",'Backend Calcs Standard'!P109),"") ->  | B108: =IFERROR(IF(C108="","",(IF('Backend Calcs Standard'!$A$12=1,'Backend Calcs Standard'!S109,(('Backend Calcs Standard'!S109)*0.0283168)))),"") ->  | C108: =IFERROR(IF(D108="","",(IF('Backend Calcs Standard'!$A$12=1,'Backend Calcs Standard'!T109,(('Backend Calcs Standard'!T109)*0.0283168)))),"") ->  | D108: =IFERROR(IF(E108="","",(IF('Backend Calcs Standard'!$A$12=1,'Backend Calcs Standard'!U109,(('Backend Calcs Standard'!U109)*0.0283168)))),"") ->  | E108: =IFERROR(IF(F108="","",(IF('Backend Calcs Standard'!$A$12=1,'Backend Calcs Standard'!V109,(('Backend Calcs Standard'!V109)*0.0283168)))),"") ->  | F108: =IF(I108="","",(IF('Backend Calcs Standard'!$A$12=1,'Backend Calcs Standard'!W109,('Backend Calcs Standard'!W109*0.0283168)))) ->  | H108: =IF('Backend Calcs Standard'!$A$12=1,'Backend Calcs Standard'!X109,('Backend Calcs Standard'!X109*0.0283168)) ->  | I108: =IFERROR(IF(H108="","",(IF('Backend Calcs Standard'!$A$12=1,'Backend Calcs Standard'!Y109,'Backend Calcs Standard'!Y109*0.0283168))),"") ->  | J108: =IF(A108="","",IF('Backend Calcs Standard'!$A$12=1,'Backend Calcs Standard'!Z109,'Backend Calcs Standard'!O109)) -> 
A109: =IFERROR(IF(B109="","",'Backend Calcs Standard'!P110),"") ->  | B109: =IFERROR(IF(C109="","",(IF('Backend Calcs Standard'!$A$12=1,'Backend Calcs Standard'!S110,(('Backend Calcs Standard'!S110)*0.0283168)))),"") ->  | C109: =IFERROR(IF(D109="","",(IF('Backend Calcs Standard'!$A$12=1,'Backend Calcs Standard'!T110,(('Backend Calcs Standard'!T110)*0.0283168)))),"") ->  | D109: =IFERROR(IF(E109="","",(IF('Backend Calcs Standard'!$A$12=1,'Backend Calcs Standard'!U110,(('Backend Calcs Standard'!U110)*0.0283168)))),"") ->  | E109: =IFERROR(IF(F109="","",(IF('Backend Calcs Standard'!$A$12=1,'Backend Calcs Standard'!V110,(('Backend Calcs Standard'!V110)*0.0283168)))),"") ->  | F109: =IF(I109="","",(IF('Backend Calcs Standard'!$A$12=1,'Backend Calcs Standard'!W110,('Backend Calcs Standard'!W110*0.0283168)))) ->  | H109: =IF('Backend Calcs Standard'!$A$12=1,'Backend Calcs Standard'!X110,('Backend Calcs Standard'!X110*0.0283168)) ->  | I109: =IFERROR(IF(H109="","",(IF('Backend Calcs Standard'!$A$12=1,'Backend Calcs Standard'!Y110,'Backend Calcs Standard'!Y110*0.0283168))),"") ->  | J109: =IF(A109="","",IF('Backend Calcs Standard'!$A$12=1,'Backend Calcs Standard'!Z110,'Backend Calcs Standard'!O110)) -> 
A110: =IFERROR(IF(B110="","",'Backend Calcs Standard'!P111),"") ->  | B110: =IFERROR(IF(C110="","",(IF('Backend Calcs Standard'!$A$12=1,'Backend Calcs Standard'!S111,(('Backend Calcs Standard'!S111)*0.0283168)))),"") ->  | C110: =IFERROR(IF(D110="","",(IF('Backend Calcs Standard'!$A$12=1,'Backend Calcs Standard'!T111,(('Backend Calcs Standard'!T111)*0.0283168)))),"") ->  | D110: =IFERROR(IF(E110="","",(IF('Backend Calcs Standard'!$A$12=1,'Backend Calcs Standard'!U111,(('Backend Calcs Standard'!U111)*0.0283168)))),"") ->  | E110: =IFERROR(IF(F110="","",(IF('Backend Calcs Standard'!$A$12=1,'Backend Calcs Standard'!V111,(('Backend Calcs Standard'!V111)*0.0283168)))),"") ->  | F110: =IF(I110="","",(IF('Backend Calcs Standard'!$A$12=1,'Backend Calcs Standard'!W111,('Backend Calcs Standard'!W111*0.0283168)))) ->  | H110: =IF('Backend Calcs Standard'!$A$12=1,'Backend Calcs Standard'!X111,('Backend Calcs Standard'!X111*0.0283168)) ->  | I110: =IFERROR(IF(H110="","",(IF('Backend Calcs Standard'!$A$12=1,'Backend Calcs Standard'!Y111,'Backend Calcs Standard'!Y111*0.0283168))),"") ->  | J110: =IF(A110="","",IF('Backend Calcs Standard'!$A$12=1,'Backend Calcs Standard'!Z111,'Backend Calcs Standard'!O111)) -> 
A111: =IFERROR(IF(B111="","",'Backend Calcs Standard'!P112),"") ->  | B111: =IFERROR(IF(C111="","",(IF('Backend Calcs Standard'!$A$12=1,'Backend Calcs Standard'!S112,(('Backend Calcs Standard'!S112)*0.0283168)))),"") ->  | C111: =IFERROR(IF(D111="","",(IF('Backend Calcs Standard'!$A$12=1,'Backend Calcs Standard'!T112,(('Backend Calcs Standard'!T112)*0.0283168)))),"") ->  | D111: =IFERROR(IF(E111="","",(IF('Backend Calcs Standard'!$A$12=1,'Backend Calcs Standard'!U112,(('Backend Calcs Standard'!U112)*0.0283168)))),"") ->  | E111: =IFERROR(IF(F111="","",(IF('Backend Calcs Standard'!$A$12=1,'Backend Calcs Standard'!V112,(('Backend Calcs Standard'!V112)*0.0283168)))),"") ->  | F111: =IF(I111="","",(IF('Backend Calcs Standard'!$A$12=1,'Backend Calcs Standard'!W112,('Backend Calcs Standard'!W112*0.0283168)))) ->  | H111: =IF('Backend Calcs Standard'!$A$12=1,'Backend Calcs Standard'!X112,('Backend Calcs Standard'!X112*0.0283168)) ->  | I111: =IFERROR(IF(H111="","",(IF('Backend Calcs Standard'!$A$12=1,'Backend Calcs Standard'!Y112,'Backend Calcs Standard'!Y112*0.0283168))),"") ->  | J111: =IF(A111="","",IF('Backend Calcs Standard'!$A$12=1,'Backend Calcs Standard'!Z112,'Backend Calcs Standard'!O112)) -> 
A112: =IFERROR(IF(B112="","",'Backend Calcs Standard'!P113),"") ->  | B112: =IFERROR(IF(C112="","",(IF('Backend Calcs Standard'!$A$12=1,'Backend Calcs Standard'!S113,(('Backend Calcs Standard'!S113)*0.0283168)))),"") ->  | C112: =IFERROR(IF(D112="","",(IF('Backend Calcs Standard'!$A$12=1,'Backend Calcs Standard'!T113,(('Backend Calcs Standard'!T113)*0.0283168)))),"") ->  | D112: =IFERROR(IF(E112="","",(IF('Backend Calcs Standard'!$A$12=1,'Backend Calcs Standard'!U113,(('Backend Calcs Standard'!U113)*0.0283168)))),"") ->  | E112: =IFERROR(IF(F112="","",(IF('Backend Calcs Standard'!$A$12=1,'Backend Calcs Standard'!V113,(('Backend Calcs Standard'!V113)*0.0283168)))),"") ->  | F112: =IF(I112="","",(IF('Backend Calcs Standard'!$A$12=1,'Backend Calcs Standard'!W113,('Backend Calcs Standard'!W113*0.0283168)))) ->  | H112: =IF('Backend Calcs Standard'!$A$12=1,'Backend Calcs Standard'!X113,('Backend Calcs Standard'!X113*0.0283168)) ->  | I112: =IFERROR(IF(H112="","",(IF('Backend Calcs Standard'!$A$12=1,'Backend Calcs Standard'!Y113,'Backend Calcs Standard'!Y113*0.0283168))),"") ->  | J112: =IF(A112="","",IF('Backend Calcs Standard'!$A$12=1,'Backend Calcs Standard'!Z113,'Backend Calcs Standard'!O113)) -> 
A113: =IFERROR(IF(B113="","",'Backend Calcs Standard'!P114),"") ->  | B113: =IFERROR(IF(C113="","",(IF('Backend Calcs Standard'!$A$12=1,'Backend Calcs Standard'!S114,(('Backend Calcs Standard'!S114)*0.0283168)))),"") ->  | C113: =IFERROR(IF(D113="","",(IF('Backend Calcs Standard'!$A$12=1,'Backend Calcs Standard'!T114,(('Backend Calcs Standard'!T114)*0.0283168)))),"") ->  | D113: =IFERROR(IF(E113="","",(IF('Backend Calcs Standard'!$A$12=1,'Backend Calcs Standard'!U114,(('Backend Calcs Standard'!U114)*0.0283168)))),"") ->  | E113: =IFERROR(IF(F113="","",(IF('Backend Calcs Standard'!$A$12=1,'Backend Calcs Standard'!V114,(('Backend Calcs Standard'!V114)*0.0283168)))),"") ->  | F113: =IF(I113="","",(IF('Backend Calcs Standard'!$A$12=1,'Backend Calcs Standard'!W114,('Backend Calcs Standard'!W114*0.0283168)))) ->  | H113: =IF('Backend Calcs Standard'!$A$12=1,'Backend Calcs Standard'!X114,('Backend Calcs Standard'!X114*0.0283168)) ->  | I113: =IFERROR(IF(H113="","",(IF('Backend Calcs Standard'!$A$12=1,'Backend Calcs Standard'!Y114,'Backend Calcs Standard'!Y114*0.0283168))),"") ->  | J113: =IF(A113="","",IF('Backend Calcs Standard'!$A$12=1,'Backend Calcs Standard'!Z114,'Backend Calcs Standard'!O114)) -> 
A114: =IFERROR(IF(B114="","",'Backend Calcs Standard'!P115),"") ->  | B114: =IFERROR(IF(C114="","",(IF('Backend Calcs Standard'!$A$12=1,'Backend Calcs Standard'!S115,(('Backend Calcs Standard'!S115)*0.0283168)))),"") ->  | C114: =IFERROR(IF(D114="","",(IF('Backend Calcs Standard'!$A$12=1,'Backend Calcs Standard'!T115,(('Backend Calcs Standard'!T115)*0.0283168)))),"") ->  | D114: =IFERROR(IF(E114="","",(IF('Backend Calcs Standard'!$A$12=1,'Backend Calcs Standard'!U115,(('Backend Calcs Standard'!U115)*0.0283168)))),"") ->  | E114: =IFERROR(IF(F114="","",(IF('Backend Calcs Standard'!$A$12=1,'Backend Calcs Standard'!V115,(('Backend Calcs Standard'!V115)*0.0283168)))),"") ->  | F114: =IF(I114="","",(IF('Backend Calcs Standard'!$A$12=1,'Backend Calcs Standard'!W115,('Backend Calcs Standard'!W115*0.0283168)))) ->  | H114: =IF('Backend Calcs Standard'!$A$12=1,'Backend Calcs Standard'!X115,('Backend Calcs Standard'!X115*0.0283168)) ->  | I114: =IFERROR(IF(H114="","",(IF('Backend Calcs Standard'!$A$12=1,'Backend Calcs Standard'!Y115,'Backend Calcs Standard'!Y115*0.0283168))),"") ->  | J114: =IF(A114="","",IF('Backend Calcs Standard'!$A$12=1,'Backend Calcs Standard'!Z115,'Backend Calcs Standard'!O115)) -> 
A115: =IFERROR(IF(B115="","",'Backend Calcs Standard'!P116),"") ->  | B115: =IFERROR(IF(C115="","",(IF('Backend Calcs Standard'!$A$12=1,'Backend Calcs Standard'!S116,(('Backend Calcs Standard'!S116)*0.0283168)))),"") ->  | C115: =IFERROR(IF(D115="","",(IF('Backend Calcs Standard'!$A$12=1,'Backend Calcs Standard'!T116,(('Backend Calcs Standard'!T116)*0.0283168)))),"") ->  | D115: =IFERROR(IF(E115="","",(IF('Backend Calcs Standard'!$A$12=1,'Backend Calcs Standard'!U116,(('Backend Calcs Standard'!U116)*0.0283168)))),"") ->  | E115: =IFERROR(IF(F115="","",(IF('Backend Calcs Standard'!$A$12=1,'Backend Calcs Standard'!V116,(('Backend Calcs Standard'!V116)*0.0283168)))),"") ->  | F115: =IF(I115="","",(IF('Backend Calcs Standard'!$A$12=1,'Backend Calcs Standard'!W116,('Backend Calcs Standard'!W116*0.0283168)))) ->  | H115: =IF('Backend Calcs Standard'!$A$12=1,'Backend Calcs Standard'!X116,('Backend Calcs Standard'!X116*0.0283168)) ->  | I115: =IFERROR(IF(H115="","",(IF('Backend Calcs Standard'!$A$12=1,'Backend Calcs Standard'!Y116,'Backend Calcs Standard'!Y116*0.0283168))),"") ->  | J115: =IF(A115="","",IF('Backend Calcs Standard'!$A$12=1,'Backend Calcs Standard'!Z116,'Backend Calcs Standard'!O116)) -> 
A116: =IFERROR(IF(B116="","",'Backend Calcs Standard'!P117),"") ->  | B116: =IFERROR(IF(C116="","",(IF('Backend Calcs Standard'!$A$12=1,'Backend Calcs Standard'!S117,(('Backend Calcs Standard'!S117)*0.0283168)))),"") ->  | C116: =IFERROR(IF(D116="","",(IF('Backend Calcs Standard'!$A$12=1,'Backend Calcs Standard'!T117,(('Backend Calcs Standard'!T117)*0.0283168)))),"") ->  | D116: =IFERROR(IF(E116="","",(IF('Backend Calcs Standard'!$A$12=1,'Backend Calcs Standard'!U117,(('Backend Calcs Standard'!U117)*0.0283168)))),"") ->  | E116: =IFERROR(IF(F116="","",(IF('Backend Calcs Standard'!$A$12=1,'Backend Calcs Standard'!V117,(('Backend Calcs Standard'!V117)*0.0283168)))),"") ->  | F116: =IF(I116="","",(IF('Backend Calcs Standard'!$A$12=1,'Backend Calcs Standard'!W117,('Backend Calcs Standard'!W117*0.0283168)))) ->  | H116: =IF('Backend Calcs Standard'!$A$12=1,'Backend Calcs Standard'!X117,('Backend Calcs Standard'!X117*0.0283168)) ->  | I116: =IFERROR(IF(H116="","",(IF('Backend Calcs Standard'!$A$12=1,'Backend Calcs Standard'!Y117,'Backend Calcs Standard'!Y117*0.0283168))),"") ->  | J116: =IF(A116="","",IF('Backend Calcs Standard'!$A$12=1,'Backend Calcs Standard'!Z117,'Backend Calcs Standard'!O117)) -> 
A117: =IFERROR(IF(B117="","",'Backend Calcs Standard'!P118),"") ->  | B117: =IFERROR(IF(C117="","",(IF('Backend Calcs Standard'!$A$12=1,'Backend Calcs Standard'!S118,(('Backend Calcs Standard'!S118)*0.0283168)))),"") ->  | C117: =IFERROR(IF(D117="","",(IF('Backend Calcs Standard'!$A$12=1,'Backend Calcs Standard'!T118,(('Backend Calcs Standard'!T118)*0.0283168)))),"") ->  | D117: =IFERROR(IF(E117="","",(IF('Backend Calcs Standard'!$A$12=1,'Backend Calcs Standard'!U118,(('Backend Calcs Standard'!U118)*0.0283168)))),"") ->  | E117: =IFERROR(IF(F117="","",(IF('Backend Calcs Standard'!$A$12=1,'Backend Calcs Standard'!V118,(('Backend Calcs Standard'!V118)*0.0283168)))),"") ->  | F117: =IF(I117="","",(IF('Backend Calcs Standard'!$A$12=1,'Backend Calcs Standard'!W118,('Backend Calcs Standard'!W118*0.0283168)))) ->  | H117: =IF('Backend Calcs Standard'!$A$12=1,'Backend Calcs Standard'!X118,('Backend Calcs Standard'!X118*0.0283168)) ->  | I117: =IFERROR(IF(H117="","",(IF('Backend Calcs Standard'!$A$12=1,'Backend Calcs Standard'!Y118,'Backend Calcs Standard'!Y118*0.0283168))),"") ->  | J117: =IF(A117="","",IF('Backend Calcs Standard'!$A$12=1,'Backend Calcs Standard'!Z118,'Backend Calcs Standard'!O118)) -> 
A118: =IFERROR(IF(B118="","",'Backend Calcs Standard'!P119),"") ->  | B118: =IFERROR(IF(C118="","",(IF('Backend Calcs Standard'!$A$12=1,'Backend Calcs Standard'!S119,(('Backend Calcs Standard'!S119)*0.0283168)))),"") ->  | C118: =IFERROR(IF(D118="","",(IF('Backend Calcs Standard'!$A$12=1,'Backend Calcs Standard'!T119,(('Backend Calcs Standard'!T119)*0.0283168)))),"") ->  | D118: =IFERROR(IF(E118="","",(IF('Backend Calcs Standard'!$A$12=1,'Backend Calcs Standard'!U119,(('Backend Calcs Standard'!U119)*0.0283168)))),"") ->  | E118: =IFERROR(IF(F118="","",(IF('Backend Calcs Standard'!$A$12=1,'Backend Calcs Standard'!V119,(('Backend Calcs Standard'!V119)*0.0283168)))),"") ->  | F118: =IF(I118="","",(IF('Backend Calcs Standard'!$A$12=1,'Backend Calcs Standard'!W119,('Backend Calcs Standard'!W119*0.0283168)))) ->  | H118: =IF('Backend Calcs Standard'!$A$12=1,'Backend Calcs Standard'!X119,('Backend Calcs Standard'!X119*0.0283168)) ->  | I118: =IFERROR(IF(H118="","",(IF('Backend Calcs Standard'!$A$12=1,'Backend Calcs Standard'!Y119,'Backend Calcs Standard'!Y119*0.0283168))),"") ->  | J118: =IF(A118="","",IF('Backend Calcs Standard'!$A$12=1,'Backend Calcs Standard'!Z119,'Backend Calcs Standard'!O119)) -> 
A119: =IFERROR(IF(B119="","",'Backend Calcs Standard'!P120),"") ->  | B119: =IFERROR(IF(C119="","",(IF('Backend Calcs Standard'!$A$12=1,'Backend Calcs Standard'!S120,(('Backend Calcs Standard'!S120)*0.0283168)))),"") ->  | C119: =IFERROR(IF(D119="","",(IF('Backend Calcs Standard'!$A$12=1,'Backend Calcs Standard'!T120,(('Backend Calcs Standard'!T120)*0.0283168)))),"") ->  | D119: =IFERROR(IF(E119="","",(IF('Backend Calcs Standard'!$A$12=1,'Backend Calcs Standard'!U120,(('Backend Calcs Standard'!U120)*0.0283168)))),"") ->  | E119: =IFERROR(IF(F119="","",(IF('Backend Calcs Standard'!$A$12=1,'Backend Calcs Standard'!V120,(('Backend Calcs Standard'!V120)*0.0283168)))),"") ->  | F119: =IF(I119="","",(IF('Backend Calcs Standard'!$A$12=1,'Backend Calcs Standard'!W120,('Backend Calcs Standard'!W120*0.0283168)))) ->  | H119: =IF('Backend Calcs Standard'!$A$12=1,'Backend Calcs Standard'!X120,('Backend Calcs Standard'!X120*0.0283168)) ->  | I119: =IFERROR(IF(H119="","",(IF('Backend Calcs Standard'!$A$12=1,'Backend Calcs Standard'!Y120,'Backend Calcs Standard'!Y120*0.0283168))),"") ->  | J119: =IF(A119="","",IF('Backend Calcs Standard'!$A$12=1,'Backend Calcs Standard'!Z120,'Backend Calcs Standard'!O120)) -> 
A120: =IFERROR(IF(B120="","",'Backend Calcs Standard'!P121),"") ->  | B120: =IFERROR(IF(C120="","",(IF('Backend Calcs Standard'!$A$12=1,'Backend Calcs Standard'!S121,(('Backend Calcs Standard'!S121)*0.0283168)))),"") ->  | C120: =IFERROR(IF(D120="","",(IF('Backend Calcs Standard'!$A$12=1,'Backend Calcs Standard'!T121,(('Backend Calcs Standard'!T121)*0.0283168)))),"") ->  | D120: =IFERROR(IF(E120="","",(IF('Backend Calcs Standard'!$A$12=1,'Backend Calcs Standard'!U121,(('Backend Calcs Standard'!U121)*0.0283168)))),"") ->  | E120: =IFERROR(IF(F120="","",(IF('Backend Calcs Standard'!$A$12=1,'Backend Calcs Standard'!V121,(('Backend Calcs Standard'!V121)*0.0283168)))),"") ->  | F120: =IF(I120="","",(IF('Backend Calcs Standard'!$A$12=1,'Backend Calcs Standard'!W121,('Backend Calcs Standard'!W121*0.0283168)))) ->  | H120: =IF('Backend Calcs Standard'!$A$12=1,'Backend Calcs Standard'!X121,('Backend Calcs Standard'!X121*0.0283168)) ->  | I120: =IFERROR(IF(H120="","",(IF('Backend Calcs Standard'!$A$12=1,'Backend Calcs Standard'!Y121,'Backend Calcs Standard'!Y121*0.0283168))),"") ->  | J120: =IF(A120="","",IF('Backend Calcs Standard'!$A$12=1,'Backend Calcs Standard'!Z121,'Backend Calcs Standard'!O121)) -> 
A121: =IFERROR(IF(B121="","",'Backend Calcs Standard'!P122),"") ->  | B121: =IFERROR(IF(C121="","",(IF('Backend Calcs Standard'!$A$12=1,'Backend Calcs Standard'!S122,(('Backend Calcs Standard'!S122)*0.0283168)))),"") ->  | C121: =IFERROR(IF(D121="","",(IF('Backend Calcs Standard'!$A$12=1,'Backend Calcs Standard'!T122,(('Backend Calcs Standard'!T122)*0.0283168)))),"") ->  | D121: =IFERROR(IF(E121="","",(IF('Backend Calcs Standard'!$A$12=1,'Backend Calcs Standard'!U122,(('Backend Calcs Standard'!U122)*0.0283168)))),"") ->  | E121: =IFERROR(IF(F121="","",(IF('Backend Calcs Standard'!$A$12=1,'Backend Calcs Standard'!V122,(('Backend Calcs Standard'!V122)*0.0283168)))),"") ->  | F121: =IF(I121="","",(IF('Backend Calcs Standard'!$A$12=1,'Backend Calcs Standard'!W122,('Backend Calcs Standard'!W122*0.0283168)))) ->  | H121: =IF('Backend Calcs Standard'!$A$12=1,'Backend Calcs Standard'!X122,('Backend Calcs Standard'!X122*0.0283168)) ->  | I121: =IFERROR(IF(H121="","",(IF('Backend Calcs Standard'!$A$12=1,'Backend Calcs Standard'!Y122,'Backend Calcs Standard'!Y122*0.0283168))),"") ->  | J121: =IF(A121="","",IF('Backend Calcs Standard'!$A$12=1,'Backend Calcs Standard'!Z122,'Backend Calcs Standard'!O122)) -> 
A122: =IFERROR(IF(B122="","",'Backend Calcs Standard'!P123),"") ->  | B122: =IFERROR(IF(C122="","",(IF('Backend Calcs Standard'!$A$12=1,'Backend Calcs Standard'!S123,(('Backend Calcs Standard'!S123)*0.0283168)))),"") ->  | C122: =IFERROR(IF(D122="","",(IF('Backend Calcs Standard'!$A$12=1,'Backend Calcs Standard'!T123,(('Backend Calcs Standard'!T123)*0.0283168)))),"") ->  | D122: =IFERROR(IF(E122="","",(IF('Backend Calcs Standard'!$A$12=1,'Backend Calcs Standard'!U123,(('Backend Calcs Standard'!U123)*0.0283168)))),"") ->  | E122: =IFERROR(IF(F122="","",(IF('Backend Calcs Standard'!$A$12=1,'Backend Calcs Standard'!V123,(('Backend Calcs Standard'!V123)*0.0283168)))),"") ->  | F122: =IF(I122="","",(IF('Backend Calcs Standard'!$A$12=1,'Backend Calcs Standard'!W123,('Backend Calcs Standard'!W123*0.0283168)))) ->  | H122: =IF('Backend Calcs Standard'!$A$12=1,'Backend Calcs Standard'!X123,('Backend Calcs Standard'!X123*0.0283168)) ->  | I122: =IFERROR(IF(H122="","",(IF('Backend Calcs Standard'!$A$12=1,'Backend Calcs Standard'!Y123,'Backend Calcs Standard'!Y123*0.0283168))),"") ->  | J122: =IF(A122="","",IF('Backend Calcs Standard'!$A$12=1,'Backend Calcs Standard'!Z123,'Backend Calcs Standard'!O123)) -> 
A123: =IFERROR(IF(B123="","",'Backend Calcs Standard'!P124),"") ->  | B123: =IFERROR(IF(C123="","",(IF('Backend Calcs Standard'!$A$12=1,'Backend Calcs Standard'!S124,(('Backend Calcs Standard'!S124)*0.0283168)))),"") ->  | C123: =IFERROR(IF(D123="","",(IF('Backend Calcs Standard'!$A$12=1,'Backend Calcs Standard'!T124,(('Backend Calcs Standard'!T124)*0.0283168)))),"") ->  | D123: =IFERROR(IF(E123="","",(IF('Backend Calcs Standard'!$A$12=1,'Backend Calcs Standard'!U124,(('Backend Calcs Standard'!U124)*0.0283168)))),"") ->  | E123: =IFERROR(IF(F123="","",(IF('Backend Calcs Standard'!$A$12=1,'Backend Calcs Standard'!V124,(('Backend Calcs Standard'!V124)*0.0283168)))),"") ->  | F123: =IF(I123="","",(IF('Backend Calcs Standard'!$A$12=1,'Backend Calcs Standard'!W124,('Backend Calcs Standard'!W124*0.0283168)))) ->  | H123: =IF('Backend Calcs Standard'!$A$12=1,'Backend Calcs Standard'!X124,('Backend Calcs Standard'!X124*0.0283168)) ->  | I123: =IFERROR(IF(H123="","",(IF('Backend Calcs Standard'!$A$12=1,'Backend Calcs Standard'!Y124,'Backend Calcs Standard'!Y124*0.0283168))),"") ->  | J123: =IF(A123="","",IF('Backend Calcs Standard'!$A$12=1,'Backend Calcs Standard'!Z124,'Backend Calcs Standard'!O124)) -> 
A124: =IFERROR(IF(B124="","",'Backend Calcs Standard'!P125),"") ->  | B124: =IFERROR(IF(C124="","",(IF('Backend Calcs Standard'!$A$12=1,'Backend Calcs Standard'!S125,(('Backend Calcs Standard'!S125)*0.0283168)))),"") ->  | C124: =IFERROR(IF(D124="","",(IF('Backend Calcs Standard'!$A$12=1,'Backend Calcs Standard'!T125,(('Backend Calcs Standard'!T125)*0.0283168)))),"") ->  | D124: =IFERROR(IF(E124="","",(IF('Backend Calcs Standard'!$A$12=1,'Backend Calcs Standard'!U125,(('Backend Calcs Standard'!U125)*0.0283168)))),"") ->  | E124: =IFERROR(IF(F124="","",(IF('Backend Calcs Standard'!$A$12=1,'Backend Calcs Standard'!V125,(('Backend Calcs Standard'!V125)*0.0283168)))),"") ->  | F124: =IF(I124="","",(IF('Backend Calcs Standard'!$A$12=1,'Backend Calcs Standard'!W125,('Backend Calcs Standard'!W125*0.0283168)))) ->  | H124: =IF('Backend Calcs Standard'!$A$12=1,'Backend Calcs Standard'!X125,('Backend Calcs Standard'!X125*0.0283168)) ->  | I124: =IFERROR(IF(H124="","",(IF('Backend Calcs Standard'!$A$12=1,'Backend Calcs Standard'!Y125,'Backend Calcs Standard'!Y125*0.0283168))),"") ->  | J124: =IF(A124="","",IF('Backend Calcs Standard'!$A$12=1,'Backend Calcs Standard'!Z125,'Backend Calcs Standard'!O125)) -> 
A125: =IFERROR(IF(B125="","",'Backend Calcs Standard'!P126),"") ->  | B125: =IFERROR(IF(C125="","",(IF('Backend Calcs Standard'!$A$12=1,'Backend Calcs Standard'!S126,(('Backend Calcs Standard'!S126)*0.0283168)))),"") ->  | C125: =IFERROR(IF(D125="","",(IF('Backend Calcs Standard'!$A$12=1,'Backend Calcs Standard'!T126,(('Backend Calcs Standard'!T126)*0.0283168)))),"") ->  | D125: =IFERROR(IF(E125="","",(IF('Backend Calcs Standard'!$A$12=1,'Backend Calcs Standard'!U126,(('Backend Calcs Standard'!U126)*0.0283168)))),"") ->  | E125: =IFERROR(IF(F125="","",(IF('Backend Calcs Standard'!$A$12=1,'Backend Calcs Standard'!V126,(('Backend Calcs Standard'!V126)*0.0283168)))),"") ->  | F125: =IF(I125="","",(IF('Backend Calcs Standard'!$A$12=1,'Backend Calcs Standard'!W126,('Backend Calcs Standard'!W126*0.0283168)))) ->  | H125: =IF('Backend Calcs Standard'!$A$12=1,'Backend Calcs Standard'!X126,('Backend Calcs Standard'!X126*0.0283168)) ->  | I125: =IFERROR(IF(H125="","",(IF('Backend Calcs Standard'!$A$12=1,'Backend Calcs Standard'!Y126,'Backend Calcs Standard'!Y126*0.0283168))),"") ->  | J125: =IF(A125="","",IF('Backend Calcs Standard'!$A$12=1,'Backend Calcs Standard'!Z126,'Backend Calcs Standard'!O126)) -> 
A126: =IFERROR(IF(B126="","",'Backend Calcs Standard'!P127),"") ->  | B126: =IFERROR(IF(C126="","",(IF('Backend Calcs Standard'!$A$12=1,'Backend Calcs Standard'!S127,(('Backend Calcs Standard'!S127)*0.0283168)))),"") ->  | C126: =IFERROR(IF(D126="","",(IF('Backend Calcs Standard'!$A$12=1,'Backend Calcs Standard'!T127,(('Backend Calcs Standard'!T127)*0.0283168)))),"") ->  | D126: =IFERROR(IF(E126="","",(IF('Backend Calcs Standard'!$A$12=1,'Backend Calcs Standard'!U127,(('Backend Calcs Standard'!U127)*0.0283168)))),"") ->  | E126: =IFERROR(IF(F126="","",(IF('Backend Calcs Standard'!$A$12=1,'Backend Calcs Standard'!V127,(('Backend Calcs Standard'!V127)*0.0283168)))),"") ->  | F126: =IF(I126="","",(IF('Backend Calcs Standard'!$A$12=1,'Backend Calcs Standard'!W127,('Backend Calcs Standard'!W127*0.0283168)))) ->  | H126: =IF('Backend Calcs Standard'!$A$12=1,'Backend Calcs Standard'!X127,('Backend Calcs Standard'!X127*0.0283168)) ->  | I126: =IFERROR(IF(H126="","",(IF('Backend Calcs Standard'!$A$12=1,'Backend Calcs Standard'!Y127,'Backend Calcs Standard'!Y127*0.0283168))),"") ->  | J126: =IF(A126="","",IF('Backend Calcs Standard'!$A$12=1,'Backend Calcs Standard'!Z127,'Backend Calcs Standard'!O127)) -> 
A127: =IFERROR(IF(B127="","",'Backend Calcs Standard'!P128),"") ->  | B127: =IFERROR(IF(C127="","",(IF('Backend Calcs Standard'!$A$12=1,'Backend Calcs Standard'!S128,(('Backend Calcs Standard'!S128)*0.0283168)))),"") ->  | C127: =IFERROR(IF(D127="","",(IF('Backend Calcs Standard'!$A$12=1,'Backend Calcs Standard'!T128,(('Backend Calcs Standard'!T128)*0.0283168)))),"") ->  | D127: =IFERROR(IF(E127="","",(IF('Backend Calcs Standard'!$A$12=1,'Backend Calcs Standard'!U128,(('Backend Calcs Standard'!U128)*0.0283168)))),"") ->  | E127: =IFERROR(IF(F127="","",(IF('Backend Calcs Standard'!$A$12=1,'Backend Calcs Standard'!V128,(('Backend Calcs Standard'!V128)*0.0283168)))),"") ->  | F127: =IF(I127="","",(IF('Backend Calcs Standard'!$A$12=1,'Backend Calcs Standard'!W128,('Backend Calcs Standard'!W128*0.0283168)))) ->  | H127: =IF('Backend Calcs Standard'!$A$12=1,'Backend Calcs Standard'!X128,('Backend Calcs Standard'!X128*0.0283168)) ->  | I127: =IFERROR(IF(H127="","",(IF('Backend Calcs Standard'!$A$12=1,'Backend Calcs Standard'!Y128,'Backend Calcs Standard'!Y128*0.0283168))),"") ->  | J127: =IF(A127="","",IF('Backend Calcs Standard'!$A$12=1,'Backend Calcs Standard'!Z128,'Backend Calcs Standard'!O128)) -> 
A128: =IFERROR(IF(B128="","",'Backend Calcs Standard'!P129),"") ->  | B128: =IFERROR(IF(C128="","",(IF('Backend Calcs Standard'!$A$12=1,'Backend Calcs Standard'!S129,(('Backend Calcs Standard'!S129)*0.0283168)))),"") ->  | C128: =IFERROR(IF(D128="","",(IF('Backend Calcs Standard'!$A$12=1,'Backend Calcs Standard'!T129,(('Backend Calcs Standard'!T129)*0.0283168)))),"") ->  | D128: =IFERROR(IF(E128="","",(IF('Backend Calcs Standard'!$A$12=1,'Backend Calcs Standard'!U129,(('Backend Calcs Standard'!U129)*0.0283168)))),"") ->  | E128: =IFERROR(IF(F128="","",(IF('Backend Calcs Standard'!$A$12=1,'Backend Calcs Standard'!V129,(('Backend Calcs Standard'!V129)*0.0283168)))),"") ->  | F128: =IF(I128="","",(IF('Backend Calcs Standard'!$A$12=1,'Backend Calcs Standard'!W129,('Backend Calcs Standard'!W129*0.0283168)))) ->  | H128: =IF('Backend Calcs Standard'!$A$12=1,'Backend Calcs Standard'!X129,('Backend Calcs Standard'!X129*0.0283168)) ->  | I128: =IFERROR(IF(H128="","",(IF('Backend Calcs Standard'!$A$12=1,'Backend Calcs Standard'!Y129,'Backend Calcs Standard'!Y129*0.0283168))),"") ->  | J128: =IF(A128="","",IF('Backend Calcs Standard'!$A$12=1,'Backend Calcs Standard'!Z129,'Backend Calcs Standard'!O129)) -> 
A129: =IFERROR(IF(B129="","",'Backend Calcs Standard'!P130),"") ->  | B129: =IFERROR(IF(C129="","",(IF('Backend Calcs Standard'!$A$12=1,'Backend Calcs Standard'!S130,(('Backend Calcs Standard'!S130)*0.0283168)))),"") ->  | C129: =IFERROR(IF(D129="","",(IF('Backend Calcs Standard'!$A$12=1,'Backend Calcs Standard'!T130,(('Backend Calcs Standard'!T130)*0.0283168)))),"") ->  | D129: =IFERROR(IF(E129="","",(IF('Backend Calcs Standard'!$A$12=1,'Backend Calcs Standard'!U130,(('Backend Calcs Standard'!U130)*0.0283168)))),"") ->  | E129: =IFERROR(IF(F129="","",(IF('Backend Calcs Standard'!$A$12=1,'Backend Calcs Standard'!V130,(('Backend Calcs Standard'!V130)*0.0283168)))),"") ->  | F129: =IF(I129="","",(IF('Backend Calcs Standard'!$A$12=1,'Backend Calcs Standard'!W130,('Backend Calcs Standard'!W130*0.0283168)))) ->  | H129: =IF('Backend Calcs Standard'!$A$12=1,'Backend Calcs Standard'!X130,('Backend Calcs Standard'!X130*0.0283168)) ->  | I129: =IFERROR(IF(H129="","",(IF('Backend Calcs Standard'!$A$12=1,'Backend Calcs Standard'!Y130,'Backend Calcs Standard'!Y130*0.0283168))),"") ->  | J129: =IF(A129="","",IF('Backend Calcs Standard'!$A$12=1,'Backend Calcs Standard'!Z130,'Backend Calcs Standard'!O130)) -> 
A130: =IFERROR(IF(B130="","",'Backend Calcs Standard'!P131),"") ->  | B130: =IFERROR(IF(C130="","",(IF('Backend Calcs Standard'!$A$12=1,'Backend Calcs Standard'!S131,(('Backend Calcs Standard'!S131)*0.0283168)))),"") ->  | C130: =IFERROR(IF(D130="","",(IF('Backend Calcs Standard'!$A$12=1,'Backend Calcs Standard'!T131,(('Backend Calcs Standard'!T131)*0.0283168)))),"") ->  | D130: =IFERROR(IF(E130="","",(IF('Backend Calcs Standard'!$A$12=1,'Backend Calcs Standard'!U131,(('Backend Calcs Standard'!U131)*0.0283168)))),"") ->  | E130: =IFERROR(IF(F130="","",(IF('Backend Calcs Standard'!$A$12=1,'Backend Calcs Standard'!V131,(('Backend Calcs Standard'!V131)*0.0283168)))),"") ->  | F130: =IF(I130="","",(IF('Backend Calcs Standard'!$A$12=1,'Backend Calcs Standard'!W131,('Backend Calcs Standard'!W131*0.0283168)))) ->  | H130: =IF('Backend Calcs Standard'!$A$12=1,'Backend Calcs Standard'!X131,('Backend Calcs Standard'!X131*0.0283168)) ->  | I130: =IFERROR(IF(H130="","",(IF('Backend Calcs Standard'!$A$12=1,'Backend Calcs Standard'!Y131,'Backend Calcs Standard'!Y131*0.0283168))),"") ->  | J130: =IF(A130="","",IF('Backend Calcs Standard'!$A$12=1,'Backend Calcs Standard'!Z131,'Backend Calcs Standard'!O131)) -> 
A131: =IFERROR(IF(B131="","",'Backend Calcs Standard'!P132),"") ->  | B131: =IFERROR(IF(C131="","",(IF('Backend Calcs Standard'!$A$12=1,'Backend Calcs Standard'!S132,(('Backend Calcs Standard'!S132)*0.0283168)))),"") ->  | C131: =IFERROR(IF(D131="","",(IF('Backend Calcs Standard'!$A$12=1,'Backend Calcs Standard'!T132,(('Backend Calcs Standard'!T132)*0.0283168)))),"") ->  | D131: =IFERROR(IF(E131="","",(IF('Backend Calcs Standard'!$A$12=1,'Backend Calcs Standard'!U132,(('Backend Calcs Standard'!U132)*0.0283168)))),"") ->  | E131: =IFERROR(IF(F131="","",(IF('Backend Calcs Standard'!$A$12=1,'Backend Calcs Standard'!V132,(('Backend Calcs Standard'!V132)*0.0283168)))),"") ->  | F131: =IF(I131="","",(IF('Backend Calcs Standard'!$A$12=1,'Backend Calcs Standard'!W132,('Backend Calcs Standard'!W132*0.0283168)))) ->  | H131: =IF('Backend Calcs Standard'!$A$12=1,'Backend Calcs Standard'!X132,('Backend Calcs Standard'!X132*0.0283168)) ->  | I131: =IFERROR(IF(H131="","",(IF('Backend Calcs Standard'!$A$12=1,'Backend Calcs Standard'!Y132,'Backend Calcs Standard'!Y132*0.0283168))),"") ->  | J131: =IF(A131="","",IF('Backend Calcs Standard'!$A$12=1,'Backend Calcs Standard'!Z132,'Backend Calcs Standard'!O132)) -> 
A132: =IFERROR(IF(B132="","",'Backend Calcs Standard'!P133),"") ->  | B132: =IFERROR(IF(C132="","",(IF('Backend Calcs Standard'!$A$12=1,'Backend Calcs Standard'!S133,(('Backend Calcs Standard'!S133)*0.0283168)))),"") ->  | C132: =IFERROR(IF(D132="","",(IF('Backend Calcs Standard'!$A$12=1,'Backend Calcs Standard'!T133,(('Backend Calcs Standard'!T133)*0.0283168)))),"") ->  | D132: =IFERROR(IF(E132="","",(IF('Backend Calcs Standard'!$A$12=1,'Backend Calcs Standard'!U133,(('Backend Calcs Standard'!U133)*0.0283168)))),"") ->  | E132: =IFERROR(IF(F132="","",(IF('Backend Calcs Standard'!$A$12=1,'Backend Calcs Standard'!V133,(('Backend Calcs Standard'!V133)*0.0283168)))),"") ->  | F132: =IF(I132="","",(IF('Backend Calcs Standard'!$A$12=1,'Backend Calcs Standard'!W133,('Backend Calcs Standard'!W133*0.0283168)))) ->  | H132: =IF('Backend Calcs Standard'!$A$12=1,'Backend Calcs Standard'!X133,('Backend Calcs Standard'!X133*0.0283168)) ->  | I132: =IFERROR(IF(H132="","",(IF('Backend Calcs Standard'!$A$12=1,'Backend Calcs Standard'!Y133,'Backend Calcs Standard'!Y133*0.0283168))),"") ->  | J132: =IF(A132="","",IF('Backend Calcs Standard'!$A$12=1,'Backend Calcs Standard'!Z133,'Backend Calcs Standard'!O133)) -> 
A133: =IFERROR(IF(B133="","",'Backend Calcs Standard'!P134),"") ->  | B133: =IFERROR(IF(C133="","",(IF('Backend Calcs Standard'!$A$12=1,'Backend Calcs Standard'!S134,(('Backend Calcs Standard'!S134)*0.0283168)))),"") ->  | C133: =IFERROR(IF(D133="","",(IF('Backend Calcs Standard'!$A$12=1,'Backend Calcs Standard'!T134,(('Backend Calcs Standard'!T134)*0.0283168)))),"") ->  | D133: =IFERROR(IF(E133="","",(IF('Backend Calcs Standard'!$A$12=1,'Backend Calcs Standard'!U134,(('Backend Calcs Standard'!U134)*0.0283168)))),"") ->  | E133: =IFERROR(IF(F133="","",(IF('Backend Calcs Standard'!$A$12=1,'Backend Calcs Standard'!V134,(('Backend Calcs Standard'!V134)*0.0283168)))),"") ->  | F133: =IF(I133="","",(IF('Backend Calcs Standard'!$A$12=1,'Backend Calcs Standard'!W134,('Backend Calcs Standard'!W134*0.0283168)))) ->  | H133: =IF('Backend Calcs Standard'!$A$12=1,'Backend Calcs Standard'!X134,('Backend Calcs Standard'!X134*0.0283168)) ->  | I133: =IFERROR(IF(H133="","",(IF('Backend Calcs Standard'!$A$12=1,'Backend Calcs Standard'!Y134,'Backend Calcs Standard'!Y134*0.0283168))),"") ->  | J133: =IF(A133="","",IF('Backend Calcs Standard'!$A$12=1,'Backend Calcs Standard'!Z134,'Backend Calcs Standard'!O134)) -> 
A134: =IFERROR(IF(B134="","",'Backend Calcs Standard'!P135),"") ->  | B134: =IFERROR(IF(C134="","",(IF('Backend Calcs Standard'!$A$12=1,'Backend Calcs Standard'!S135,(('Backend Calcs Standard'!S135)*0.0283168)))),"") ->  | C134: =IFERROR(IF(D134="","",(IF('Backend Calcs Standard'!$A$12=1,'Backend Calcs Standard'!T135,(('Backend Calcs Standard'!T135)*0.0283168)))),"") ->  | D134: =IFERROR(IF(E134="","",(IF('Backend Calcs Standard'!$A$12=1,'Backend Calcs Standard'!U135,(('Backend Calcs Standard'!U135)*0.0283168)))),"") ->  | E134: =IFERROR(IF(F134="","",(IF('Backend Calcs Standard'!$A$12=1,'Backend Calcs Standard'!V135,(('Backend Calcs Standard'!V135)*0.0283168)))),"") ->  | F134: =IF(I134="","",(IF('Backend Calcs Standard'!$A$12=1,'Backend Calcs Standard'!W135,('Backend Calcs Standard'!W135*0.0283168)))) ->  | H134: =IF('Backend Calcs Standard'!$A$12=1,'Backend Calcs Standard'!X135,('Backend Calcs Standard'!X135*0.0283168)) ->  | I134: =IFERROR(IF(H134="","",(IF('Backend Calcs Standard'!$A$12=1,'Backend Calcs Standard'!Y135,'Backend Calcs Standard'!Y135*0.0283168))),"") ->  | J134: =IF(A134="","",IF('Backend Calcs Standard'!$A$12=1,'Backend Calcs Standard'!Z135,'Backend Calcs Standard'!O135)) -> 
A135: =IFERROR(IF(B135="","",'Backend Calcs Standard'!P136),"") ->  | B135: =IFERROR(IF(C135="","",(IF('Backend Calcs Standard'!$A$12=1,'Backend Calcs Standard'!S136,(('Backend Calcs Standard'!S136)*0.0283168)))),"") ->  | C135: =IFERROR(IF(D135="","",(IF('Backend Calcs Standard'!$A$12=1,'Backend Calcs Standard'!T136,(('Backend Calcs Standard'!T136)*0.0283168)))),"") ->  | D135: =IFERROR(IF(E135="","",(IF('Backend Calcs Standard'!$A$12=1,'Backend Calcs Standard'!U136,(('Backend Calcs Standard'!U136)*0.0283168)))),"") ->  | E135: =IFERROR(IF(F135="","",(IF('Backend Calcs Standard'!$A$12=1,'Backend Calcs Standard'!V136,(('Backend Calcs Standard'!V136)*0.0283168)))),"") ->  | F135: =IF(I135="","",(IF('Backend Calcs Standard'!$A$12=1,'Backend Calcs Standard'!W136,('Backend Calcs Standard'!W136*0.0283168)))) ->  | H135: =IF('Backend Calcs Standard'!$A$12=1,'Backend Calcs Standard'!X136,('Backend Calcs Standard'!X136*0.0283168)) ->  | I135: =IFERROR(IF(H135="","",(IF('Backend Calcs Standard'!$A$12=1,'Backend Calcs Standard'!Y136,'Backend Calcs Standard'!Y136*0.0283168))),"") ->  | J135: =IF(A135="","",IF('Backend Calcs Standard'!$A$12=1,'Backend Calcs Standard'!Z136,'Backend Calcs Standard'!O136)) -> 
A136: =IFERROR(IF(B136="","",'Backend Calcs Standard'!P137),"") ->  | B136: =IFERROR(IF(C136="","",(IF('Backend Calcs Standard'!$A$12=1,'Backend Calcs Standard'!S137,(('Backend Calcs Standard'!S137)*0.0283168)))),"") ->  | C136: =IFERROR(IF(D136="","",(IF('Backend Calcs Standard'!$A$12=1,'Backend Calcs Standard'!T137,(('Backend Calcs Standard'!T137)*0.0283168)))),"") ->  | D136: =IFERROR(IF(E136="","",(IF('Backend Calcs Standard'!$A$12=1,'Backend Calcs Standard'!U137,(('Backend Calcs Standard'!U137)*0.0283168)))),"") ->  | E136: =IFERROR(IF(F136="","",(IF('Backend Calcs Standard'!$A$12=1,'Backend Calcs Standard'!V137,(('Backend Calcs Standard'!V137)*0.0283168)))),"") ->  | F136: =IF(I136="","",(IF('Backend Calcs Standard'!$A$12=1,'Backend Calcs Standard'!W137,('Backend Calcs Standard'!W137*0.0283168)))) ->  | H136: =IF('Backend Calcs Standard'!$A$12=1,'Backend Calcs Standard'!X137,('Backend Calcs Standard'!X137*0.0283168)) ->  | I136: =IFERROR(IF(H136="","",(IF('Backend Calcs Standard'!$A$12=1,'Backend Calcs Standard'!Y137,'Backend Calcs Standard'!Y137*0.0283168))),"") ->  | J136: =IF(A136="","",IF('Backend Calcs Standard'!$A$12=1,'Backend Calcs Standard'!Z137,'Backend Calcs Standard'!O137)) -> 
A137: =IFERROR(IF(B137="","",'Backend Calcs Standard'!P138),"") ->  | B137: =IFERROR(IF(C137="","",(IF('Backend Calcs Standard'!$A$12=1,'Backend Calcs Standard'!S138,(('Backend Calcs Standard'!S138)*0.0283168)))),"") ->  | C137: =IFERROR(IF(D137="","",(IF('Backend Calcs Standard'!$A$12=1,'Backend Calcs Standard'!T138,(('Backend Calcs Standard'!T138)*0.0283168)))),"") ->  | D137: =IFERROR(IF(E137="","",(IF('Backend Calcs Standard'!$A$12=1,'Backend Calcs Standard'!U138,(('Backend Calcs Standard'!U138)*0.0283168)))),"") ->  | E137: =IFERROR(IF(F137="","",(IF('Backend Calcs Standard'!$A$12=1,'Backend Calcs Standard'!V138,(('Backend Calcs Standard'!V138)*0.0283168)))),"") ->  | F137: =IF(I137="","",(IF('Backend Calcs Standard'!$A$12=1,'Backend Calcs Standard'!W138,('Backend Calcs Standard'!W138*0.0283168)))) ->  | H137: =IF('Backend Calcs Standard'!$A$12=1,'Backend Calcs Standard'!X138,('Backend Calcs Standard'!X138*0.0283168)) ->  | I137: =IFERROR(IF(H137="","",(IF('Backend Calcs Standard'!$A$12=1,'Backend Calcs Standard'!Y138,'Backend Calcs Standard'!Y138*0.0283168))),"") ->  | J137: =IF(A137="","",IF('Backend Calcs Standard'!$A$12=1,'Backend Calcs Standard'!Z138,'Backend Calcs Standard'!O138)) -> 
A138: =IFERROR(IF(B138="","",'Backend Calcs Standard'!P139),"") ->  | B138: =IFERROR(IF(C138="","",(IF('Backend Calcs Standard'!$A$12=1,'Backend Calcs Standard'!S139,(('Backend Calcs Standard'!S139)*0.0283168)))),"") ->  | C138: =IFERROR(IF(D138="","",(IF('Backend Calcs Standard'!$A$12=1,'Backend Calcs Standard'!T139,(('Backend Calcs Standard'!T139)*0.0283168)))),"") ->  | D138: =IFERROR(IF(E138="","",(IF('Backend Calcs Standard'!$A$12=1,'Backend Calcs Standard'!U139,(('Backend Calcs Standard'!U139)*0.0283168)))),"") ->  | E138: =IFERROR(IF(F138="","",(IF('Backend Calcs Standard'!$A$12=1,'Backend Calcs Standard'!V139,(('Backend Calcs Standard'!V139)*0.0283168)))),"") ->  | F138: =IF(I138="","",(IF('Backend Calcs Standard'!$A$12=1,'Backend Calcs Standard'!W139,('Backend Calcs Standard'!W139*0.0283168)))) ->  | H138: =IF('Backend Calcs Standard'!$A$12=1,'Backend Calcs Standard'!X139,('Backend Calcs Standard'!X139*0.0283168)) ->  | I138: =IFERROR(IF(H138="","",(IF('Backend Calcs Standard'!$A$12=1,'Backend Calcs Standard'!Y139,'Backend Calcs Standard'!Y139*0.0283168))),"") ->  | J138: =IF(A138="","",IF('Backend Calcs Standard'!$A$12=1,'Backend Calcs Standard'!Z139,'Backend Calcs Standard'!O139)) -> 
A139: =IFERROR(IF(B139="","",'Backend Calcs Standard'!P140),"") ->  | B139: =IFERROR(IF(C139="","",(IF('Backend Calcs Standard'!$A$12=1,'Backend Calcs Standard'!S140,(('Backend Calcs Standard'!S140)*0.0283168)))),"") ->  | C139: =IFERROR(IF(D139="","",(IF('Backend Calcs Standard'!$A$12=1,'Backend Calcs Standard'!T140,(('Backend Calcs Standard'!T140)*0.0283168)))),"") ->  | D139: =IFERROR(IF(E139="","",(IF('Backend Calcs Standard'!$A$12=1,'Backend Calcs Standard'!U140,(('Backend Calcs Standard'!U140)*0.0283168)))),"") ->  | E139: =IFERROR(IF(F139="","",(IF('Backend Calcs Standard'!$A$12=1,'Backend Calcs Standard'!V140,(('Backend Calcs Standard'!V140)*0.0283168)))),"") ->  | F139: =IF(I139="","",(IF('Backend Calcs Standard'!$A$12=1,'Backend Calcs Standard'!W140,('Backend Calcs Standard'!W140*0.0283168)))) ->  | H139: =IF('Backend Calcs Standard'!$A$12=1,'Backend Calcs Standard'!X140,('Backend Calcs Standard'!X140*0.0283168)) ->  | I139: =IFERROR(IF(H139="","",(IF('Backend Calcs Standard'!$A$12=1,'Backend Calcs Standard'!Y140,'Backend Calcs Standard'!Y140*0.0283168))),"") ->  | J139: =IF(A139="","",IF('Backend Calcs Standard'!$A$12=1,'Backend Calcs Standard'!Z140,'Backend Calcs Standard'!O140)) -> 
A140: =IFERROR(IF(B140="","",'Backend Calcs Standard'!P141),"") ->  | B140: =IFERROR(IF(C140="","",(IF('Backend Calcs Standard'!$A$12=1,'Backend Calcs Standard'!S141,(('Backend Calcs Standard'!S141)*0.0283168)))),"") ->  | C140: =IFERROR(IF(D140="","",(IF('Backend Calcs Standard'!$A$12=1,'Backend Calcs Standard'!T141,(('Backend Calcs Standard'!T141)*0.0283168)))),"") ->  | D140: =IFERROR(IF(E140="","",(IF('Backend Calcs Standard'!$A$12=1,'Backend Calcs Standard'!U141,(('Backend Calcs Standard'!U141)*0.0283168)))),"") ->  | E140: =IFERROR(IF(F140="","",(IF('Backend Calcs Standard'!$A$12=1,'Backend Calcs Standard'!V141,(('Backend Calcs Standard'!V141)*0.0283168)))),"") ->  | F140: =IF(I140="","",(IF('Backend Calcs Standard'!$A$12=1,'Backend Calcs Standard'!W141,('Backend Calcs Standard'!W141*0.0283168)))) ->  | H140: =IF('Backend Calcs Standard'!$A$12=1,'Backend Calcs Standard'!X141,('Backend Calcs Standard'!X141*0.0283168)) ->  | I140: =IFERROR(IF(H140="","",(IF('Backend Calcs Standard'!$A$12=1,'Backend Calcs Standard'!Y141,'Backend Calcs Standard'!Y141*0.0283168))),"") ->  | J140: =IF(A140="","",IF('Backend Calcs Standard'!$A$12=1,'Backend Calcs Standard'!Z141,'Backend Calcs Standard'!O141)) -> 
A141: =IFERROR(IF(B141="","",'Backend Calcs Standard'!P142),"") ->  | B141: =IFERROR(IF(C141="","",(IF('Backend Calcs Standard'!$A$12=1,'Backend Calcs Standard'!S142,(('Backend Calcs Standard'!S142)*0.0283168)))),"") ->  | C141: =IFERROR(IF(D141="","",(IF('Backend Calcs Standard'!$A$12=1,'Backend Calcs Standard'!T142,(('Backend Calcs Standard'!T142)*0.0283168)))),"") ->  | D141: =IFERROR(IF(E141="","",(IF('Backend Calcs Standard'!$A$12=1,'Backend Calcs Standard'!U142,(('Backend Calcs Standard'!U142)*0.0283168)))),"") ->  | E141: =IFERROR(IF(F141="","",(IF('Backend Calcs Standard'!$A$12=1,'Backend Calcs Standard'!V142,(('Backend Calcs Standard'!V142)*0.0283168)))),"") ->  | F141: =IF(I141="","",(IF('Backend Calcs Standard'!$A$12=1,'Backend Calcs Standard'!W142,('Backend Calcs Standard'!W142*0.0283168)))) ->  | H141: =IF('Backend Calcs Standard'!$A$12=1,'Backend Calcs Standard'!X142,('Backend Calcs Standard'!X142*0.0283168)) ->  | I141: =IFERROR(IF(H141="","",(IF('Backend Calcs Standard'!$A$12=1,'Backend Calcs Standard'!Y142,'Backend Calcs Standard'!Y142*0.0283168))),"") ->  | J141: =IF(A141="","",IF('Backend Calcs Standard'!$A$12=1,'Backend Calcs Standard'!Z142,'Backend Calcs Standard'!O142)) -> 
A142: =IFERROR(IF(B142="","",'Backend Calcs Standard'!P143),"") ->  | B142: =IFERROR(IF(C142="","",(IF('Backend Calcs Standard'!$A$12=1,'Backend Calcs Standard'!S143,(('Backend Calcs Standard'!S143)*0.0283168)))),"") ->  | C142: =IFERROR(IF(D142="","",(IF('Backend Calcs Standard'!$A$12=1,'Backend Calcs Standard'!T143,(('Backend Calcs Standard'!T143)*0.0283168)))),"") ->  | D142: =IFERROR(IF(E142="","",(IF('Backend Calcs Standard'!$A$12=1,'Backend Calcs Standard'!U143,(('Backend Calcs Standard'!U143)*0.0283168)))),"") ->  | E142: =IFERROR(IF(F142="","",(IF('Backend Calcs Standard'!$A$12=1,'Backend Calcs Standard'!V143,(('Backend Calcs Standard'!V143)*0.0283168)))),"") ->  | F142: =IF(I142="","",(IF('Backend Calcs Standard'!$A$12=1,'Backend Calcs Standard'!W143,('Backend Calcs Standard'!W143*0.0283168)))) ->  | H142: =IF('Backend Calcs Standard'!$A$12=1,'Backend Calcs Standard'!X143,('Backend Calcs Standard'!X143*0.0283168)) ->  | I142: =IFERROR(IF(H142="","",(IF('Backend Calcs Standard'!$A$12=1,'Backend Calcs Standard'!Y143,'Backend Calcs Standard'!Y143*0.0283168))),"") ->  | J142: =IF(A142="","",IF('Backend Calcs Standard'!$A$12=1,'Backend Calcs Standard'!Z143,'Backend Calcs Standard'!O143)) -> 
A143: =IFERROR(IF(B143="","",'Backend Calcs Standard'!P144),"") ->  | B143: =IFERROR(IF(C143="","",(IF('Backend Calcs Standard'!$A$12=1,'Backend Calcs Standard'!S144,(('Backend Calcs Standard'!S144)*0.0283168)))),"") ->  | C143: =IFERROR(IF(D143="","",(IF('Backend Calcs Standard'!$A$12=1,'Backend Calcs Standard'!T144,(('Backend Calcs Standard'!T144)*0.0283168)))),"") ->  | D143: =IFERROR(IF(E143="","",(IF('Backend Calcs Standard'!$A$12=1,'Backend Calcs Standard'!U144,(('Backend Calcs Standard'!U144)*0.0283168)))),"") ->  | E143: =IFERROR(IF(F143="","",(IF('Backend Calcs Standard'!$A$12=1,'Backend Calcs Standard'!V144,(('Backend Calcs Standard'!V144)*0.0283168)))),"") ->  | F143: =IF(I143="","",(IF('Backend Calcs Standard'!$A$12=1,'Backend Calcs Standard'!W144,('Backend Calcs Standard'!W144*0.0283168)))) ->  | H143: =IF('Backend Calcs Standard'!$A$12=1,'Backend Calcs Standard'!X144,('Backend Calcs Standard'!X144*0.0283168)) ->  | I143: =IFERROR(IF(H143="","",(IF('Backend Calcs Standard'!$A$12=1,'Backend Calcs Standard'!Y144,'Backend Calcs Standard'!Y144*0.0283168))),"") ->  | J143: =IF(A143="","",IF('Backend Calcs Standard'!$A$12=1,'Backend Calcs Standard'!Z144,'Backend Calcs Standard'!O144)) -> 
A144: =IFERROR(IF(B144="","",'Backend Calcs Standard'!P145),"") ->  | B144: =IFERROR(IF(C144="","",(IF('Backend Calcs Standard'!$A$12=1,'Backend Calcs Standard'!S145,(('Backend Calcs Standard'!S145)*0.0283168)))),"") ->  | C144: =IFERROR(IF(D144="","",(IF('Backend Calcs Standard'!$A$12=1,'Backend Calcs Standard'!T145,(('Backend Calcs Standard'!T145)*0.0283168)))),"") ->  | D144: =IFERROR(IF(E144="","",(IF('Backend Calcs Standard'!$A$12=1,'Backend Calcs Standard'!U145,(('Backend Calcs Standard'!U145)*0.0283168)))),"") ->  | E144: =IFERROR(IF(F144="","",(IF('Backend Calcs Standard'!$A$12=1,'Backend Calcs Standard'!V145,(('Backend Calcs Standard'!V145)*0.0283168)))),"") ->  | F144: =IF(I144="","",(IF('Backend Calcs Standard'!$A$12=1,'Backend Calcs Standard'!W145,('Backend Calcs Standard'!W145*0.0283168)))) ->  | H144: =IF('Backend Calcs Standard'!$A$12=1,'Backend Calcs Standard'!X145,('Backend Calcs Standard'!X145*0.0283168)) ->  | I144: =IFERROR(IF(H144="","",(IF('Backend Calcs Standard'!$A$12=1,'Backend Calcs Standard'!Y145,'Backend Calcs Standard'!Y145*0.0283168))),"") ->  | J144: =IF(A144="","",IF('Backend Calcs Standard'!$A$12=1,'Backend Calcs Standard'!Z145,'Backend Calcs Standard'!O145)) -> 
A145: =IFERROR(IF(B145="","",'Backend Calcs Standard'!P146),"") ->  | B145: =IFERROR(IF(C145="","",(IF('Backend Calcs Standard'!$A$12=1,'Backend Calcs Standard'!S146,(('Backend Calcs Standard'!S146)*0.0283168)))),"") ->  | C145: =IFERROR(IF(D145="","",(IF('Backend Calcs Standard'!$A$12=1,'Backend Calcs Standard'!T146,(('Backend Calcs Standard'!T146)*0.0283168)))),"") ->  | D145: =IFERROR(IF(E145="","",(IF('Backend Calcs Standard'!$A$12=1,'Backend Calcs Standard'!U146,(('Backend Calcs Standard'!U146)*0.0283168)))),"") ->  | E145: =IFERROR(IF(F145="","",(IF('Backend Calcs Standard'!$A$12=1,'Backend Calcs Standard'!V146,(('Backend Calcs Standard'!V146)*0.0283168)))),"") ->  | F145: =IF(I145="","",(IF('Backend Calcs Standard'!$A$12=1,'Backend Calcs Standard'!W146,('Backend Calcs Standard'!W146*0.0283168)))) ->  | H145: =IF('Backend Calcs Standard'!$A$12=1,'Backend Calcs Standard'!X146,('Backend Calcs Standard'!X146*0.0283168)) ->  | I145: =IFERROR(IF(H145="","",(IF('Backend Calcs Standard'!$A$12=1,'Backend Calcs Standard'!Y146,'Backend Calcs Standard'!Y146*0.0283168))),"") ->  | J145: =IF(A145="","",IF('Backend Calcs Standard'!$A$12=1,'Backend Calcs Standard'!Z146,'Backend Calcs Standard'!O146)) -> 
A146: =IFERROR(IF(B146="","",'Backend Calcs Standard'!P147),"") ->  | B146: =IFERROR(IF(C146="","",(IF('Backend Calcs Standard'!$A$12=1,'Backend Calcs Standard'!S147,(('Backend Calcs Standard'!S147)*0.0283168)))),"") ->  | C146: =IFERROR(IF(D146="","",(IF('Backend Calcs Standard'!$A$12=1,'Backend Calcs Standard'!T147,(('Backend Calcs Standard'!T147)*0.0283168)))),"") ->  | D146: =IFERROR(IF(E146="","",(IF('Backend Calcs Standard'!$A$12=1,'Backend Calcs Standard'!U147,(('Backend Calcs Standard'!U147)*0.0283168)))),"") ->  | E146: =IFERROR(IF(F146="","",(IF('Backend Calcs Standard'!$A$12=1,'Backend Calcs Standard'!V147,(('Backend Calcs Standard'!V147)*0.0283168)))),"") ->  | F146: =IF(I146="","",(IF('Backend Calcs Standard'!$A$12=1,'Backend Calcs Standard'!W147,('Backend Calcs Standard'!W147*0.0283168)))) ->  | H146: =IF('Backend Calcs Standard'!$A$12=1,'Backend Calcs Standard'!X147,('Backend Calcs Standard'!X147*0.0283168)) ->  | I146: =IFERROR(IF(H146="","",(IF('Backend Calcs Standard'!$A$12=1,'Backend Calcs Standard'!Y147,'Backend Calcs Standard'!Y147*0.0283168))),"") ->  | J146: =IF(A146="","",IF('Backend Calcs Standard'!$A$12=1,'Backend Calcs Standard'!Z147,'Backend Calcs Standard'!O147)) -> 
A147: =IFERROR(IF(B147="","",'Backend Calcs Standard'!P148),"") ->  | B147: =IFERROR(IF(C147="","",(IF('Backend Calcs Standard'!$A$12=1,'Backend Calcs Standard'!S148,(('Backend Calcs Standard'!S148)*0.0283168)))),"") ->  | C147: =IFERROR(IF(D147="","",(IF('Backend Calcs Standard'!$A$12=1,'Backend Calcs Standard'!T148,(('Backend Calcs Standard'!T148)*0.0283168)))),"") ->  | D147: =IFERROR(IF(E147="","",(IF('Backend Calcs Standard'!$A$12=1,'Backend Calcs Standard'!U148,(('Backend Calcs Standard'!U148)*0.0283168)))),"") ->  | E147: =IFERROR(IF(F147="","",(IF('Backend Calcs Standard'!$A$12=1,'Backend Calcs Standard'!V148,(('Backend Calcs Standard'!V148)*0.0283168)))),"") ->  | F147: =IF(I147="","",(IF('Backend Calcs Standard'!$A$12=1,'Backend Calcs Standard'!W148,('Backend Calcs Standard'!W148*0.0283168)))) ->  | G147: =IFERROR(IF(F147="","",(F147+E147+D147)),"") ->  | H147: =IF('Backend Calcs Standard'!$A$12=1,'Backend Calcs Standard'!X148,('Backend Calcs Standard'!X148*0.0283168)) ->  | I147: =IFERROR(IF(H147="","",(IF('Backend Calcs Standard'!$A$12=1,'Backend Calcs Standard'!Y148,'Backend Calcs Standard'!Y148*0.0283168))),"") ->  | J147: =IF(A147="","",IF('Backend Calcs Standard'!$A$12=1,'Backend Calcs Standard'!Z148,'Backend Calcs Standard'!O148)) -> 
A148: =IFERROR(IF(B148="","",'Backend Calcs Standard'!P149),"") ->  | B148: =IFERROR(IF(C148="","",(IF('Backend Calcs Standard'!$A$12=1,'Backend Calcs Standard'!S149,(('Backend Calcs Standard'!S149)*0.0283168)))),"") ->  | C148: =IFERROR(IF(D148="","",(IF('Backend Calcs Standard'!$A$12=1,'Backend Calcs Standard'!T149,(('Backend Calcs Standard'!T149)*0.0283168)))),"") ->  | D148: =IFERROR(IF(E148="","",(IF('Backend Calcs Standard'!$A$12=1,'Backend Calcs Standard'!U149,(('Backend Calcs Standard'!U149)*0.0283168)))),"") ->  | E148: =IFERROR(IF(F148="","",(IF('Backend Calcs Standard'!$A$12=1,'Backend Calcs Standard'!V149,(('Backend Calcs Standard'!V149)*0.0283168)))),"") ->  | F148: =IF(I148="","",(IF('Backend Calcs Standard'!$A$12=1,'Backend Calcs Standard'!W149,('Backend Calcs Standard'!W149*0.0283168)))) ->  | H148: =IF('Backend Calcs Standard'!$A$12=1,'Backend Calcs Standard'!X149,('Backend Calcs Standard'!X149*0.0283168)) ->  | I148: =IFERROR(IF(H148="","",(IF('Backend Calcs Standard'!$A$12=1,'Backend Calcs Standard'!Y149,'Backend Calcs Standard'!Y149*0.0283168))),"") ->  | J148: =IF(A148="","",IF('Backend Calcs Standard'!$A$12=1,'Backend Calcs Standard'!Z149,'Backend Calcs Standard'!O149)) -> 
A149: =IFERROR(IF(B149="","",'Backend Calcs Standard'!P150),"") ->  | B149: =IFERROR(IF(C149="","",(IF('Backend Calcs Standard'!$A$12=1,'Backend Calcs Standard'!S150,(('Backend Calcs Standard'!S150)*0.0283168)))),"") ->  | C149: =IFERROR(IF(D149="","",(IF('Backend Calcs Standard'!$A$12=1,'Backend Calcs Standard'!T150,(('Backend Calcs Standard'!T150)*0.0283168)))),"") ->  | D149: =IFERROR(IF(E149="","",(IF('Backend Calcs Standard'!$A$12=1,'Backend Calcs Standard'!U150,(('Backend Calcs Standard'!U150)*0.0283168)))),"") ->  | E149: =IFERROR(IF(F149="","",(IF('Backend Calcs Standard'!$A$12=1,'Backend Calcs Standard'!V150,(('Backend Calcs Standard'!V150)*0.0283168)))),"") ->  | F149: =IF(I149="","",(IF('Backend Calcs Standard'!$A$12=1,'Backend Calcs Standard'!W150,('Backend Calcs Standard'!W150*0.0283168)))) ->  | H149: =IF('Backend Calcs Standard'!$A$12=1,'Backend Calcs Standard'!X150,('Backend Calcs Standard'!X150*0.0283168)) ->  | I149: =IFERROR(IF(H149="","",(IF('Backend Calcs Standard'!$A$12=1,'Backend Calcs Standard'!Y150,'Backend Calcs Standard'!Y150*0.0283168))),"") ->  | J149: =IF(A149="","",IF('Backend Calcs Standard'!$A$12=1,'Backend Calcs Standard'!Z150,'Backend Calcs Standard'!O150)) -> 
A150: =IFERROR(IF(B150="","",'Backend Calcs Standard'!P151),"") ->  | B150: =IFERROR(IF(C150="","",(IF('Backend Calcs Standard'!$A$12=1,'Backend Calcs Standard'!S151,(('Backend Calcs Standard'!S151)*0.0283168)))),"") ->  | C150: =IFERROR(IF(D150="","",(IF('Backend Calcs Standard'!$A$12=1,'Backend Calcs Standard'!T151,(('Backend Calcs Standard'!T151)*0.0283168)))),"") ->  | D150: =IFERROR(IF(E150="","",(IF('Backend Calcs Standard'!$A$12=1,'Backend Calcs Standard'!U151,(('Backend Calcs Standard'!U151)*0.0283168)))),"") ->  | E150: =IFERROR(IF(F150="","",(IF('Backend Calcs Standard'!$A$12=1,'Backend Calcs Standard'!V151,(('Backend Calcs Standard'!V151)*0.0283168)))),"") ->  | F150: =IF(I150="","",(IF('Backend Calcs Standard'!$A$12=1,'Backend Calcs Standard'!W151,('Backend Calcs Standard'!W151*0.0283168)))) ->  | H150: =IF('Backend Calcs Standard'!$A$12=1,'Backend Calcs Standard'!X151,('Backend Calcs Standard'!X151*0.0283168)) ->  | I150: =IFERROR(IF(H150="","",(IF('Backend Calcs Standard'!$A$12=1,'Backend Calcs Standard'!Y151,'Backend Calcs Standard'!Y151*0.0283168))),"") ->  | J150: =IF(A150="","",IF('Backend Calcs Standard'!$A$12=1,'Backend Calcs Standard'!Z151,'Backend Calcs Standard'!O151)) -> 
A151: =IFERROR(IF(B151="","",'Backend Calcs Standard'!P152),"") ->  | B151: =IFERROR(IF(C151="","",(IF('Backend Calcs Standard'!$A$12=1,'Backend Calcs Standard'!S152,(('Backend Calcs Standard'!S152)*0.0283168)))),"") ->  | C151: =IFERROR(IF(D151="","",(IF('Backend Calcs Standard'!$A$12=1,'Backend Calcs Standard'!T152,(('Backend Calcs Standard'!T152)*0.0283168)))),"") ->  | D151: =IFERROR(IF(E151="","",(IF('Backend Calcs Standard'!$A$12=1,'Backend Calcs Standard'!U152,(('Backend Calcs Standard'!U152)*0.0283168)))),"") ->  | E151: =IFERROR(IF(F151="","",(IF('Backend Calcs Standard'!$A$12=1,'Backend Calcs Standard'!V152,(('Backend Calcs Standard'!V152)*0.0283168)))),"") ->  | F151: =IF(I151="","",(IF('Backend Calcs Standard'!$A$12=1,'Backend Calcs Standard'!W152,('Backend Calcs Standard'!W152*0.0283168)))) ->  | H151: =IF('Backend Calcs Standard'!$A$12=1,'Backend Calcs Standard'!X152,('Backend Calcs Standard'!X152*0.0283168)) ->  | I151: =IFERROR(IF(H151="","",(IF('Backend Calcs Standard'!$A$12=1,'Backend Calcs Standard'!Y152,'Backend Calcs Standard'!Y152*0.0283168))),"") ->  | J151: =IF(A151="","",IF('Backend Calcs Standard'!$A$12=1,'Backend Calcs Standard'!Z152,'Backend Calcs Standard'!O152)) -> 
A152: =IFERROR(IF(B152="","",'Backend Calcs Standard'!P153),"") ->  | B152: =IFERROR(IF(C152="","",(IF('Backend Calcs Standard'!$A$12=1,'Backend Calcs Standard'!S153,(('Backend Calcs Standard'!S153)*0.0283168)))),"") ->  | C152: =IFERROR(IF(D152="","",(IF('Backend Calcs Standard'!$A$12=1,'Backend Calcs Standard'!T153,(('Backend Calcs Standard'!T153)*0.0283168)))),"") ->  | D152: =IFERROR(IF(E152="","",(IF('Backend Calcs Standard'!$A$12=1,'Backend Calcs Standard'!U153,(('Backend Calcs Standard'!U153)*0.0283168)))),"") ->  | E152: =IFERROR(IF(F152="","",(IF('Backend Calcs Standard'!$A$12=1,'Backend Calcs Standard'!V153,(('Backend Calcs Standard'!V153)*0.0283168)))),"") ->  | F152: =IF(I152="","",(IF('Backend Calcs Standard'!$A$12=1,'Backend Calcs Standard'!W153,('Backend Calcs Standard'!W153*0.0283168)))) ->  | H152: =IF('Backend Calcs Standard'!$A$12=1,'Backend Calcs Standard'!X153,('Backend Calcs Standard'!X153*0.0283168)) ->  | I152: =IFERROR(IF(H152="","",(IF('Backend Calcs Standard'!$A$12=1,'Backend Calcs Standard'!Y153,'Backend Calcs Standard'!Y153*0.0283168))),"") ->  | J152: =IF(A152="","",IF('Backend Calcs Standard'!$A$12=1,'Backend Calcs Standard'!Z153,'Backend Calcs Standard'!O153)) -> 
A153: =IFERROR(IF(B153="","",'Backend Calcs Standard'!P154),"") ->  | B153: =IFERROR(IF(C153="","",(IF('Backend Calcs Standard'!$A$12=1,'Backend Calcs Standard'!S154,(('Backend Calcs Standard'!S154)*0.0283168)))),"") ->  | C153: =IFERROR(IF(D153="","",(IF('Backend Calcs Standard'!$A$12=1,'Backend Calcs Standard'!T154,(('Backend Calcs Standard'!T154)*0.0283168)))),"") ->  | D153: =IFERROR(IF(E153="","",(IF('Backend Calcs Standard'!$A$12=1,'Backend Calcs Standard'!U154,(('Backend Calcs Standard'!U154)*0.0283168)))),"") ->  | E153: =IFERROR(IF(F153="","",(IF('Backend Calcs Standard'!$A$12=1,'Backend Calcs Standard'!V154,(('Backend Calcs Standard'!V154)*0.0283168)))),"") ->  | F153: =IF(I153="","",(IF('Backend Calcs Standard'!$A$12=1,'Backend Calcs Standard'!W154,('Backend Calcs Standard'!W154*0.0283168)))) ->  | H153: =IF('Backend Calcs Standard'!$A$12=1,'Backend Calcs Standard'!X154,('Backend Calcs Standard'!X154*0.0283168)) ->  | I153: =IFERROR(IF(H153="","",(IF('Backend Calcs Standard'!$A$12=1,'Backend Calcs Standard'!Y154,'Backend Calcs Standard'!Y154*0.0283168))),"") ->  | J153: =IF(A153="","",IF('Backend Calcs Standard'!$A$12=1,'Backend Calcs Standard'!Z154,'Backend Calcs Standard'!O154)) -> 
A154: =IFERROR(IF(B154="","",'Backend Calcs Standard'!P155),"") ->  | B154: =IFERROR(IF(C154="","",(IF('Backend Calcs Standard'!$A$12=1,'Backend Calcs Standard'!S155,(('Backend Calcs Standard'!S155)*0.0283168)))),"") ->  | C154: =IFERROR(IF(D154="","",(IF('Backend Calcs Standard'!$A$12=1,'Backend Calcs Standard'!T155,(('Backend Calcs Standard'!T155)*0.0283168)))),"") ->  | D154: =IFERROR(IF(E154="","",(IF('Backend Calcs Standard'!$A$12=1,'Backend Calcs Standard'!U155,(('Backend Calcs Standard'!U155)*0.0283168)))),"") ->  | E154: =IFERROR(IF(F154="","",(IF('Backend Calcs Standard'!$A$12=1,'Backend Calcs Standard'!V155,(('Backend Calcs Standard'!V155)*0.0283168)))),"") ->  | F154: =IF(I154="","",(IF('Backend Calcs Standard'!$A$12=1,'Backend Calcs Standard'!W155,('Backend Calcs Standard'!W155*0.0283168)))) ->  | H154: =IF('Backend Calcs Standard'!$A$12=1,'Backend Calcs Standard'!X155,('Backend Calcs Standard'!X155*0.0283168)) ->  | I154: =IFERROR(IF(H154="","",(IF('Backend Calcs Standard'!$A$12=1,'Backend Calcs Standard'!Y155,'Backend Calcs Standard'!Y155*0.0283168))),"") ->  | J154: =IF(A154="","",IF('Backend Calcs Standard'!$A$12=1,'Backend Calcs Standard'!Z155,'Backend Calcs Standard'!O155)) -> 
A155: =IFERROR(IF(B155="","",'Backend Calcs Standard'!P156),"") ->  | B155: =IFERROR(IF(C155="","",(IF('Backend Calcs Standard'!$A$12=1,'Backend Calcs Standard'!S156,(('Backend Calcs Standard'!S156)*0.0283168)))),"") ->  | C155: =IFERROR(IF(D155="","",(IF('Backend Calcs Standard'!$A$12=1,'Backend Calcs Standard'!T156,(('Backend Calcs Standard'!T156)*0.0283168)))),"") ->  | D155: =IFERROR(IF(E155="","",(IF('Backend Calcs Standard'!$A$12=1,'Backend Calcs Standard'!U156,(('Backend Calcs Standard'!U156)*0.0283168)))),"") ->  | E155: =IFERROR(IF(F155="","",(IF('Backend Calcs Standard'!$A$12=1,'Backend Calcs Standard'!V156,(('Backend Calcs Standard'!V156)*0.0283168)))),"") ->  | F155: =IF(I155="","",(IF('Backend Calcs Standard'!$A$12=1,'Backend Calcs Standard'!W156,('Backend Calcs Standard'!W156*0.0283168)))) ->  | H155: =IF('Backend Calcs Standard'!$A$12=1,'Backend Calcs Standard'!X156,('Backend Calcs Standard'!X156*0.0283168)) ->  | I155: =IFERROR(IF(H155="","",(IF('Backend Calcs Standard'!$A$12=1,'Backend Calcs Standard'!Y156,'Backend Calcs Standard'!Y156*0.0283168))),"") ->  | J155: =IF(A155="","",IF('Backend Calcs Standard'!$A$12=1,'Backend Calcs Standard'!Z156,'Backend Calcs Standard'!O156)) -> 
A156: =IFERROR(IF(B156="","",'Backend Calcs Standard'!P157),"") ->  | B156: =IFERROR(IF(C156="","",(IF('Backend Calcs Standard'!$A$12=1,'Backend Calcs Standard'!S157,(('Backend Calcs Standard'!S157)*0.0283168)))),"") ->  | C156: =IFERROR(IF(D156="","",(IF('Backend Calcs Standard'!$A$12=1,'Backend Calcs Standard'!T157,(('Backend Calcs Standard'!T157)*0.0283168)))),"") ->  | D156: =IFERROR(IF(E156="","",(IF('Backend Calcs Standard'!$A$12=1,'Backend Calcs Standard'!U157,(('Backend Calcs Standard'!U157)*0.0283168)))),"") ->  | E156: =IFERROR(IF(F156="","",(IF('Backend Calcs Standard'!$A$12=1,'Backend Calcs Standard'!V157,(('Backend Calcs Standard'!V157)*0.0283168)))),"") ->  | F156: =IF(I156="","",(IF('Backend Calcs Standard'!$A$12=1,'Backend Calcs Standard'!W157,('Backend Calcs Standard'!W157*0.0283168)))) ->  | H156: =IF('Backend Calcs Standard'!$A$12=1,'Backend Calcs Standard'!X157,('Backend Calcs Standard'!X157*0.0283168)) ->  | I156: =IFERROR(IF(H156="","",(IF('Backend Calcs Standard'!$A$12=1,'Backend Calcs Standard'!Y157,'Backend Calcs Standard'!Y157*0.0283168))),"") ->  | J156: =IF(A156="","",IF('Backend Calcs Standard'!$A$12=1,'Backend Calcs Standard'!Z157,'Backend Calcs Standard'!O157)) -> 
A157: =IFERROR(IF(B157="","",'Backend Calcs Standard'!P158),"") ->  | B157: =IFERROR(IF(C157="","",(IF('Backend Calcs Standard'!$A$12=1,'Backend Calcs Standard'!S158,(('Backend Calcs Standard'!S158)*0.0283168)))),"") ->  | C157: =IFERROR(IF(D157="","",(IF('Backend Calcs Standard'!$A$12=1,'Backend Calcs Standard'!T158,(('Backend Calcs Standard'!T158)*0.0283168)))),"") ->  | D157: =IFERROR(IF(E157="","",(IF('Backend Calcs Standard'!$A$12=1,'Backend Calcs Standard'!U158,(('Backend Calcs Standard'!U158)*0.0283168)))),"") ->  | E157: =IFERROR(IF(F157="","",(IF('Backend Calcs Standard'!$A$12=1,'Backend Calcs Standard'!V158,(('Backend Calcs Standard'!V158)*0.0283168)))),"") ->  | F157: =IF(I157="","",(IF('Backend Calcs Standard'!$A$12=1,'Backend Calcs Standard'!W158,('Backend Calcs Standard'!W158*0.0283168)))) ->  | H157: =IF('Backend Calcs Standard'!$A$12=1,'Backend Calcs Standard'!X158,('Backend Calcs Standard'!X158*0.0283168)) ->  | I157: =IFERROR(IF(H157="","",(IF('Backend Calcs Standard'!$A$12=1,'Backend Calcs Standard'!Y158,'Backend Calcs Standard'!Y158*0.0283168))),"") ->  | J157: =IF(A157="","",IF('Backend Calcs Standard'!$A$12=1,'Backend Calcs Standard'!Z158,'Backend Calcs Standard'!O158)) -> 
A158: =IFERROR(IF(B158="","",'Backend Calcs Standard'!P159),"") ->  | B158: =IFERROR(IF(C158="","",(IF('Backend Calcs Standard'!$A$12=1,'Backend Calcs Standard'!S159,(('Backend Calcs Standard'!S159)*0.0283168)))),"") ->  | C158: =IFERROR(IF(D158="","",(IF('Backend Calcs Standard'!$A$12=1,'Backend Calcs Standard'!T159,(('Backend Calcs Standard'!T159)*0.0283168)))),"") ->  | D158: =IFERROR(IF(E158="","",(IF('Backend Calcs Standard'!$A$12=1,'Backend Calcs Standard'!U159,(('Backend Calcs Standard'!U159)*0.0283168)))),"") ->  | E158: =IFERROR(IF(F158="","",(IF('Backend Calcs Standard'!$A$12=1,'Backend Calcs Standard'!V159,(('Backend Calcs Standard'!V159)*0.0283168)))),"") ->  | F158: =IF(I158="","",(IF('Backend Calcs Standard'!$A$12=1,'Backend Calcs Standard'!W159,('Backend Calcs Standard'!W159*0.0283168)))) ->  | H158: =IF('Backend Calcs Standard'!$A$12=1,'Backend Calcs Standard'!X159,('Backend Calcs Standard'!X159*0.0283168)) ->  | I158: =IFERROR(IF(H158="","",(IF('Backend Calcs Standard'!$A$12=1,'Backend Calcs Standard'!Y159,'Backend Calcs Standard'!Y159*0.0283168))),"") ->  | J158: =IF(A158="","",IF('Backend Calcs Standard'!$A$12=1,'Backend Calcs Standard'!Z159,'Backend Calcs Standard'!O159)) -> 
A159: =IFERROR(IF(B159="","",'Backend Calcs Standard'!P160),"") ->  | B159: =IFERROR(IF(C159="","",(IF('Backend Calcs Standard'!$A$12=1,'Backend Calcs Standard'!S160,(('Backend Calcs Standard'!S160)*0.0283168)))),"") ->  | C159: =IFERROR(IF(D159="","",(IF('Backend Calcs Standard'!$A$12=1,'Backend Calcs Standard'!T160,(('Backend Calcs Standard'!T160)*0.0283168)))),"") ->  | D159: =IFERROR(IF(E159="","",(IF('Backend Calcs Standard'!$A$12=1,'Backend Calcs Standard'!U160,(('Backend Calcs Standard'!U160)*0.0283168)))),"") ->  | E159: =IFERROR(IF(F159="","",(IF('Backend Calcs Standard'!$A$12=1,'Backend Calcs Standard'!V160,(('Backend Calcs Standard'!V160)*0.0283168)))),"") ->  | F159: =IF(I159="","",(IF('Backend Calcs Standard'!$A$12=1,'Backend Calcs Standard'!W160,('Backend Calcs Standard'!W160*0.0283168)))) ->  | H159: =IF('Backend Calcs Standard'!$A$12=1,'Backend Calcs Standard'!X160,('Backend Calcs Standard'!X160*0.0283168)) ->  | I159: =IFERROR(IF(H159="","",(IF('Backend Calcs Standard'!$A$12=1,'Backend Calcs Standard'!Y160,'Backend Calcs Standard'!Y160*0.0283168))),"") ->  | J159: =IF(A159="","",IF('Backend Calcs Standard'!$A$12=1,'Backend Calcs Standard'!Z160,'Backend Calcs Standard'!O160)) -> 
A160: =IFERROR(IF(B160="","",'Backend Calcs Standard'!P161),"") ->  | B160: =IFERROR(IF(C160="","",(IF('Backend Calcs Standard'!$A$12=1,'Backend Calcs Standard'!S161,(('Backend Calcs Standard'!S161)*0.0283168)))),"") ->  | C160: =IFERROR(IF(D160="","",(IF('Backend Calcs Standard'!$A$12=1,'Backend Calcs Standard'!T161,(('Backend Calcs Standard'!T161)*0.0283168)))),"") ->  | D160: =IFERROR(IF(E160="","",(IF('Backend Calcs Standard'!$A$12=1,'Backend Calcs Standard'!U161,(('Backend Calcs Standard'!U161)*0.0283168)))),"") ->  | E160: =IFERROR(IF(F160="","",(IF('Backend Calcs Standard'!$A$12=1,'Backend Calcs Standard'!V161,(('Backend Calcs Standard'!V161)*0.0283168)))),"") ->  | F160: =IF(I160="","",(IF('Backend Calcs Standard'!$A$12=1,'Backend Calcs Standard'!W161,('Backend Calcs Standard'!W161*0.0283168)))) ->  | H160: =IF('Backend Calcs Standard'!$A$12=1,'Backend Calcs Standard'!X161,('Backend Calcs Standard'!X161*0.0283168)) ->  | I160: =IFERROR(IF(H160="","",(IF('Backend Calcs Standard'!$A$12=1,'Backend Calcs Standard'!Y161,'Backend Calcs Standard'!Y161*0.0283168))),"") ->  | J160: =IF(A160="","",IF('Backend Calcs Standard'!$A$12=1,'Backend Calcs Standard'!Z161,'Backend Calcs Standard'!O161)) -> 
A161: =IFERROR(IF(B161="","",'Backend Calcs Standard'!P162),"") ->  | B161: =IFERROR(IF(C161="","",(IF('Backend Calcs Standard'!$A$12=1,'Backend Calcs Standard'!S162,(('Backend Calcs Standard'!S162)*0.0283168)))),"") ->  | C161: =IFERROR(IF(D161="","",(IF('Backend Calcs Standard'!$A$12=1,'Backend Calcs Standard'!T162,(('Backend Calcs Standard'!T162)*0.0283168)))),"") ->  | D161: =IFERROR(IF(E161="","",(IF('Backend Calcs Standard'!$A$12=1,'Backend Calcs Standard'!U162,(('Backend Calcs Standard'!U162)*0.0283168)))),"") ->  | E161: =IFERROR(IF(F161="","",(IF('Backend Calcs Standard'!$A$12=1,'Backend Calcs Standard'!V162,(('Backend Calcs Standard'!V162)*0.0283168)))),"") ->  | F161: =IF(I161="","",(IF('Backend Calcs Standard'!$A$12=1,'Backend Calcs Standard'!W162,('Backend Calcs Standard'!W162*0.0283168)))) ->  | H161: =IF('Backend Calcs Standard'!$A$12=1,'Backend Calcs Standard'!X162,('Backend Calcs Standard'!X162*0.0283168)) ->  | I161: =IFERROR(IF(H161="","",(IF('Backend Calcs Standard'!$A$12=1,'Backend Calcs Standard'!Y162,'Backend Calcs Standard'!Y162*0.0283168))),"") ->  | J161: =IF(A161="","",IF('Backend Calcs Standard'!$A$12=1,'Backend Calcs Standard'!Z162,'Backend Calcs Standard'!O162)) -> 
A162: =IFERROR(IF(B162="","",'Backend Calcs Standard'!P163),"") ->  | B162: =IFERROR(IF(C162="","",(IF('Backend Calcs Standard'!$A$12=1,'Backend Calcs Standard'!S163,(('Backend Calcs Standard'!S163)*0.0283168)))),"") ->  | C162: =IFERROR(IF(D162="","",(IF('Backend Calcs Standard'!$A$12=1,'Backend Calcs Standard'!T163,(('Backend Calcs Standard'!T163)*0.0283168)))),"") ->  | D162: =IFERROR(IF(E162="","",(IF('Backend Calcs Standard'!$A$12=1,'Backend Calcs Standard'!U163,(('Backend Calcs Standard'!U163)*0.0283168)))),"") ->  | E162: =IFERROR(IF(F162="","",(IF('Backend Calcs Standard'!$A$12=1,'Backend Calcs Standard'!V163,(('Backend Calcs Standard'!V163)*0.0283168)))),"") ->  | F162: =IF(I162="","",(IF('Backend Calcs Standard'!$A$12=1,'Backend Calcs Standard'!W163,('Backend Calcs Standard'!W163*0.0283168)))) ->  | H162: =IF('Backend Calcs Standard'!$A$12=1,'Backend Calcs Standard'!X163,('Backend Calcs Standard'!X163*0.0283168)) ->  | I162: =IFERROR(IF(H162="","",(IF('Backend Calcs Standard'!$A$12=1,'Backend Calcs Standard'!Y163,'Backend Calcs Standard'!Y163*0.0283168))),"") ->  | J162: =IF(A162="","",IF('Backend Calcs Standard'!$A$12=1,'Backend Calcs Standard'!Z163,'Backend Calcs Standard'!O163)) -> 
A163: =IFERROR(IF(B163="","",'Backend Calcs Standard'!P164),"") ->  | B163: =IFERROR(IF(C163="","",(IF('Backend Calcs Standard'!$A$12=1,'Backend Calcs Standard'!S164,(('Backend Calcs Standard'!S164)*0.0283168)))),"") ->  | C163: =IFERROR(IF(D163="","",(IF('Backend Calcs Standard'!$A$12=1,'Backend Calcs Standard'!T164,(('Backend Calcs Standard'!T164)*0.0283168)))),"") ->  | D163: =IFERROR(IF(E163="","",(IF('Backend Calcs Standard'!$A$12=1,'Backend Calcs Standard'!U164,(('Backend Calcs Standard'!U164)*0.0283168)))),"") ->  | E163: =IFERROR(IF(F163="","",(IF('Backend Calcs Standard'!$A$12=1,'Backend Calcs Standard'!V164,(('Backend Calcs Standard'!V164)*0.0283168)))),"") ->  | F163: =IF(I163="","",(IF('Backend Calcs Standard'!$A$12=1,'Backend Calcs Standard'!W164,('Backend Calcs Standard'!W164*0.0283168)))) ->  | H163: =IF('Backend Calcs Standard'!$A$12=1,'Backend Calcs Standard'!X164,('Backend Calcs Standard'!X164*0.0283168)) ->  | I163: =IFERROR(IF(H163="","",(IF('Backend Calcs Standard'!$A$12=1,'Backend Calcs Standard'!Y164,'Backend Calcs Standard'!Y164*0.0283168))),"") ->  | J163: =IF(A163="","",IF('Backend Calcs Standard'!$A$12=1,'Backend Calcs Standard'!Z164,'Backend Calcs Standard'!O164)) -> 
A164: =IFERROR(IF(B164="","",'Backend Calcs Standard'!P165),"") ->  | B164: =IFERROR(IF(C164="","",(IF('Backend Calcs Standard'!$A$12=1,'Backend Calcs Standard'!S165,(('Backend Calcs Standard'!S165)*0.0283168)))),"") ->  | C164: =IFERROR(IF(D164="","",(IF('Backend Calcs Standard'!$A$12=1,'Backend Calcs Standard'!T165,(('Backend Calcs Standard'!T165)*0.0283168)))),"") ->  | D164: =IFERROR(IF(E164="","",(IF('Backend Calcs Standard'!$A$12=1,'Backend Calcs Standard'!U165,(('Backend Calcs Standard'!U165)*0.0283168)))),"") ->  | E164: =IFERROR(IF(F164="","",(IF('Backend Calcs Standard'!$A$12=1,'Backend Calcs Standard'!V165,(('Backend Calcs Standard'!V165)*0.0283168)))),"") ->  | F164: =IF(I164="","",(IF('Backend Calcs Standard'!$A$12=1,'Backend Calcs Standard'!W165,('Backend Calcs Standard'!W165*0.0283168)))) ->  | H164: =IF('Backend Calcs Standard'!$A$12=1,'Backend Calcs Standard'!X165,('Backend Calcs Standard'!X165*0.0283168)) ->  | I164: =IFERROR(IF(H164="","",(IF('Backend Calcs Standard'!$A$12=1,'Backend Calcs Standard'!Y165,'Backend Calcs Standard'!Y165*0.0283168))),"") ->  | J164: =IF(A164="","",IF('Backend Calcs Standard'!$A$12=1,'Backend Calcs Standard'!Z165,'Backend Calcs Standard'!O165)) -> 
A165: =IFERROR(IF(B165="","",'Backend Calcs Standard'!P166),"") ->  | B165: =IFERROR(IF(C165="","",(IF('Backend Calcs Standard'!$A$12=1,'Backend Calcs Standard'!S166,(('Backend Calcs Standard'!S166)*0.0283168)))),"") ->  | C165: =IFERROR(IF(D165="","",(IF('Backend Calcs Standard'!$A$12=1,'Backend Calcs Standard'!T166,(('Backend Calcs Standard'!T166)*0.0283168)))),"") ->  | D165: =IFERROR(IF(E165="","",(IF('Backend Calcs Standard'!$A$12=1,'Backend Calcs Standard'!U166,(('Backend Calcs Standard'!U166)*0.0283168)))),"") ->  | E165: =IFERROR(IF(F165="","",(IF('Backend Calcs Standard'!$A$12=1,'Backend Calcs Standard'!V166,(('Backend Calcs Standard'!V166)*0.0283168)))),"") ->  | F165: =IF(I165="","",(IF('Backend Calcs Standard'!$A$12=1,'Backend Calcs Standard'!W166,('Backend Calcs Standard'!W166*0.0283168)))) ->  | H165: =IF('Backend Calcs Standard'!$A$12=1,'Backend Calcs Standard'!X166,('Backend Calcs Standard'!X166*0.0283168)) ->  | I165: =IFERROR(IF(H165="","",(IF('Backend Calcs Standard'!$A$12=1,'Backend Calcs Standard'!Y166,'Backend Calcs Standard'!Y166*0.0283168))),"") ->  | J165: =IF(A165="","",IF('Backend Calcs Standard'!$A$12=1,'Backend Calcs Standard'!Z166,'Backend Calcs Standard'!O166)) -> 
A166: =IFERROR(IF(B166="","",'Backend Calcs Standard'!P167),"") ->  | B166: =IFERROR(IF(C166="","",(IF('Backend Calcs Standard'!$A$12=1,'Backend Calcs Standard'!S167,(('Backend Calcs Standard'!S167)*0.0283168)))),"") ->  | C166: =IFERROR(IF(D166="","",(IF('Backend Calcs Standard'!$A$12=1,'Backend Calcs Standard'!T167,(('Backend Calcs Standard'!T167)*0.0283168)))),"") ->  | D166: =IFERROR(IF(E166="","",(IF('Backend Calcs Standard'!$A$12=1,'Backend Calcs Standard'!U167,(('Backend Calcs Standard'!U167)*0.0283168)))),"") ->  | E166: =IFERROR(IF(F166="","",(IF('Backend Calcs Standard'!$A$12=1,'Backend Calcs Standard'!V167,(('Backend Calcs Standard'!V167)*0.0283168)))),"") ->  | F166: =IF(I166="","",(IF('Backend Calcs Standard'!$A$12=1,'Backend Calcs Standard'!W167,('Backend Calcs Standard'!W167*0.0283168)))) ->  | H166: =IF('Backend Calcs Standard'!$A$12=1,'Backend Calcs Standard'!X167,('Backend Calcs Standard'!X167*0.0283168)) ->  | I166: =IFERROR(IF(H166="","",(IF('Backend Calcs Standard'!$A$12=1,'Backend Calcs Standard'!Y167,'Backend Calcs Standard'!Y167*0.0283168))),"") ->  | J166: =IF(A166="","",IF('Backend Calcs Standard'!$A$12=1,'Backend Calcs Standard'!Z167,'Backend Calcs Standard'!O167)) -> 
A167: =IFERROR(IF(B167="","",'Backend Calcs Standard'!P168),"") ->  | B167: =IFERROR(IF(C167="","",(IF('Backend Calcs Standard'!$A$12=1,'Backend Calcs Standard'!S168,(('Backend Calcs Standard'!S168)*0.0283168)))),"") ->  | C167: =IFERROR(IF(D167="","",(IF('Backend Calcs Standard'!$A$12=1,'Backend Calcs Standard'!T168,(('Backend Calcs Standard'!T168)*0.0283168)))),"") ->  | D167: =IFERROR(IF(E167="","",(IF('Backend Calcs Standard'!$A$12=1,'Backend Calcs Standard'!U168,(('Backend Calcs Standard'!U168)*0.0283168)))),"") ->  | E167: =IFERROR(IF(F167="","",(IF('Backend Calcs Standard'!$A$12=1,'Backend Calcs Standard'!V168,(('Backend Calcs Standard'!V168)*0.0283168)))),"") ->  | F167: =IF(I167="","",(IF('Backend Calcs Standard'!$A$12=1,'Backend Calcs Standard'!W168,('Backend Calcs Standard'!W168*0.0283168)))) ->  | H167: =IF('Backend Calcs Standard'!$A$12=1,'Backend Calcs Standard'!X168,('Backend Calcs Standard'!X168*0.0283168)) ->  | I167: =IFERROR(IF(H167="","",(IF('Backend Calcs Standard'!$A$12=1,'Backend Calcs Standard'!Y168,'Backend Calcs Standard'!Y168*0.0283168))),"") ->  | J167: =IF(A167="","",IF('Backend Calcs Standard'!$A$12=1,'Backend Calcs Standard'!Z168,'Backend Calcs Standard'!O168)) -> 
A168: =IFERROR(IF(B168="","",'Backend Calcs Standard'!P169),"") ->  | B168: =IFERROR(IF(C168="","",(IF('Backend Calcs Standard'!$A$12=1,'Backend Calcs Standard'!S169,(('Backend Calcs Standard'!S169)*0.0283168)))),"") ->  | C168: =IFERROR(IF(D168="","",(IF('Backend Calcs Standard'!$A$12=1,'Backend Calcs Standard'!T169,(('Backend Calcs Standard'!T169)*0.0283168)))),"") ->  | D168: =IFERROR(IF(E168="","",(IF('Backend Calcs Standard'!$A$12=1,'Backend Calcs Standard'!U169,(('Backend Calcs Standard'!U169)*0.0283168)))),"") ->  | E168: =IFERROR(IF(F168="","",(IF('Backend Calcs Standard'!$A$12=1,'Backend Calcs Standard'!V169,(('Backend Calcs Standard'!V169)*0.0283168)))),"") ->  | F168: =IF(I168="","",(IF('Backend Calcs Standard'!$A$12=1,'Backend Calcs Standard'!W169,('Backend Calcs Standard'!W169*0.0283168)))) ->  | H168: =IF('Backend Calcs Standard'!$A$12=1,'Backend Calcs Standard'!X169,('Backend Calcs Standard'!X169*0.0283168)) ->  | I168: =IFERROR(IF(H168="","",(IF('Backend Calcs Standard'!$A$12=1,'Backend Calcs Standard'!Y169,'Backend Calcs Standard'!Y169*0.0283168))),"") ->  | J168: =IF(A168="","",IF('Backend Calcs Standard'!$A$12=1,'Backend Calcs Standard'!Z169,'Backend Calcs Standard'!O169)) -> 
A169: =IFERROR(IF(B169="","",'Backend Calcs Standard'!P170),"") ->  | B169: =IFERROR(IF(C169="","",(IF('Backend Calcs Standard'!$A$12=1,'Backend Calcs Standard'!S170,(('Backend Calcs Standard'!S170)*0.0283168)))),"") ->  | C169: =IFERROR(IF(D169="","",(IF('Backend Calcs Standard'!$A$12=1,'Backend Calcs Standard'!T170,(('Backend Calcs Standard'!T170)*0.0283168)))),"") ->  | D169: =IFERROR(IF(E169="","",(IF('Backend Calcs Standard'!$A$12=1,'Backend Calcs Standard'!U170,(('Backend Calcs Standard'!U170)*0.0283168)))),"") ->  | E169: =IFERROR(IF(F169="","",(IF('Backend Calcs Standard'!$A$12=1,'Backend Calcs Standard'!V170,(('Backend Calcs Standard'!V170)*0.0283168)))),"") ->  | F169: =IF(I169="","",(IF('Backend Calcs Standard'!$A$12=1,'Backend Calcs Standard'!W170,('Backend Calcs Standard'!W170*0.0283168)))) ->  | H169: =IF('Backend Calcs Standard'!$A$12=1,'Backend Calcs Standard'!X170,('Backend Calcs Standard'!X170*0.0283168)) ->  | I169: =IFERROR(IF(H169="","",(IF('Backend Calcs Standard'!$A$12=1,'Backend Calcs Standard'!Y170,'Backend Calcs Standard'!Y170*0.0283168))),"") ->  | J169: =IF(A169="","",IF('Backend Calcs Standard'!$A$12=1,'Backend Calcs Standard'!Z170,'Backend Calcs Standard'!O170)) -> 
A170: =IFERROR(IF(B170="","",'Backend Calcs Standard'!P171),"") ->  | B170: =IFERROR(IF(C170="","",(IF('Backend Calcs Standard'!$A$12=1,'Backend Calcs Standard'!S171,(('Backend Calcs Standard'!S171)*0.0283168)))),"") ->  | C170: =IFERROR(IF(D170="","",(IF('Backend Calcs Standard'!$A$12=1,'Backend Calcs Standard'!T171,(('Backend Calcs Standard'!T171)*0.0283168)))),"") ->  | D170: =IFERROR(IF(E170="","",(IF('Backend Calcs Standard'!$A$12=1,'Backend Calcs Standard'!U171,(('Backend Calcs Standard'!U171)*0.0283168)))),"") ->  | E170: =IFERROR(IF(F170="","",(IF('Backend Calcs Standard'!$A$12=1,'Backend Calcs Standard'!V171,(('Backend Calcs Standard'!V171)*0.0283168)))),"") ->  | F170: =IF(I170="","",(IF('Backend Calcs Standard'!$A$12=1,'Backend Calcs Standard'!W171,('Backend Calcs Standard'!W171*0.0283168)))) ->  | H170: =IF('Backend Calcs Standard'!$A$12=1,'Backend Calcs Standard'!X171,('Backend Calcs Standard'!X171*0.0283168)) ->  | I170: =IFERROR(IF(H170="","",(IF('Backend Calcs Standard'!$A$12=1,'Backend Calcs Standard'!Y171,'Backend Calcs Standard'!Y171*0.0283168))),"") ->  | J170: =IF(A170="","",IF('Backend Calcs Standard'!$A$12=1,'Backend Calcs Standard'!Z171,'Backend Calcs Standard'!O171)) -> 
A171: =IFERROR(IF(B171="","",'Backend Calcs Standard'!P172),"") ->  | B171: =IFERROR(IF(C171="","",(IF('Backend Calcs Standard'!$A$12=1,'Backend Calcs Standard'!S172,(('Backend Calcs Standard'!S172)*0.0283168)))),"") ->  | C171: =IFERROR(IF(D171="","",(IF('Backend Calcs Standard'!$A$12=1,'Backend Calcs Standard'!T172,(('Backend Calcs Standard'!T172)*0.0283168)))),"") ->  | D171: =IFERROR(IF(E171="","",(IF('Backend Calcs Standard'!$A$12=1,'Backend Calcs Standard'!U172,(('Backend Calcs Standard'!U172)*0.0283168)))),"") ->  | E171: =IFERROR(IF(F171="","",(IF('Backend Calcs Standard'!$A$12=1,'Backend Calcs Standard'!V172,(('Backend Calcs Standard'!V172)*0.0283168)))),"") ->  | F171: =IF(I171="","",(IF('Backend Calcs Standard'!$A$12=1,'Backend Calcs Standard'!W172,('Backend Calcs Standard'!W172*0.0283168)))) ->  | H171: =IF('Backend Calcs Standard'!$A$12=1,'Backend Calcs Standard'!X172,('Backend Calcs Standard'!X172*0.0283168)) ->  | I171: =IFERROR(IF(H171="","",(IF('Backend Calcs Standard'!$A$12=1,'Backend Calcs Standard'!Y172,'Backend Calcs Standard'!Y172*0.0283168))),"") ->  | J171: =IF(A171="","",IF('Backend Calcs Standard'!$A$12=1,'Backend Calcs Standard'!Z172,'Backend Calcs Standard'!O172)) -> 
A172: =IFERROR(IF(B172="","",'Backend Calcs Standard'!P173),"") ->  | B172: =IFERROR(IF(C172="","",(IF('Backend Calcs Standard'!$A$12=1,'Backend Calcs Standard'!S173,(('Backend Calcs Standard'!S173)*0.0283168)))),"") ->  | C172: =IFERROR(IF(D172="","",(IF('Backend Calcs Standard'!$A$12=1,'Backend Calcs Standard'!T173,(('Backend Calcs Standard'!T173)*0.0283168)))),"") ->  | D172: =IFERROR(IF(E172="","",(IF('Backend Calcs Standard'!$A$12=1,'Backend Calcs Standard'!U173,(('Backend Calcs Standard'!U173)*0.0283168)))),"") ->  | E172: =IFERROR(IF(F172="","",(IF('Backend Calcs Standard'!$A$12=1,'Backend Calcs Standard'!V173,(('Backend Calcs Standard'!V173)*0.0283168)))),"") ->  | F172: =IF(I172="","",(IF('Backend Calcs Standard'!$A$12=1,'Backend Calcs Standard'!W173,('Backend Calcs Standard'!W173*0.0283168)))) ->  | H172: =IF('Backend Calcs Standard'!$A$12=1,'Backend Calcs Standard'!X173,('Backend Calcs Standard'!X173*0.0283168)) ->  | I172: =IFERROR(IF(H172="","",(IF('Backend Calcs Standard'!$A$12=1,'Backend Calcs Standard'!Y173,'Backend Calcs Standard'!Y173*0.0283168))),"") ->  | J172: =IF(A172="","",IF('Backend Calcs Standard'!$A$12=1,'Backend Calcs Standard'!Z173,'Backend Calcs Standard'!O173)) -> 
A173: =IFERROR(IF(B173="","",'Backend Calcs Standard'!P174),"") ->  | B173: =IFERROR(IF(C173="","",(IF('Backend Calcs Standard'!$A$12=1,'Backend Calcs Standard'!S174,(('Backend Calcs Standard'!S174)*0.0283168)))),"") ->  | C173: =IFERROR(IF(D173="","",(IF('Backend Calcs Standard'!$A$12=1,'Backend Calcs Standard'!T174,(('Backend Calcs Standard'!T174)*0.0283168)))),"") ->  | D173: =IFERROR(IF(E173="","",(IF('Backend Calcs Standard'!$A$12=1,'Backend Calcs Standard'!U174,(('Backend Calcs Standard'!U174)*0.0283168)))),"") ->  | E173: =IFERROR(IF(F173="","",(IF('Backend Calcs Standard'!$A$12=1,'Backend Calcs Standard'!V174,(('Backend Calcs Standard'!V174)*0.0283168)))),"") ->  | F173: =IF(I173="","",(IF('Backend Calcs Standard'!$A$12=1,'Backend Calcs Standard'!W174,('Backend Calcs Standard'!W174*0.0283168)))) ->  | H173: =IF('Backend Calcs Standard'!$A$12=1,'Backend Calcs Standard'!X174,('Backend Calcs Standard'!X174*0.0283168)) ->  | I173: =IFERROR(IF(H173="","",(IF('Backend Calcs Standard'!$A$12=1,'Backend Calcs Standard'!Y174,'Backend Calcs Standard'!Y174*0.0283168))),"") ->  | J173: =IF(A173="","",IF('Backend Calcs Standard'!$A$12=1,'Backend Calcs Standard'!Z174,'Backend Calcs Standard'!O174)) -> 
A174: =IFERROR(IF(B174="","",'Backend Calcs Standard'!P175),"") ->  | B174: =IFERROR(IF(C174="","",(IF('Backend Calcs Standard'!$A$12=1,'Backend Calcs Standard'!S175,(('Backend Calcs Standard'!S175)*0.0283168)))),"") ->  | C174: =IFERROR(IF(D174="","",(IF('Backend Calcs Standard'!$A$12=1,'Backend Calcs Standard'!T175,(('Backend Calcs Standard'!T175)*0.0283168)))),"") ->  | D174: =IFERROR(IF(E174="","",(IF('Backend Calcs Standard'!$A$12=1,'Backend Calcs Standard'!U175,(('Backend Calcs Standard'!U175)*0.0283168)))),"") ->  | E174: =IFERROR(IF(F174="","",(IF('Backend Calcs Standard'!$A$12=1,'Backend Calcs Standard'!V175,(('Backend Calcs Standard'!V175)*0.0283168)))),"") ->  | F174: =IF(I174="","",(IF('Backend Calcs Standard'!$A$12=1,'Backend Calcs Standard'!W175,('Backend Calcs Standard'!W175*0.0283168)))) ->  | H174: =IF('Backend Calcs Standard'!$A$12=1,'Backend Calcs Standard'!X175,('Backend Calcs Standard'!X175*0.0283168)) ->  | I174: =IFERROR(IF(H174="","",(IF('Backend Calcs Standard'!$A$12=1,'Backend Calcs Standard'!Y175,'Backend Calcs Standard'!Y175*0.0283168))),"") ->  | J174: =IF(A174="","",IF('Backend Calcs Standard'!$A$12=1,'Backend Calcs Standard'!Z175,'Backend Calcs Standard'!O175)) -> 
A175: =IFERROR(IF(B175="","",'Backend Calcs Standard'!P176),"") ->  | B175: =IFERROR(IF(C175="","",(IF('Backend Calcs Standard'!$A$12=1,'Backend Calcs Standard'!S176,(('Backend Calcs Standard'!S176)*0.0283168)))),"") ->  | C175: =IFERROR(IF(D175="","",(IF('Backend Calcs Standard'!$A$12=1,'Backend Calcs Standard'!T176,(('Backend Calcs Standard'!T176)*0.0283168)))),"") ->  | D175: =IFERROR(IF(E175="","",(IF('Backend Calcs Standard'!$A$12=1,'Backend Calcs Standard'!U176,(('Backend Calcs Standard'!U176)*0.0283168)))),"") ->  | E175: =IFERROR(IF(F175="","",(IF('Backend Calcs Standard'!$A$12=1,'Backend Calcs Standard'!V176,(('Backend Calcs Standard'!V176)*0.0283168)))),"") ->  | F175: =IF(I175="","",(IF('Backend Calcs Standard'!$A$12=1,'Backend Calcs Standard'!W176,('Backend Calcs Standard'!W176*0.0283168)))) ->  | H175: =IF('Backend Calcs Standard'!$A$12=1,'Backend Calcs Standard'!X176,('Backend Calcs Standard'!X176*0.0283168)) ->  | I175: =IFERROR(IF(H175="","",(IF('Backend Calcs Standard'!$A$12=1,'Backend Calcs Standard'!Y176,'Backend Calcs Standard'!Y176*0.0283168))),"") ->  | J175: =IF(A175="","",IF('Backend Calcs Standard'!$A$12=1,'Backend Calcs Standard'!Z176,'Backend Calcs Standard'!O176)) -> 
A176: =IFERROR(IF(B176="","",'Backend Calcs Standard'!P177),"") ->  | B176: =IFERROR(IF(C176="","",(IF('Backend Calcs Standard'!$A$12=1,'Backend Calcs Standard'!S177,(('Backend Calcs Standard'!S177)*0.0283168)))),"") ->  | C176: =IFERROR(IF(D176="","",(IF('Backend Calcs Standard'!$A$12=1,'Backend Calcs Standard'!T177,(('Backend Calcs Standard'!T177)*0.0283168)))),"") ->  | D176: =IFERROR(IF(E176="","",(IF('Backend Calcs Standard'!$A$12=1,'Backend Calcs Standard'!U177,(('Backend Calcs Standard'!U177)*0.0283168)))),"") ->  | E176: =IFERROR(IF(F176="","",(IF('Backend Calcs Standard'!$A$12=1,'Backend Calcs Standard'!V177,(('Backend Calcs Standard'!V177)*0.0283168)))),"") ->  | F176: =IF(I176="","",(IF('Backend Calcs Standard'!$A$12=1,'Backend Calcs Standard'!W177,('Backend Calcs Standard'!W177*0.0283168)))) ->  | H176: =IF('Backend Calcs Standard'!$A$12=1,'Backend Calcs Standard'!X177,('Backend Calcs Standard'!X177*0.0283168)) ->  | I176: =IFERROR(IF(H176="","",(IF('Backend Calcs Standard'!$A$12=1,'Backend Calcs Standard'!Y177,'Backend Calcs Standard'!Y177*0.0283168))),"") ->  | J176: =IF(A176="","",IF('Backend Calcs Standard'!$A$12=1,'Backend Calcs Standard'!Z177,'Backend Calcs Standard'!O177)) -> 
A177: =IFERROR(IF(B177="","",'Backend Calcs Standard'!P178),"") ->  | B177: =IFERROR(IF(C177="","",(IF('Backend Calcs Standard'!$A$12=1,'Backend Calcs Standard'!S178,(('Backend Calcs Standard'!S178)*0.0283168)))),"") ->  | C177: =IFERROR(IF(D177="","",(IF('Backend Calcs Standard'!$A$12=1,'Backend Calcs Standard'!T178,(('Backend Calcs Standard'!T178)*0.0283168)))),"") ->  | D177: =IFERROR(IF(E177="","",(IF('Backend Calcs Standard'!$A$12=1,'Backend Calcs Standard'!U178,(('Backend Calcs Standard'!U178)*0.0283168)))),"") ->  | E177: =IFERROR(IF(F177="","",(IF('Backend Calcs Standard'!$A$12=1,'Backend Calcs Standard'!V178,(('Backend Calcs Standard'!V178)*0.0283168)))),"") ->  | F177: =IF(I177="","",(IF('Backend Calcs Standard'!$A$12=1,'Backend Calcs Standard'!W178,('Backend Calcs Standard'!W178*0.0283168)))) ->  | H177: =IF('Backend Calcs Standard'!$A$12=1,'Backend Calcs Standard'!X178,('Backend Calcs Standard'!X178*0.0283168)) ->  | I177: =IFERROR(IF(H177="","",(IF('Backend Calcs Standard'!$A$12=1,'Backend Calcs Standard'!Y178,'Backend Calcs Standard'!Y178*0.0283168))),"") ->  | J177: =IF(A177="","",IF('Backend Calcs Standard'!$A$12=1,'Backend Calcs Standard'!Z178,'Backend Calcs Standard'!O178)) -> 
A178: =IFERROR(IF(B178="","",'Backend Calcs Standard'!P179),"") ->  | B178: =IFERROR(IF(C178="","",(IF('Backend Calcs Standard'!$A$12=1,'Backend Calcs Standard'!S179,(('Backend Calcs Standard'!S179)*0.0283168)))),"") ->  | C178: =IFERROR(IF(D178="","",(IF('Backend Calcs Standard'!$A$12=1,'Backend Calcs Standard'!T179,(('Backend Calcs Standard'!T179)*0.0283168)))),"") ->  | D178: =IFERROR(IF(E178="","",(IF('Backend Calcs Standard'!$A$12=1,'Backend Calcs Standard'!U179,(('Backend Calcs Standard'!U179)*0.0283168)))),"") ->  | E178: =IFERROR(IF(F178="","",(IF('Backend Calcs Standard'!$A$12=1,'Backend Calcs Standard'!V179,(('Backend Calcs Standard'!V179)*0.0283168)))),"") ->  | F178: =IF(I178="","",(IF('Backend Calcs Standard'!$A$12=1,'Backend Calcs Standard'!W179,('Backend Calcs Standard'!W179*0.0283168)))) ->  | H178: =IF('Backend Calcs Standard'!$A$12=1,'Backend Calcs Standard'!X179,('Backend Calcs Standard'!X179*0.0283168)) ->  | I178: =IFERROR(IF(H178="","",(IF('Backend Calcs Standard'!$A$12=1,'Backend Calcs Standard'!Y179,'Backend Calcs Standard'!Y179*0.0283168))),"") ->  | J178: =IF(A178="","",IF('Backend Calcs Standard'!$A$12=1,'Backend Calcs Standard'!Z179,'Backend Calcs Standard'!O179)) -> 
A179: =IFERROR(IF(B179="","",'Backend Calcs Standard'!P180),"") ->  | B179: =IFERROR(IF(C179="","",(IF('Backend Calcs Standard'!$A$12=1,'Backend Calcs Standard'!S180,(('Backend Calcs Standard'!S180)*0.0283168)))),"") ->  | C179: =IFERROR(IF(D179="","",(IF('Backend Calcs Standard'!$A$12=1,'Backend Calcs Standard'!T180,(('Backend Calcs Standard'!T180)*0.0283168)))),"") ->  | D179: =IFERROR(IF(E179="","",(IF('Backend Calcs Standard'!$A$12=1,'Backend Calcs Standard'!U180,(('Backend Calcs Standard'!U180)*0.0283168)))),"") ->  | E179: =IFERROR(IF(F179="","",(IF('Backend Calcs Standard'!$A$12=1,'Backend Calcs Standard'!V180,(('Backend Calcs Standard'!V180)*0.0283168)))),"") ->  | F179: =IF(I179="","",(IF('Backend Calcs Standard'!$A$12=1,'Backend Calcs Standard'!W180,('Backend Calcs Standard'!W180*0.0283168)))) ->  | H179: =IF('Backend Calcs Standard'!$A$12=1,'Backend Calcs Standard'!X180,('Backend Calcs Standard'!X180*0.0283168)) ->  | I179: =IFERROR(IF(H179="","",(IF('Backend Calcs Standard'!$A$12=1,'Backend Calcs Standard'!Y180,'Backend Calcs Standard'!Y180*0.0283168))),"") ->  | J179: =IF(A179="","",IF('Backend Calcs Standard'!$A$12=1,'Backend Calcs Standard'!Z180,'Backend Calcs Standard'!O180)) -> 
A180: =IFERROR(IF(B180="","",'Backend Calcs Standard'!P181),"") ->  | B180: =IFERROR(IF(C180="","",(IF('Backend Calcs Standard'!$A$12=1,'Backend Calcs Standard'!S181,(('Backend Calcs Standard'!S181)*0.0283168)))),"") ->  | C180: =IFERROR(IF(D180="","",(IF('Backend Calcs Standard'!$A$12=1,'Backend Calcs Standard'!T181,(('Backend Calcs Standard'!T181)*0.0283168)))),"") ->  | D180: =IFERROR(IF(E180="","",(IF('Backend Calcs Standard'!$A$12=1,'Backend Calcs Standard'!U181,(('Backend Calcs Standard'!U181)*0.0283168)))),"") ->  | E180: =IFERROR(IF(F180="","",(IF('Backend Calcs Standard'!$A$12=1,'Backend Calcs Standard'!V181,(('Backend Calcs Standard'!V181)*0.0283168)))),"") ->  | F180: =IF(I180="","",(IF('Backend Calcs Standard'!$A$12=1,'Backend Calcs Standard'!W181,('Backend Calcs Standard'!W181*0.0283168)))) ->  | H180: =IF('Backend Calcs Standard'!$A$12=1,'Backend Calcs Standard'!X181,('Backend Calcs Standard'!X181*0.0283168)) ->  | I180: =IFERROR(IF(H180="","",(IF('Backend Calcs Standard'!$A$12=1,'Backend Calcs Standard'!Y181,'Backend Calcs Standard'!Y181*0.0283168))),"") ->  | J180: =IF(A180="","",IF('Backend Calcs Standard'!$A$12=1,'Backend Calcs Standard'!Z181,'Backend Calcs Standard'!O181)) -> 
A181: =IFERROR(IF(B181="","",'Backend Calcs Standard'!P182),"") ->  | B181: =IFERROR(IF(C181="","",(IF('Backend Calcs Standard'!$A$12=1,'Backend Calcs Standard'!S182,(('Backend Calcs Standard'!S182)*0.0283168)))),"") ->  | C181: =IFERROR(IF(D181="","",(IF('Backend Calcs Standard'!$A$12=1,'Backend Calcs Standard'!T182,(('Backend Calcs Standard'!T182)*0.0283168)))),"") ->  | D181: =IFERROR(IF(E181="","",(IF('Backend Calcs Standard'!$A$12=1,'Backend Calcs Standard'!U182,(('Backend Calcs Standard'!U182)*0.0283168)))),"") ->  | E181: =IFERROR(IF(F181="","",(IF('Backend Calcs Standard'!$A$12=1,'Backend Calcs Standard'!V182,(('Backend Calcs Standard'!V182)*0.0283168)))),"") ->  | F181: =IF(I181="","",(IF('Backend Calcs Standard'!$A$12=1,'Backend Calcs Standard'!W182,('Backend Calcs Standard'!W182*0.0283168)))) ->  | H181: =IF('Backend Calcs Standard'!$A$12=1,'Backend Calcs Standard'!X182,('Backend Calcs Standard'!X182*0.0283168)) ->  | I181: =IFERROR(IF(H181="","",(IF('Backend Calcs Standard'!$A$12=1,'Backend Calcs Standard'!Y182,'Backend Calcs Standard'!Y182*0.0283168))),"") ->  | J181: =IF(A181="","",IF('Backend Calcs Standard'!$A$12=1,'Backend Calcs Standard'!Z182,'Backend Calcs Standard'!O182)) -> 
A182: =IFERROR(IF(B182="","",'Backend Calcs Standard'!P183),"") ->  | B182: =IFERROR(IF(C182="","",(IF('Backend Calcs Standard'!$A$12=1,'Backend Calcs Standard'!S183,(('Backend Calcs Standard'!S183)*0.0283168)))),"") ->  | C182: =IFERROR(IF(D182="","",(IF('Backend Calcs Standard'!$A$12=1,'Backend Calcs Standard'!T183,(('Backend Calcs Standard'!T183)*0.0283168)))),"") ->  | D182: =IFERROR(IF(E182="","",(IF('Backend Calcs Standard'!$A$12=1,'Backend Calcs Standard'!U183,(('Backend Calcs Standard'!U183)*0.0283168)))),"") ->  | E182: =IFERROR(IF(F182="","",(IF('Backend Calcs Standard'!$A$12=1,'Backend Calcs Standard'!V183,(('Backend Calcs Standard'!V183)*0.0283168)))),"") ->  | F182: =IF(I182="","",(IF('Backend Calcs Standard'!$A$12=1,'Backend Calcs Standard'!W183,('Backend Calcs Standard'!W183*0.0283168)))) ->  | H182: =IF('Backend Calcs Standard'!$A$12=1,'Backend Calcs Standard'!X183,('Backend Calcs Standard'!X183*0.0283168)) ->  | I182: =IFERROR(IF(H182="","",(IF('Backend Calcs Standard'!$A$12=1,'Backend Calcs Standard'!Y183,'Backend Calcs Standard'!Y183*0.0283168))),"") ->  | J182: =IF(A182="","",IF('Backend Calcs Standard'!$A$12=1,'Backend Calcs Standard'!Z183,'Backend Calcs Standard'!O183)) -> 
A183: =IFERROR(IF(B183="","",'Backend Calcs Standard'!P184),"") ->  | B183: =IFERROR(IF(C183="","",(IF('Backend Calcs Standard'!$A$12=1,'Backend Calcs Standard'!S184,(('Backend Calcs Standard'!S184)*0.0283168)))),"") ->  | C183: =IFERROR(IF(D183="","",(IF('Backend Calcs Standard'!$A$12=1,'Backend Calcs Standard'!T184,(('Backend Calcs Standard'!T184)*0.0283168)))),"") ->  | D183: =IFERROR(IF(E183="","",(IF('Backend Calcs Standard'!$A$12=1,'Backend Calcs Standard'!U184,(('Backend Calcs Standard'!U184)*0.0283168)))),"") ->  | E183: =IFERROR(IF(F183="","",(IF('Backend Calcs Standard'!$A$12=1,'Backend Calcs Standard'!V184,(('Backend Calcs Standard'!V184)*0.0283168)))),"") ->  | F183: =IF(I183="","",(IF('Backend Calcs Standard'!$A$12=1,'Backend Calcs Standard'!W184,('Backend Calcs Standard'!W184*0.0283168)))) ->  | H183: =IF('Backend Calcs Standard'!$A$12=1,'Backend Calcs Standard'!X184,('Backend Calcs Standard'!X184*0.0283168)) ->  | I183: =IFERROR(IF(H183="","",(IF('Backend Calcs Standard'!$A$12=1,'Backend Calcs Standard'!Y184,'Backend Calcs Standard'!Y184*0.0283168))),"") ->  | J183: =IF(A183="","",IF('Backend Calcs Standard'!$A$12=1,'Backend Calcs Standard'!Z184,'Backend Calcs Standard'!O184)) -> 
A184: =IFERROR(IF(B184="","",'Backend Calcs Standard'!P185),"") ->  | B184: =IFERROR(IF(C184="","",(IF('Backend Calcs Standard'!$A$12=1,'Backend Calcs Standard'!S185,(('Backend Calcs Standard'!S185)*0.0283168)))),"") ->  | C184: =IFERROR(IF(D184="","",(IF('Backend Calcs Standard'!$A$12=1,'Backend Calcs Standard'!T185,(('Backend Calcs Standard'!T185)*0.0283168)))),"") ->  | D184: =IFERROR(IF(E184="","",(IF('Backend Calcs Standard'!$A$12=1,'Backend Calcs Standard'!U185,(('Backend Calcs Standard'!U185)*0.0283168)))),"") ->  | E184: =IFERROR(IF(F184="","",(IF('Backend Calcs Standard'!$A$12=1,'Backend Calcs Standard'!V185,(('Backend Calcs Standard'!V185)*0.0283168)))),"") ->  | F184: =IF(I184="","",(IF('Backend Calcs Standard'!$A$12=1,'Backend Calcs Standard'!W185,('Backend Calcs Standard'!W185*0.0283168)))) ->  | H184: =IF('Backend Calcs Standard'!$A$12=1,'Backend Calcs Standard'!X185,('Backend Calcs Standard'!X185*0.0283168)) ->  | I184: =IFERROR(IF(H184="","",(IF('Backend Calcs Standard'!$A$12=1,'Backend Calcs Standard'!Y185,'Backend Calcs Standard'!Y185*0.0283168))),"") ->  | J184: =IF(A184="","",IF('Backend Calcs Standard'!$A$12=1,'Backend Calcs Standard'!Z185,'Backend Calcs Standard'!O185)) -> 
A185: =IFERROR(IF(B185="","",'Backend Calcs Standard'!P186),"") ->  | B185: =IFERROR(IF(C185="","",(IF('Backend Calcs Standard'!$A$12=1,'Backend Calcs Standard'!S186,(('Backend Calcs Standard'!S186)*0.0283168)))),"") ->  | C185: =IFERROR(IF(D185="","",(IF('Backend Calcs Standard'!$A$12=1,'Backend Calcs Standard'!T186,(('Backend Calcs Standard'!T186)*0.0283168)))),"") ->  | D185: =IFERROR(IF(E185="","",(IF('Backend Calcs Standard'!$A$12=1,'Backend Calcs Standard'!U186,(('Backend Calcs Standard'!U186)*0.0283168)))),"") ->  | E185: =IFERROR(IF(F185="","",(IF('Backend Calcs Standard'!$A$12=1,'Backend Calcs Standard'!V186,(('Backend Calcs Standard'!V186)*0.0283168)))),"") ->  | F185: =IF(I185="","",(IF('Backend Calcs Standard'!$A$12=1,'Backend Calcs Standard'!W186,('Backend Calcs Standard'!W186*0.0283168)))) ->  | H185: =IF('Backend Calcs Standard'!$A$12=1,'Backend Calcs Standard'!X186,('Backend Calcs Standard'!X186*0.0283168)) ->  | I185: =IFERROR(IF(H185="","",(IF('Backend Calcs Standard'!$A$12=1,'Backend Calcs Standard'!Y186,'Backend Calcs Standard'!Y186*0.0283168))),"") ->  | J185: =IF(A185="","",IF('Backend Calcs Standard'!$A$12=1,'Backend Calcs Standard'!Z186,'Backend Calcs Standard'!O186)) -> 
A186: =IFERROR(IF(B186="","",'Backend Calcs Standard'!P187),"") ->  | B186: =IFERROR(IF(C186="","",(IF('Backend Calcs Standard'!$A$12=1,'Backend Calcs Standard'!S187,(('Backend Calcs Standard'!S187)*0.0283168)))),"") ->  | C186: =IFERROR(IF(D186="","",(IF('Backend Calcs Standard'!$A$12=1,'Backend Calcs Standard'!T187,(('Backend Calcs Standard'!T187)*0.0283168)))),"") ->  | D186: =IFERROR(IF(E186="","",(IF('Backend Calcs Standard'!$A$12=1,'Backend Calcs Standard'!U187,(('Backend Calcs Standard'!U187)*0.0283168)))),"") ->  | E186: =IFERROR(IF(F186="","",(IF('Backend Calcs Standard'!$A$12=1,'Backend Calcs Standard'!V187,(('Backend Calcs Standard'!V187)*0.0283168)))),"") ->  | F186: =IF(I186="","",(IF('Backend Calcs Standard'!$A$12=1,'Backend Calcs Standard'!W187,('Backend Calcs Standard'!W187*0.0283168)))) ->  | H186: =IF('Backend Calcs Standard'!$A$12=1,'Backend Calcs Standard'!X187,('Backend Calcs Standard'!X187*0.0283168)) ->  | I186: =IFERROR(IF(H186="","",(IF('Backend Calcs Standard'!$A$12=1,'Backend Calcs Standard'!Y187,'Backend Calcs Standard'!Y187*0.0283168))),"") ->  | J186: =IF(A186="","",IF('Backend Calcs Standard'!$A$12=1,'Backend Calcs Standard'!Z187,'Backend Calcs Standard'!O187)) -> 
A187: =IFERROR(IF(B187="","",'Backend Calcs Standard'!P188),"") ->  | B187: =IFERROR(IF(C187="","",(IF('Backend Calcs Standard'!$A$12=1,'Backend Calcs Standard'!S188,(('Backend Calcs Standard'!S188)*0.0283168)))),"") ->  | C187: =IFERROR(IF(D187="","",(IF('Backend Calcs Standard'!$A$12=1,'Backend Calcs Standard'!T188,(('Backend Calcs Standard'!T188)*0.0283168)))),"") ->  | D187: =IFERROR(IF(E187="","",(IF('Backend Calcs Standard'!$A$12=1,'Backend Calcs Standard'!U188,(('Backend Calcs Standard'!U188)*0.0283168)))),"") ->  | E187: =IFERROR(IF(F187="","",(IF('Backend Calcs Standard'!$A$12=1,'Backend Calcs Standard'!V188,(('Backend Calcs Standard'!V188)*0.0283168)))),"") ->  | F187: =IF(I187="","",(IF('Backend Calcs Standard'!$A$12=1,'Backend Calcs Standard'!W188,('Backend Calcs Standard'!W188*0.0283168)))) ->  | H187: =IF('Backend Calcs Standard'!$A$12=1,'Backend Calcs Standard'!X188,('Backend Calcs Standard'!X188*0.0283168)) ->  | I187: =IFERROR(IF(H187="","",(IF('Backend Calcs Standard'!$A$12=1,'Backend Calcs Standard'!Y188,'Backend Calcs Standard'!Y188*0.0283168))),"") ->  | J187: =IF(A187="","",IF('Backend Calcs Standard'!$A$12=1,'Backend Calcs Standard'!Z188,'Backend Calcs Standard'!O188)) -> 
A188: =IFERROR(IF(B188="","",'Backend Calcs Standard'!P189),"") ->  | B188: =IFERROR(IF(C188="","",(IF('Backend Calcs Standard'!$A$12=1,'Backend Calcs Standard'!S189,(('Backend Calcs Standard'!S189)*0.0283168)))),"") ->  | C188: =IFERROR(IF(D188="","",(IF('Backend Calcs Standard'!$A$12=1,'Backend Calcs Standard'!T189,(('Backend Calcs Standard'!T189)*0.0283168)))),"") ->  | D188: =IFERROR(IF(E188="","",(IF('Backend Calcs Standard'!$A$12=1,'Backend Calcs Standard'!U189,(('Backend Calcs Standard'!U189)*0.0283168)))),"") ->  | E188: =IFERROR(IF(F188="","",(IF('Backend Calcs Standard'!$A$12=1,'Backend Calcs Standard'!V189,(('Backend Calcs Standard'!V189)*0.0283168)))),"") ->  | F188: =IF(I188="","",(IF('Backend Calcs Standard'!$A$12=1,'Backend Calcs Standard'!W189,('Backend Calcs Standard'!W189*0.0283168)))) ->  | H188: =IF('Backend Calcs Standard'!$A$12=1,'Backend Calcs Standard'!X189,('Backend Calcs Standard'!X189*0.0283168)) ->  | I188: =IFERROR(IF(H188="","",(IF('Backend Calcs Standard'!$A$12=1,'Backend Calcs Standard'!Y189,'Backend Calcs Standard'!Y189*0.0283168))),"") ->  | J188: =IF(A188="","",IF('Backend Calcs Standard'!$A$12=1,'Backend Calcs Standard'!Z189,'Backend Calcs Standard'!O189)) -> 
A189: =IFERROR(IF(B189="","",'Backend Calcs Standard'!P190),"") ->  | B189: =IFERROR(IF(C189="","",(IF('Backend Calcs Standard'!$A$12=1,'Backend Calcs Standard'!S190,(('Backend Calcs Standard'!S190)*0.0283168)))),"") ->  | C189: =IFERROR(IF(D189="","",(IF('Backend Calcs Standard'!$A$12=1,'Backend Calcs Standard'!T190,(('Backend Calcs Standard'!T190)*0.0283168)))),"") ->  | D189: =IFERROR(IF(E189="","",(IF('Backend Calcs Standard'!$A$12=1,'Backend Calcs Standard'!U190,(('Backend Calcs Standard'!U190)*0.0283168)))),"") ->  | E189: =IFERROR(IF(F189="","",(IF('Backend Calcs Standard'!$A$12=1,'Backend Calcs Standard'!V190,(('Backend Calcs Standard'!V190)*0.0283168)))),"") ->  | F189: =IF(I189="","",(IF('Backend Calcs Standard'!$A$12=1,'Backend Calcs Standard'!W190,('Backend Calcs Standard'!W190*0.0283168)))) ->  | H189: =IF('Backend Calcs Standard'!$A$12=1,'Backend Calcs Standard'!X190,('Backend Calcs Standard'!X190*0.0283168)) ->  | I189: =IFERROR(IF(H189="","",(IF('Backend Calcs Standard'!$A$12=1,'Backend Calcs Standard'!Y190,'Backend Calcs Standard'!Y190*0.0283168))),"") ->  | J189: =IF(A189="","",IF('Backend Calcs Standard'!$A$12=1,'Backend Calcs Standard'!Z190,'Backend Calcs Standard'!O190)) -> 
A190: =IFERROR(IF(B190="","",'Backend Calcs Standard'!P191),"") ->  | B190: =IFERROR(IF(C190="","",(IF('Backend Calcs Standard'!$A$12=1,'Backend Calcs Standard'!S191,(('Backend Calcs Standard'!S191)*0.0283168)))),"") ->  | C190: =IFERROR(IF(D190="","",(IF('Backend Calcs Standard'!$A$12=1,'Backend Calcs Standard'!T191,(('Backend Calcs Standard'!T191)*0.0283168)))),"") ->  | D190: =IFERROR(IF(E190="","",(IF('Backend Calcs Standard'!$A$12=1,'Backend Calcs Standard'!U191,(('Backend Calcs Standard'!U191)*0.0283168)))),"") ->  | E190: =IFERROR(IF(F190="","",(IF('Backend Calcs Standard'!$A$12=1,'Backend Calcs Standard'!V191,(('Backend Calcs Standard'!V191)*0.0283168)))),"") ->  | F190: =IF(I190="","",(IF('Backend Calcs Standard'!$A$12=1,'Backend Calcs Standard'!W191,('Backend Calcs Standard'!W191*0.0283168)))) ->  | H190: =IF('Backend Calcs Standard'!$A$12=1,'Backend Calcs Standard'!X191,('Backend Calcs Standard'!X191*0.0283168)) ->  | I190: =IFERROR(IF(H190="","",(IF('Backend Calcs Standard'!$A$12=1,'Backend Calcs Standard'!Y191,'Backend Calcs Standard'!Y191*0.0283168))),"") ->  | J190: =IF(A190="","",IF('Backend Calcs Standard'!$A$12=1,'Backend Calcs Standard'!Z191,'Backend Calcs Standard'!O191)) -> 
A191: =IFERROR(IF(B191="","",'Backend Calcs Standard'!P192),"") ->  | B191: =IFERROR(IF(C191="","",(IF('Backend Calcs Standard'!$A$12=1,'Backend Calcs Standard'!S192,(('Backend Calcs Standard'!S192)*0.0283168)))),"") ->  | C191: =IFERROR(IF(D191="","",(IF('Backend Calcs Standard'!$A$12=1,'Backend Calcs Standard'!T192,(('Backend Calcs Standard'!T192)*0.0283168)))),"") ->  | D191: =IFERROR(IF(E191="","",(IF('Backend Calcs Standard'!$A$12=1,'Backend Calcs Standard'!U192,(('Backend Calcs Standard'!U192)*0.0283168)))),"") ->  | E191: =IFERROR(IF(F191="","",(IF('Backend Calcs Standard'!$A$12=1,'Backend Calcs Standard'!V192,(('Backend Calcs Standard'!V192)*0.0283168)))),"") ->  | F191: =IF(I191="","",(IF('Backend Calcs Standard'!$A$12=1,'Backend Calcs Standard'!W192,('Backend Calcs Standard'!W192*0.0283168)))) ->  | H191: =IF('Backend Calcs Standard'!$A$12=1,'Backend Calcs Standard'!X192,('Backend Calcs Standard'!X192*0.0283168)) ->  | I191: =IFERROR(IF(H191="","",(IF('Backend Calcs Standard'!$A$12=1,'Backend Calcs Standard'!Y192,'Backend Calcs Standard'!Y192*0.0283168))),"") ->  | J191: =IF(A191="","",IF('Backend Calcs Standard'!$A$12=1,'Backend Calcs Standard'!Z192,'Backend Calcs Standard'!O192)) -> 
A192: =IFERROR(IF(B192="","",'Backend Calcs Standard'!P193),"") ->  | B192: =IFERROR(IF(C192="","",(IF('Backend Calcs Standard'!$A$12=1,'Backend Calcs Standard'!S193,(('Backend Calcs Standard'!S193)*0.0283168)))),"") ->  | C192: =IFERROR(IF(D192="","",(IF('Backend Calcs Standard'!$A$12=1,'Backend Calcs Standard'!T193,(('Backend Calcs Standard'!T193)*0.0283168)))),"") ->  | D192: =IFERROR(IF(E192="","",(IF('Backend Calcs Standard'!$A$12=1,'Backend Calcs Standard'!U193,(('Backend Calcs Standard'!U193)*0.0283168)))),"") ->  | E192: =IFERROR(IF(F192="","",(IF('Backend Calcs Standard'!$A$12=1,'Backend Calcs Standard'!V193,(('Backend Calcs Standard'!V193)*0.0283168)))),"") ->  | F192: =IF(I192="","",(IF('Backend Calcs Standard'!$A$12=1,'Backend Calcs Standard'!W193,('Backend Calcs Standard'!W193*0.0283168)))) ->  | H192: =IF('Backend Calcs Standard'!$A$12=1,'Backend Calcs Standard'!X193,('Backend Calcs Standard'!X193*0.0283168)) ->  | I192: =IFERROR(IF(H192="","",(IF('Backend Calcs Standard'!$A$12=1,'Backend Calcs Standard'!Y193,'Backend Calcs Standard'!Y193*0.0283168))),"") ->  | J192: =IF(A192="","",IF('Backend Calcs Standard'!$A$12=1,'Backend Calcs Standard'!Z193,'Backend Calcs Standard'!O193)) -> 
A193: =IFERROR(IF(B193="","",'Backend Calcs Standard'!P194),"") ->  | B193: =IFERROR(IF(C193="","",(IF('Backend Calcs Standard'!$A$12=1,'Backend Calcs Standard'!S194,(('Backend Calcs Standard'!S194)*0.0283168)))),"") ->  | C193: =IFERROR(IF(D193="","",(IF('Backend Calcs Standard'!$A$12=1,'Backend Calcs Standard'!T194,(('Backend Calcs Standard'!T194)*0.0283168)))),"") ->  | D193: =IFERROR(IF(E193="","",(IF('Backend Calcs Standard'!$A$12=1,'Backend Calcs Standard'!U194,(('Backend Calcs Standard'!U194)*0.0283168)))),"") ->  | E193: =IFERROR(IF(F193="","",(IF('Backend Calcs Standard'!$A$12=1,'Backend Calcs Standard'!V194,(('Backend Calcs Standard'!V194)*0.0283168)))),"") ->  | F193: =IF(I193="","",(IF('Backend Calcs Standard'!$A$12=1,'Backend Calcs Standard'!W194,('Backend Calcs Standard'!W194*0.0283168)))) ->  | H193: =IF('Backend Calcs Standard'!$A$12=1,'Backend Calcs Standard'!X194,('Backend Calcs Standard'!X194*0.0283168)) ->  | I193: =IFERROR(IF(H193="","",(IF('Backend Calcs Standard'!$A$12=1,'Backend Calcs Standard'!Y194,'Backend Calcs Standard'!Y194*0.0283168))),"") ->  | J193: =IF(A193="","",IF('Backend Calcs Standard'!$A$12=1,'Backend Calcs Standard'!Z194,'Backend Calcs Standard'!O194)) -> 
A194: =IFERROR(IF(B194="","",'Backend Calcs Standard'!P195),"") ->  | B194: =IFERROR(IF(C194="","",(IF('Backend Calcs Standard'!$A$12=1,'Backend Calcs Standard'!S195,(('Backend Calcs Standard'!S195)*0.0283168)))),"") ->  | C194: =IFERROR(IF(D194="","",(IF('Backend Calcs Standard'!$A$12=1,'Backend Calcs Standard'!T195,(('Backend Calcs Standard'!T195)*0.0283168)))),"") ->  | D194: =IFERROR(IF(E194="","",(IF('Backend Calcs Standard'!$A$12=1,'Backend Calcs Standard'!U195,(('Backend Calcs Standard'!U195)*0.0283168)))),"") ->  | E194: =IFERROR(IF(F194="","",(IF('Backend Calcs Standard'!$A$12=1,'Backend Calcs Standard'!V195,(('Backend Calcs Standard'!V195)*0.0283168)))),"") ->  | F194: =IF(I194="","",(IF('Backend Calcs Standard'!$A$12=1,'Backend Calcs Standard'!W195,('Backend Calcs Standard'!W195*0.0283168)))) ->  | H194: =IF('Backend Calcs Standard'!$A$12=1,'Backend Calcs Standard'!X195,('Backend Calcs Standard'!X195*0.0283168)) ->  | I194: =IFERROR(IF(H194="","",(IF('Backend Calcs Standard'!$A$12=1,'Backend Calcs Standard'!Y195,'Backend Calcs Standard'!Y195*0.0283168))),"") ->  | J194: =IF(A194="","",IF('Backend Calcs Standard'!$A$12=1,'Backend Calcs Standard'!Z195,'Backend Calcs Standard'!O195)) -> 
A195: =IFERROR(IF(B195="","",'Backend Calcs Standard'!P196),"") ->  | B195: =IFERROR(IF(C195="","",(IF('Backend Calcs Standard'!$A$12=1,'Backend Calcs Standard'!S196,(('Backend Calcs Standard'!S196)*0.0283168)))),"") ->  | C195: =IFERROR(IF(D195="","",(IF('Backend Calcs Standard'!$A$12=1,'Backend Calcs Standard'!T196,(('Backend Calcs Standard'!T196)*0.0283168)))),"") ->  | D195: =IFERROR(IF(E195="","",(IF('Backend Calcs Standard'!$A$12=1,'Backend Calcs Standard'!U196,(('Backend Calcs Standard'!U196)*0.0283168)))),"") ->  | E195: =IFERROR(IF(F195="","",(IF('Backend Calcs Standard'!$A$12=1,'Backend Calcs Standard'!V196,(('Backend Calcs Standard'!V196)*0.0283168)))),"") ->  | F195: =IF(I195="","",(IF('Backend Calcs Standard'!$A$12=1,'Backend Calcs Standard'!W196,('Backend Calcs Standard'!W196*0.0283168)))) ->  | H195: =IF('Backend Calcs Standard'!$A$12=1,'Backend Calcs Standard'!X196,('Backend Calcs Standard'!X196*0.0283168)) ->  | I195: =IFERROR(IF(H195="","",(IF('Backend Calcs Standard'!$A$12=1,'Backend Calcs Standard'!Y196,'Backend Calcs Standard'!Y196*0.0283168))),"") ->  | J195: =IF(A195="","",IF('Backend Calcs Standard'!$A$12=1,'Backend Calcs Standard'!Z196,'Backend Calcs Standard'!O196)) -> 
A196: =IFERROR(IF(B196="","",'Backend Calcs Standard'!P197),"") ->  | B196: =IFERROR(IF(C196="","",(IF('Backend Calcs Standard'!$A$12=1,'Backend Calcs Standard'!S197,(('Backend Calcs Standard'!S197)*0.0283168)))),"") ->  | C196: =IFERROR(IF(D196="","",(IF('Backend Calcs Standard'!$A$12=1,'Backend Calcs Standard'!T197,(('Backend Calcs Standard'!T197)*0.0283168)))),"") ->  | D196: =IFERROR(IF(E196="","",(IF('Backend Calcs Standard'!$A$12=1,'Backend Calcs Standard'!U197,(('Backend Calcs Standard'!U197)*0.0283168)))),"") ->  | E196: =IFERROR(IF(F196="","",(IF('Backend Calcs Standard'!$A$12=1,'Backend Calcs Standard'!V197,(('Backend Calcs Standard'!V197)*0.0283168)))),"") ->  | F196: =IF(I196="","",(IF('Backend Calcs Standard'!$A$12=1,'Backend Calcs Standard'!W197,('Backend Calcs Standard'!W197*0.0283168)))) ->  | H196: =IF('Backend Calcs Standard'!$A$12=1,'Backend Calcs Standard'!X197,('Backend Calcs Standard'!X197*0.0283168)) ->  | I196: =IFERROR(IF(H196="","",(IF('Backend Calcs Standard'!$A$12=1,'Backend Calcs Standard'!Y197,'Backend Calcs Standard'!Y197*0.0283168))),"") ->  | J196: =IF(A196="","",IF('Backend Calcs Standard'!$A$12=1,'Backend Calcs Standard'!Z197,'Backend Calcs Standard'!O197)) -> 
A197: =IFERROR(IF(B197="","",'Backend Calcs Standard'!P198),"") ->  | B197: =IFERROR(IF(C197="","",(IF('Backend Calcs Standard'!$A$12=1,'Backend Calcs Standard'!S198,(('Backend Calcs Standard'!S198)*0.0283168)))),"") ->  | C197: =IFERROR(IF(D197="","",(IF('Backend Calcs Standard'!$A$12=1,'Backend Calcs Standard'!T198,(('Backend Calcs Standard'!T198)*0.0283168)))),"") ->  | D197: =IFERROR(IF(E197="","",(IF('Backend Calcs Standard'!$A$12=1,'Backend Calcs Standard'!U198,(('Backend Calcs Standard'!U198)*0.0283168)))),"") ->  | E197: =IFERROR(IF(F197="","",(IF('Backend Calcs Standard'!$A$12=1,'Backend Calcs Standard'!V198,(('Backend Calcs Standard'!V198)*0.0283168)))),"") ->  | F197: =IF(I197="","",(IF('Backend Calcs Standard'!$A$12=1,'Backend Calcs Standard'!W198,('Backend Calcs Standard'!W198*0.0283168)))) ->  | H197: =IF('Backend Calcs Standard'!$A$12=1,'Backend Calcs Standard'!X198,('Backend Calcs Standard'!X198*0.0283168)) ->  | I197: =IFERROR(IF(H197="","",(IF('Backend Calcs Standard'!$A$12=1,'Backend Calcs Standard'!Y198,'Backend Calcs Standard'!Y198*0.0283168))),"") ->  | J197: =IF(A197="","",IF('Backend Calcs Standard'!$A$12=1,'Backend Calcs Standard'!Z198,'Backend Calcs Standard'!O198)) -> 
A198: =IFERROR(IF(B198="","",'Backend Calcs Standard'!P199),"") ->  | B198: =IFERROR(IF(C198="","",(IF('Backend Calcs Standard'!$A$12=1,'Backend Calcs Standard'!S199,(('Backend Calcs Standard'!S199)*0.0283168)))),"") ->  | C198: =IFERROR(IF(D198="","",(IF('Backend Calcs Standard'!$A$12=1,'Backend Calcs Standard'!T199,(('Backend Calcs Standard'!T199)*0.0283168)))),"") ->  | D198: =IFERROR(IF(E198="","",(IF('Backend Calcs Standard'!$A$12=1,'Backend Calcs Standard'!U199,(('Backend Calcs Standard'!U199)*0.0283168)))),"") ->  | E198: =IFERROR(IF(F198="","",(IF('Backend Calcs Standard'!$A$12=1,'Backend Calcs Standard'!V199,(('Backend Calcs Standard'!V199)*0.0283168)))),"") ->  | F198: =IF(I198="","",(IF('Backend Calcs Standard'!$A$12=1,'Backend Calcs Standard'!W199,('Backend Calcs Standard'!W199*0.0283168)))) ->  | H198: =IF('Backend Calcs Standard'!$A$12=1,'Backend Calcs Standard'!X199,('Backend Calcs Standard'!X199*0.0283168)) ->  | I198: =IFERROR(IF(H198="","",(IF('Backend Calcs Standard'!$A$12=1,'Backend Calcs Standard'!Y199,'Backend Calcs Standard'!Y199*0.0283168))),"") ->  | J198: =IF(A198="","",IF('Backend Calcs Standard'!$A$12=1,'Backend Calcs Standard'!Z199,'Backend Calcs Standard'!O199)) -> 
A199: =IFERROR(IF(B199="","",'Backend Calcs Standard'!P200),"") ->  | B199: =IFERROR(IF(C199="","",(IF('Backend Calcs Standard'!$A$12=1,'Backend Calcs Standard'!S200,(('Backend Calcs Standard'!S200)*0.0283168)))),"") ->  | C199: =IFERROR(IF(D199="","",(IF('Backend Calcs Standard'!$A$12=1,'Backend Calcs Standard'!T200,(('Backend Calcs Standard'!T200)*0.0283168)))),"") ->  | D199: =IFERROR(IF(E199="","",(IF('Backend Calcs Standard'!$A$12=1,'Backend Calcs Standard'!U200,(('Backend Calcs Standard'!U200)*0.0283168)))),"") ->  | E199: =IFERROR(IF(F199="","",(IF('Backend Calcs Standard'!$A$12=1,'Backend Calcs Standard'!V200,(('Backend Calcs Standard'!V200)*0.0283168)))),"") ->  | F199: =IF(I199="","",(IF('Backend Calcs Standard'!$A$12=1,'Backend Calcs Standard'!W200,('Backend Calcs Standard'!W200*0.0283168)))) ->  | H199: =IF('Backend Calcs Standard'!$A$12=1,'Backend Calcs Standard'!X200,('Backend Calcs Standard'!X200*0.0283168)) ->  | I199: =IFERROR(IF(H199="","",(IF('Backend Calcs Standard'!$A$12=1,'Backend Calcs Standard'!Y200,'Backend Calcs Standard'!Y200*0.0283168))),"") ->  | J199: =IF(A199="","",IF('Backend Calcs Standard'!$A$12=1,'Backend Calcs Standard'!Z200,'Backend Calcs Standard'!O200)) -> 
A200: =IFERROR(IF(B200="","",'Backend Calcs Standard'!P201),"") ->  | B200: =IFERROR(IF(C200="","",(IF('Backend Calcs Standard'!$A$12=1,'Backend Calcs Standard'!S201,(('Backend Calcs Standard'!S201)*0.0283168)))),"") ->  | C200: =IFERROR(IF(D200="","",(IF('Backend Calcs Standard'!$A$12=1,'Backend Calcs Standard'!T201,(('Backend Calcs Standard'!T201)*0.0283168)))),"") ->  | D200: =IFERROR(IF(E200="","",(IF('Backend Calcs Standard'!$A$12=1,'Backend Calcs Standard'!U201,(('Backend Calcs Standard'!U201)*0.0283168)))),"") ->  | E200: =IFERROR(IF(F200="","",(IF('Backend Calcs Standard'!$A$12=1,'Backend Calcs Standard'!V201,(('Backend Calcs Standard'!V201)*0.0283168)))),"") ->  | F200: =IF(I200="","",(IF('Backend Calcs Standard'!$A$12=1,'Backend Calcs Standard'!W201,('Backend Calcs Standard'!W201*0.0283168)))) ->  | H200: =IF('Backend Calcs Standard'!$A$12=1,'Backend Calcs Standard'!X201,('Backend Calcs Standard'!X201*0.0283168)) ->  | I200: =IFERROR(IF(H200="","",(IF('Backend Calcs Standard'!$A$12=1,'Backend Calcs Standard'!Y201,'Backend Calcs Standard'!Y201*0.0283168))),"") ->  | J200: =IF(A200="","",IF('Backend Calcs Standard'!$A$12=1,'Backend Calcs Standard'!Z201,'Backend Calcs Standard'!O201)) -> 
A201: =IFERROR(IF(B201="","",'Backend Calcs Standard'!P202),"") ->  | B201: =IFERROR(IF(C201="","",(IF('Backend Calcs Standard'!$A$12=1,'Backend Calcs Standard'!S202,(('Backend Calcs Standard'!S202)*0.0283168)))),"") ->  | C201: =IFERROR(IF(D201="","",(IF('Backend Calcs Standard'!$A$12=1,'Backend Calcs Standard'!T202,(('Backend Calcs Standard'!T202)*0.0283168)))),"") ->  | D201: =IFERROR(IF(E201="","",(IF('Backend Calcs Standard'!$A$12=1,'Backend Calcs Standard'!U202,(('Backend Calcs Standard'!U202)*0.0283168)))),"") ->  | E201: =IFERROR(IF(F201="","",(IF('Backend Calcs Standard'!$A$12=1,'Backend Calcs Standard'!V202,(('Backend Calcs Standard'!V202)*0.0283168)))),"") ->  | F201: =IF(I201="","",(IF('Backend Calcs Standard'!$A$12=1,'Backend Calcs Standard'!W202,('Backend Calcs Standard'!W202*0.0283168)))) ->  | H201: =IF('Backend Calcs Standard'!$A$12=1,'Backend Calcs Standard'!X202,('Backend Calcs Standard'!X202*0.0283168)) ->  | I201: =IFERROR(IF(H201="","",(IF('Backend Calcs Standard'!$A$12=1,'Backend Calcs Standard'!Y202,'Backend Calcs Standard'!Y202*0.0283168))),"") ->  | J201: =IF(A201="","",IF('Backend Calcs Standard'!$A$12=1,'Backend Calcs Standard'!Z202,'Backend Calcs Standard'!O202)) -> 
A202: =IFERROR(IF(B202="","",'Backend Calcs Standard'!P203),"") ->  | B202: =IFERROR(IF(C202="","",(IF('Backend Calcs Standard'!$A$12=1,'Backend Calcs Standard'!S203,(('Backend Calcs Standard'!S203)*0.0283168)))),"") ->  | C202: =IFERROR(IF(D202="","",(IF('Backend Calcs Standard'!$A$12=1,'Backend Calcs Standard'!T203,(('Backend Calcs Standard'!T203)*0.0283168)))),"") ->  | D202: =IFERROR(IF(E202="","",(IF('Backend Calcs Standard'!$A$12=1,'Backend Calcs Standard'!U203,(('Backend Calcs Standard'!U203)*0.0283168)))),"") ->  | E202: =IFERROR(IF(F202="","",(IF('Backend Calcs Standard'!$A$12=1,'Backend Calcs Standard'!V203,(('Backend Calcs Standard'!V203)*0.0283168)))),"") ->  | F202: =IF(I202="","",(IF('Backend Calcs Standard'!$A$12=1,'Backend Calcs Standard'!W203,('Backend Calcs Standard'!W203*0.0283168)))) ->  | H202: =IF('Backend Calcs Standard'!$A$12=1,'Backend Calcs Standard'!X203,('Backend Calcs Standard'!X203*0.0283168)) ->  | I202: =IFERROR(IF(H202="","",(IF('Backend Calcs Standard'!$A$12=1,'Backend Calcs Standard'!Y203,'Backend Calcs Standard'!Y203*0.0283168))),"") ->  | J202: =IF(A202="","",IF('Backend Calcs Standard'!$A$12=1,'Backend Calcs Standard'!Z203,'Backend Calcs Standard'!O203)) -> 
A203: =IFERROR(IF(B203="","",'Backend Calcs Standard'!P204),"") ->  | B203: =IFERROR(IF(C203="","",(IF('Backend Calcs Standard'!$A$12=1,'Backend Calcs Standard'!S204,(('Backend Calcs Standard'!S204)*0.0283168)))),"") ->  | C203: =IFERROR(IF(D203="","",(IF('Backend Calcs Standard'!$A$12=1,'Backend Calcs Standard'!T204,(('Backend Calcs Standard'!T204)*0.0283168)))),"") ->  | D203: =IFERROR(IF(E203="","",(IF('Backend Calcs Standard'!$A$12=1,'Backend Calcs Standard'!U204,(('Backend Calcs Standard'!U204)*0.0283168)))),"") ->  | E203: =IFERROR(IF(F203="","",(IF('Backend Calcs Standard'!$A$12=1,'Backend Calcs Standard'!V204,(('Backend Calcs Standard'!V204)*0.0283168)))),"") ->  | F203: =IF(I203="","",(IF('Backend Calcs Standard'!$A$12=1,'Backend Calcs Standard'!W204,('Backend Calcs Standard'!W204*0.0283168)))) ->  | H203: =IF('Backend Calcs Standard'!$A$12=1,'Backend Calcs Standard'!X204,('Backend Calcs Standard'!X204*0.0283168)) ->  | I203: =IFERROR(IF(H203="","",(IF('Backend Calcs Standard'!$A$12=1,'Backend Calcs Standard'!Y204,'Backend Calcs Standard'!Y204*0.0283168))),"") ->  | J203: =IF(A203="","",IF('Backend Calcs Standard'!$A$12=1,'Backend Calcs Standard'!Z204,'Backend Calcs Standard'!O204)) -> 
A204: =IFERROR(IF(B204="","",'Backend Calcs Standard'!P205),"") ->  | B204: =IFERROR(IF(C204="","",(IF('Backend Calcs Standard'!$A$12=1,'Backend Calcs Standard'!S205,(('Backend Calcs Standard'!S205)*0.0283168)))),"") ->  | C204: =IFERROR(IF(D204="","",(IF('Backend Calcs Standard'!$A$12=1,'Backend Calcs Standard'!T205,(('Backend Calcs Standard'!T205)*0.0283168)))),"") ->  | D204: =IFERROR(IF(E204="","",(IF('Backend Calcs Standard'!$A$12=1,'Backend Calcs Standard'!U205,(('Backend Calcs Standard'!U205)*0.0283168)))),"") ->  | E204: =IFERROR(IF(F204="","",(IF('Backend Calcs Standard'!$A$12=1,'Backend Calcs Standard'!V205,(('Backend Calcs Standard'!V205)*0.0283168)))),"") ->  | F204: =IF(I204="","",(IF('Backend Calcs Standard'!$A$12=1,'Backend Calcs Standard'!W205,('Backend Calcs Standard'!W205*0.0283168)))) ->  | H204: =IF('Backend Calcs Standard'!$A$12=1,'Backend Calcs Standard'!X205,('Backend Calcs Standard'!X205*0.0283168)) ->  | I204: =IFERROR(IF(H204="","",(IF('Backend Calcs Standard'!$A$12=1,'Backend Calcs Standard'!Y205,'Backend Calcs Standard'!Y205*0.0283168))),"") ->  | J204: =IF(A204="","",IF('Backend Calcs Standard'!$A$12=1,'Backend Calcs Standard'!Z205,'Backend Calcs Standard'!O205)) -> 
... 112 more rows

Sheet Stage-Storage (Metric)
A3: Chamber Model
A4: Number of Chambers | E4: 25
A5: Number of Endcaps | E5: 10
A6: Stone Voids (porosity) | E6: 0.4
A7: Base of Stone Elevation | E7: 0 | F7: m
A8: Recommended Stone Below Chambers* | E8: 230 | F8: mm | G8: Include perimeter stone?
A9: Recommended Stone Above Chambers* | E9: 300 | F9: mm
B11: =IF('Backend Calcs Metric'!A11=1,"Area of System**", " ") -> Area of System** | D11: 139 | E11: =IF('Backend Calcs Metric'!A11=1,"sq. m.", " ") -> sq. m.
C12: =IF('Backend Calcs Metric'!A11=1,"**Area must be greater than: ", " ") -> **Area must be greater than: | E12: ='Backend Calcs Metric'!H15 -> 135 sq. m
B13: *The minimum stone below and above the chambers to be determinded by the design engineer.
A15: System Height (mm) | B15: Incremental Single Chamber Storage (cu.m) | C15: Incremental Single End Cap Storage (cu.m) | D15: Incremental Total Chamber Storage (cu.m) | E15: Incremental Total End Cap Storage (cu.m) | F15: Incremental Stone Storage (cu.m) | G15: Incremental Chamber, End Cap, & Stone (cu.m) | H15: Cumulative Total Storage for System (cu.m) | I15: Cumulative System Storage (cu.m) | J15: Elevation (m)
A16: =IF('Backend Calcs Metric'!P17="","",(ROUND((CONVERT('Backend Calcs Metric'!P17,"in","mm")),0))) -> 1676 | B16: =IF('Backend Calcs Metric'!S17="","",(ROUND((CONVERT('Backend Calcs Metric'!S17,"ft3","m3")),5))) -> 0 | C16: =IF('Backend Calcs Metric'!T17="","",(ROUND((CONVERT('Backend Calcs Metric'!T17,"ft3","m3")),5))) -> 0 | D16: =IF('Backend Calcs Metric'!U17="","",(ROUND((CONVERT('Backend Calcs Metric'!U17,"ft3","m3")),5))) -> 0 | E16: =IF('Backend Calcs Metric'!V17="","",(ROUND((CONVERT('Backend Calcs Metric'!V17,"ft3","m3")),5))) -> 0 | F16: =IF('Backend Calcs Metric'!W17="","",(ROUND((CONVERT('Backend Calcs Metric'!W17,"ft3","m3")),5))) -> 1.41214 | G16: =IF('Backend Calcs Metric'!X17="","",(ROUND((CONVERT('Backend Calcs Metric'!X17,"ft3","m3")),5))) -> 1.41214 | H16: =IF('Backend Calcs Metric'!Y17="","",(ROUND((CONVERT('Backend Calcs Metric'!Y17,"ft3","m3")),5))) -> 144.04611 | I16: =IF('Backend Calcs Metric'!Y17="","",(ROUND((CONVERT('Backend Calcs Metric'!Y17,"ft3","m3")),2))) -> 144.05 | J16: =IF('Backend Calcs Metric'!AA17="","",(ROUND((CONVERT('Backend Calcs Metric'!Z17,"ft","m")),5))) -> 1.6764 | L16: =IF(G16="","",G16*12) -> 16.94568
A17: =IF('Backend Calcs Metric'!P18="","",(ROUND((CONVERT('Backend Calcs Metric'!P18,"in","mm")),0))) -> 1651 | B17: =IF('Backend Calcs Metric'!S18="","",(ROUND((CONVERT('Backend Calcs Metric'!S18,"ft3","m3")),5))) -> 0 | C17: =IF('Backend Calcs Metric'!T18="","",(ROUND((CONVERT('Backend Calcs Metric'!T18,"ft3","m3")),5))) -> 0 | D17: =IF('Backend Calcs Metric'!U18="","",(ROUND((CONVERT('Backend Calcs Metric'!U18,"ft3","m3")),5))) -> 0 | E17: =IF('Backend Calcs Metric'!V18="","",(ROUND((CONVERT('Backend Calcs Metric'!V18,"ft3","m3")),5))) -> 0 | F17: =IF('Backend Calcs Metric'!W18="","",(ROUND((CONVERT('Backend Calcs Metric'!W18,"ft3","m3")),5))) -> 1.41214 | G17: =IF('Backend Calcs Metric'!X18="","",(ROUND((CONVERT('Backend Calcs Metric'!X18,"ft3","m3")),5))) -> 1.41214 | H17: =IF('Backend Calcs Metric'!Y18="","",(ROUND((CONVERT('Backend Calcs Metric'!Y18,"ft3","m3")),5))) -> 142.63397 | I17: =IF('Backend Calcs Metric'!Y18="","",(ROUND((CONVERT('Backend Calcs Metric'!Y18,"ft3","m3")),2))) -> 142.63 | J17: =IF('Backend Calcs Metric'!AA18="","",(ROUND((CONVERT('Backend Calcs Metric'!Z18,"ft","m")),5))) -> 1.651 | L17: =IF(G17="","",G17*12) -> 16.94568
A18: =IF('Backend Calcs Metric'!P19="","",(ROUND((CONVERT('Backend Calcs Metric'!P19,"in","mm")),0))) -> 1626 | B18: =IF('Backend Calcs Metric'!S19="","",(ROUND((CONVERT('Backend Calcs Metric'!S19,"ft3","m3")),5))) -> 0 | C18: =IF('Backend Calcs Metric'!T19="","",(ROUND((CONVERT('Backend Calcs Metric'!T19,"ft3","m3")),5))) -> 0 | D18: =IF('Backend Calcs Metric'!U19="","",(ROUND((CONVERT('Backend Calcs Metric'!U19,"ft3","m3")),5))) -> 0 | E18: =IF('Backend Calcs Metric'!V19="","",(ROUND((CONVERT('Backend Calcs Metric'!V19,"ft3","m3")),5))) -> 0 | F18: =IF('Backend Calcs Metric'!W19="","",(ROUND((CONVERT('Backend Calcs Metric'!W19,"ft3","m3")),5))) -> 1.41214 | G18: =IF('Backend Calcs Metric'!X19="","",(ROUND((CONVERT('Backend Calcs Metric'!X19,"ft3","m3")),5))) -> 1.41214 | H18: =IF('Backend Calcs Metric'!Y19="","",(ROUND((CONVERT('Backend Calcs Metric'!Y19,"ft3","m3")),5))) -> 141.22183 | I18: =IF('Backend Calcs Metric'!Y19="","",(ROUND((CONVERT('Backend Calcs Metric'!Y19,"ft3","m3")),2))) -> 141.22 | J18: =IF('Backend Calcs Metric'!AA19="","",(ROUND((CONVERT('Backend Calcs Metric'!Z19,"ft","m")),5))) -> 1.6256 | L18: 16.94568
A19: =IF('Backend Calcs Metric'!P20="","",(ROUND((CONVERT('Backend Calcs Metric'!P20,"in","mm")),0))) -> 1600 | B19: =IF('Backend Calcs Metric'!S20="","",(ROUND((CONVERT('Backend Calcs Metric'!S20,"ft3","m3")),5))) -> 0 | C19: =IF('Backend Calcs Metric'!T20="","",(ROUND((CONVERT('Backend Calcs Metric'!T20,"ft3","m3")),5))) -> 0 | D19: =IF('Backend Calcs Metric'!U20="","",(ROUND((CONVERT('Backend Calcs Metric'!U20,"ft3","m3")),5))) -> 0 | E19: =IF('Backend Calcs Metric'!V20="","",(ROUND((CONVERT('Backend Calcs Metric'!V20,"ft3","m3")),5))) -> 0 | F19: =IF('Backend Calcs Metric'!W20="","",(ROUND((CONVERT('Backend Calcs Metric'!W20,"ft3","m3")),5))) -> 1.41214 | G19: =IF('Backend Calcs Metric'!X20="","",(ROUND((CONVERT('Backend Calcs Metric'!X20,"ft3","m3")),5))) -> 1.41214 | H19: =IF('Backend Calcs Metric'!Y20="","",(ROUND((CONVERT('Backend Calcs Metric'!Y20,"ft3","m3")),5))) -> 139.80969 | I19: =IF('Backend Calcs Metric'!Y20="","",(ROUND((CONVERT('Backend Calcs Metric'!Y20,"ft3","m3")),2))) -> 139.81 | J19: =IF('Backend Calcs Metric'!AA20="","",(ROUND((CONVERT('Backend Calcs Metric'!Z20,"ft","m")),5))) -> 1.6002 | L19: 16.94568
A20: =IF('Backend Calcs Metric'!P21="","",(ROUND((CONVERT('Backend Calcs Metric'!P21,"in","mm")),0))) -> 1575 | B20: =IF('Backend Calcs Metric'!S21="","",(ROUND((CONVERT('Backend Calcs Metric'!S21,"ft3","m3")),5))) -> 0 | C20: =IF('Backend Calcs Metric'!T21="","",(ROUND((CONVERT('Backend Calcs Metric'!T21,"ft3","m3")),5))) -> 0 | D20: =IF('Backend Calcs Metric'!U21="","",(ROUND((CONVERT('Backend Calcs Metric'!U21,"ft3","m3")),5))) -> 0 | E20: =IF('Backend Calcs Metric'!V21="","",(ROUND((CONVERT('Backend Calcs Metric'!V21,"ft3","m3")),5))) -> 0 | F20: =IF('Backend Calcs Metric'!W21="","",(ROUND((CONVERT('Backend Calcs Metric'!W21,"ft3","m3")),5))) -> 1.41214 | G20: =IF('Backend Calcs Metric'!X21="","",(ROUND((CONVERT('Backend Calcs Metric'!X21,"ft3","m3")),5))) -> 1.41214 | H20: =IF('Backend Calcs Metric'!Y21="","",(ROUND((CONVERT('Backend Calcs Metric'!Y21,"ft3","m3")),5))) -> 138.39755 | I20: =IF('Backend Calcs Metric'!Y21="","",(ROUND((CONVERT('Backend Calcs Metric'!Y21,"ft3","m3")),2))) -> 138.4 | J20: =IF('Backend Calcs Metric'!AA21="","",(ROUND((CONVERT('Backend Calcs Metric'!Z21,"ft","m")),5))) -> 1.5748 | L20: 16.94568
A21: =IF('Backend Calcs Metric'!P22="","",(ROUND((CONVERT('Backend Calcs Metric'!P22,"in","mm")),0))) -> 1549 | B21: =IF('Backend Calcs Metric'!S22="","",(ROUND((CONVERT('Backend Calcs Metric'!S22,"ft3","m3")),5))) -> 0 | C21: =IF('Backend Calcs Metric'!T22="","",(ROUND((CONVERT('Backend Calcs Metric'!T22,"ft3","m3")),5))) -> 0 | D21: =IF('Backend Calcs Metric'!U22="","",(ROUND((CONVERT('Backend Calcs Metric'!U22,"ft3","m3")),5))) -> 0 | E21: =IF('Backend Calcs Metric'!V22="","",(ROUND((CONVERT('Backend Calcs Metric'!V22,"ft3","m3")),5))) -> 0 | F21: =IF('Backend Calcs Metric'!W22="","",(ROUND((CONVERT('Backend Calcs Metric'!W22,"ft3","m3")),5))) -> 1.41214 | G21: =IF('Backend Calcs Metric'!X22="","",(ROUND((CONVERT('Backend Calcs Metric'!X22,"ft3","m3")),5))) -> 1.41214 | H21: =IF('Backend Calcs Metric'!Y22="","",(ROUND((CONVERT('Backend Calcs Metric'!Y22,"ft3","m3")),5))) -> 136.98541 | I21: =IF('Backend Calcs Metric'!Y22="","",(ROUND((CONVERT('Backend Calcs Metric'!Y22,"ft3","m3")),2))) -> 136.99 | J21: =IF('Backend Calcs Metric'!AA22="","",(ROUND((CONVERT('Backend Calcs Metric'!Z22,"ft","m")),5))) -> 1.5494 | L21: 16.94568
A22: =IF('Backend Calcs Metric'!P23="","",(ROUND((CONVERT('Backend Calcs Metric'!P23,"in","mm")),0))) -> 1524 | B22: =IF('Backend Calcs Metric'!S23="","",(ROUND((CONVERT('Backend Calcs Metric'!S23,"ft3","m3")),5))) -> 0 | C22: =IF('Backend Calcs Metric'!T23="","",(ROUND((CONVERT('Backend Calcs Metric'!T23,"ft3","m3")),5))) -> 0 | D22: =IF('Backend Calcs Metric'!U23="","",(ROUND((CONVERT('Backend Calcs Metric'!U23,"ft3","m3")),5))) -> 0 | E22: =IF('Backend Calcs Metric'!V23="","",(ROUND((CONVERT('Backend Calcs Metric'!V23,"ft3","m3")),5))) -> 0 | F22: =IF('Backend Calcs Metric'!W23="","",(ROUND((CONVERT('Backend Calcs Metric'!W23,"ft3","m3")),5))) -> 1.41214 | G22: =IF('Backend Calcs Metric'!X23="","",(ROUND((CONVERT('Backend Calcs Metric'!X23,"ft3","m3")),5))) -> 1.41214 | H22: =IF('Backend Calcs Metric'!Y23="","",(ROUND((CONVERT('Backend Calcs Metric'!Y23,"ft3","m3")),5))) -> 135.57327 | I22: =IF('Backend Calcs Metric'!Y23="","",(ROUND((CONVERT('Backend Calcs Metric'!Y23,"ft3","m3")),2))) -> 135.57 | J22: =IF('Backend Calcs Metric'!AA23="","",(ROUND((CONVERT('Backend Calcs Metric'!Z23,"ft","m")),5))) -> 1.524 | L22: 16.94568
A23: =IF('Backend Calcs Metric'!P24="","",(ROUND((CONVERT('Backend Calcs Metric'!P24,"in","mm")),0))) -> 1499 | B23: =IF('Backend Calcs Metric'!S24="","",(ROUND((CONVERT('Backend Calcs Metric'!S24,"ft3","m3")),5))) -> 0 | C23: =IF('Backend Calcs Metric'!T24="","",(ROUND((CONVERT('Backend Calcs Metric'!T24,"ft3","m3")),5))) -> 0 | D23: =IF('Backend Calcs Metric'!U24="","",(ROUND((CONVERT('Backend Calcs Metric'!U24,"ft3","m3")),5))) -> 0 | E23: =IF('Backend Calcs Metric'!V24="","",(ROUND((CONVERT('Backend Calcs Metric'!V24,"ft3","m3")),5))) -> 0 | F23: =IF('Backend Calcs Metric'!W24="","",(ROUND((CONVERT('Backend Calcs Metric'!W24,"ft3","m3")),5))) -> 1.41214 | G23: =IF('Backend Calcs Metric'!X24="","",(ROUND((CONVERT('Backend Calcs Metric'!X24,"ft3","m3")),5))) -> 1.41214 | H23: =IF('Backend Calcs Metric'!Y24="","",(ROUND((CONVERT('Backend Calcs Metric'!Y24,"ft3","m3")),5))) -> 134.16113 | I23: =IF('Backend Calcs Metric'!Y24="","",(ROUND((CONVERT('Backend Calcs Metric'!Y24,"ft3","m3")),2))) -> 134.16 | J23: =IF('Backend Calcs Metric'!AA24="","",(ROUND((CONVERT('Backend Calcs Metric'!Z24,"ft","m")),5))) -> 1.4986 | L23: 16.94568
A24: =IF('Backend Calcs Metric'!P25="","",(ROUND((CONVERT('Backend Calcs Metric'!P25,"in","mm")),0))) -> 1473 | B24: =IF('Backend Calcs Metric'!S25="","",(ROUND((CONVERT('Backend Calcs Metric'!S25,"ft3","m3")),5))) -> 0 | C24: =IF('Backend Calcs Metric'!T25="","",(ROUND((CONVERT('Backend Calcs Metric'!T25,"ft3","m3")),5))) -> 0 | D24: =IF('Backend Calcs Metric'!U25="","",(ROUND((CONVERT('Backend Calcs Metric'!U25,"ft3","m3")),5))) -> 0 | E24: =IF('Backend Calcs Metric'!V25="","",(ROUND((CONVERT('Backend Calcs Metric'!V25,"ft3","m3")),5))) -> 0 | F24: =IF('Backend Calcs Metric'!W25="","",(ROUND((CONVERT('Backend Calcs Metric'!W25,"ft3","m3")),5))) -> 1.41214 | G24: =IF('Backend Calcs Metric'!X25="","",(ROUND((CONVERT('Backend Calcs Metric'!X25,"ft3","m3")),5))) -> 1.41214 | H24: =IF('Backend Calcs Metric'!Y25="","",(ROUND((CONVERT('Backend Calcs Metric'!Y25,"ft3","m3")),5))) -> 132.74899 | I24: =IF('Backend Calcs Metric'!Y25="","",(ROUND((CONVERT('Backend Calcs Metric'!Y25,"ft3","m3")),2))) -> 132.75 | J24: =IF('Backend Calcs Metric'!AA25="","",(ROUND((CONVERT('Backend Calcs Metric'!Z25,"ft","m")),5))) -> 1.4732 | L24: 16.94568
A25: =IF('Backend Calcs Metric'!P26="","",(ROUND((CONVERT('Backend Calcs Metric'!P26,"in","mm")),0))) -> 1448 | B25: =IF('Backend Calcs Metric'!S26="","",(ROUND((CONVERT('Backend Calcs Metric'!S26,"ft3","m3")),5))) -> 0 | C25: =IF('Backend Calcs Metric'!T26="","",(ROUND((CONVERT('Backend Calcs Metric'!T26,"ft3","m3")),5))) -> 0 | D25: =IF('Backend Calcs Metric'!U26="","",(ROUND((CONVERT('Backend Calcs Metric'!U26,"ft3","m3")),5))) -> 0 | E25: =IF('Backend Calcs Metric'!V26="","",(ROUND((CONVERT('Backend Calcs Metric'!V26,"ft3","m3")),5))) -> 0 | F25: =IF('Backend Calcs Metric'!W26="","",(ROUND((CONVERT('Backend Calcs Metric'!W26,"ft3","m3")),5))) -> 1.41214 | G25: =IF('Backend Calcs Metric'!X26="","",(ROUND((CONVERT('Backend Calcs Metric'!X26,"ft3","m3")),5))) -> 1.41214 | H25: =IF('Backend Calcs Metric'!Y26="","",(ROUND((CONVERT('Backend Calcs Metric'!Y26,"ft3","m3")),5))) -> 131.33685 | I25: =IF('Backend Calcs Metric'!Y26="","",(ROUND((CONVERT('Backend Calcs Metric'!Y26,"ft3","m3")),2))) -> 131.34 | J25: =IF('Backend Calcs Metric'!AA26="","",(ROUND((CONVERT('Backend Calcs Metric'!Z26,"ft","m")),5))) -> 1.4478 | L25: 16.94568
A26: =IF('Backend Calcs Metric'!P27="","",(ROUND((CONVERT('Backend Calcs Metric'!P27,"in","mm")),0))) -> 1422 | B26: =IF('Backend Calcs Metric'!S27="","",(ROUND((CONVERT('Backend Calcs Metric'!S27,"ft3","m3")),5))) -> 0 | C26: =IF('Backend Calcs Metric'!T27="","",(ROUND((CONVERT('Backend Calcs Metric'!T27,"ft3","m3")),5))) -> 0 | D26: =IF('Backend Calcs Metric'!U27="","",(ROUND((CONVERT('Backend Calcs Metric'!U27,"ft3","m3")),5))) -> 0 | E26: =IF('Backend Calcs Metric'!V27="","",(ROUND((CONVERT('Backend Calcs Metric'!V27,"ft3","m3")),5))) -> 0 | F26: =IF('Backend Calcs Metric'!W27="","",(ROUND((CONVERT('Backend Calcs Metric'!W27,"ft3","m3")),5))) -> 1.41214 | G26: =IF('Backend Calcs Metric'!X27="","",(ROUND((CONVERT('Backend Calcs Metric'!X27,"ft3","m3")),5))) -> 1.41214 | H26: =IF('Backend Calcs Metric'!Y27="","",(ROUND((CONVERT('Backend Calcs Metric'!Y27,"ft3","m3")),5))) -> 129.92471 | I26: =IF('Backend Calcs Metric'!Y27="","",(ROUND((CONVERT('Backend Calcs Metric'!Y27,"ft3","m3")),2))) -> 129.92 | J26: =IF('Backend Calcs Metric'!AA27="","",(ROUND((CONVERT('Backend Calcs Metric'!Z27,"ft","m")),5))) -> 1.4224 | L26: 16.94568
A27: =IF('Backend Calcs Metric'!P28="","",(ROUND((CONVERT('Backend Calcs Metric'!P28,"in","mm")),0))) -> 1397 | B27: =IF('Backend Calcs Metric'!S28="","",(ROUND((CONVERT('Backend Calcs Metric'!S28,"ft3","m3")),5))) -> 0 | C27: =IF('Backend Calcs Metric'!T28="","",(ROUND((CONVERT('Backend Calcs Metric'!T28,"ft3","m3")),5))) -> 0 | D27: =IF('Backend Calcs Metric'!U28="","",(ROUND((CONVERT('Backend Calcs Metric'!U28,"ft3","m3")),5))) -> 0 | E27: =IF('Backend Calcs Metric'!V28="","",(ROUND((CONVERT('Backend Calcs Metric'!V28,"ft3","m3")),5))) -> 0 | F27: =IF('Backend Calcs Metric'!W28="","",(ROUND((CONVERT('Backend Calcs Metric'!W28,"ft3","m3")),5))) -> 1.41214 | G27: =IF('Backend Calcs Metric'!X28="","",(ROUND((CONVERT('Backend Calcs Metric'!X28,"ft3","m3")),5))) -> 1.41214 | H27: =IF('Backend Calcs Metric'!Y28="","",(ROUND((CONVERT('Backend Calcs Metric'!Y28,"ft3","m3")),5))) -> 128.51256 | I27: =IF('Backend Calcs Metric'!Y28="","",(ROUND((CONVERT('Backend Calcs Metric'!Y28,"ft3","m3")),2))) -> 128.51 | J27: =IF('Backend Calcs Metric'!AA28="","",(ROUND((CONVERT('Backend Calcs Metric'!Z28,"ft","m")),5))) -> 1.397 | L27: 16.94568
A28: =IF('Backend Calcs Metric'!P29="","",(ROUND((CONVERT('Backend Calcs Metric'!P29,"in","mm")),0))) -> 1372 | B28: =IF('Backend Calcs Metric'!S29="","",(ROUND((CONVERT('Backend Calcs Metric'!S29,"ft3","m3")),5))) -> 0.00517 | C28: =IF('Backend Calcs Metric'!T29="","",(ROUND((CONVERT('Backend Calcs Metric'!T29,"ft3","m3")),5))) -> 0 | D28: =IF('Backend Calcs Metric'!U29="","",(ROUND((CONVERT('Backend Calcs Metric'!U29,"ft3","m3")),5))) -> 0.12936 | E28: =IF('Backend Calcs Metric'!V29="","",(ROUND((CONVERT('Backend Calcs Metric'!V29,"ft3","m3")),5))) -> 0 | F28: =IF('Backend Calcs Metric'!W29="","",(ROUND((CONVERT('Backend Calcs Metric'!W29,"ft3","m3")),5))) -> 1.3604 | G28: =IF('Backend Calcs Metric'!X29="","",(ROUND((CONVERT('Backend Calcs Metric'!X29,"ft3","m3")),5))) -> 1.48976 | H28: =IF('Backend Calcs Metric'!Y29="","",(ROUND((CONVERT('Backend Calcs Metric'!Y29,"ft3","m3")),5))) -> 127.10042 | I28: =IF('Backend Calcs Metric'!Y29="","",(ROUND((CONVERT('Backend Calcs Metric'!Y29,"ft3","m3")),2))) -> 127.1 | J28: =IF('Backend Calcs Metric'!AA29="","",(ROUND((CONVERT('Backend Calcs Metric'!Z29,"ft","m")),5))) -> 1.3716 | L28: 17.87712
A29: =IF('Backend Calcs Metric'!P30="","",(ROUND((CONVERT('Backend Calcs Metric'!P30,"in","mm")),0))) -> 1346 | B29: =IF('Backend Calcs Metric'!S30="","",(ROUND((CONVERT('Backend Calcs Metric'!S30,"ft3","m3")),5))) -> 0.00889 | C29: =IF('Backend Calcs Metric'!T30="","",(ROUND((CONVERT('Backend Calcs Metric'!T30,"ft3","m3")),5))) -> 0.00028 | D29: =IF('Backend Calcs Metric'!U30="","",(ROUND((CONVERT('Backend Calcs Metric'!U30,"ft3","m3")),5))) -> 0.22218 | E29: =IF('Backend Calcs Metric'!V30="","",(ROUND((CONVERT('Backend Calcs Metric'!V30,"ft3","m3")),5))) -> 0.00283 | F29: =IF('Backend Calcs Metric'!W30="","",(ROUND((CONVERT('Backend Calcs Metric'!W30,"ft3","m3")),5))) -> 1.32214 | G29: =IF('Backend Calcs Metric'!X30="","",(ROUND((CONVERT('Backend Calcs Metric'!X30,"ft3","m3")),5))) -> 1.54715 | H29: =IF('Backend Calcs Metric'!Y30="","",(ROUND((CONVERT('Backend Calcs Metric'!Y30,"ft3","m3")),5))) -> 125.61067 | I29: =IF('Backend Calcs Metric'!Y30="","",(ROUND((CONVERT('Backend Calcs Metric'!Y30,"ft3","m3")),2))) -> 125.61 | J29: =IF('Backend Calcs Metric'!AA30="","",(ROUND((CONVERT('Backend Calcs Metric'!Z30,"ft","m")),5))) -> 1.3462 | L29: 18.5658
A30: =IF('Backend Calcs Metric'!P31="","",(ROUND((CONVERT('Backend Calcs Metric'!P31,"in","mm")),0))) -> 1321 | B30: =IF('Backend Calcs Metric'!S31="","",(ROUND((CONVERT('Backend Calcs Metric'!S31,"ft3","m3")),5))) -> 0.01253 | C30: =IF('Backend Calcs Metric'!T31="","",(ROUND((CONVERT('Backend Calcs Metric'!T31,"ft3","m3")),5))) -> 0.00085 | D30: =IF('Backend Calcs Metric'!U31="","",(ROUND((CONVERT('Backend Calcs Metric'!U31,"ft3","m3")),5))) -> 0.31315 | E30: =IF('Backend Calcs Metric'!V31="","",(ROUND((CONVERT('Backend Calcs Metric'!V31,"ft3","m3")),5))) -> 0.0085 | F30: =IF('Backend Calcs Metric'!W31="","",(ROUND((CONVERT('Backend Calcs Metric'!W31,"ft3","m3")),5))) -> 1.28348 | G30: =IF('Backend Calcs Metric'!X31="","",(ROUND((CONVERT('Backend Calcs Metric'!X31,"ft3","m3")),5))) -> 1.60513 | H30: =IF('Backend Calcs Metric'!Y31="","",(ROUND((CONVERT('Backend Calcs Metric'!Y31,"ft3","m3")),5))) -> 124.06352 | I30: =IF('Backend Calcs Metric'!Y31="","",(ROUND((CONVERT('Backend Calcs Metric'!Y31,"ft3","m3")),2))) -> 124.06 | J30: =IF('Backend Calcs Metric'!AA31="","",(ROUND((CONVERT('Backend Calcs Metric'!Z31,"ft","m")),5))) -> 1.3208 | L30: 19.26156
A31: =IF('Backend Calcs Metric'!P32="","",(ROUND((CONVERT('Backend Calcs Metric'!P32,"in","mm")),0))) -> 1295 | B31: =IF('Backend Calcs Metric'!S32="","",(ROUND((CONVERT('Backend Calcs Metric'!S32,"ft3","m3")),5))) -> 0.01774 | C31: =IF('Backend Calcs Metric'!T32="","",(ROUND((CONVERT('Backend Calcs Metric'!T32,"ft3","m3")),5))) -> 0.00142 | D31: =IF('Backend Calcs Metric'!U32="","",(ROUND((CONVERT('Backend Calcs Metric'!U32,"ft3","m3")),5))) -> 0.44338 | E31: =IF('Backend Calcs Metric'!V32="","",(ROUND((CONVERT('Backend Calcs Metric'!V32,"ft3","m3")),5))) -> 0.01416 | F31: =IF('Backend Calcs Metric'!W32="","",(ROUND((CONVERT('Backend Calcs Metric'!W32,"ft3","m3")),5))) -> 1.22913 | G31: =IF('Backend Calcs Metric'!X32="","",(ROUND((CONVERT('Backend Calcs Metric'!X32,"ft3","m3")),5))) -> 1.68666 | H31: =IF('Backend Calcs Metric'!Y32="","",(ROUND((CONVERT('Backend Calcs Metric'!Y32,"ft3","m3")),5))) -> 122.45839 | I31: =IF('Backend Calcs Metric'!Y32="","",(ROUND((CONVERT('Backend Calcs Metric'!Y32,"ft3","m3")),2))) -> 122.46 | J31: =IF('Backend Calcs Metric'!AA32="","",(ROUND((CONVERT('Backend Calcs Metric'!Z32,"ft","m")),5))) -> 1.2954 | L31: 20.23992
A32: =IF('Backend Calcs Metric'!P33="","",(ROUND((CONVERT('Backend Calcs Metric'!P33,"in","mm")),0))) -> 1270 | B32: =IF('Backend Calcs Metric'!S33="","",(ROUND((CONVERT('Backend Calcs Metric'!S33,"ft3","m3")),5))) -> 0.029 | C32: =IF('Backend Calcs Metric'!T33="","",(ROUND((CONVERT('Backend Calcs Metric'!T33,"ft3","m3")),5))) -> 0.00198 | D32: =IF('Backend Calcs Metric'!U33="","",(ROUND((CONVERT('Backend Calcs Metric'!U33,"ft3","m3")),5))) -> 0.72491 | E32: =IF('Backend Calcs Metric'!V33="","",(ROUND((CONVERT('Backend Calcs Metric'!V33,"ft3","m3")),5))) -> 0.01982 | F32: =IF('Backend Calcs Metric'!W33="","",(ROUND((CONVERT('Backend Calcs Metric'!W33,"ft3","m3")),5))) -> 1.11425 | G32: =IF('Backend Calcs Metric'!X33="","",(ROUND((CONVERT('Backend Calcs Metric'!X33,"ft3","m3")),5))) -> 1.85898 | H32: =IF('Backend Calcs Metric'!Y33="","",(ROUND((CONVERT('Backend Calcs Metric'!Y33,"ft3","m3")),5))) -> 120.77173 | I32: =IF('Backend Calcs Metric'!Y33="","",(ROUND((CONVERT('Backend Calcs Metric'!Y33,"ft3","m3")),2))) -> 120.77 | J32: =IF('Backend Calcs Metric'!AA33="","",(ROUND((CONVERT('Backend Calcs Metric'!Z33,"ft","m")),5))) -> 1.27 | L32: 22.30776
A33: =IF('Backend Calcs Metric'!P34="","",(ROUND((CONVERT('Backend Calcs Metric'!P34,"in","mm")),0))) -> 1245 | B33: =IF('Backend Calcs Metric'!S34="","",(ROUND((CONVERT('Backend Calcs Metric'!S34,"ft3","m3")),5))) -> 0.03602 | C33: =IF('Backend Calcs Metric'!T34="","",(ROUND((CONVERT('Backend Calcs Metric'!T34,"ft3","m3")),5))) -> 0.00227 | D33: =IF('Backend Calcs Metric'!U34="","",(ROUND((CONVERT('Backend Calcs Metric'!U34,"ft3","m3")),5))) -> 0.90051 | E33: =IF('Backend Calcs Metric'!V34="","",(ROUND((CONVERT('Backend Calcs Metric'!V34,"ft3","m3")),5))) -> 0.02265 | F33: =IF('Backend Calcs Metric'!W34="","",(ROUND((CONVERT('Backend Calcs Metric'!W34,"ft3","m3")),5))) -> 1.04288 | G33: =IF('Backend Calcs Metric'!X34="","",(ROUND((CONVERT('Backend Calcs Metric'!X34,"ft3","m3")),5))) -> 1.96604 | H33: =IF('Backend Calcs Metric'!Y34="","",(ROUND((CONVERT('Backend Calcs Metric'!Y34,"ft3","m3")),5))) -> 118.91275 | I33: =IF('Backend Calcs Metric'!Y34="","",(ROUND((CONVERT('Backend Calcs Metric'!Y34,"ft3","m3")),2))) -> 118.91 | J33: =IF('Backend Calcs Metric'!AA34="","",(ROUND((CONVERT('Backend Calcs Metric'!Z34,"ft","m")),5))) -> 1.2446 | L33: 23.59248
A34: =IF('Backend Calcs Metric'!P35="","",(ROUND((CONVERT('Backend Calcs Metric'!P35,"in","mm")),0))) -> 1219 | B34: =IF('Backend Calcs Metric'!S35="","",(ROUND((CONVERT('Backend Calcs Metric'!S35,"ft3","m3")),5))) -> 0.04138 | C34: =IF('Backend Calcs Metric'!T35="","",(ROUND((CONVERT('Backend Calcs Metric'!T35,"ft3","m3")),5))) -> 0.00283 | D34: =IF('Backend Calcs Metric'!U35="","",(ROUND((CONVERT('Backend Calcs Metric'!U35,"ft3","m3")),5))) -> 1.03462 | E34: =IF('Backend Calcs Metric'!V35="","",(ROUND((CONVERT('Backend Calcs Metric'!V35,"ft3","m3")),5))) -> 0.02832 | F34: =IF('Backend Calcs Metric'!W35="","",(ROUND((CONVERT('Backend Calcs Metric'!W35,"ft3","m3")),5))) -> 0.98697 | G34: =IF('Backend Calcs Metric'!X35="","",(ROUND((CONVERT('Backend Calcs Metric'!X35,"ft3","m3")),5))) -> 2.0499 | H34: =IF('Backend Calcs Metric'!Y35="","",(ROUND((CONVERT('Backend Calcs Metric'!Y35,"ft3","m3")),5))) -> 116.94671 | I34: =IF('Backend Calcs Metric'!Y35="","",(ROUND((CONVERT('Backend Calcs Metric'!Y35,"ft3","m3")),2))) -> 116.95 | J34: =IF('Backend Calcs Metric'!AA35="","",(ROUND((CONVERT('Backend Calcs Metric'!Z35,"ft","m")),5))) -> 1.2192 | L34: 24.5988
A35: =IF('Backend Calcs Metric'!P36="","",(ROUND((CONVERT('Backend Calcs Metric'!P36,"in","mm")),0))) -> 1194 | B35: =IF('Backend Calcs Metric'!S36="","",(ROUND((CONVERT('Backend Calcs Metric'!S36,"ft3","m3")),5))) -> 0.04586 | C35: =IF('Backend Calcs Metric'!T36="","",(ROUND((CONVERT('Backend Calcs Metric'!T36,"ft3","m3")),5))) -> 0.0034 | D35: =IF('Backend Calcs Metric'!U36="","",(ROUND((CONVERT('Backend Calcs Metric'!U36,"ft3","m3")),5))) -> 1.14662 | E35: =IF('Backend Calcs Metric'!V36="","",(ROUND((CONVERT('Backend Calcs Metric'!V36,"ft3","m3")),5))) -> 0.03398 | F35: =IF('Backend Calcs Metric'!W36="","",(ROUND((CONVERT('Backend Calcs Metric'!W36,"ft3","m3")),5))) -> 0.9399 | G35: =IF('Backend Calcs Metric'!X36="","",(ROUND((CONVERT('Backend Calcs Metric'!X36,"ft3","m3")),5))) -> 2.1205 | H35: =IF('Backend Calcs Metric'!Y36="","",(ROUND((CONVERT('Backend Calcs Metric'!Y36,"ft3","m3")),5))) -> 114.8968 | I35: =IF('Backend Calcs Metric'!Y36="","",(ROUND((CONVERT('Backend Calcs Metric'!Y36,"ft3","m3")),2))) -> 114.9 | J35: =IF('Backend Calcs Metric'!AA36="","",(ROUND((CONVERT('Backend Calcs Metric'!Z36,"ft","m")),5))) -> 1.1938 | L35: 25.446
A36: =IF('Backend Calcs Metric'!P37="","",(ROUND((CONVERT('Backend Calcs Metric'!P37,"in","mm")),0))) -> 1168 | B36: =IF('Backend Calcs Metric'!S37="","",(ROUND((CONVERT('Backend Calcs Metric'!S37,"ft3","m3")),5))) -> 0.04975 | C36: =IF('Backend Calcs Metric'!T37="","",(ROUND((CONVERT('Backend Calcs Metric'!T37,"ft3","m3")),5))) -> 0.00425 | D36: =IF('Backend Calcs Metric'!U37="","",(ROUND((CONVERT('Backend Calcs Metric'!U37,"ft3","m3")),5))) -> 1.24363 | E36: =IF('Backend Calcs Metric'!V37="","",(ROUND((CONVERT('Backend Calcs Metric'!V37,"ft3","m3")),5))) -> 0.04248 | F36: =IF('Backend Calcs Metric'!W37="","",(ROUND((CONVERT('Backend Calcs Metric'!W37,"ft3","m3")),5))) -> 0.8977 | G36: =IF('Backend Calcs Metric'!X37="","",(ROUND((CONVERT('Backend Calcs Metric'!X37,"ft3","m3")),5))) -> 2.18381 | H36: =IF('Backend Calcs Metric'!Y37="","",(ROUND((CONVERT('Backend Calcs Metric'!Y37,"ft3","m3")),5))) -> 112.7763 | I36: =IF('Backend Calcs Metric'!Y37="","",(ROUND((CONVERT('Backend Calcs Metric'!Y37,"ft3","m3")),2))) -> 112.78 | J36: =IF('Backend Calcs Metric'!AA37="","",(ROUND((CONVERT('Backend Calcs Metric'!Z37,"ft","m")),5))) -> 1.1684 | L36: 26.20572
A37: =IF('Backend Calcs Metric'!P38="","",(ROUND((CONVERT('Backend Calcs Metric'!P38,"in","mm")),0))) -> 1143 | B37: =IF('Backend Calcs Metric'!S38="","",(ROUND((CONVERT('Backend Calcs Metric'!S38,"ft3","m3")),5))) -> 0.05318 | C37: =IF('Backend Calcs Metric'!T38="","",(ROUND((CONVERT('Backend Calcs Metric'!T38,"ft3","m3")),5))) -> 0.00453 | D37: =IF('Backend Calcs Metric'!U38="","",(ROUND((CONVERT('Backend Calcs Metric'!U38,"ft3","m3")),5))) -> 1.32938 | E37: =IF('Backend Calcs Metric'!V38="","",(ROUND((CONVERT('Backend Calcs Metric'!V38,"ft3","m3")),5))) -> 0.04531 | F37: =IF('Backend Calcs Metric'!W38="","",(ROUND((CONVERT('Backend Calcs Metric'!W38,"ft3","m3")),5))) -> 0.86227 | G37: =IF('Backend Calcs Metric'!X38="","",(ROUND((CONVERT('Backend Calcs Metric'!X38,"ft3","m3")),5))) -> 2.23695 | H37: =IF('Backend Calcs Metric'!Y38="","",(ROUND((CONVERT('Backend Calcs Metric'!Y38,"ft3","m3")),5))) -> 110.59249 | I37: =IF('Backend Calcs Metric'!Y38="","",(ROUND((CONVERT('Backend Calcs Metric'!Y38,"ft3","m3")),2))) -> 110.59 | J37: =IF('Backend Calcs Metric'!AA38="","",(ROUND((CONVERT('Backend Calcs Metric'!Z38,"ft","m")),5))) -> 1.143 | L37: 26.8434
A38: =IF('Backend Calcs Metric'!P39="","",(ROUND((CONVERT('Backend Calcs Metric'!P39,"in","mm")),0))) -> 1118 | B38: =IF('Backend Calcs Metric'!S39="","",(ROUND((CONVERT('Backend Calcs Metric'!S39,"ft3","m3")),5))) -> 0.05624 | C38: =IF('Backend Calcs Metric'!T39="","",(ROUND((CONVERT('Backend Calcs Metric'!T39,"ft3","m3")),5))) -> 0.00481 | D38: =IF('Backend Calcs Metric'!U39="","",(ROUND((CONVERT('Backend Calcs Metric'!U39,"ft3","m3")),5))) -> 1.4061 | E38: =IF('Backend Calcs Metric'!V39="","",(ROUND((CONVERT('Backend Calcs Metric'!V39,"ft3","m3")),5))) -> 0.04814 | F38: =IF('Backend Calcs Metric'!W39="","",(ROUND((CONVERT('Backend Calcs Metric'!W39,"ft3","m3")),5))) -> 0.83044 | G38: =IF('Backend Calcs Metric'!X39="","",(ROUND((CONVERT('Backend Calcs Metric'!X39,"ft3","m3")),5))) -> 2.28469 | H38: =IF('Backend Calcs Metric'!Y39="","",(ROUND((CONVERT('Backend Calcs Metric'!Y39,"ft3","m3")),5))) -> 108.35554 | I38: =IF('Backend Calcs Metric'!Y39="","",(ROUND((CONVERT('Backend Calcs Metric'!Y39,"ft3","m3")),2))) -> 108.36 | J38: =IF('Backend Calcs Metric'!AA39="","",(ROUND((CONVERT('Backend Calcs Metric'!Z39,"ft","m")),5))) -> 1.1176 | L38: 27.41628
A39: =IF('Backend Calcs Metric'!P40="","",(ROUND((CONVERT('Backend Calcs Metric'!P40,"in","mm")),0))) -> 1092 | B39: =IF('Backend Calcs Metric'!S40="","",(ROUND((CONVERT('Backend Calcs Metric'!S40,"ft3","m3")),5))) -> 0.05901 | C39: =IF('Backend Calcs Metric'!T40="","",(ROUND((CONVERT('Backend Calcs Metric'!T40,"ft3","m3")),5))) -> 0.00538 | D39: =IF('Backend Calcs Metric'!U40="","",(ROUND((CONVERT('Backend Calcs Metric'!U40,"ft3","m3")),5))) -> 1.47529 | E39: =IF('Backend Calcs Metric'!V40="","",(ROUND((CONVERT('Backend Calcs Metric'!V40,"ft3","m3")),5))) -> 0.0538 | F39: =IF('Backend Calcs Metric'!W40="","",(ROUND((CONVERT('Backend Calcs Metric'!W40,"ft3","m3")),5))) -> 0.8005 | G39: =IF('Backend Calcs Metric'!X40="","",(ROUND((CONVERT('Backend Calcs Metric'!X40,"ft3","m3")),5))) -> 2.3296 | H39: =IF('Backend Calcs Metric'!Y40="","",(ROUND((CONVERT('Backend Calcs Metric'!Y40,"ft3","m3")),5))) -> 106.07086 | I39: =IF('Backend Calcs Metric'!Y40="","",(ROUND((CONVERT('Backend Calcs Metric'!Y40,"ft3","m3")),2))) -> 106.07 | J39: =IF('Backend Calcs Metric'!AA40="","",(ROUND((CONVERT('Backend Calcs Metric'!Z40,"ft","m")),5))) -> 1.0922 | L39: 27.9552
A40: =IF('Backend Calcs Metric'!P41="","",(ROUND((CONVERT('Backend Calcs Metric'!P41,"in","mm")),0))) -> 1067 | B40: =IF('Backend Calcs Metric'!S41="","",(ROUND((CONVERT('Backend Calcs Metric'!S41,"ft3","m3")),5))) -> 0.06153 | C40: =IF('Backend Calcs Metric'!T41="","",(ROUND((CONVERT('Backend Calcs Metric'!T41,"ft3","m3")),5))) -> 0.00566 | D40: =IF('Backend Calcs Metric'!U41="","",(ROUND((CONVERT('Backend Calcs Metric'!U41,"ft3","m3")),5))) -> 1.53834 | E40: =IF('Backend Calcs Metric'!V41="","",(ROUND((CONVERT('Backend Calcs Metric'!V41,"ft3","m3")),5))) -> 0.05663 | F40: =IF('Backend Calcs Metric'!W41="","",(ROUND((CONVERT('Backend Calcs Metric'!W41,"ft3","m3")),5))) -> 0.77415 | G40: =IF('Backend Calcs Metric'!X41="","",(ROUND((CONVERT('Backend Calcs Metric'!X41,"ft3","m3")),5))) -> 2.36912 | H40: =IF('Backend Calcs Metric'!Y41="","",(ROUND((CONVERT('Backend Calcs Metric'!Y41,"ft3","m3")),5))) -> 103.74126 | I40: =IF('Backend Calcs Metric'!Y41="","",(ROUND((CONVERT('Backend Calcs Metric'!Y41,"ft3","m3")),2))) -> 103.74 | J40: =IF('Backend Calcs Metric'!AA41="","",(ROUND((CONVERT('Backend Calcs Metric'!Z41,"ft","m")),5))) -> 1.0668 | L40: 28.42944
A41: =IF('Backend Calcs Metric'!P42="","",(ROUND((CONVERT('Backend Calcs Metric'!P42,"in","mm")),0))) -> 1041 | B41: =IF('Backend Calcs Metric'!S42="","",(ROUND((CONVERT('Backend Calcs Metric'!S42,"ft3","m3")),5))) -> 0.06386 | C41: =IF('Backend Calcs Metric'!T42="","",(ROUND((CONVERT('Backend Calcs Metric'!T42,"ft3","m3")),5))) -> 0.00623 | D41: =IF('Backend Calcs Metric'!U42="","",(ROUND((CONVERT('Backend Calcs Metric'!U42,"ft3","m3")),5))) -> 1.59655 | E41: =IF('Backend Calcs Metric'!V42="","",(ROUND((CONVERT('Backend Calcs Metric'!V42,"ft3","m3")),5))) -> 0.0623 | F41: =IF('Backend Calcs Metric'!W42="","",(ROUND((CONVERT('Backend Calcs Metric'!W42,"ft3","m3")),5))) -> 0.7486 | G41: =IF('Backend Calcs Metric'!X42="","",(ROUND((CONVERT('Backend Calcs Metric'!X42,"ft3","m3")),5))) -> 2.40745 | H41: =IF('Backend Calcs Metric'!Y42="","",(ROUND((CONVERT('Backend Calcs Metric'!Y42,"ft3","m3")),5))) -> 101.37214 | I41: =IF('Backend Calcs Metric'!Y42="","",(ROUND((CONVERT('Backend Calcs Metric'!Y42,"ft3","m3")),2))) -> 101.37 | J41: =IF('Backend Calcs Metric'!AA42="","",(ROUND((CONVERT('Backend Calcs Metric'!Z42,"ft","m")),5))) -> 1.0414 | L41: 28.8894
A42: =IF('Backend Calcs Metric'!P43="","",(ROUND((CONVERT('Backend Calcs Metric'!P43,"in","mm")),0))) -> 1016 | B42: =IF('Backend Calcs Metric'!S43="","",(ROUND((CONVERT('Backend Calcs Metric'!S43,"ft3","m3")),5))) -> 0.06605 | C42: =IF('Backend Calcs Metric'!T43="","",(ROUND((CONVERT('Backend Calcs Metric'!T43,"ft3","m3")),5))) -> 0.00651 | D42: =IF('Backend Calcs Metric'!U43="","",(ROUND((CONVERT('Backend Calcs Metric'!U43,"ft3","m3")),5))) -> 1.65128 | E42: =IF('Backend Calcs Metric'!V43="","",(ROUND((CONVERT('Backend Calcs Metric'!V43,"ft3","m3")),5))) -> 0.06513 | F42: =IF('Backend Calcs Metric'!W43="","",(ROUND((CONVERT('Backend Calcs Metric'!W43,"ft3","m3")),5))) -> 0.72558 | G42: =IF('Backend Calcs Metric'!X43="","",(ROUND((CONVERT('Backend Calcs Metric'!X43,"ft3","m3")),5))) -> 2.44199 | H42: =IF('Backend Calcs Metric'!Y43="","",(ROUND((CONVERT('Backend Calcs Metric'!Y43,"ft3","m3")),5))) -> 98.96468 | I42: =IF('Backend Calcs Metric'!Y43="","",(ROUND((CONVERT('Backend Calcs Metric'!Y43,"ft3","m3")),2))) -> 98.96 | J42: =IF('Backend Calcs Metric'!AA43="","",(ROUND((CONVERT('Backend Calcs Metric'!Z43,"ft","m")),5))) -> 1.016 | L42: 29.30388
A43: =IF('Backend Calcs Metric'!P44="","",(ROUND((CONVERT('Backend Calcs Metric'!P44,"in","mm")),0))) -> 991 | B43: =IF('Backend Calcs Metric'!S44="","",(ROUND((CONVERT('Backend Calcs Metric'!S44,"ft3","m3")),5))) -> 0.06813 | C43: =IF('Backend Calcs Metric'!T44="","",(ROUND((CONVERT('Backend Calcs Metric'!T44,"ft3","m3")),5))) -> 0.00708 | D43: =IF('Backend Calcs Metric'!U44="","",(ROUND((CONVERT('Backend Calcs Metric'!U44,"ft3","m3")),5))) -> 1.7032 | E43: =IF('Backend Calcs Metric'!V44="","",(ROUND((CONVERT('Backend Calcs Metric'!V44,"ft3","m3")),5))) -> 0.07079 | F43: =IF('Backend Calcs Metric'!W44="","",(ROUND((CONVERT('Backend Calcs Metric'!W44,"ft3","m3")),5))) -> 0.70254 | G43: =IF('Backend Calcs Metric'!X44="","",(ROUND((CONVERT('Backend Calcs Metric'!X44,"ft3","m3")),5))) -> 2.47653 | H43: =IF('Backend Calcs Metric'!Y44="","",(ROUND((CONVERT('Backend Calcs Metric'!Y44,"ft3","m3")),5))) -> 96.5227 | I43: =IF('Backend Calcs Metric'!Y44="","",(ROUND((CONVERT('Backend Calcs Metric'!Y44,"ft3","m3")),2))) -> 96.52 | J43: =IF('Backend Calcs Metric'!AA44="","",(ROUND((CONVERT('Backend Calcs Metric'!Z44,"ft","m")),5))) -> 0.9906 | L43: 29.71836
A44: =IF('Backend Calcs Metric'!P45="","",(ROUND((CONVERT('Backend Calcs Metric'!P45,"in","mm")),0))) -> 965 | B44: =IF('Backend Calcs Metric'!S45="","",(ROUND((CONVERT('Backend Calcs Metric'!S45,"ft3","m3")),5))) -> 0.0701 | C44: =IF('Backend Calcs Metric'!T45="","",(ROUND((CONVERT('Backend Calcs Metric'!T45,"ft3","m3")),5))) -> 0.00765 | D44: =IF('Backend Calcs Metric'!U45="","",(ROUND((CONVERT('Backend Calcs Metric'!U45,"ft3","m3")),5))) -> 1.75247 | E44: =IF('Backend Calcs Metric'!V45="","",(ROUND((CONVERT('Backend Calcs Metric'!V45,"ft3","m3")),5))) -> 0.07646 | F44: =IF('Backend Calcs Metric'!W45="","",(ROUND((CONVERT('Backend Calcs Metric'!W45,"ft3","m3")),5))) -> 0.68057 | G44: =IF('Backend Calcs Metric'!X45="","",(ROUND((CONVERT('Backend Calcs Metric'!X45,"ft3","m3")),5))) -> 2.50949 | H44: =IF('Backend Calcs Metric'!Y45="","",(ROUND((CONVERT('Backend Calcs Metric'!Y45,"ft3","m3")),5))) -> 94.04616 | I44: =IF('Backend Calcs Metric'!Y45="","",(ROUND((CONVERT('Backend Calcs Metric'!Y45,"ft3","m3")),2))) -> 94.05 | J44: =IF('Backend Calcs Metric'!AA45="","",(ROUND((CONVERT('Backend Calcs Metric'!Z45,"ft","m")),5))) -> 0.9652 | L44: 30.11388
A45: =IF('Backend Calcs Metric'!P46="","",(ROUND((CONVERT('Backend Calcs Metric'!P46,"in","mm")),0))) -> 940 | B45: =IF('Backend Calcs Metric'!S46="","",(ROUND((CONVERT('Backend Calcs Metric'!S46,"ft3","m3")),5))) -> 0.07197 | C45: =IF('Backend Calcs Metric'!T46="","",(ROUND((CONVERT('Backend Calcs Metric'!T46,"ft3","m3")),5))) -> 0.00793 | D45: =IF('Backend Calcs Metric'!U46="","",(ROUND((CONVERT('Backend Calcs Metric'!U46,"ft3","m3")),5))) -> 1.79922 | E45: =IF('Backend Calcs Metric'!V46="","",(ROUND((CONVERT('Backend Calcs Metric'!V46,"ft3","m3")),5))) -> 0.07929 | F45: =IF('Backend Calcs Metric'!W46="","",(ROUND((CONVERT('Backend Calcs Metric'!W46,"ft3","m3")),5))) -> 0.66074 | G45: =IF('Backend Calcs Metric'!X46="","",(ROUND((CONVERT('Backend Calcs Metric'!X46,"ft3","m3")),5))) -> 2.53924 | H45: =IF('Backend Calcs Metric'!Y46="","",(ROUND((CONVERT('Backend Calcs Metric'!Y46,"ft3","m3")),5))) -> 91.53667 | I45: =IF('Backend Calcs Metric'!Y46="","",(ROUND((CONVERT('Backend Calcs Metric'!Y46,"ft3","m3")),2))) -> 91.54 | J45: =IF('Backend Calcs Metric'!AA46="","",(ROUND((CONVERT('Backend Calcs Metric'!Z46,"ft","m")),5))) -> 0.9398 | L45: 30.47088
A46: =IF('Backend Calcs Metric'!P47="","",(ROUND((CONVERT('Backend Calcs Metric'!P47,"in","mm")),0))) -> 914 | B46: =IF('Backend Calcs Metric'!S47="","",(ROUND((CONVERT('Backend Calcs Metric'!S47,"ft3","m3")),5))) -> 0.07374 | C46: =IF('Backend Calcs Metric'!T47="","",(ROUND((CONVERT('Backend Calcs Metric'!T47,"ft3","m3")),5))) -> 0.0085 | D46: =IF('Backend Calcs Metric'!U47="","",(ROUND((CONVERT('Backend Calcs Metric'!U47,"ft3","m3")),5))) -> 1.84359 | E46: =IF('Backend Calcs Metric'!V47="","",(ROUND((CONVERT('Backend Calcs Metric'!V47,"ft3","m3")),5))) -> 0.08495 | F46: =IF('Backend Calcs Metric'!W47="","",(ROUND((CONVERT('Backend Calcs Metric'!W47,"ft3","m3")),5))) -> 0.64073 | G46: =IF('Backend Calcs Metric'!X47="","",(ROUND((CONVERT('Backend Calcs Metric'!X47,"ft3","m3")),5))) -> 2.56926 | H46: =IF('Backend Calcs Metric'!Y47="","",(ROUND((CONVERT('Backend Calcs Metric'!Y47,"ft3","m3")),5))) -> 88.99742 | I46: =IF('Backend Calcs Metric'!Y47="","",(ROUND((CONVERT('Backend Calcs Metric'!Y47,"ft3","m3")),2))) -> 89 | J46: =IF('Backend Calcs Metric'!AA47="","",(ROUND((CONVERT('Backend Calcs Metric'!Z47,"ft","m")),5))) -> 0.9144 | L46: 30.83112
A47: =IF('Backend Calcs Metric'!P48="","",(ROUND((CONVERT('Backend Calcs Metric'!P48,"in","mm")),0))) -> 889 | B47: =IF('Backend Calcs Metric'!S48="","",(ROUND((CONVERT('Backend Calcs Metric'!S48,"ft3","m3")),5))) -> 0.07543 | C47: =IF('Backend Calcs Metric'!T48="","",(ROUND((CONVERT('Backend Calcs Metric'!T48,"ft3","m3")),5))) -> 0.00906 | D47: =IF('Backend Calcs Metric'!U48="","",(ROUND((CONVERT('Backend Calcs Metric'!U48,"ft3","m3")),5))) -> 1.88564 | E47: =IF('Backend Calcs Metric'!V48="","",(ROUND((CONVERT('Backend Calcs Metric'!V48,"ft3","m3")),5))) -> 0.09061 | F47: =IF('Backend Calcs Metric'!W48="","",(ROUND((CONVERT('Backend Calcs Metric'!W48,"ft3","m3")),5))) -> 0.62164 | G47: =IF('Backend Calcs Metric'!X48="","",(ROUND((CONVERT('Backend Calcs Metric'!X48,"ft3","m3")),5))) -> 2.59789 | H47: =IF('Backend Calcs Metric'!Y48="","",(ROUND((CONVERT('Backend Calcs Metric'!Y48,"ft3","m3")),5))) -> 86.42816 | I47: =IF('Backend Calcs Metric'!Y48="","",(ROUND((CONVERT('Backend Calcs Metric'!Y48,"ft3","m3")),2))) -> 86.43 | J47: =IF('Backend Calcs Metric'!AA48="","",(ROUND((CONVERT('Backend Calcs Metric'!Z48,"ft","m")),5))) -> 0.889 | L47: 31.17468
A48: =IF('Backend Calcs Metric'!P49="","",(ROUND((CONVERT('Backend Calcs Metric'!P49,"in","mm")),0))) -> 864 | B48: =IF('Backend Calcs Metric'!S49="","",(ROUND((CONVERT('Backend Calcs Metric'!S49,"ft3","m3")),5))) -> 0.07702 | C48: =IF('Backend Calcs Metric'!T49="","",(ROUND((CONVERT('Backend Calcs Metric'!T49,"ft3","m3")),5))) -> 0.00934 | D48: =IF('Backend Calcs Metric'!U49="","",(ROUND((CONVERT('Backend Calcs Metric'!U49,"ft3","m3")),5))) -> 1.9255 | E48: =IF('Backend Calcs Metric'!V49="","",(ROUND((CONVERT('Backend Calcs Metric'!V49,"ft3","m3")),5))) -> 0.09345 | F48: =IF('Backend Calcs Metric'!W49="","",(ROUND((CONVERT('Backend Calcs Metric'!W49,"ft3","m3")),5))) -> 0.60456 | G48: =IF('Backend Calcs Metric'!X49="","",(ROUND((CONVERT('Backend Calcs Metric'!X49,"ft3","m3")),5))) -> 2.62351 | H48: =IF('Backend Calcs Metric'!Y49="","",(ROUND((CONVERT('Backend Calcs Metric'!Y49,"ft3","m3")),5))) -> 83.83027 | I48: =IF('Backend Calcs Metric'!Y49="","",(ROUND((CONVERT('Backend Calcs Metric'!Y49,"ft3","m3")),2))) -> 83.83 | J48: =IF('Backend Calcs Metric'!AA49="","",(ROUND((CONVERT('Backend Calcs Metric'!Z49,"ft","m")),5))) -> 0.8636 | L48: 31.48212
A49: =IF('Backend Calcs Metric'!P50="","",(ROUND((CONVERT('Backend Calcs Metric'!P50,"in","mm")),0))) -> 838 | B49: =IF('Backend Calcs Metric'!S50="","",(ROUND((CONVERT('Backend Calcs Metric'!S50,"ft3","m3")),5))) -> 0.07853 | C49: =IF('Backend Calcs Metric'!T50="","",(ROUND((CONVERT('Backend Calcs Metric'!T50,"ft3","m3")),5))) -> 0.00991 | D49: =IF('Backend Calcs Metric'!U50="","",(ROUND((CONVERT('Backend Calcs Metric'!U50,"ft3","m3")),5))) -> 1.96326 | E49: =IF('Backend Calcs Metric'!V50="","",(ROUND((CONVERT('Backend Calcs Metric'!V50,"ft3","m3")),5))) -> 0.09911 | F49: =IF('Backend Calcs Metric'!W50="","",(ROUND((CONVERT('Backend Calcs Metric'!W50,"ft3","m3")),5))) -> 0.58719 | G49: =IF('Backend Calcs Metric'!X50="","",(ROUND((CONVERT('Backend Calcs Metric'!X50,"ft3","m3")),5))) -> 2.64956 | H49: =IF('Backend Calcs Metric'!Y50="","",(ROUND((CONVERT('Backend Calcs Metric'!Y50,"ft3","m3")),5))) -> 81.20676 | I49: =IF('Backend Calcs Metric'!Y50="","",(ROUND((CONVERT('Backend Calcs Metric'!Y50,"ft3","m3")),2))) -> 81.21 | J49: =IF('Backend Calcs Metric'!AA50="","",(ROUND((CONVERT('Backend Calcs Metric'!Z50,"ft","m")),5))) -> 0.8382 | L49: 31.79472
A50: =IF('Backend Calcs Metric'!P51="","",(ROUND((CONVERT('Backend Calcs Metric'!P51,"in","mm")),0))) -> 813 | B50: =IF('Backend Calcs Metric'!S51="","",(ROUND((CONVERT('Backend Calcs Metric'!S51,"ft3","m3")),5))) -> 0.07996 | C50: =IF('Backend Calcs Metric'!T51="","",(ROUND((CONVERT('Backend Calcs Metric'!T51,"ft3","m3")),5))) -> 0.01048 | D50: =IF('Backend Calcs Metric'!U51="","",(ROUND((CONVERT('Backend Calcs Metric'!U51,"ft3","m3")),5))) -> 1.99896 | E50: =IF('Backend Calcs Metric'!V51="","",(ROUND((CONVERT('Backend Calcs Metric'!V51,"ft3","m3")),5))) -> 0.10477 | F50: =IF('Backend Calcs Metric'!W51="","",(ROUND((CONVERT('Backend Calcs Metric'!W51,"ft3","m3")),5))) -> 0.57065 | G50: =IF('Backend Calcs Metric'!X51="","",(ROUND((CONVERT('Backend Calcs Metric'!X51,"ft3","m3")),5))) -> 2.67438 | H50: =IF('Backend Calcs Metric'!Y51="","",(ROUND((CONVERT('Backend Calcs Metric'!Y51,"ft3","m3")),5))) -> 78.5572 | I50: =IF('Backend Calcs Metric'!Y51="","",(ROUND((CONVERT('Backend Calcs Metric'!Y51,"ft3","m3")),2))) -> 78.56 | J50: =IF('Backend Calcs Metric'!AA51="","",(ROUND((CONVERT('Backend Calcs Metric'!Z51,"ft","m")),5))) -> 0.8128 | L50: 32.09256
A51: =IF('Backend Calcs Metric'!P52="","",(ROUND((CONVERT('Backend Calcs Metric'!P52,"in","mm")),0))) -> 787 | B51: =IF('Backend Calcs Metric'!S52="","",(ROUND((CONVERT('Backend Calcs Metric'!S52,"ft3","m3")),5))) -> 0.08131 | C51: =IF('Backend Calcs Metric'!T52="","",(ROUND((CONVERT('Backend Calcs Metric'!T52,"ft3","m3")),5))) -> 0.01048 | D51: =IF('Backend Calcs Metric'!U52="","",(ROUND((CONVERT('Backend Calcs Metric'!U52,"ft3","m3")),5))) -> 2.03269 | E51: =IF('Backend Calcs Metric'!V52="","",(ROUND((CONVERT('Backend Calcs Metric'!V52,"ft3","m3")),5))) -> 0.10477 | F51: =IF('Backend Calcs Metric'!W52="","",(ROUND((CONVERT('Backend Calcs Metric'!W52,"ft3","m3")),5))) -> 0.55715 | G51: =IF('Backend Calcs Metric'!X52="","",(ROUND((CONVERT('Backend Calcs Metric'!X52,"ft3","m3")),5))) -> 2.69462 | H51: =IF('Backend Calcs Metric'!Y52="","",(ROUND((CONVERT('Backend Calcs Metric'!Y52,"ft3","m3")),5))) -> 75.88283 | I51: =IF('Backend Calcs Metric'!Y52="","",(ROUND((CONVERT('Backend Calcs Metric'!Y52,"ft3","m3")),2))) -> 75.88 | J51: =IF('Backend Calcs Metric'!AA52="","",(ROUND((CONVERT('Backend Calcs Metric'!Z52,"ft","m")),5))) -> 0.7874 | L51: 32.33544
A52: =IF('Backend Calcs Metric'!P53="","",(ROUND((CONVERT('Backend Calcs Metric'!P53,"in","mm")),0))) -> 762 | B52: =IF('Backend Calcs Metric'!S53="","",(ROUND((CONVERT('Backend Calcs Metric'!S53,"ft3","m3")),5))) -> 0.08258 | C52: =IF('Backend Calcs Metric'!T53="","",(ROUND((CONVERT('Backend Calcs Metric'!T53,"ft3","m3")),5))) -> 0.01133 | D52: =IF('Backend Calcs Metric'!U53="","",(ROUND((CONVERT('Backend Calcs Metric'!U53,"ft3","m3")),5))) -> 2.06452 | E52: =IF('Backend Calcs Metric'!V53="","",(ROUND((CONVERT('Backend Calcs Metric'!V53,"ft3","m3")),5))) -> 0.11327 | F52: =IF('Backend Calcs Metric'!W53="","",(ROUND((CONVERT('Backend Calcs Metric'!W53,"ft3","m3")),5))) -> 0.54103 | G52: =IF('Backend Calcs Metric'!X53="","",(ROUND((CONVERT('Backend Calcs Metric'!X53,"ft3","m3")),5))) -> 2.71881 | H52: =IF('Backend Calcs Metric'!Y53="","",(ROUND((CONVERT('Backend Calcs Metric'!Y53,"ft3","m3")),5))) -> 73.18821 | I52: =IF('Backend Calcs Metric'!Y53="","",(ROUND((CONVERT('Backend Calcs Metric'!Y53,"ft3","m3")),2))) -> 73.19 | J52: =IF('Backend Calcs Metric'!AA53="","",(ROUND((CONVERT('Backend Calcs Metric'!Z53,"ft","m")),5))) -> 0.762 | L52: 32.62572
A53: =IF('Backend Calcs Metric'!P54="","",(ROUND((CONVERT('Backend Calcs Metric'!P54,"in","mm")),0))) -> 737 | B53: =IF('Backend Calcs Metric'!S54="","",(ROUND((CONVERT('Backend Calcs Metric'!S54,"ft3","m3")),5))) -> 0.08394 | C53: =IF('Backend Calcs Metric'!T54="","",(ROUND((CONVERT('Backend Calcs Metric'!T54,"ft3","m3")),5))) -> 0.01161 | D53: =IF('Backend Calcs Metric'!U54="","",(ROUND((CONVERT('Backend Calcs Metric'!U54,"ft3","m3")),5))) -> 2.09859 | E53: =IF('Backend Calcs Metric'!V54="","",(ROUND((CONVERT('Backend Calcs Metric'!V54,"ft3","m3")),5))) -> 0.1161 | F53: =IF('Backend Calcs Metric'!W54="","",(ROUND((CONVERT('Backend Calcs Metric'!W54,"ft3","m3")),5))) -> 0.52627 | G53: =IF('Backend Calcs Metric'!X54="","",(ROUND((CONVERT('Backend Calcs Metric'!X54,"ft3","m3")),5))) -> 2.74095 | H53: =IF('Backend Calcs Metric'!Y54="","",(ROUND((CONVERT('Backend Calcs Metric'!Y54,"ft3","m3")),5))) -> 70.4694 | I53: =IF('Backend Calcs Metric'!Y54="","",(ROUND((CONVERT('Backend Calcs Metric'!Y54,"ft3","m3")),2))) -> 70.47 | J53: =IF('Backend Calcs Metric'!AA54="","",(ROUND((CONVERT('Backend Calcs Metric'!Z54,"ft","m")),5))) -> 0.7366 | L53: 32.8914
A54: =IF('Backend Calcs Metric'!P55="","",(ROUND((CONVERT('Backend Calcs Metric'!P55,"in","mm")),0))) -> 711 | B54: =IF('Backend Calcs Metric'!S55="","",(ROUND((CONVERT('Backend Calcs Metric'!S55,"ft3","m3")),5))) -> 0.0849 | C54: =IF('Backend Calcs Metric'!T55="","",(ROUND((CONVERT('Backend Calcs Metric'!T55,"ft3","m3")),5))) -> 0.01189 | D54: =IF('Backend Calcs Metric'!U55="","",(ROUND((CONVERT('Backend Calcs Metric'!U55,"ft3","m3")),5))) -> 2.12262 | E54: =IF('Backend Calcs Metric'!V55="","",(ROUND((CONVERT('Backend Calcs Metric'!V55,"ft3","m3")),5))) -> 0.11893 | F54: =IF('Backend Calcs Metric'!W55="","",(ROUND((CONVERT('Backend Calcs Metric'!W55,"ft3","m3")),5))) -> 0.51552 | G54: =IF('Backend Calcs Metric'!X55="","",(ROUND((CONVERT('Backend Calcs Metric'!X55,"ft3","m3")),5))) -> 2.75707 | H54: =IF('Backend Calcs Metric'!Y55="","",(ROUND((CONVERT('Backend Calcs Metric'!Y55,"ft3","m3")),5))) -> 67.72844 | I54: =IF('Backend Calcs Metric'!Y55="","",(ROUND((CONVERT('Backend Calcs Metric'!Y55,"ft3","m3")),2))) -> 67.73 | J54: =IF('Backend Calcs Metric'!AA55="","",(ROUND((CONVERT('Backend Calcs Metric'!Z55,"ft","m")),5))) -> 0.7112 | L54: 33.08484
A55: =IF('Backend Calcs Metric'!P56="","",(ROUND((CONVERT('Backend Calcs Metric'!P56,"in","mm")),0))) -> 686 | B55: =IF('Backend Calcs Metric'!S56="","",(ROUND((CONVERT('Backend Calcs Metric'!S56,"ft3","m3")),5))) -> 0.08596 | C55: =IF('Backend Calcs Metric'!T56="","",(ROUND((CONVERT('Backend Calcs Metric'!T56,"ft3","m3")),5))) -> 0.01246 | D55: =IF('Backend Calcs Metric'!U56="","",(ROUND((CONVERT('Backend Calcs Metric'!U56,"ft3","m3")),5))) -> 2.14892 | E55: =IF('Backend Calcs Metric'!V56="","",(ROUND((CONVERT('Backend Calcs Metric'!V56,"ft3","m3")),5))) -> 0.12459 | F55: =IF('Backend Calcs Metric'!W56="","",(ROUND((CONVERT('Backend Calcs Metric'!W56,"ft3","m3")),5))) -> 0.50273 | G55: =IF('Backend Calcs Metric'!X56="","",(ROUND((CONVERT('Backend Calcs Metric'!X56,"ft3","m3")),5))) -> 2.77625 | H55: =IF('Backend Calcs Metric'!Y56="","",(ROUND((CONVERT('Backend Calcs Metric'!Y56,"ft3","m3")),5))) -> 64.97137 | I55: =IF('Backend Calcs Metric'!Y56="","",(ROUND((CONVERT('Backend Calcs Metric'!Y56,"ft3","m3")),2))) -> 64.97 | J55: =IF('Backend Calcs Metric'!AA56="","",(ROUND((CONVERT('Backend Calcs Metric'!Z56,"ft","m")),5))) -> 0.6858 | L55: 33.315
A56: =IF('Backend Calcs Metric'!P57="","",(ROUND((CONVERT('Backend Calcs Metric'!P57,"in","mm")),0))) -> 660 | B56: =IF('Backend Calcs Metric'!S57="","",(ROUND((CONVERT('Backend Calcs Metric'!S57,"ft3","m3")),5))) -> 0.08695 | C56: =IF('Backend Calcs Metric'!T57="","",(ROUND((CONVERT('Backend Calcs Metric'!T57,"ft3","m3")),5))) -> 0.01274 | D56: =IF('Backend Calcs Metric'!U57="","",(ROUND((CONVERT('Backend Calcs Metric'!U57,"ft3","m3")),5))) -> 2.17382 | E56: =IF('Backend Calcs Metric'!V57="","",(ROUND((CONVERT('Backend Calcs Metric'!V57,"ft3","m3")),5))) -> 0.12743 | F56: =IF('Backend Calcs Metric'!W57="","",(ROUND((CONVERT('Backend Calcs Metric'!W57,"ft3","m3")),5))) -> 0.49164 | G56: =IF('Backend Calcs Metric'!X57="","",(ROUND((CONVERT('Backend Calcs Metric'!X57,"ft3","m3")),5))) -> 2.79289 | H56: =IF('Backend Calcs Metric'!Y57="","",(ROUND((CONVERT('Backend Calcs Metric'!Y57,"ft3","m3")),5))) -> 62.19512 | I56: =IF('Backend Calcs Metric'!Y57="","",(ROUND((CONVERT('Backend Calcs Metric'!Y57,"ft3","m3")),2))) -> 62.2 | J56: =IF('Backend Calcs Metric'!AA57="","",(ROUND((CONVERT('Backend Calcs Metric'!Z57,"ft","m")),5))) -> 0.6604 | L56: 33.51468
A57: =IF('Backend Calcs Metric'!P58="","",(ROUND((CONVERT('Backend Calcs Metric'!P58,"in","mm")),0))) -> 635 | B57: =IF('Backend Calcs Metric'!S58="","",(ROUND((CONVERT('Backend Calcs Metric'!S58,"ft3","m3")),5))) -> 0.08793 | C57: =IF('Backend Calcs Metric'!T58="","",(ROUND((CONVERT('Backend Calcs Metric'!T58,"ft3","m3")),5))) -> 0.01303 | D57: =IF('Backend Calcs Metric'!U58="","",(ROUND((CONVERT('Backend Calcs Metric'!U58,"ft3","m3")),5))) -> 2.19825 | E57: =IF('Backend Calcs Metric'!V58="","",(ROUND((CONVERT('Backend Calcs Metric'!V58,"ft3","m3")),5))) -> 0.13026 | F57: =IF('Backend Calcs Metric'!W58="","",(ROUND((CONVERT('Backend Calcs Metric'!W58,"ft3","m3")),5))) -> 0.48074 | G57: =IF('Backend Calcs Metric'!X58="","",(ROUND((CONVERT('Backend Calcs Metric'!X58,"ft3","m3")),5))) -> 2.80925 | H57: =IF('Backend Calcs Metric'!Y58="","",(ROUND((CONVERT('Backend Calcs Metric'!Y58,"ft3","m3")),5))) -> 59.40223 | I57: =IF('Backend Calcs Metric'!Y58="","",(ROUND((CONVERT('Backend Calcs Metric'!Y58,"ft3","m3")),2))) -> 59.4 | J57: =IF('Backend Calcs Metric'!AA58="","",(ROUND((CONVERT('Backend Calcs Metric'!Z58,"ft","m")),5))) -> 0.635 | L57: 33.711
A58: =IF('Backend Calcs Metric'!P59="","",(ROUND((CONVERT('Backend Calcs Metric'!P59,"in","mm")),0))) -> 610 | B58: =IF('Backend Calcs Metric'!S59="","",(ROUND((CONVERT('Backend Calcs Metric'!S59,"ft3","m3")),5))) -> 0.08887 | C58: =IF('Backend Calcs Metric'!T59="","",(ROUND((CONVERT('Backend Calcs Metric'!T59,"ft3","m3")),5))) -> 0.01331 | D58: =IF('Backend Calcs Metric'!U59="","",(ROUND((CONVERT('Backend Calcs Metric'!U59,"ft3","m3")),5))) -> 2.22174 | E58: =IF('Backend Calcs Metric'!V59="","",(ROUND((CONVERT('Backend Calcs Metric'!V59,"ft3","m3")),5))) -> 0.13309 | F58: =IF('Backend Calcs Metric'!W59="","",(ROUND((CONVERT('Backend Calcs Metric'!W59,"ft3","m3")),5))) -> 0.47021 | G58: =IF('Backend Calcs Metric'!X59="","",(ROUND((CONVERT('Backend Calcs Metric'!X59,"ft3","m3")),5))) -> 2.82504 | H58: =IF('Backend Calcs Metric'!Y59="","",(ROUND((CONVERT('Backend Calcs Metric'!Y59,"ft3","m3")),5))) -> 56.59298 | I58: =IF('Backend Calcs Metric'!Y59="","",(ROUND((CONVERT('Backend Calcs Metric'!Y59,"ft3","m3")),2))) -> 56.59 | J58: =IF('Backend Calcs Metric'!AA59="","",(ROUND((CONVERT('Backend Calcs Metric'!Z59,"ft","m")),5))) -> 0.6096 | L58: 33.90048
A59: =IF('Backend Calcs Metric'!P60="","",(ROUND((CONVERT('Backend Calcs Metric'!P60,"in","mm")),0))) -> 584 | B59: =IF('Backend Calcs Metric'!S60="","",(ROUND((CONVERT('Backend Calcs Metric'!S60,"ft3","m3")),5))) -> 0.08978 | C59: =IF('Backend Calcs Metric'!T60="","",(ROUND((CONVERT('Backend Calcs Metric'!T60,"ft3","m3")),5))) -> 0.01388 | D59: =IF('Backend Calcs Metric'!U60="","",(ROUND((CONVERT('Backend Calcs Metric'!U60,"ft3","m3")),5))) -> 2.24449 | E59: =IF('Backend Calcs Metric'!V60="","",(ROUND((CONVERT('Backend Calcs Metric'!V60,"ft3","m3")),5))) -> 0.13875 | F59: =IF('Backend Calcs Metric'!W60="","",(ROUND((CONVERT('Backend Calcs Metric'!W60,"ft3","m3")),5))) -> 0.45885 | G59: =IF('Backend Calcs Metric'!X60="","",(ROUND((CONVERT('Backend Calcs Metric'!X60,"ft3","m3")),5))) -> 2.84208 | H59: =IF('Backend Calcs Metric'!Y60="","",(ROUND((CONVERT('Backend Calcs Metric'!Y60,"ft3","m3")),5))) -> 53.76794 | I59: =IF('Backend Calcs Metric'!Y60="","",(ROUND((CONVERT('Backend Calcs Metric'!Y60,"ft3","m3")),2))) -> 53.77 | J59: =IF('Backend Calcs Metric'!AA60="","",(ROUND((CONVERT('Backend Calcs Metric'!Z60,"ft","m")),5))) -> 0.5842 | L59: 34.10496
A60: =IF('Backend Calcs Metric'!P61="","",(ROUND((CONVERT('Backend Calcs Metric'!P61,"in","mm")),0))) -> 559 | B60: =IF('Backend Calcs Metric'!S61="","",(ROUND((CONVERT('Backend Calcs Metric'!S61,"ft3","m3")),5))) -> 0.09066 | C60: =IF('Backend Calcs Metric'!T61="","",(ROUND((CONVERT('Backend Calcs Metric'!T61,"ft3","m3")),5))) -> 0.01416 | D60: =IF('Backend Calcs Metric'!U61="","",(ROUND((CONVERT('Backend Calcs Metric'!U61,"ft3","m3")),5))) -> 2.26655 | E60: =IF('Backend Calcs Metric'!V61="","",(ROUND((CONVERT('Backend Calcs Metric'!V61,"ft3","m3")),5))) -> 0.14158 | F60: =IF('Backend Calcs Metric'!W61="","",(ROUND((CONVERT('Backend Calcs Metric'!W61,"ft3","m3")),5))) -> 0.44889 | G60: =IF('Backend Calcs Metric'!X61="","",(ROUND((CONVERT('Backend Calcs Metric'!X61,"ft3","m3")),5))) -> 2.85702 | H60: =IF('Backend Calcs Metric'!Y61="","",(ROUND((CONVERT('Backend Calcs Metric'!Y61,"ft3","m3")),5))) -> 50.92586 | I60: =IF('Backend Calcs Metric'!Y61="","",(ROUND((CONVERT('Backend Calcs Metric'!Y61,"ft3","m3")),2))) -> 50.93 | J60: =IF('Backend Calcs Metric'!AA61="","",(ROUND((CONVERT('Backend Calcs Metric'!Z61,"ft","m")),5))) -> 0.5588 | L60: 34.28424
A61: =IF('Backend Calcs Metric'!P62="","",(ROUND((CONVERT('Backend Calcs Metric'!P62,"in","mm")),0))) -> 533 | B61: =IF('Backend Calcs Metric'!S62="","",(ROUND((CONVERT('Backend Calcs Metric'!S62,"ft3","m3")),5))) -> 0.09152 | C61: =IF('Backend Calcs Metric'!T62="","",(ROUND((CONVERT('Backend Calcs Metric'!T62,"ft3","m3")),5))) -> 0.01444 | D61: =IF('Backend Calcs Metric'!U62="","",(ROUND((CONVERT('Backend Calcs Metric'!U62,"ft3","m3")),5))) -> 2.2881 | E61: =IF('Backend Calcs Metric'!V62="","",(ROUND((CONVERT('Backend Calcs Metric'!V62,"ft3","m3")),5))) -> 0.14442 | F61: =IF('Backend Calcs Metric'!W62="","",(ROUND((CONVERT('Backend Calcs Metric'!W62,"ft3","m3")),5))) -> 0.43914 | G61: =IF('Backend Calcs Metric'!X62="","",(ROUND((CONVERT('Backend Calcs Metric'!X62,"ft3","m3")),5))) -> 2.87165 | H61: =IF('Backend Calcs Metric'!Y62="","",(ROUND((CONVERT('Backend Calcs Metric'!Y62,"ft3","m3")),5))) -> 48.06884 | I61: =IF('Backend Calcs Metric'!Y62="","",(ROUND((CONVERT('Backend Calcs Metric'!Y62,"ft3","m3")),2))) -> 48.07 | J61: =IF('Backend Calcs Metric'!AA62="","",(ROUND((CONVERT('Backend Calcs Metric'!Z62,"ft","m")),5))) -> 0.5334 | L61: 34.4598
A62: =IF('Backend Calcs Metric'!P63="","",(ROUND((CONVERT('Backend Calcs Metric'!P63,"in","mm")),0))) -> 508 | B62: =IF('Backend Calcs Metric'!S63="","",(ROUND((CONVERT('Backend Calcs Metric'!S63,"ft3","m3")),5))) -> 0.09235 | C62: =IF('Backend Calcs Metric'!T63="","",(ROUND((CONVERT('Backend Calcs Metric'!T63,"ft3","m3")),5))) -> 0.01472 | D62: =IF('Backend Calcs Metric'!U63="","",(ROUND((CONVERT('Backend Calcs Metric'!U63,"ft3","m3")),5))) -> 2.30873 | E62: =IF('Backend Calcs Metric'!V63="","",(ROUND((CONVERT('Backend Calcs Metric'!V63,"ft3","m3")),5))) -> 0.14725 | F62: =IF('Backend Calcs Metric'!W63="","",(ROUND((CONVERT('Backend Calcs Metric'!W63,"ft3","m3")),5))) -> 0.42975 | G62: =IF('Backend Calcs Metric'!X63="","",(ROUND((CONVERT('Backend Calcs Metric'!X63,"ft3","m3")),5))) -> 2.88573 | H62: =IF('Backend Calcs Metric'!Y63="","",(ROUND((CONVERT('Backend Calcs Metric'!Y63,"ft3","m3")),5))) -> 45.19719 | I62: =IF('Backend Calcs Metric'!Y63="","",(ROUND((CONVERT('Backend Calcs Metric'!Y63,"ft3","m3")),2))) -> 45.2 | J62: =IF('Backend Calcs Metric'!AA63="","",(ROUND((CONVERT('Backend Calcs Metric'!Z63,"ft","m")),5))) -> 0.508 | L62: 34.62876
A63: =IF('Backend Calcs Metric'!P64="","",(ROUND((CONVERT('Backend Calcs Metric'!P64,"in","mm")),0))) -> 483 | B63: =IF('Backend Calcs Metric'!S64="","",(ROUND((CONVERT('Backend Calcs Metric'!S64,"ft3","m3")),5))) -> 0.09321 | C63: =IF('Backend Calcs Metric'!T64="","",(ROUND((CONVERT('Backend Calcs Metric'!T64,"ft3","m3")),5))) -> 0.01501 | D63: =IF('Backend Calcs Metric'!U64="","",(ROUND((CONVERT('Backend Calcs Metric'!U64,"ft3","m3")),5))) -> 2.33022 | E63: =IF('Backend Calcs Metric'!V64="","",(ROUND((CONVERT('Backend Calcs Metric'!V64,"ft3","m3")),5))) -> 0.15008 | F63: =IF('Backend Calcs Metric'!W64="","",(ROUND((CONVERT('Backend Calcs Metric'!W64,"ft3","m3")),5))) -> 0.42002 | G63: =IF('Backend Calcs Metric'!X64="","",(ROUND((CONVERT('Backend Calcs Metric'!X64,"ft3","m3")),5))) -> 2.90032 | H63: =IF('Backend Calcs Metric'!Y64="","",(ROUND((CONVERT('Backend Calcs Metric'!Y64,"ft3","m3")),5))) -> 42.31146 | I63: =IF('Backend Calcs Metric'!Y64="","",(ROUND((CONVERT('Backend Calcs Metric'!Y64,"ft3","m3")),2))) -> 42.31 | J63: =IF('Backend Calcs Metric'!AA64="","",(ROUND((CONVERT('Backend Calcs Metric'!Z64,"ft","m")),5))) -> 0.4826 | L63: 34.80384
A64: =IF('Backend Calcs Metric'!P65="","",(ROUND((CONVERT('Backend Calcs Metric'!P65,"in","mm")),0))) -> 457 | B64: =IF('Backend Calcs Metric'!S65="","",(ROUND((CONVERT('Backend Calcs Metric'!S65,"ft3","m3")),5))) -> 0.09403 | C64: =IF('Backend Calcs Metric'!T65="","",(ROUND((CONVERT('Backend Calcs Metric'!T65,"ft3","m3")),5))) -> 0.01529 | D64: =IF('Backend Calcs Metric'!U65="","",(ROUND((CONVERT('Backend Calcs Metric'!U65,"ft3","m3")),5))) -> 2.35074 | E64: =IF('Backend Calcs Metric'!V65="","",(ROUND((CONVERT('Backend Calcs Metric'!V65,"ft3","m3")),5))) -> 0.15291 | F64: =IF('Backend Calcs Metric'!W65="","",(ROUND((CONVERT('Backend Calcs Metric'!W65,"ft3","m3")),5))) -> 0.41068 | G64: =IF('Backend Calcs Metric'!X65="","",(ROUND((CONVERT('Backend Calcs Metric'!X65,"ft3","m3")),5))) -> 2.91433 | H64: =IF('Backend Calcs Metric'!Y65="","",(ROUND((CONVERT('Backend Calcs Metric'!Y65,"ft3","m3")),5))) -> 39.41114 | I64: =IF('Backend Calcs Metric'!Y65="","",(ROUND((CONVERT('Backend Calcs Metric'!Y65,"ft3","m3")),2))) -> 39.41 | J64: =IF('Backend Calcs Metric'!AA65="","",(ROUND((CONVERT('Backend Calcs Metric'!Z65,"ft","m")),5))) -> 0.4572 | L64: 34.97196
A65: =IF('Backend Calcs Metric'!P66="","",(ROUND((CONVERT('Backend Calcs Metric'!P66,"in","mm")),0))) -> 432 | B65: =IF('Backend Calcs Metric'!S66="","",(ROUND((CONVERT('Backend Calcs Metric'!S66,"ft3","m3")),5))) -> 0.09484 | C65: =IF('Backend Calcs Metric'!T66="","",(ROUND((CONVERT('Backend Calcs Metric'!T66,"ft3","m3")),5))) -> 0.01557 | D65: =IF('Backend Calcs Metric'!U66="","",(ROUND((CONVERT('Backend Calcs Metric'!U66,"ft3","m3")),5))) -> 2.371 | E65: =IF('Backend Calcs Metric'!V66="","",(ROUND((CONVERT('Backend Calcs Metric'!V66,"ft3","m3")),5))) -> 0.15574 | F65: =IF('Backend Calcs Metric'!W66="","",(ROUND((CONVERT('Backend Calcs Metric'!W66,"ft3","m3")),5))) -> 0.40145 | G65: =IF('Backend Calcs Metric'!X66="","",(ROUND((CONVERT('Backend Calcs Metric'!X66,"ft3","m3")),5))) -> 2.92818 | H65: =IF('Backend Calcs Metric'!Y66="","",(ROUND((CONVERT('Backend Calcs Metric'!Y66,"ft3","m3")),5))) -> 36.49681 | I65: =IF('Backend Calcs Metric'!Y66="","",(ROUND((CONVERT('Backend Calcs Metric'!Y66,"ft3","m3")),2))) -> 36.5 | J65: =IF('Backend Calcs Metric'!AA66="","",(ROUND((CONVERT('Backend Calcs Metric'!Z66,"ft","m")),5))) -> 0.4318 | L65: 35.13816
A66: =IF('Backend Calcs Metric'!P67="","",(ROUND((CONVERT('Backend Calcs Metric'!P67,"in","mm")),0))) -> 406 | B66: =IF('Backend Calcs Metric'!S67="","",(ROUND((CONVERT('Backend Calcs Metric'!S67,"ft3","m3")),5))) -> 0.09562 | C66: =IF('Backend Calcs Metric'!T67="","",(ROUND((CONVERT('Backend Calcs Metric'!T67,"ft3","m3")),5))) -> 0.01586 | D66: =IF('Backend Calcs Metric'!U67="","",(ROUND((CONVERT('Backend Calcs Metric'!U67,"ft3","m3")),5))) -> 2.39043 | E66: =IF('Backend Calcs Metric'!V67="","",(ROUND((CONVERT('Backend Calcs Metric'!V67,"ft3","m3")),5))) -> 0.15857 | F66: =IF('Backend Calcs Metric'!W67="","",(ROUND((CONVERT('Backend Calcs Metric'!W67,"ft3","m3")),5))) -> 0.39254 | G66: =IF('Backend Calcs Metric'!X67="","",(ROUND((CONVERT('Backend Calcs Metric'!X67,"ft3","m3")),5))) -> 2.94154 | H66: =IF('Backend Calcs Metric'!Y67="","",(ROUND((CONVERT('Backend Calcs Metric'!Y67,"ft3","m3")),5))) -> 33.56862 | I66: =IF('Backend Calcs Metric'!Y67="","",(ROUND((CONVERT('Backend Calcs Metric'!Y67,"ft3","m3")),2))) -> 33.57 | J66: =IF('Backend Calcs Metric'!AA67="","",(ROUND((CONVERT('Backend Calcs Metric'!Z67,"ft","m")),5))) -> 0.4064 | L66: 35.29848
A67: =IF('Backend Calcs Metric'!P68="","",(ROUND((CONVERT('Backend Calcs Metric'!P68,"in","mm")),0))) -> 381 | B67: =IF('Backend Calcs Metric'!S68="","",(ROUND((CONVERT('Backend Calcs Metric'!S68,"ft3","m3")),5))) -> 0.09641 | C67: =IF('Backend Calcs Metric'!T68="","",(ROUND((CONVERT('Backend Calcs Metric'!T68,"ft3","m3")),5))) -> 0.01586 | D67: =IF('Backend Calcs Metric'!U68="","",(ROUND((CONVERT('Backend Calcs Metric'!U68,"ft3","m3")),5))) -> 2.41026 | E67: =IF('Backend Calcs Metric'!V68="","",(ROUND((CONVERT('Backend Calcs Metric'!V68,"ft3","m3")),5))) -> 0.15857 | F67: =IF('Backend Calcs Metric'!W68="","",(ROUND((CONVERT('Backend Calcs Metric'!W68,"ft3","m3")),5))) -> 0.38461 | G67: =IF('Backend Calcs Metric'!X68="","",(ROUND((CONVERT('Backend Calcs Metric'!X68,"ft3","m3")),5))) -> 2.95344 | H67: =IF('Backend Calcs Metric'!Y68="","",(ROUND((CONVERT('Backend Calcs Metric'!Y68,"ft3","m3")),5))) -> 30.62708 | I67: =IF('Backend Calcs Metric'!Y68="","",(ROUND((CONVERT('Backend Calcs Metric'!Y68,"ft3","m3")),2))) -> 30.63 | J67: =IF('Backend Calcs Metric'!AA68="","",(ROUND((CONVERT('Backend Calcs Metric'!Z68,"ft","m")),5))) -> 0.381 | L67: 35.44128
A68: =IF('Backend Calcs Metric'!P69="","",(ROUND((CONVERT('Backend Calcs Metric'!P69,"in","mm")),0))) -> 356 | B68: =IF('Backend Calcs Metric'!S69="","",(ROUND((CONVERT('Backend Calcs Metric'!S69,"ft3","m3")),5))) -> 0.09721 | C68: =IF('Backend Calcs Metric'!T69="","",(ROUND((CONVERT('Backend Calcs Metric'!T69,"ft3","m3")),5))) -> 0.01614 | D68: =IF('Backend Calcs Metric'!U69="","",(ROUND((CONVERT('Backend Calcs Metric'!U69,"ft3","m3")),5))) -> 2.43023 | E68: =IF('Backend Calcs Metric'!V69="","",(ROUND((CONVERT('Backend Calcs Metric'!V69,"ft3","m3")),5))) -> 0.16141 | F68: =IF('Backend Calcs Metric'!W69="","",(ROUND((CONVERT('Backend Calcs Metric'!W69,"ft3","m3")),5))) -> 0.37549 | G68: =IF('Backend Calcs Metric'!X69="","",(ROUND((CONVERT('Backend Calcs Metric'!X69,"ft3","m3")),5))) -> 2.96712 | H68: =IF('Backend Calcs Metric'!Y69="","",(ROUND((CONVERT('Backend Calcs Metric'!Y69,"ft3","m3")),5))) -> 27.67364 | I68: =IF('Backend Calcs Metric'!Y69="","",(ROUND((CONVERT('Backend Calcs Metric'!Y69,"ft3","m3")),2))) -> 27.67 | J68: =IF('Backend Calcs Metric'!AA69="","",(ROUND((CONVERT('Backend Calcs Metric'!Z69,"ft","m")),5))) -> 0.3556 | L68: 35.60544
A69: =IF('Backend Calcs Metric'!P70="","",(ROUND((CONVERT('Backend Calcs Metric'!P70,"in","mm")),0))) -> 330 | B69: =IF('Backend Calcs Metric'!S70="","",(ROUND((CONVERT('Backend Calcs Metric'!S70,"ft3","m3")),5))) -> 0.09803 | C69: =IF('Backend Calcs Metric'!T70="","",(ROUND((CONVERT('Backend Calcs Metric'!T70,"ft3","m3")),5))) -> 0.01642 | D69: =IF('Backend Calcs Metric'!U70="","",(ROUND((CONVERT('Backend Calcs Metric'!U70,"ft3","m3")),5))) -> 2.45085 | E69: =IF('Backend Calcs Metric'!V70="","",(ROUND((CONVERT('Backend Calcs Metric'!V70,"ft3","m3")),5))) -> 0.16424 | F69: =IF('Backend Calcs Metric'!W70="","",(ROUND((CONVERT('Backend Calcs Metric'!W70,"ft3","m3")),5))) -> 0.3661 | G69: =IF('Backend Calcs Metric'!X70="","",(ROUND((CONVERT('Backend Calcs Metric'!X70,"ft3","m3")),5))) -> 2.9812 | H69: =IF('Backend Calcs Metric'!Y70="","",(ROUND((CONVERT('Backend Calcs Metric'!Y70,"ft3","m3")),5))) -> 24.70652 | I69: =IF('Backend Calcs Metric'!Y70="","",(ROUND((CONVERT('Backend Calcs Metric'!Y70,"ft3","m3")),2))) -> 24.71 | J69: =IF('Backend Calcs Metric'!AA70="","",(ROUND((CONVERT('Backend Calcs Metric'!Z70,"ft","m")),5))) -> 0.3302 | L69: 35.7744
